Workbook

Sheet Control page
J1: Unlock | K1: =IF(J1="Lock",1,0) -> 0
B2: PHASTEx - U.S. Units Version | K2: 0 | L2: PHASTEx_- US Units For Excel v1.01.xls
B3: Developed by E3M Inc. under contract with Oak Ridge National Laboratory
B5: =$H$5 -> What is PHASTEx? | H5: What is PHASTEx?
B6: Control Page | H6: Enter Data
B7: =L2 -> PHASTEx_- US Units For Excel v1.01.xls | H7: Go To Report
B8: No. | C8: Items | D8: Number of Components | H8: Print Sheet
B9: 1 | C9: Plant General Information
B10: 2 | C10: Furnace Data
B11: 3.1 | C11: Charge material- Solids (wet or dry) Enter "0" if none | D11: 3
B12: 3.2 | C12: Charge material- Liquids Enter "0" if none | D12: 3
B13: 3.3 | C13: Charge material- Gases/vapors Enter "0" if none | D13: 3
B14: 4 | C14: Fixtures, trays, conveyor etc. Enter "0" if none | D14: 6
B15: 5 | C15: Wall surface heat losses | D15: 10
B16: 6 | C16: Water or air cooling (internal) Enter "0" if none | D16: 6
B17: 7 | C17: Atmosphere or makeup air Enter "0" if none | D17: 3
B18: 8 | C18: Flue Gases
B19: 9 | C19: Radiation losses from openings- Enter "0" if none | D19: 6
B20: 10 | C20: Power use by Electric Motors & Other Devices | D20: 10
B21: 11 | C21: Other heat loss or generation | D21: 2
B22: View PHASTEx Summary Report | C22: View PHAST Energy Usage Distribution | D22: 0
B23: View PHASTEx Energy Usage Distribution | D23: 0
B24: **PHASTEx tool and its predecessor tool (PHAST) were conceived by Dr. Arvind Thekdi and developed by E3M Inc. in collaboration with Oak Ridge National Laboratory (ORNL). Dr. Sachin Nimbalkar and Mr. Kiran Thirumaran of Oak Ridge National Laboratory (ORNL) and Dr. Jing Ke of Lawrence Berkeley National Laboratory (Berkeley Lab) contributed to the development work. The project was supported by Advanced Manufacturing, Energy Efficiency and Renewable Energy Office of The U.S. Department of Energy. The tool was tested by a team of experts from the ORNL and representatives from the US industrial companies.

Sheet Plant general info
A2: PHASTEx - U.S. Units Version
A3: Developed by E3M Inc. under contract with Oak Ridge National Laboratory
A5: Plant Energy Survey - Audit | C5: Survey / Initiation Date: | H5: Print Sheet
H7: Done Entering Data
A8: Plant - General Information
A9: Company name
A10: Plant name | E10: Industry Code
A11: Plant address | B11: Street
B12: City / State
B13: Zip or Postal Code | D13: Country
A14: Plant description
A15: Final product(s)
A16: Contact name
A17: Address (Street, City, Postal code)
A18: Phone number | D18: Fax number
A19: Email
A20: Currency in which costs are given | D20: Exchange Rate | E20: (Equivalent to US$1)
A21: Fuel (Energy Source) Information
B22: Fuel/Energy 1 | C22: Fuel/Energy 2 | D22: Fuel/Energy 3 | E22: Fuel/Energy 4 | F22: Fuel/Energy 5 | G22: Fuel/Energy 6
A23: Name of Fuel/Energy Source used in the plant
A24: Type (Fuel or Electricity)
A25: Unit for Heating Value
A26: Heating value in the units stated above
A27: Unit for mass or quantity of fuel given below
A28: Cost Unit Used
A29: Cost of fuel/energy in the units above
A30: Other information if necessary

Sheet Process Heating Equipment
L3: Print Sheet
B4: Process Heating Equipment Information
L5: Done Entering Data
B6: Name or designation of equipment
B7: Model number or equipment ID
B8: Production rate - average value (lb per hour) | D8: lb/hr
B9: Final product
B10: Type of operation (Continuous, batch or other)
B11: Energy System Details
B12: Operating hours per year | C12: hrs./year
B13: Number of zones | D13: 1
B14: Zone number
B15: Zone Name
B16: Burner rated capacity - Total for all burners | C16: Btu/hr
B17: Percentage of rated capacity used | C17: %
B18: Duty cycle (as % of operating hours) | C18: %
B19: Estimated fuel energy use per year | C19: MMBtu/year | D19: =$D$12*D16*(D17/100)*(D18/100)/10^6 -> 0 | E19: =$D$12*E16*(E17/100)*(E18/100)/10^6 -> 0 | F19: =$D$12*F16*(F17/100)*(F18/100)/10^6 -> 0 | G19: =$D$12*G16*(G17/100)*(G18/100)/10^6 -> 0 | H19: =$D$12*H16*(H17/100)*(H18/100)/10^6 -> 0
B20: Total energy used | C20: MMBtu/year | D20: =D19+(E19*E20)+(F19*F20)+(G19*G20)+(H19*H20) -> 0 | E20: =IF($D$13<2,0,1) -> 0 | F20: =IF($D$13<3,0,1) -> 0 | G20: =IF($D$13<4,0,1) -> 0 | H20: =IF($D$13<5,0,1) -> 0
B22: Total Energy Input - Measured values for the Equipment
B23: Fuel used for the equipment - name
B24: Fuel use for the equipment- measurement period | C24: hrs.
B25: Fuel energy used for measurement period | C25: Btu
B26: Energy used per hour (average value) | C26: Btu/hr. | D26: =IF(D24>0, D25/D24, 0) -> 0 | E26: =IF(E24>0, E25/E24, 0) -> 0
B27: Electricity use for the equipment- measurement period | C27: hrs.
B28: Electricity used for measurement period | C28: kWh
B29: Electricity used per hour (average value) | C29: kW | D29: =IFERROR(D28/D27,"") -> 
B31: Other information as necessary for the equipment: preheaters, coal feeder etc.

Sheet PHASTEx summary report
B1: PHASTEx - U.S. Units Version
B2: Developed by E3M Inc. under contract with Oak Ridge National Laboratory
B4: PHASTEx (Process Heating Assessment and Survey Tool - Excel)
B5: Summary Report of Energy Usage
B6: Company name | D6: =IF('Plant general info'!B9="","",'Plant general info'!B9) ->  | G6: Date | H6: =IF('Plant general info'!E5=0,"",'Plant general info'!E5) ->  | K6: Previous Page
B7: Plant name | D7: =IF('Plant general info'!B10="","",'Plant general info'!B10) ->  | G7: Note: | K7: Next Page
B8: Process Heating Equipment Name | D8: =IF('Process Heating Equipment'!C6="","",'Process Heating Equipment'!C6) ->  | K8: Return to Control Page | L8: Energy Equivalent Unit for Summary Report
B9: Name of the energy assessment leader | K9: Print Sheet
L11: kcal
B12: No | C12: Energy use or loss category | D12: Energy use - loss (Current) | G12: Energy use - loss (Modified)
D13: Btu/hour | E13: =IF($L$11="kgce", "kgce/hour", IF($L$11="kcal","kCal/hour", IF($L$11="kgoe","kgoe/hour",IF($L$11="MMBtu","MMBtu/hour","Btu/hour")))) -> kCal/hour | F13: % | G13: =D13 -> Btu/hour | H13: =E13 -> kCal/hour | I13: %
B14: 1 | C14: Charge material | D14: ='Load Charge Solid-1'!E156 + 'Load Charge Liquid-1'!E120+'Load Charge Gas-1'!E105 -> 0 | E14: =D14 / IF($L$11="kcal", $H$28, IF($L$11="kgce",$I$28,IF($L$11="kgoe",$H$27,IF($L$11="MMBtu", $G$27)))) -> 0 | F14: =IFERROR(D14/$D$25,"-") -> - | G14: ='Load Charge Solid-1'!F156+'Load Charge Liquid-1'!F120+'Load Charge Gas-1'!F105 -> 0 | H14: =G14 / IF($L$11="kcal", $H$28, IF($L$11="kgce",$I$28,IF($L$11="kgoe",$H$27,IF($L$11="MMBtu", $G$27)))) -> 0 | I14: =IFERROR(G14/$G$25,"-") -> -
B15: =1+B14 -> 2 | C15: Fixtures, trays, conveyor etc. | D15: ='Fixture losses '!D65 -> 0 | E15: =D15 / IF($L$11="kcal", $H$28, IF($L$11="kgce",$I$28,IF($L$11="kgoe",$H$27,IF($L$11="MMBtu", $G$27)))) -> 0 | F15: =IFERROR(D15/$D$25,"-") -> - | G15: ='Fixture losses '!E65 -> 0 | H15: =G15 / IF($L$11="kcal", $H$28, IF($L$11="kgce",$I$28,IF($L$11="kgoe",$H$27,IF($L$11="MMBtu", $G$27)))) -> 0 | I15: =IFERROR(G15/$G$25,"-") -> -
B16: =1+B15 -> 3 | C16: Wall surface heat losses | D16: ='Wall losses'!D129 -> 0 | E16: 0 | F16: - | G16: ='Wall losses'!E129 -> 0 | H16: 0 | I16: -
B17: 4 | C17: Water or air cooling (internal) | D17: ='Water-Air cooling'!D233 -> 0 | E17: 0 | F17: - | G17: ='Water-Air cooling'!E233 -> 0 | H17: 0 | I17: -
B18: 5 | C18: Atmosphere or makeup air | D18: ='Atmosphere losses'!D50 -> 0 | E18: 0 | F18: - | G18: ='Atmosphere losses'!E50 -> 0 | H18: 0 | I18: -
B19: 6 | C19: Radiation losses from openings | D19: ='Radiation losses from opening'!D160 -> 0 | E19: 0 | F19: - | G19: ='Radiation losses from opening'!E160 -> 0 | H19: 0 | I19: -
B20: 7 | C20: Other heat loss or heat addition | D20: ='9- Other heat loss'!E59 -> 0 | E20: 0 | F20: - | G20: ='9- Other heat loss'!F59 -> 0 | H20: 0 | I20: -
B21: 8 | C21: Total net heat required | D21: =SUM(D14:D20) -> 0 | E21: 0 | G21: =SUM(G14:G20) -> 0 | H21: =G21 / IF($L$11="kcal", $H$28, IF($L$11="kgce",$I$28,IF($L$11="kgoe",$H$27,IF($L$11="MMBtu", $G$27)))) -> 0
B22: 9 | C22: Available heat (%) | D22: ='Flue gases'!D14/100 -> 0.9013390414 | E22: =D22 -> 0.9013390414 | G22: ='Flue gases'!E14/100 -> 0.93921086 | H22: =G22 -> 0.93921086
B23: 10 | C23: Flue gas loss | D23: =D21/(D22)-D21 -> 0 | E23: =E21/(E22)-E21 -> 0 | F23: - | G23: =G21/(G22)-G21 -> 0 | H23: =G23 / IF($L$11="kcal", $H$28, IF($L$11="kgce",$I$28,IF($L$11="kgoe",$H$27,IF($L$11="MMBtu", $G$27)))) -> 0 | I23: -
C24: Exothermic heat from process | D24: =-1*('Load Charge Solid-1'!K156+'Load Charge Liquid-1'!K120+'Load Charge Gas-1'!K105) -> 0 | E24: =D24 / IF($L$11="kcal", $H$28, IF($L$11="kgce",$I$28,IF($L$11="kgoe",$H$27,IF($L$11="MMBtu", $G$27)))) -> 0 | F24: - | G24: =-1*('Load Charge Solid-1'!L156+'Load Charge Liquid-1'!L120+'Load Charge Gas-1'!L105) -> 0 | H24: =G24 / IF($L$11="kcal", $H$28, IF($L$11="kgce",$I$28,IF($L$11="kgoe",$H$27,IF($L$11="MMBtu", $G$27)))) -> 0 | I24: -
C25: Total gross heat input required | D25: =D21+D23+D24 -> 0 | E25: =D25 / IF($L$11="kcal", $H$28, IF($L$11="kgce",$I$28,IF($L$11="kgoe",$H$27,IF($L$11="MMBtu", $G$27)))) -> 0 | F25: =SUM(F14:F24) -> 0 | G25: =G21+G23+G24 -> 0 | H25: =G25 / IF($L$11="kcal", $H$28, IF($L$11="kgce",$I$28,IF($L$11="kgoe",$H$27,IF($L$11="MMBtu", $G$27)))) -> 0 | I25: =SUM(I14:I24) -> 0
G27: =10^6 -> 1000000 | H27: 39683 | I27: 3.96526 | J27: 2.205
E28: ='Load Charge Solid-1'!I156+'Load Charge Liquid-1'!I120+'Load Charge Gas-1'!I105 -> 0 | F28: ='Load Charge Solid-1'!J156+'Load Charge Liquid-1'!J120+'Load Charge Gas-1'!J105 -> 0 | H28: 3.9683 | I28: 27766
C29: Summary : | D29: Units | E29: Current Values | F29: Modified Values
C30: Calculated values
C31: Energy Intensity for Charge Materials | D31: Btu/lb | E31: =IF(E28 > 0, D25/E28, "-") -> - | F31: =IF(F28 > 0, G25/F28, "-") -> -
D32: =IF($L$11="kgce","kgce/kg",IF($L$11="kgoe","kgoe/kg",IF($L$11="kcal","kcal/lb",IF($L$11="MMBtu","MMBtu/lb","Btu/lb")))) -> kcal/lb | E32: =IFERROR(IF($D$32="kgce/kg", E31/$I$28*$J$27,IF($D$32="kgoe/kg", E31/$H$27*$J$27, IF($D$32="kcal/lb",E31/$I$27,IF($D$32="MMBtu/lb",E31/$G$27,"-")))),"-") -> - | F32: =IFERROR(IF($D$32="kgce/kg", F31/$I$28*$J$27,IF($D$32="kgoe/kg", F31/$H$27*$J$27, IF($D$32="kcal/lb",F31/$I$27,IF($D$32="MMBtu/lb",F31/$G$27,"-")))),"-") -> -
C33: Required Fuel Energy Input | D33: Btu/hour | E33: =D25 -> 0 | F33: =G25 -> 0
D34: =IF($L$11="kgce", "kgce/hour", IF($L$11="kcal","kcal/hour", IF($L$11="kgoe","kgoe/hour",IF($L$11="MMBtu","MMBtu/hour","Btu/hour")))) -> kcal/hour | E34: =E33/ IF($L$11="kcal", $H$28, IF($L$11="kgce",$I$28,IF($L$11="kgoe",$H$27,IF($L$11="MMBtu", $G$27)))) -> 0 | F34: =F33/ IF($L$11="kcal", $H$28, IF($L$11="kgce",$I$28,IF($L$11="kgoe",$H$27,IF($L$11="MMBtu", $G$27)))) -> 0
C35: Required Electrical Energy Input | D35: kW | E35: ='8- Power- Motor driven systems'!D83 -> 0 | F35: ='8- Power- Motor driven systems'!E83 -> 0
C36: Estimated Values
C37: Energy Input from Fuel | D37: Btu/hour | E37: =IFERROR('Process Heating Equipment'!D20/'Process Heating Equipment'!D12*10^6,"-") -> -
D38: =IF($L$11="kgce", "kgce/hour", IF($L$11="kcal","kcal/hour", IF($L$11="kgoe","kgoe/hour",IF($L$11="MMBtu","MMBtu/hour","Btu/hour")))) -> kcal/hour | E38: =IFERROR(E37/ IF($L$11="kcal", $H$28, IF($L$11="kgce",$I$28,IF($L$11="kgoe",$H$27,IF($L$11="MMBtu", $G$27)))),"-") -> -
C39: Electricity Used (average value) | D39: kW | E39: =E35 -> 0
C40: Energy Intensity for Charge Materials | D40: Btu/lb | E40: =IFERROR(IF(E28 > 0, E37/E28, "-"),"") -> -
D41: =IF($L$11="kgce","kgce/kg",IF($L$11="kgoe","kgoe/kg",IF($L$11="kcal","kcal/lb",IF($L$11="MMBtu","MMBtu/lb","Btu/lb")))) -> kcal/lb | E41: =IFERROR(IF($D$41="kgce/kg", E40/$I$28*$J$27,IF($D$41="kgoe/kg", E40/$H$27*$J$27, IF($D$41="kcal/lb",E40/$I$27,IF($D$41="MMBtu/lb",E40/$G$27,"-")))),"-") -> -
C42: Measured values
C43: Energy Input from Fuel | D43: Btu/hour | E43: ='Process Heating Equipment'!D26+'Process Heating Equipment'!E26 -> 0
D44: =IF($L$11="kgce", "kgce/hour", IF($L$11="kcal","kcal/hour", IF($L$11="kgoe","kgoe/hour",IF($L$11="MMBtu","MMBtu/hour","Btu/hour")))) -> kcal/hour | E44: =E43/ IF($L$11="kcal", $H$28, IF($L$11="kgce",$I$28,IF($L$11="kgoe",$H$27,IF($L$11="MMBtu", $G$27)))) -> 0
C45: Electricity Used (average value) | D45: kW | E45: ='Process Heating Equipment'!D29 -> 
C46: Energy Intensity for Charge Materials | D46: Btu/lb | E46: =IF(E28 > 0, E43/E28, "-") -> -
D47: =IF($L$11="kgce","kgce/kg",IF($L$11="kgoe","kgoe/kg",IF($L$11="kcal","kcal/lb",IF($L$11="MMBtu","MMBtu/lb","Btu/lb")))) -> kcal/lb | E47: =IFERROR(IF($D$47="kgce/kg", E46/$I$28*$J$27,IF($D$47="kgoe/kg", E46/$H$27*$J$27, IF($D$47="kcal/lb",E46/$I$27,IF($D$47="MMBtu/lb",E46/$G$27,"-")))),"-") -> -
B52: E3M Inc. | I52: Office Phone: (240) 715-4333
B53: 15216 Gravenstein Way | I53: Mobile: (240) 605-7545
B54: North Potomac, MD 20878 | I54: E-mail: athekdi@e3minc.com
B55: 15216 Gravenstein Way
B56: North Potomac, MD 20878
B57: Office Phone: (240) 715-4333
B58: Mobile: (240) 605-7545
B59: E-mail: athekdi@e3minc.com

Sheet Sankey Diagram
B1: PHASTEx - U.S. Units Version
B2: Developed by E3M Inc. under contract with Oak Ridge National Laboratory
C5: Furnace Heat Balance (Sankey Diagram) | R5: Select energy unit for report
U7: ='Process Heating Equipment'!C6 -> 0
Z8: conversion factor
R9: kgce | U9: Charge material | V9: ='PHASTEx summary report'!D14/ $Z$9 -> 0 | W9: =V9/1000000 -> 0 | Z9: =IF($R$9="Btu", 1, IF($R$9="kgce", 'PHASTEx summary report'!$I$28, IF($R$9="kcal",'PHASTEx summary report'!$H$28,IF($R$9="kgoe",'PHASTEx summary report'!$H$27,IF($R$9="MMBtu",'PHASTEx summary report'!G27,'PHASTEx summary report'!I28))))) -> 27766
U10: Fixtures, trays, conveyor etc. | V10: ='PHASTEx summary report'!D15/ $Z$9 -> 0 | W10: =V10/1000000 -> 0 | Z10: =IF($R$9="kgce", "All quantities are in units of kgce/Hr.", IF($R$9="kgoe", "All quantities are in units of kgoe/Hr.", IF($R$9="kcal", "All quantities are in units of kcal/Hr.",IF(R9="Btu","All quantities are in units of Btu/Hr.",IF(R9="MMBtu","All quantities are in units of MMBtu/Hr.","All quantities are in units of Btu/Hr."))))) -> All quantities are in units of kgce/Hr.
U11: Wall surface heat losses | V11: ='PHASTEx summary report'!D16/ $Z$9 -> 0 | W11: 0
U12: Water or air cooling (internal) | V12: ='PHASTEx summary report'!D17/ $Z$9 -> 0 | W12: 0
U13: Atmosphere or makeup air | V13: ='PHASTEx summary report'!D18/ $Z$9 -> 0 | W13: 0
U14: Radiation losses from openings | V14: ='PHASTEx summary report'!D19/ $Z$9 -> 0 | W14: 0
U15: Other heat loss or heat addition | V15: ='PHASTEx summary report'!D20/ $Z$9 -> 0 | W15: 0
U16: Total net heat required | V16: ='PHASTEx summary report'!D21/ $Z$9 -> 0 | W16: 0
U17: Available heat | V17: ='PHASTEx summary report'!D22/ $Z$9 -> 3.246196936e-05 | W17: 3.246196936e-11
U18: Flue gas loss | V18: ='PHASTEx summary report'!D23/ $Z$9 -> 0 | W18: 0
U19: Exothermic heat from process | V19: ='PHASTEx summary report'!D24/ $Z$9 -> 0 | W19: 0
U20: Total gross heat input required | V20: ='PHASTEx summary report'!D25/ $Z$9 -> 0 | W20: 0
U23: Previous Page
U24: Next Page
U25: Return to Control Page
U26: Print Sheet
B40: Note: | C40: This is a "static" Sankey Diagram with no changes in width of the arrows. | U40: Charge material | V40: ='PHASTEx summary report'!G14 / $Z$9 -> 0 | W40: =V40/1000000 -> 0
C41: =IF( $R$9="kJ", "The value shown for each arrow represents heat input or use or loss in terms of kJ/hour", IF($R$9="kgce", "The value shown for each arrow represents heat input or use or loss in terms of kgce/hour", IF($R$9="TCE", "The value shown for each arrow represents heat input or use or loss in terms of TCE/hour", IF($R$9="kgoe", "The value shown for each arrow represents heat input or use or loss in terms of kgoe/hour",IF($R$9="Btu", "The value shown for each arrow represents heat input or use or loss in terms of Btu/hour", "The value shown for each arrow represents heat input or use or loss in terms of kcal/hour"))))) -> The value shown for each arrow represents heat input or use or loss in terms of kgce/hour | U41: Fixtures, trays, conveyor etc. | V41: ='PHASTEx summary report'!G15 / $Z$9 -> 0 | W41: =V41/1000000 -> 0
C42: The top value is for "current" conditions and the bottom value is for "modified" conditions. | U42: Wall surface heat losses | V42: ='PHASTEx summary report'!G16 / $Z$9 -> 0 | W42: 0
U43: Water or air cooling (internal) | V43: ='PHASTEx summary report'!G17 / $Z$9 -> 0 | W43: 0
U44: Atmosphere or makeup air | V44: ='PHASTEx summary report'!G18 / $Z$9 -> 0 | W44: 0
U45: Radiation losses from openings | V45: ='PHASTEx summary report'!G19 / $Z$9 -> 0 | W45: 0
U46: Other heat loss or heat addition | V46: ='PHASTEx summary report'!G20 / $Z$9 -> 0 | W46: 0
U47: Total net heat required | V47: ='PHASTEx summary report'!G21 / $Z$9 -> 0 | W47: 0
U48: Available heat | V48: ='PHASTEx summary report'!G22 / $Z$9 -> 3.382593316e-05 | W48: 3.382593316e-11
U49: Flue gas loss | V49: ='PHASTEx summary report'!G23 / $Z$9 -> 0 | W49: 0
U50: Exothermic heat from process | V50: ='PHASTEx summary report'!G24 / $Z$9 -> 0 | W50: 0
U51: Total gross heat input required | V51: ='PHASTEx summary report'!G25 / $Z$9 -> 0 | W51: 0

Sheet Energy Usage Distribution
B2: PHASTEx - U.S. Units Version
B3: Developed by E3M Inc. under contract with Oak Ridge National Laboratory
D5: Report Page 1
D6: Distribution of Energy Usage By Area-Current Condition
Q10: Next Page | R10: =IF('Sankey Diagram'!$R$9="kgce","Heat loss or use (kgce/hour)",IF('Sankey Diagram'!$R$9="kgoe","Heat loss or use (kgoe/hour)",IF('Sankey Diagram'!$R$9="kcal","Heat loss or use (kcal/hour)",IF('Sankey Diagram'!$R$9="Btu","Heat loss or use (Btu/hour)",IF('Sankey Diagram'!$R$9="MMBtu","Heat loss or use (MMBtu/hour)","Heat loss or use (kcal/hour)"))))) -> Heat loss or use (kgce/hour)
Q11: Previous Page | R11: =IF('Sankey Diagram'!$R$9="kgce", "kgce/Hr.", IF('Sankey Diagram'!$R$9="kgoe", "kgoe/Hr.", IF('Sankey Diagram'!$R$9="kcal","kcal/Hr.", IF('Sankey Diagram'!$R$9="Btu","Btu/Hr.",IF('Sankey Diagram'!$R$9="MMBtu","MMBtu/Hr.","Btu/hr."))))) -> kgce/Hr.
Q12: Return to Control Page
Q13: Print Sheet
I34: Heat Loss/Use | K34: Current | L34: Modified
I35: Charge-load | K35: ='PHASTEx summary report'!D14 / 'Sankey Diagram'!Z9 -> 0 | L35: ='PHASTEx summary report'!G14 / 'Sankey Diagram'!Z9 -> 0
I36: Fixtures etc. | K36: ='PHASTEx summary report'!D15 / 'Sankey Diagram'!Z9 -> 0 | L36: ='PHASTEx summary report'!G15 / 'Sankey Diagram'!Z9 -> 0
I37: Wall surfaces | K37: ='PHASTEx summary report'!D16 / 'Sankey Diagram'!Z9 -> 0 | L37: ='PHASTEx summary report'!G16 / 'Sankey Diagram'!Z9 -> 0
I38: Water/air cooling | K38: ='PHASTEx summary report'!D17 / 'Sankey Diagram'!Z9 -> 0 | L38: ='PHASTEx summary report'!G17 / 'Sankey Diagram'!Z9 -> 0
I39: Atmosphere | K39: ='PHASTEx summary report'!D18 / 'Sankey Diagram'!Z9 -> 0 | L39: ='PHASTEx summary report'!G18 / 'Sankey Diagram'!Z9 -> 0
I40: Openings | K40: ='PHASTEx summary report'!D19 / 'Sankey Diagram'!Z9 -> 0 | L40: ='PHASTEx summary report'!G19 / 'Sankey Diagram'!Z9 -> 0
I41: Other loss | K41: ='PHASTEx summary report'!D20 / 'Sankey Diagram'!Z9 -> 0 | L41: ='PHASTEx summary report'!G20 / 'Sankey Diagram'!Z9 -> 0
I42: Flue gases | K42: ='PHASTEx summary report'!D23 / 'Sankey Diagram'!Z9 -> 0 | L42: ='PHASTEx summary report'!G23 / 'Sankey Diagram'!Z9 -> 0
I43: Total | K43: =SUM(K35:K42) -> 0 | L43: =SUM(L35:L42) -> 0
I44: ='Sankey Diagram'!$Z$10 -> All quantities are in units of kgce/Hr.

Sheet Energy Usage Distribution pg2
B2: PHASTEx - U.S. Units Version
B3: Developed by E3M Inc. under contract with Oak Ridge National Laboratory
D5: Report Page 2
D6: Distribution of Energy Usage By Area-Modified Condition
Q10: Next Page
Q11: Previous Page
Q12: Return to Control Page
Q13: Print Sheet
J32: Heat Loss/Use | L32: Current | M32: Modified
J33: Charge-load | L33: ='PHASTEx summary report'!D14 / 'Sankey Diagram'!Z9 -> 0 | M33: ='PHASTEx summary report'!G14 / 'Sankey Diagram'!Z9 -> 0
J34: Fixtures etc. | L34: ='PHASTEx summary report'!D15 / 'Sankey Diagram'!Z9 -> 0 | M34: ='PHASTEx summary report'!G15 / 'Sankey Diagram'!Z9 -> 0
J35: Wall surfaces | L35: ='PHASTEx summary report'!D16 / 'Sankey Diagram'!Z9 -> 0 | M35: ='PHASTEx summary report'!G16 / 'Sankey Diagram'!Z9 -> 0
J36: Water/air cooling | L36: ='PHASTEx summary report'!D17 / 'Sankey Diagram'!Z9 -> 0 | M36: ='PHASTEx summary report'!G17 / 'Sankey Diagram'!Z9 -> 0
J37: Atmosphere | L37: ='PHASTEx summary report'!D18 / 'Sankey Diagram'!Z9 -> 0 | M37: ='PHASTEx summary report'!G18 / 'Sankey Diagram'!Z9 -> 0
J38: Openings | L38: ='PHASTEx summary report'!D19 / 'Sankey Diagram'!Z9 -> 0 | M38: ='PHASTEx summary report'!G19 / 'Sankey Diagram'!Z9 -> 0
J39: Other loss | L39: ='PHASTEx summary report'!D20 / 'Sankey Diagram'!Z9 -> 0 | M39: ='PHASTEx summary report'!G20 / 'Sankey Diagram'!Z9 -> 0
J40: Flue gases | L40: ='PHASTEx summary report'!D23 / 'Sankey Diagram'!Z9 -> 0 | M40: ='PHASTEx summary report'!G23 / 'Sankey Diagram'!Z9 -> 0
J41: Total | L41: =SUM(L33:L40) -> 0 | M41: =SUM(M33:M40) -> 0
J42: ='Sankey Diagram'!$Z$10 -> All quantities are in units of kgce/Hr.

Sheet Notes On Current v Modified
B2: PHASTEx - U.S. Units Version
B3: Developed by E3M Inc. under contract with Oak Ridge National Laboratory
C5: Report Page 3 | J5: Available heat | L5: Current | M5: Modified
C6: ENERGY SAVINGS (REDUCTION IN HEAT INPUT) RESULTING FROM THE MODIFICATIONS | J6: Percent | L6: ='Flue gases'!D14/100 -> 0.9013390414 | M6: ='Flue gases'!E14/100 -> 0.93921086
J8: Return To Control Page
B9: Area | C9: Notes on Current Vs. Modified Conditions: | J9: Print Sheet
B10: Charge Material-Solid | C10: =IF(K10=0," ",K10) ->  | D10: Resulting in a savings (increase) of: | E10: =M12 / 'Sankey Diagram'!Z9 -> 0 | F10: ='Energy Usage Distribution'!R11 -> kgce/Hr. | J10: Previous Page | K10: ='Load Charge Solid-1'!C160 -> 0
C11: =IF(K11=0," ",K11) ->  | J11: Return To Control Page | K11: ='Load Charge Solid-1'!C161 -> 0
K12: ='Load Charge Solid-1'!C162 -> 0 | M12: ='Load Charge Solid-1'!E156/L6-'Load Charge Solid-1'!F156/M6 -> 0
K13: ='Load Charge Solid-1'!C163 -> 0
K14: ='Load Charge Solid-1'!C164 -> 0
B15: Charge Material-Liquid | C15: =IF(K15=0," ",K15) ->  | D15: Resulting in a savings (increase) of: | E15: =M17 / 'Sankey Diagram'!Z9 -> 0 | F15: =F10 -> kgce/Hr. | K15: ='Load Charge Liquid-1'!C124 -> 0
K16: ='Load Charge Liquid-1'!C125 -> 0
K17: ='Load Charge Liquid-1'!C126 -> 0 | M17: ='Load Charge Liquid-1'!E120/L6-'Load Charge Liquid-1'!F120/M6 -> 0
K18: ='Load Charge Liquid-1'!C127 -> 0
K19: ='Load Charge Liquid-1'!C128 -> 0
B20: Charge Material-Gas | C20: =IF(K20=0," ",K20) ->  | D20: Resulting in a savings (increase) of: | E20: =M20 / 'Sankey Diagram'!Z9 -> 0 | F20: =F10 -> kgce/Hr. | K20: ='Load Charge Gas-1'!C109 -> 0 | M20: ='Load Charge Gas-1'!E105/L6-'Load Charge Gas-1'!F105/M6 -> 0
K21: ='Load Charge Gas-1'!C110 -> 0
K22: ='Load Charge Gas-1'!C111 -> 0
K23: ='Load Charge Gas-1'!C112 -> 0
K24: ='Load Charge Gas-1'!C113 -> 0
B25: Fixture Losses | C25: =IF(K25=0," ",K25) ->  | D25: Resulting in a savings (increase) of: | E25: =M25 / 'Sankey Diagram'!Z9 -> 0 | F25: =F10 -> kgce/Hr. | K25: ='Fixture losses '!B69 -> 0 | M25: ='Fixture losses '!D65/L6-'Fixture losses '!E65/M6 -> 0
K26: ='Fixture losses '!B70 -> 0
K27: ='Fixture losses '!B71 -> 0
K28: ='Fixture losses '!B72 -> 0
K29: ='Fixture losses '!B73 -> 0
B30: Wall Losses | C30: =IF(K30=0," ",K30) ->  | D30: Resulting in a savings (increase) of: | E30: =M30 / 'Sankey Diagram'!Z9 -> 0 | F30: =F10 -> kgce/Hr. | K30: ='Wall losses'!B133 -> 0 | M30: ='Wall losses'!D129/L6-'Wall losses'!E129/M6 -> 0
K31: ='Wall losses'!B134 -> 0
K32: ='Wall losses'!B135 -> 0
K33: ='Wall losses'!B136 -> 0
K34: ='Wall losses'!B137 -> 0
B35: Water/Air Cooling Losses | C35: =IF(K35=0," ",K35) ->  | D35: Resulting in a savings (increase) of: | E35: =M35 / 'Sankey Diagram'!Z9 -> 0 | F35: =F10 -> kgce/Hr. | K35: ='Water-Air cooling'!B237 -> 0 | M35: ='Water-Air cooling'!D233/L6-'Water-Air cooling'!E233/M6 -> 0
K36: ='Water-Air cooling'!B238 -> 0
K37: ='Water-Air cooling'!B239 -> 0
K38: ='Water-Air cooling'!B240 -> 0
K39: ='Water-Air cooling'!B241 -> 0
B40: Atmosphere Losses | C40: =IF(K40=0," ",K40) ->  | D40: Resulting in a savings (increase) of: | E40: =M40 / 'Sankey Diagram'!Z9 -> 0 | F40: =F10 -> kgce/Hr. | K40: ='Atmosphere losses'!B55 -> 0 | M40: ='Atmosphere losses'!D50/L6-'Atmosphere losses'!E50/M6 -> 0
K41: ='Atmosphere losses'!B56 -> 0
K42: ='Atmosphere losses'!B57 -> 0
K43: ='Atmosphere losses'!B58 -> 0
K44: ='Atmosphere losses'!B59 -> 0
B45: Flue Gases | C45: =IF(K45=0," ",K45) ->  | D45: Resulting in a savings (increase) of: | E45: =('PHASTEx summary report'!D23-'PHASTEx summary report'!G23)/ 'Sankey Diagram'!Z9 -> 0 | F45: =F10 -> kgce/Hr. | K45: ='Flue gases'!B18 -> 0
K46: ='Flue gases'!B19 -> 0
K47: ='Flue gases'!B20 -> 0
K48: ='Flue gases'!B21 -> 0
K49: ='Flue gases'!B22 -> 0
B50: Opening Losses | C50: =IF(K50=0," ",K50) ->  | D50: Resulting in a savings (increase) of: | E50: =M50 / 'Sankey Diagram'!Z9 -> 0 | F50: =F10 -> kgce/Hr. | K50: ='Radiation losses from opening'!B164 -> 0 | M50: ='Radiation losses from opening'!D160/L6-'Radiation losses from opening'!E160/M6 -> 0
K51: ='Radiation losses from opening'!B165 -> 0
K52: ='Radiation losses from opening'!B166 -> 0
K53: ='Radiation losses from opening'!B167 -> 0
K54: ='Radiation losses from opening'!B168 -> 0
B55: Power Usage | C55: =IF(K55=0," ",K55) ->  | D55: Resulting in a savings (increase) of: | E55: =M55 -> 0 | F55: KW | K55: ='8- Power- Motor driven systems'!B87 -> 0 | M55: ='8- Power- Motor driven systems'!D83-'8- Power- Motor driven systems'!E83 -> 0
K56: ='8- Power- Motor driven systems'!B88 -> 0
K57: ='8- Power- Motor driven systems'!B89 -> 0
K58: ='8- Power- Motor driven systems'!B90 -> 0
K59: ='8- Power- Motor driven systems'!B91 -> 0
B60: Other Heat Losses | C60: =IF(K60=0," ",K60) ->  | D60: Resulting in a savings (increase) of: | E60: =M60 / 'Sankey Diagram'!Z9 -> 0 | F60: =F10 -> kgce/Hr. | K60: ='9- Other heat loss'!C70 -> 0 | M60: ='9- Other heat loss'!E59/L6-'9- Other heat loss'!F59/M6 -> 0
K61: ='9- Other heat loss'!C71 -> 0
K62: ='9- Other heat loss'!C72 -> 0
K63: ='9- Other heat loss'!C73 -> 0
K64: ='9- Other heat loss'!C74 -> 0
D65: TOTAL | E65: =E10+E15+E20+E25+E30+E35+E40+E50+E60 -> 0 | F65: =F10 -> kgce/Hr.
D66: TOTAL | E66: =E55 -> 0 | F66: Kw

Sheet Load Charge Solid-1
C2: Number of charge materials - solid | D2: ='Control page'!D11 -> 3 | E2: from control sheet
L3: 46 | N3: ID | O3: Substance | P3: MaterialType | Q3: Composition | R3: Density (#s/ft^3) | S3: MeanSpecific Heat of solid (Btu/lb. 0F) | T3: LatentHeatof Fusion Btu/lb. | U3: MeanSpecific Heat Of Liquid (Btu/lb 0F) | V3: MeltingPoint (Deg. F.) | W3: Average Pouring Temp (Deg. F) | X3: HtContentOf Solid At MeltingPoint (Btu/lb.) | Y3: HtContentOf LiquidAt MeltingTemp (Btu/lb.) | Z3: HtContentOf LiquidAt PouringTemp (Btu/lb.) | AA3: Change
C4: Load Charge Material 1 | E4: Current | F4: Modified | L4: $o$5 | Q4: Conversion Factor | R4: =16.02 -> 16.02 | S4: 4.187 | T4: 2.326 | U4: =S4 -> 4.187 | V4: C=(F-32)/1.8 | W4: C=(F-32)/1.8 | X4: 2.326 | Y4: =X4 -> 2.326 | Z4: =Y4 -> 2.326
C5: Solid | I5: Help | L5: =ADDRESS(L3,15,1) -> $O$46 | N5: 1 | O5: Aluminum | P5: Solid | Q5: Al | R5: =AB5/$R$4 -> 166.6997503 | S5: =AC5/$S$4 -> 0.2479101982 | T5: =AD5/$T$4 -> 169 | U5: =AE5/$U$4 -> 0.2600907571 | V5: =AF5*1.8 +32 -> 1214.996 | W5: =AG5*1.8 +32 -> 1380.002 | X5: =AH5/$X$4 -> 286 | Y5: =AI5/$Y$4 -> 455 | Z5: =AJ5/$Z$4 -> 497 | AA5: FALSE | AB5: 2670.53 | AC5: 1.038 | AD5: 393.094 | AE5: 1.089 | AF5: 657.22 | AG5: 748.89 | AH5: 665.236 | AI5: 1058.33 | AJ5: 1156.022
C6: Name of the Material (Choose From List) or "Other" If not on list then enter material and thermal properties in boxes | E6: Carbon Steel | F6: =E6 -> Carbon Steel | I6: Copy Current to Modified | L6: =ADDRESS(L3+1,15,1) -> $O$47 | N6: 2 | O6: Babbitt, lead base | P6: Solid | Q6: 75 Pb,15 Sb,10 Sn | R6: =AB6/$R$4 -> 0 | S6: =AC6/$S$4 -> 0.0389300215 | T6: =AD6/$T$4 -> 26.19991402 | U6: =AE6/$U$4 -> 0.03797468354 | V6: =AF6*1.8 +32 -> 462.002 | W6: =AG6*1.8 +32 -> 624.992 | X6: =AH6/$X$4 -> 15.80008598 | Y6: =AI6/$Y$4 -> 42 | Z6: =AJ6/$Z$4 -> 48 | AA6: FALSE | AB6: 0 | AC6: 0.163 | AD6: 60.941 | AE6: 0.159 | AF6: 238.89 | AG6: 329.44 | AH6: 36.751 | AI6: 97.692 | AJ6: 111.648
I7: Done Entering Data | K7: Enter Matl Name | L7: =CONCATENATE(L4,":",L5) -> $o$5:$O$46 | N7: 3 | O7: Babbitt, tin base | P7: Solid | Q7: 83.3 Sn,8.4 Sb,8.3 Cu | R7: 462 | S7: 0.07093384285 | T7: 34.10017197 | U7: 0.06305230475 | V7: 464 | W7: 915.998 | X7: 28.60017197 | Y7: 67.69991402 | Z7: 91 | AA7: FALSE | AB7: 7401.24 | AC7: 0.297 | AD7: 79.317 | AE7: 0.264 | AF7: 240 | AG7: 491.11 | AH7: 66.524 | AI7: 157.47 | AJ7: 211.666
C8: Average specific heat of the solid material (dry) | D8: Btu/(lb-F) | E8: =IF(E$6="Other",K12,VLOOKUP($E$6,$O$5:$AA$100,5,)) -> 0.16 | F8: =E8 -> 0.16 | I8: Print Sheet | K8: 0 | L8: =ADDRESS(L3,19,1) -> $S$46 | N8: 4 | O8: Bismuth | P8: Solid | Q8: Bi | R8: 612 | S8: 0.0329591593 | T8: 18.5 | U8: 0.03510866969 | V8: 518 | W8: 620.006 | X8: 15.10017197 | Y8: 33.60017197 | Z8: 37.19991402 | AA8: FALSE | AB8: 9804.24 | AC8: 0.138 | AD8: 43.031 | AE8: 0.147 | AF8: 270 | AG8: 326.67 | AH8: 35.123 | AI8: 78.154 | AJ8: 86.527
C9: Latent Heat of Fusion | D9: Btu/lb | E9: =IF(E$6="Other",K13,VLOOKUP($E$6,$O$5:$AA$100,6,)) -> 60 | F9: =E9 -> 60 | K9: 0 | L9: =ADDRESS(L3,20,1) -> $T$46 | N9: 5 | O9: Brass, Muntz metal | P9: Solid | Q9: 60 Cu,40 Zn | R9: 524 | S9: 0.1050871746 | T9: 69 | U9: 0.1249104371 | V9: 1630.004 | W9: 1850 | X9: 165 | Y9: 234 | Z9: 261 | AA9: FALSE | AB9: 8394.48 | AC9: 0.44 | AD9: 160.494 | AE9: 0.523 | AF9: 887.78 | AG9: 1010 | AH9: 383.79 | AI9: 544.284 | AJ9: 607.086
C10: Specific heat of liquid from molten material | D10: Btu/(lb-F) | E10: =IF(E$6="Other",K14,VLOOKUP($E$6,$O$5:$AA$100,7,)) -> 0.1749701457 | F10: 0.1749701457 | K10: 0 | L10: =ADDRESS(L3,21,1) -> $U$46 | N10: 6 | O10: Brass, red | P10: Solid | Q10: 90 Cu,10 Zn | R10: 546 | S10: 0.1038930021 | T10: 86.5 | U10: 0.1151182231 | V10: 1952.006 | W10: 2249.996 | X10: 197 | Y10: 283.5 | Z10: 317.800086 | AA10: FALSE | AB10: 8746.92 | AC10: 0.435 | AD10: 201.199 | AE10: 0.482 | AF10: 1066.67 | AG10: 1232.22 | AH10: 458.222 | AI10: 659.421 | AJ10: 739.203
C11: Melting Point | D11: deg. F. | E11: =IF($E$6="Other",K15,VLOOKUP($E$6,$O$5:$AA$100,8,)) -> 2800.004 | F11: 2800.004 | K11: 0 | L11: =ADDRESS(L3,22,1) -> $V$46 | N11: 7 | O11: Brass,yellow | P11: Solid | Q11: 67 Cu,33 Zn | R11: 528 | S11: 0.1050871746 | T11: 71 | U11: 0.1229997612 | V11: 1688 | W11: 1950.008 | X11: 171 | Y11: 242 | Z11: 274.199914 | AA11: FALSE | AB11: 8458.56 | AC11: 0.44 | AD11: 165.146 | AE11: 0.515 | AF11: 920 | AG11: 1065.56 | AH11: 397.746 | AI11: 562.892 | AJ11: 637.789
K12: =VALUE(K8) -> 0 | N12: 8 | O12: Bronze, bearing | P12: Solid | Q12: 80 Cu,10 Pb,10 Sn | R12: 556 | S12: 0.0950561261 | T12: 79.89982803 | U12: 0.1089085264 | V12: 1832 | W12: 2049.998 | X12: 168.300086 | Y12: 248.199914 | Z12: 272 | AA12: FALSE | AB12: 8907.12 | AC12: 0.398 | AD12: 185.847 | AE12: 0.456 | AF12: 1000 | AG12: 1121.11 | AH12: 391.466 | AI12: 577.313 | AJ12: 632.672
C13: Charge (wet)-Feed Rate | D13: lb/hr | I13: =E13*L24 -> 0 | J13: =F13*L24 -> 0 | K13: =VALUE(K9) -> 0 | N13: 9 | O13: Bronze, aluminum | P13: Solid | Q13: 90 Cu,10 Al | R13: 510 | S13: 0.1261046095 | T13: 98.60017197 | U13: 0.1249104371 | V13: 1922 | W13: 2199.992 | X13: 235 | Y13: 333.600172 | Z13: 368 | AA13: FALSE | AB13: 8170.2 | AC13: 0.528 | AD13: 229.344 | AE13: 0.523 | AF13: 1050 | AG13: 1204.44 | AH13: 546.61 | AI13: 775.954 | AJ13: 855.968
C14: Water Content as Charged (%) | D14: % | K14: 0 | N14: 10 | O14: Bronze, bell metal | P14: Solid | Q14: 78 Cu,22 Sn | R14: 540 | S14: 0.1000716503 | T14: 76.30008598 | U14: 0.1189395749 | V14: 1634 | W14: 1900.004 | X14: 157.399828 | Y14: 233.699914 | Z14: 265.399828 | AA14: FALSE | AB14: 8650.8 | AC14: 0.419 | AD14: 177.474 | AE14: 0.498 | AF14: 890 | AG14: 1037.78 | AH14: 366.112 | AI14: 543.586 | AJ14: 617.32
C15: Water Content as Discharged (%) | D15: % | K15: 0 | N15: 11 | O15: Bronze, gun metal | P15: Solid | Q15: 90 Cu,1oSn | R15: 550 | S15: 0.1069978505 | T15: 84.19991402 | U15: 0.1060425125 | V15: 1850 | W15: 2100.002 | X15: 191.5 | Y15: 275.699914 | Z15: 302 | AA15: FALSE | AB15: 8811 | AC15: 0.448 | AD15: 195.849 | AE15: 0.444 | AF15: 1010 | AG15: 1148.89 | AH15: 445.429 | AI15: 641.278 | AJ15: 702.452
C16: Initial Temperature | D16: deg. F. | N16: 12 | O16: Bronze, tobin | P16: Solid | Q16: 60 Cu,39.2 Zn,0.8 Sn | R16: 525 | S16: 0.1069978505 | T16: 73.5 | U16: 0.1239550991 | V16: 1625 | W16: 1850 | X16: 167.5 | Y16: 241 | Z16: 268.899828 | AA16: FALSE | AB16: 8410.5 | AC16: 0.448 | AD16: 170.961 | AE16: 0.519 | AF16: 885 | AG16: 1010 | AH16: 389.605 | AI16: 560.566 | AJ16: 625.461
C17: Charge material discharge temperature | D17: deg. F. | N17: 13 | O17: Carbon Steel | P17: Solid | Q17: 1000 series | R17: 138 | S17: 0.16 | T17: 60 | U17: 0.1749701457 | V17: 2800.004 | W17: -0.004 | X17: 0 | Y17: 0 | Z17: 0 | AA17: FALSE | AB17: 7689.6 | AC17: 0.628 | AD17: 139.56 | AE17: 0.7326 | AF17: 1537.78 | AG17: -17.78 | AH17: 0 | AI17: 0 | AJ17: 0
C18: Water vapor discharge Temperature | D18: deg. F. | N18: 14 | O18: Copper | P18: Solid | Q18: Cu | R18: 559 | S18: 0.1038930021 | T18: 91 | U18: 0.1110580368 | V18: 1981.994 | W18: 2199.992 | X18: 200 | Y18: 291 | Z18: 315 | AA18: FALSE | AB18: 8955.18 | AC18: 0.435 | AD18: 211.666 | AE18: 0.465 | AF18: 1083.33 | AG18: 1204.44 | AH18: 465.2 | AI18: 676.866 | AJ18: 732.69
C19: Charge Melted (% of Dry Charge) | D19: % | G19: =IF(OR(AND(E17<E11, E19>0),AND(F17<F11, F19>0)), $I$25,IF(OR(AND(E17>E11,E19<=0),AND(F17>F11,F19<=0)), $I$19,"")) ->  | I19: Notice: The discharge temperature is higher than the melting point, please enter proper percentage for charge melted (>0% and <=100%). | N19: 15 | O19: Die casting metal | P19: Solid | Q19: 92 Al,8 Cu | R19: 176 | S19: 0.2359684738 | T19: 163 | U19: 0.2409839981 | V19: 1149.998 | W19: 1400 | X19: 257.300086 | Y19: 420.300086 | Z19: 481 | AA19: FALSE | AB19: 2819.52 | AC19: 0.988 | AD19: 379.138 | AE19: 1.009 | AF19: 621.11 | AG19: 760 | AH19: 598.48 | AI19: 977.618 | AJ19: 1118.806
C20: Charge Reacted (% of Dry Charge) | D20: % | N20: 16 | O20: Die casting metal | P20: Solid | Q20: 80 Pb,10 Sn,10 Sb | R20: 176 | S20: 0.03797468354 | T20: 17.5 | U20: 0.03701934559 | V20: 600.008 | W20: 820.004 | X20: 20.5 | Y20: 38 | Z20: 146 | AA20: FALSE | AB20: 2819.52 | AC20: 0.159 | AD20: 40.705 | AE20: 0.155 | AF20: 315.56 | AG20: 437.78 | AH20: 47.683 | AI20: 88.388 | AJ20: 339.596
C21: Heat of Reaction | D21: Btu/lb | K21: Aluminum | N21: 17 | O21: Die casting metal | P21: Solid | Q21: 90 Sn,4.5 Cu,5,5 Sb | R21: 176 | S21: 0.0699785049 | T21: 30.19991402 | U21: 0.0620969668 | V21: 449.996 | W21: 649.994 | X21: 27.60017197 | Y21: 57.80008598 | Z21: 70 | AA21: FALSE | AB21: 2819.52 | AC21: 0.293 | AD21: 70.245 | AE21: 0.26 | AF21: 232.22 | AG21: 343.33 | AH21: 64.198 | AI21: 134.443 | AJ21: 162.82
C22: Endothermic/Exothermic | E22: Exothermic | F22: Exothermic | K22: endothermic/exothermic | N22: 18 | O22: Die casting metal | P22: Solid | Q22: 87.3 Zn,8.1Sn,4.1Cu,0.5A | R22: 176 | S22: 0.1029376642 | T22: 48 | U22: 0.1380463339 | V22: 780.008 | W22: 980.006 | X22: 74 | Y22: 122 | Z22: 150 | AA22: FALSE | AB22: 2819.52 | AC22: 0.431 | AD22: 111.648 | AE22: 0.578 | AF22: 415.56 | AG22: 526.67 | AH22: 172.124 | AI22: 283.772 | AJ22: 348.9
C23: Additional Heat Required | D23: Btu/hr | N23: 19 | O23: German silver | P23: Solid | Q23: 60 Cu,25 Zn,1 5 Ni | R23: 540 | S23: 0.1089085264 | T23: 86.19991402 | U23: 0.1229997612 | V23: 1850 | W23: 2100.002 | X23: 194 | Y23: 280.199914 | Z23: 311 | AA23: FALSE | AB23: 2819.52 | AC23: 0.456 | AD23: 200.501 | AE23: 0.515 | AF23: 1010 | AG23: 1148.89 | AH23: 451.244 | AI23: 651.745 | AJ23: 723.386
C24: Total Heat Required For Charge Material 1 | D24: Btu/hr | E24: =E52 -> 0 | F24: =F52 -> 0 | L24: =IF('Control page'!$D$11=0,0,1) -> 1 | M24: Control | N24: 20 | O24: Gold | P24: Solid | Q24: Au | R24: 1205 | S24: 0.0329591593 | T24: 28.5 | U24: 0.03391449725 | V24: 1945.004 | W24: 2150.006 | X24: 62.19991402 | Y24: 90.69991402 | Z24: 97.69991402 | AA24: FALSE | AB24: 19304.1 | AC24: 0.138 | AD24: 66.291 | AE24: 0.142 | AF24: 1062.78 | AG24: 1176.67 | AH24: 144.677 | AI24: 210.968 | AJ24: 227.25
I25: Warning: The discharge temperature is lower than the melting point, the percentage for charge melted should be 0%. | N25: 21 | O25: Inconel - 600 | P25: Solid | Q25: Inconel | R25: 480 | S25: 0.1399570098 | T25: 0 | U25: 0 | V25: 2499.998 | W25: -0.004 | X25: 0 | Y25: 0 | Z25: 0 | AA25: FALSE | AB25: 7689.6 | AC25: 0.586 | AD25: 0 | AE25: 0 | AF25: 1371.11 | AG25: -17.78 | AH25: 0 | AI25: 0 | AJ25: 0
N26: 22 | O26: Iron, cast, gray | P26: Solid | Q26: 94 Fe,3.5 C,2.5 Si | R26: 480 | S26: 0.1901122522 | T26: 41.39982803 | U26: 0 | V26: 2246 | W26: 2800.004 | X26: 415 | Y26: 456 | Z26: 583 | AA26: FALSE | AB26: 7689.6 | AC26: 0.796 | AD26: 96.296 | AE26: 0 | AF26: 1230 | AG26: 1537.78 | AH26: 965.29 | AI26: 1060.656 | AJ26: 1356.058
N27: 23 | O27: Iron, cast, white | P27: Solid | Q27: 97 Fe,3 C | R27: 480 | S27: 0.1800812037 | T27: 60.30008598 | U27: 0 | V27: 2102 | W27: 2899.994 | X27: 368 | Y27: 428 | Z27: 612 | AA27: FALSE | AB27: 7689.6 | AC27: 0.754 | AD27: 140.258 | AE27: 0 | AF27: 1150 | AG27: 1593.33 | AH27: 855.968 | AI27: 995.528 | AJ27: 1423.512
N28: 24 | O28: Iron, pig | P28: Solid | Q28: 93 Fe,4.22 C,1.48 Si,0.73 Mn,0.12P ,0.03 S | R28: 480 | S28: 0.1530929066 | T28: 83.60017197 | U28: 0 | V28: 2012 | W28: 2300 | X28: 299 | Y28: 384 | Z28: 450 | AA28: FALSE | AB28: 7689.6 | AC28: 0.641 | AD28: 194.454 | AE28: 0 | AF28: 1100 | AG28: 1260 | AH28: 695.474 | AI28: 893.184 | AJ28: 1046.7
C29: Calculations | N29: 25 | O29: Iron, pure | P29: Solid | Q29: Fe | R29: 491 | S29: 0.1679006449 | T29: 117 | U29: 0.1499880583 | V29: 2802.002 | W29: 3099.992 | X29: 451 | Y29: 568 | Z29: 626 | AA29: FALSE | AB29: 7865.82 | AC29: 0.703 | AD29: 272.142 | AE29: 0.628 | AF29: 1538.89 | AG29: 1704.44 | AH29: 1049.026 | AI29: 1321.168 | AJ29: 1456.076
C30: Weight of water for charged wet material (Btu/hr) | E30: =E13*E14 -> 0 | F30: =F13*F14 -> 0 | N30: 26 | O30: Lead | P30: Solid | Q30: Pb | R30: 708 | S30: 0.03200382135 | T30: 10 | U30: 0.03391449725 | V30: 620.996 | W30: 719.996 | X30: 18 | Y30: 28 | Z30: 31 | AA30: FALSE | AB30: 11342.16 | AC30: 0.134 | AD30: 23.26 | AE30: 0.142 | AF30: 327.22 | AG30: 382.22 | AH30: 41.868 | AI30: 65.128 | AJ30: 72.106
C31: Weight of solid dry material as charged (Btu/hr) | E31: =E13-E30 -> 0 | F31: =F13-F30 -> 0 | N31: 27 | O31: Linotype | P31: Solid | Q31: 86 pb,11 sb,3sn | R31: 700 | S31: 0.03606400764 | T31: 21.5 | U31: 0.03606400764 | V31: 485.996 | W31: 620.006 | X31: 15.30008598 | Y31: 36.80008598 | Z31: 41.60017197 | AA31: FALSE | AB31: 11214 | AC31: 0.151 | AD31: 50.009 | AE31: 0.151 | AF31: 252.22 | AG31: 326.67 | AH31: 35.588 | AI31: 85.597 | AJ31: 96.762
C32: Weight of water for discharged wet material (Btu/hr) | E32: =E31*E15/(1-E15) -> 0 | F32: =F31*F15/(1-F15) -> 0 | N32: 28 | O32: Magnesium | P32: Solid | Q32: Mg | R32: 108.5998752 | S32: 0.2720324815 | T32: 83.69991402 | U32: 0.2660616193 | V32: 1203.998 | W32: 1380.002 | X32: 311.199914 | Y32: 394.899828 | Z32: 441.699914 | AA32: FALSE | AB32: 1739.77 | AC32: 1.139 | AD32: 194.686 | AE32: 1.114 | AF32: 651.11 | AG32: 748.89 | AH32: 723.851 | AI32: 918.537 | AJ32: 1027.394
C33: Total weight of wet material at discharge (Btu/hr) | E33: =E31+E32 -> 0 | F33: =F31+F32 -> 0 | N33: 29 | O33: Manganese | P33: Solid | Q33: Mn | R33: 464 | S33: 0.1710054932 | T33: 66 | U33: 0.1920229281 | V33: 2246 | W33: 2400.008 | X33: 374 | Y33: 440 | Z33: 469 | AA33: FALSE | AB33: 7433.28 | AC33: 0.716 | AD33: 153.516 | AE33: 0.804 | AF33: 1230 | AG33: 1315.56 | AH33: 869.924 | AI33: 1023.44 | AJ33: 1090.894
N34: 30 | O34: Monel metal | P34: Solid | Q34: 67 Ni,28 Cu; Fe, Mn, Si | R34: 550 | S34: 0.1289706234 | T34: 117.399828 | U34: 0.1390016718 | V34: 2415.002 | W34: 2750 | X34: 304 | Y34: 421.399828 | Z34: 468 | AA34: FALSE | AB34: 8811 | AC34: 0.54 | AD34: 273.072 | AE34: 0.582 | AF34: 1323.89 | AG34: 1510 | AH34: 707.104 | AI34: 980.176 | AJ34: 1088.568
C35: Water - Moisture heat requirement | N35: 31 | O35: Nickel 60 to 2644 F | P35: Solid | Q35: Ni | R35: 556 | S35: 0.1339861476 | T35: 131.5 | U35: 0.1330308096 | V35: 2643.998 | W35: 2850.008 | X35: 346 | Y35: 477.5 | Z35: 505 | AA35: FALSE | AB35: 8907.12 | AC35: 0.561 | AD35: 305.869 | AE35: 0.557 | AF35: 1451.11 | AG35: 1565.56 | AH35: 804.796 | AI35: 1110.665 | AJ35: 1174.63
C36: Heating all water to boiling point (Btu/hr) | E36: =$G$37*E30*(212-E16) -> 0 | F36: =$G$37*F30*(212-F16) -> 0 | G36: Values used for water - steam/vapor related calculations | N36: 32 | O36: Silver | P36: Solid | Q36: Ag | R36: 655 | S36: 0.06305230475 | T36: 46.80008598 | U36: 0.0699785049 | V36: 1761.998 | W36: 1950.008 | X36: 107 | Y36: 153.800086 | Z36: 167 | AA36: FALSE | AB36: 10493.1 | AC36: 0.264 | AD36: 108.857 | AE36: 0.293 | AF36: 961.11 | AG36: 1065.56 | AH36: 248.882 | AI36: 357.739 | AJ36: 388.442
C37: Heat required for vaporization for water removed (Btu/hr) | E37: =IF(E18>212,$G$38*(E30-E32),0) -> 0 | F37: =IF(F18>212,$G$38*(F30-F32),0) -> 0 | G37: 1 | H37: Sp. Heat of water (avg. value) Btu/(lb. F.) | N37: 33 | O37: solder, bismuth | P37: Solid | Q37: 40 pb,20 Sn,40 Bi | R37: 580 | S37: 0.03988535945 | T37: 16.39982803 | U37: 0.0389300215 | V37: 231.998 | W37: 330.008 | X37: 9.300085985 | Y37: 25.69991402 | Z37: 29.5 | AA37: FALSE | AB37: 9291.6 | AC37: 0.167 | AD37: 38.146 | AE37: 0.163 | AF37: 111.11 | AG37: 165.56 | AH37: 21.632 | AI37: 59.778 | AJ37: 68.617
C38: Heat for vapor superheat (to product final temp.) (Btu/hr) | E38: =IF(E18>212, $G$39*(E30-E32)*(E18-212),0) -> 0 | F38: =IF(F18>212, $G$39*(F30-F32)*(F18-212),0) -> 0 | G38: 970 | H38: Heat of evaporation (Btu/lb) for water | N38: 34 | O38: Solder, plumbers | P38: Solid | Q38: 50 pb,50 Sn | R38: 580 | S38: 0.05111058037 | T38: 23 | U38: 0.04896106998 | V38: 413.996 | W38: 500 | X38: 18 | Y38: 41 | Z38: 45 | AA38: FALSE | AB38: 9291.6 | AC38: 0.214 | AD38: 53.498 | AE38: 0.205 | AF38: 212.22 | AG38: 260 | AH38: 41.868 | AI38: 95.366 | AJ38: 104.67
C39: Heat required to bring retained water to water discharge temp. (Btu/hr) | E39: =$G$37*E32*(E18-212) -> 0 | F39: =$G$37*F32*(F18-212) -> 0 | G39: 0.481 | H39: Sp. Heat of water vapor or steam at atm. Pressure (avg. value) Btu/(lb. F.) | N39: 35 | O39: Stainless Steel - 300 series | P39: Solid | Q39: 310 and 304 | R39: 480 | S39: 0.1399570098 | T39: 0 | U39: 0 | V39: 2550.002 | W39: -0.004 | X39: 0 | Y39: 0 | Z39: 0 | AA39: FALSE | AB39: 7689.6 | AC39: 0.586 | AD39: 0 | AE39: 0 | AF39: 1398.89 | AG39: -17.78 | AH39: 0 | AI39: 0 | AJ39: 0
C40: Total heat for the water related thermal load (kJ/hr) | E40: =SUM(E36:E39) -> 0 | F40: =SUM(F36:F39) -> 0 | G40: 0.481 | N40: 36 | O40: Stainless Steel - 410 | P40: Solid | Q40: 410 SS | R40: 480 | S40: 0.12 | T40: 48 | U40: 0 | V40: 2800.004 | W40: 2800.004 | X40: 750 | Y40: 126 | Z40: 142 | AA40: FALSE | AB40: 7689.6 | AC40: 1.047 | AD40: 111.648 | AE40: 0 | AF40: 1537.78 | AG40: 1537.78 | AH40: 1744.5 | AI40: 293.076 | AJ40: 330.292
N41: 37 | O41: Tin | P41: Solid | Q41: Sn | R41: 455 | S41: 0.06902316695 | T41: 25 | U41: 0.06376880822 | V41: 449.996 | W41: 649.994 | X41: 27 | Y41: 52 | Z41: 64 | AA41: FALSE | AB41: 7289.1 | AC41: 0.289 | AD41: 58.15 | AE41: 0.267 | AF41: 232.22 | AG41: 343.33 | AH41: 62.802 | AI41: 120.952 | AJ41: 148.864
C42: Solid load heat requirement | N42: 38 | O42: Zinc | P42: Solid | Q42: Zn | R42: 445 | S42: 0.1069978505 | T42: 48 | U42: 0.145927872 | V42: 786.002 | W42: 899.996 | X42: 77.80008598 | Y42: 125.800086 | Z42: 142 | AA42: FALSE | AB42: 7128.9 | AC42: 0.448 | AD42: 111.648 | AE42: 0.611 | AF42: 418.89 | AG42: 482.22 | AH42: 180.963 | AI42: 292.611 | AJ42: 330.292
C43: Heat required for solid material up to melting point (Btu/hr) | E43: =IF(E19<=0, E8*E31*(E17-E16), E8*E31*(E11-E16)) -> 0 | F43: =IF(F19<=0, F8*F31*(F17-F16), F8*F31*(F11-F16)) -> 0 | N43: 39 | O43: Refractory | P43: Solid | R43: 150 | S43: 0.2500597086 | T43: 0 | U43: 0 | V43: 5000 | W43: -0.004 | X43: 0 | Y43: 0 | Z43: 0 | AA43: FALSE | AB43: 0 | AC43: 1.047 | AD43: 0 | AE43: 0 | AF43: 2760 | AG43: -17.78 | AH43: 0 | AI43: 0 | AJ43: 0
C44: Heat required for melting (Btu/hr) | E44: =IF(E19>0, E31*E9*E19,0) -> 0 | F44: =IF(F19>0, F31*F9*F19,0) -> 0 | N44: 40 | O44: Ladle Refractory | P44: Solid | R44: 150 | S44: 0.2500597086 | T44: 0 | U44: 0 | V44: 5000 | W44: -0.004 | X44: 0 | Y44: 0 | Z44: 0 | AA44: FALSE | AB44: 0 | AC44: 1.047 | AD44: 0 | AE44: 0 | AF44: 2760 | AG44: -17.78 | AH44: 0 | AI44: 0 | AJ44: 0
C45: Heat required for superheating molten material (Btu/hr) | E45: =IF(E19>0, E10*E31*(E17-E11)*E19,0) -> 0 | F45: =IF(F19>0, F10*F31*(F17-F11)*F19,0) -> 0 | O45: Other | S45: 1.3 | T45: 400 | U45: 1.2 | V45: 700
C46: Heat required for heating unmelted solid material(Btu/hr) | E46: =IF(E19>0, (1-E19)*E8*E31*(E17-E11), 0) -> 0 | F46: =IF(F19>0, (1-F19)*F8*F31*(F17-F11), 0) -> 0
C47: Heat for reaction during heating (Btu/hr) | E47: =IF(E22="Endothermic",1,-1)*E20*E31*E21 -> 0 | F47: =IF(F22="Endothermic",1,-1)*F20*F31*F21 -> 0 | K47: =(IF(E47<0,-1,0))*E47*$L$24 -> 0 | L47: =(IF(F47<0,-1,0))*F47*$L$24 -> 0
B48: Eliminate | C48: Heat required for cooling the molten material (Btu/hr) | E48: 0 | F48: 0
B49: Eliminate | C49: Heat required for cooling the remaining solid material (Btu/hr) | E49: 0 | F49: 0
C50: Heat required for solid-dry material (Btu/hr) | E50: =SUM(E43:E46)+(IF(E22="Endothermic",E47,0)) -> 0 | F50: =SUM(F43:F46)+(IF(F22="Endothermic",F47,0)) -> 0
C52: Total heat required for charge material (Btu/hr) | E52: =E40+E50+E23 -> 0 | F52: =F40+F50+F23 -> 0
C55: Load Charge Material 2 | E55: Current | F55: Modified
C56: Solid
C57: Name of the Material (Choose From List) or "Other" If not on list then enter material and thermal properties in boxes | E57: Stainless Steel - 300 series | F57: =E57 -> Stainless Steel - 300 series
K58: Name of Matl
C59: Average specific heat of the solid material (dry) | D59: Btu/(lb-F) | E59: =IF(E$57="Other",K63,VLOOKUP($E$57,$O$5:$AA$100,5,)) -> 0.1399570098 | F59: =E59 -> 0.1399570098 | K59: 0
C60: Latent Heat of Fusion | D60: Btu/lb | E60: =IF(E$57="Other",K64,VLOOKUP($E$57,$O$5:$AA$100,6,)) -> 0 | F60: =E60 -> 0 | K60: 0
C61: Specific heat of liquid from molten material | D61: Btu/(lb-F) | E61: =IF(E$57="Other",K65,VLOOKUP($E$57,$O$5:$AA$100,7,)) -> 0 | F61: 0 | K61: 0
C62: Melting Point | D62: deg. F. | E62: =IF(E$57="Other",K66,VLOOKUP($E$57,$O$5:$AA$100,8,)) -> 2550.002 | F62: 2550.002 | K62: 0
K63: =VALUE(K59) -> 0
C64: Charge (wet)-Feed Rate | D64: lb/hr | I64: =E64*L75 -> 0 | J64: =F64*L75 -> 0 | K64: =VALUE(K60) -> 0
C65: Water Content as Charged (%) | D65: % | K65: 0
C66: Water Content as Discharged (%) | D66: % | K66: 0
C67: Initial Temperature | D67: deg. F.
C68: Charge material discharge temperature | D68: deg. F.
C69: Water vapor discharge Temperature | D69: deg. F.
C70: Charge Melted (% of Dry Charge) | D70: % | G70: =IF(OR(AND(E68<E62, E70>0),AND(F68<F62, F70>0)), $I$25,IF(OR(AND(E68>E62,E70<=0),AND(F68>F62,F70<=0)), $I$19,"")) -> 
C71: Charge Reacted (% of Dry Charge) | D71: %
C72: Heat of Reaction | D72: Btu/lb
C73: Endothermic/Exothermic | E73: Exothermic | F73: Exothermic
C74: Additional Heat Required | D74: Btu/hr
C75: Total Heat Required For Charge Material 2 | D75: Btu/hr | E75: =E103 -> 0 | F75: =F103 -> 0 | L75: =IF('Control page'!$D$11>1,1,0) -> 1 | M75: Control
C80: Calculations
C81: Weight of water for charged wet material (Btu/hr) | E81: =E64*E65 -> 0 | F81: =F64*F65 -> 0
C82: Weight of solid dry material as charged (Btu/hr) | E82: =E64-E81 -> 0 | F82: =F64-F81 -> 0
C83: Weight of water for discharged wet material (Btu/hr) | E83: =E82*E66/(1-E66) -> 0 | F83: =F82*F66/(1-F66) -> 0
C84: Total weight of wet material at discharge (Btu/hr) | E84: =E82+E83 -> 0 | F84: =F82+F83 -> 0
C86: Water - Moisture heat requirement
C87: Heating all water to boiling point (Btu/hr) | E87: =$G$37*E81*(212-E67) -> 0 | F87: =$G$37*F81*(212-F67) -> 0 | G87: Values used for water - steam/vapor related calculations
C88: Heat required for vaporization for water removed (Btu/hr) | E88: =IF(E69>212,$G$38*(E81-E83),0) -> 0 | F88: =IF(F69>212,$G$38*(F81-F83),0) -> 0 | G88: 1 | H88: Sp. Heat of water (avg. value) kJ/(kg. C)
C89: Heat for vapor superheat (to product final temp.) (Btu/hr) | E89: =IF(E69>212, $G$39*(E81-E83)*(E69-212),0) -> 0 | F89: =IF(F69>212, $G$39*(F81-F83)*(F69-212),0) -> 0 | G89: 970 | H89: Heat of evaporation (kJ/kg) for water
C90: Heat required to bring retained water to water discharge temp. (Btu/hr) | E90: =$G$37*E83*(E69-212) -> 0 | F90: =$G$37*F83*(F69-212) -> 0 | G90: 0.481 | H90: Sp. Heat of water vapor or steam at atm. Pressure (avg. value) kJ/(kg. C)
C91: Total heat for the water related thermal load (kJ/hr) | E91: =SUM(E87:E90) -> 0 | F91: =SUM(F87:F90) -> 0 | G91: 0.481
C93: Solid load heat requirement
C94: Heat required for solid material up to melting point (Btu/hr) | E94: =IF(E70<=0, E59*E82*(E68-E67), E59*E82*(E62-E67)) -> 0 | F94: =IF(F70<=0, F59*F82*(F68-F67), F59*F82*(F62-F67)) -> 0
C95: Heat required for melting (Btu/hr) | E95: =IF(E70>0, E82*E60*E70,0) -> 0 | F95: =IF(F70>0, F82*F60*F70,0) -> 0
C96: Heat required for superheating molten material (Btu/hr) | E96: =IF(E70>0, E61*E82*(E68-E62)*E70,0) -> 0 | F96: =IF(F70>0, F61*F82*(F68-F62)*F70,0) -> 0
C97: Heat required for heating unmelted solid material(Btu/hr) | E97: =IF(E70>0, (1-E70)*E59*E82*(E68-E62), 0) -> 0 | F97: =IF(F70>0, (1-F70)*F59*F82*(F68-F62), 0) -> 0
C98: Heat for reaction during heating (Btu/hr) | E98: =IF(E73="Endothermic",1,-1)*E71*E82*E72 -> 0 | F98: =IF(F73="Endothermic",1,-1)*F71*F82*F72 -> 0 | K98: =(IF(E98<0,-1,0))*E98*$L$75 -> 0 | L98: =(IF(F98<0,-1,0))*F98*$L$75 -> 0
C99: Heat required for cooling the molten material (Btu/hr) | E99: 0 | F99: 0
C100: Heat required for cooling the remaining solid material (Btu/hr) | E100: 0 | F100: 0
C101: Heat required for solid-dry material (Btu/hr) | E101: =SUM(E94:E97)+(IF(E73="Endothermic",E98,0)) -> 0 | F101: =SUM(F94:F97)+(IF(F73="Endothermic",F98,0)) -> 0
C103: Total heat required for charge material (Btu/hr) | E103: =E91+E101+E74 -> 0 | F103: =F91+F101+F74 -> 0
C106: Load Charge Material 3 | E106: Current | F106: Modified
C107: Solid
C108: Name of the Material (Choose From List) or "Other" If not on list then enter material and thermal properties in boxes | E108: Stainless Steel - 410 | F108: =E108 -> Stainless Steel - 410
K109: Name of Matl
C110: Average specific heat of the solid material (dry) | D110: Btu/(lb-F) | E110: =IF(E$108="Other",K114,VLOOKUP($E$108,$O$5:$AA$100,5,)) -> 0.12 | F110: =E110 -> 0.12 | K110: 0
C111: Latent Heat of Fusion | D111: Btu/lb | E111: =IF(E$108="Other",K115,VLOOKUP($E$108,$O$5:$AA$100,6,)) -> 48 | F111: =E111 -> 48 | K111: 0
C112: Specific heat of liquid from molten material | D112: Btu/(lb-F) | E112: =IF(E$108="Other",K116,VLOOKUP($E$108,$O$5:$AA$100,7,)) -> 0 | F112: 0 | K112: 0
C113: Melting Point | D113: deg. F. | E113: =IF(E$108="Other",K117,VLOOKUP($E$108,$O$5:$AA$100,8,)) -> 2800.004 | F113: =E113 -> 2800.004 | K113: 0
K114: =VALUE(K110) -> 0
C115: Charge (wet)-Feed Rate | D115: lb/hr | I115: =E115*L126 -> 0 | J115: =F115*L126 -> 0 | K115: =VALUE(K111) -> 0
C116: Water Content as Charged (%) | D116: % | K116: 0
C117: Water Content as Discharged (%) | D117: % | K117: 0
C118: Initial Temperature | D118: deg. F.
C119: Charge material discharge temperature | D119: deg. F.
C120: Water vapor discharge Temperature | D120: deg. F.
C121: Charge Melted (% of Dry Charge) | D121: % | G121: =IF(OR(AND(E119<E113, E121>0),AND(F119<F113, F121>0)), $I$25,IF(OR(AND(E119>E113,E121<=0),AND(F119>F113,F121<=0)), $I$19,"")) -> 
C122: Charge Reacted (% of Dry Charge) | D122: %
C123: Heat of Reaction | D123: Btu/lb
C124: Endothermic/Exothermic | E124: Exothermic | F124: Exothermic
C125: Additional Heat Required | D125: Btu/hr
C126: Total Heat Required For Charge Material 3 | D126: Btu/hr | E126: =E154 -> 0 | F126: =F154 -> 0 | L126: =IF('Control page'!$D$11>2,1,0) -> 1 | M126: Control
C131: Calculations
C132: Weight of water for charged wet material (Btu/hr) | E132: =E115*E116 -> 0 | F132: =F115*F116 -> 0
C133: Weight of solid dry material as charged (Btu/hr) | E133: =E115-E132 -> 0 | F133: =F115-F132 -> 0
C134: Weight of water for discharged wet material (Btu/hr) | E134: =E133*E117/(1-E117) -> 0 | F134: =F133*F117/(1-F117) -> 0
C135: Total weight of wet material at discharge (Btu/hr) | E135: =E133+E134 -> 0 | F135: =F133+F134 -> 0
C137: Water - Moisture heat requirement
C138: Heating all water to boiling point (Btu/hr) | E138: =$G$37*E132*(212-E118) -> 0 | F138: =$G$37*F132*(212-F118) -> 0
C139: Heat required for vaporization for water removed (Btu/hr) | E139: =IF(E120>212,$G$38*(E132-E134),0) -> 0 | F139: =IF(F120>212,$G$38*(F132-F134),0) -> 0
C140: Heat for vapor superheat (to product final temp.) (Btu/hr) | E140: =IF(E120>212, $G$39*(E132-E134)*(E120-212),0) -> 0 | F140: =IF(F120>212, $G$39*(F132-F134)*(F120-212),0) -> 0
C141: Heat required to bring retained water to water discharge temp. (Btu/hr) | E141: =$G$37*E134*(E120-212) -> 0 | F141: =$G$37*F134*(F120-212) -> 0
C142: Total heat for the water related thermal load (kJ/hr) | E142: =SUM(E138:E141) -> 0 | F142: =SUM(F138:F141) -> 0
C144: Solid load heat requirement
C145: Heat required for solid material up to melting point (Btu/hr) | E145: =IF(E121<=0, E110*E133*(E119-E118), E110*E133*(E113-E118)) -> 0 | F145: =IF(F121<=0, F110*F133*(F119-F118), F110*F133*(F113-F118)) -> 0
C146: Heat required for melting (Btu/hr) | E146: =IF(E121>0, E133*E111*E121,0) -> 0 | F146: =IF(F121>0, F133*F111*F121,0) -> 0
C147: Heat required for superheating molten material (Btu/hr) | E147: =IF(E121>0, E112*E133*(E119-E113)*E121,0) -> 0 | F147: =IF(F121>0, F112*F133*(F119-F113)*F121,0) -> 0
C148: Heat required for heating unmelted solid material(Btu/hr) | E148: =IF(E121>0, (1-E121)*E110*E133*(E119-E113), 0) -> 0 | F148: =IF(F121>0, (1-F121)*F110*F133*(F119-F113), 0) -> 0
C149: Heat for reaction during heating (Btu/hr) | E149: =IF(E124="Endothermic",1,-1)*E122*E133*E123 -> 0 | F149: =IF(F124="Endothermic",1,-1)*F122*F133*F123 -> 0 | K149: =(IF(E149<0,-1,0))*E149*$L$126 -> 0 | L149: =(IF(F149<0,-1,0))*F149*$L$126 -> 0
C150: Heat required for cooling the molten material (Btu/hr) | E150: 0 | F150: 0
C151: Heat required for cooling the remaining solid material (Btu/hr) | E151: 0 | F151: 0
C152: Heat required for solid-dry material (Btu/hr) | E152: =SUM(E145:E148)+(IF(E124="Endothermic",E149,0)) -> 0 | F152: =SUM(F145:F148)+(IF(F124="Endothermic",F149,0)) -> 0
C154: Total heat required for charge material (Btu/hr) | E154: =E142+E152+E125 -> 0 | F154: =F142+F152+F125 -> 0
O155: Other
C156: Total Heat For All Charge Material (Btu/hr) | E156: =(E24*L24)+(E75*L75)+(E126*L126) -> 0 | F156: =(F24*L24)+(F75*L75)+(F126*L126) -> 0 | I156: =I115+I64+I13 -> 0 | J156: =J115+J64+J13 -> 0 | K156: =K149+K98+K98 -> 0 | L156: =L149+L98+L98 -> 0
I157: =ROUND(E126-F126,0) -> 0
C158: NOTES:
C159: Enter notes here on proposed changes for the "Modified" conditions.
I160: =IF(C160="",0,1) -> 0
I161: =IF(C161="",0,1) -> 0
I162: =IF(C162="",0,1) -> 0
I163: =IF(C163="",0,1) -> 0
I164: =IF(C164="",0,1) -> 0
I165: =SUM(I160:I164) -> 0

Sheet Load Charge Liquid-1
C2: Number of charge materials - liquid | D2: ='Control page'!D12 -> 3 | E2: from control sheet
N3: ID | O3: Substance | P3: MaterialType | Q3: Composition | R3: Density (#s/ft^3) | S3: MeanSpecific Heat of liquid (kJ/(kg oC# F) | T3: LatentHeatOf Fusion Btu/lb. | U3: MeanSpecific Heat Of Vapor (Btu/(lb. 0F) | V3: Boiling Point (Deg. F.) | W3: Average Pouring Temp (Deg. F) | X3: HtContentOf Solid At MeltingPoint (Btu/lb.) | Y3: HtContentOf LiquidAt MeltingTemp (Btu/lb.) | Z3: HtContentOf LiquidAt PouringTemp (Btu/lb.) | AA3: Change
C4: Load Charge Material 1 | E4: Current | F4: Modified | R4: =16.02 -> 16.02 | S4: 4.187 | T4: 2.326 | U4: =S4 -> 4.187 | V4: C=(F-32)/1.8 | W4: C=(F-32)/1.8 | X4: 2.326 | Y4: =X4 -> 2.326 | Z4: =Y4 -> 2.326
C5: Liquid | N5: 41 | O5: Crude | P5: Liquid | R5: =AB5/$R$4 -> 0 | S5: =AC5/$S$4 -> 0.6501074755 | T5: =AD5/$T$4 -> 0 | U5: =AE5/$U$4 -> 0 | V5: =AF5*1.8+32 -> 899.996 | W5: =AG5*1.8+32 -> -0.004 | X5: =AH5/$X$4 -> 0 | Y5: =AI5/$Y$4 -> 0 | Z5: =AJ5/$Z$4 -> 0 | AA5: FALSE | AB5: 0 | AC5: 2.722 | AD5: 0 | AE5: 0 | AF5: 482.22 | AG5: -17.78 | AH5: 0 | AI5: 0 | AJ5: =AT5/$Z$4 -> 0
C6: Name of the Material (Choose from List) or "Other" if not on list then Enter Thermal Properties In Boxes | E6: Carbon tetrachloride | F6: =E6 -> Carbon tetrachloride | I6: Copy Current to Modified | N6: 42 | O6: Water - std. atms. pressure | P6: Liquid | R6: =AB6/$R$4 -> 0 | S6: =AC6/$S$4 -> 1 | T6: =AD6/$T$4 -> 970.300086 | U6: =AE6/$U$4 -> 0.4700262718 | V6: =AF6*1.8+32 -> 212 | W6: =AG6*1.8+32 -> -0.004 | X6: =AH6/$X$4 -> 0 | Y6: =AI6/$Y$4 -> 0 | Z6: =AJ6/$Z$4 -> 0 | AA6: FALSE | AB6: 0 | AC6: 4.187 | AD6: 2256.918 | AE6: 1.968 | AF6: 100 | AG6: -17.78 | AH6: 0 | AI6: 0 | AJ6: 0
I7: Done Entering Data | K7: Enter Matl Here | N7: 43 | O7: Water - 150 psig | P7: Liquid | R7: 0 | S7: 1.049916408 | T7: 868 | U7: 0.5400047767 | V7: 365 | W7: -0.004 | X7: 0 | Y7: 0 | Z7: 0 | AA7: FALSE | AB7: 0 | AC7: 4.396 | AD7: 2018.968 | AE7: 2.261 | AF7: 185 | AG7: -17.78 | AH7: 0 | AI7: 0 | AJ7: 0
C8: Specific Heat of Liquid | D8: Btu/(lb-F) | E8: =IF(E$6="Other",K12,VLOOKUP($E6,$O$5:$AA$44,5,)) -> 0.2149510389 | F8: =E8 -> 0.2149510389 | I8: Print Sheet | K8: 0 | N8: 44 | O8: Acetic Acid | P8: Liquid | R8: 0 | S8: 0.5099116312 | T8: 174 | U8: 0.4000477669 | V8: 244.4 | W8: -0.004 | X8: 0 | Y8: 0 | Z8: 0 | AA8: FALSE | AB8: 0 | AC8: 2.135 | AD8: 404.724 | AE8: 1.675 | AF8: 118 | AG8: -17.78 | AH8: 0 | AI8: 0 | AJ8: 0
C9: Vaporizing Temperature | D9: deg. F. | E9: =IF(E$6="Other",K13,VLOOKUP($E$6,$O$5:$AA$44,8,)) -> 170.006 | F9: =E9 -> 170.006 | K9: 0 | N9: 45 | O9: Acetone | P9: Liquid | R9: 0 | S9: 0.3470265106 | T9: 239 | U9: 0.4000477669 | V9: 129.992 | W9: -0.004 | X9: 0 | Y9: 0 | Z9: 0 | AA9: FALSE | AB9: 0 | AC9: 1.453 | AD9: 555.914 | AE9: 1.675 | AF9: 54.44 | AG9: -17.78 | AH9: 0 | AI9: 0 | AJ9: 0
C10: Latent Heat of Vaporization | D10: Btu/lb | E10: =IF(E$6="Other",K14,VLOOKUP($E$6,$O$5:$AA$44,6,)) -> 83.5 | F10: =E10 -> 83.5 | K10: 0 | N10: 46 | O10: Alcohol- ethyl | P10: Liquid | R10: 0 | S10: 0.6479579651 | T10: 369 | U10: 0.4499641748 | V10: 172.004 | W10: -0.004 | X10: 0 | Y10: 0 | Z10: 0 | AA10: FALSE | AB10: 0 | AC10: 2.713 | AD10: 858.294 | AE10: 1.884 | AF10: 77.78 | AG10: -17.78 | AH10: 0 | AI10: 0 | AJ10: 0
C11: Specific Heat of Vapor | D11: Btu/(lb-F) | E11: =IF(E6="Other",K15,VLOOKUP($E$6,$O$5:$AA$44,7,)) -> 0.2500597086 | F11: =E11 -> 0.2500597086 | K11: 0 | N11: 47 | O11: Alcohol - methyl | P11: Liquid | R11: 0 | S11: 0.6009075711 | T11: 481 | U11: 0.330069262 | V11: 150.998 | W11: -0.004 | X11: 0 | Y11: 0 | Z11: 0 | AA11: FALSE | AB11: 0 | AC11: 2.516 | AD11: 1118.806 | AE11: 1.382 | AF11: 66.11 | AG11: -17.78 | AH11: 0 | AI11: 0 | AJ11: 0
K12: =VALUE(K8) -> 0 | N12: 48 | O12: Benzene | P12: Liquid | R12: 0 | S12: 0.4229758777 | T12: 170 | U12: 0.330069262 | V12: 176 | W12: -0.004 | X12: 0 | Y12: 0 | Z12: 0 | AA12: FALSE | AB12: 0 | AC12: 1.771 | AD12: 395.42 | AE12: 1.382 | AF12: 80 | AG12: -17.78 | AH12: 0 | AI12: 0 | AJ12: 0
C13: Charge (Liquid)-Feed Rate | D13: lb/hr | I13: =E13*L21 -> 0 | J13: =F13*L21 -> 0 | K13: =VALUE(K9) -> 0 | N13: 49 | O13: Bromine | P13: Liquid | R13: 0 | S13: 0.1069978505 | T13: 82 | U13: 0.05493193217 | V13: 141.998 | W13: -0.004 | X13: 0 | Y13: 0 | Z13: 0 | AA13: FALSE | AB13: 0 | AC13: 0.448 | AD13: 190.732 | AE13: 0.23 | AF13: 61.11 | AG13: -17.78 | AH13: 0 | AI13: 0 | AJ13: 0
C14: Initial Temperature | D14: deg. F. | K14: 0 | N14: 50 | O14: Carbon tetrachloride | P14: Liquid | R14: 0 | S14: 0.2149510389 | T14: 83.5 | U14: 0.2500597086 | V14: 170.006 | W14: -0.004 | X14: 0 | Y14: 0 | Z14: 0 | AA14: FALSE | AB14: 0 | AC14: 0.9 | AD14: 194.221 | AE14: 1.047 | AF14: 76.67 | AG14: -17.78 | AH14: 0 | AI14: 0 | AJ14: 0
C15: Discharge Temperature | D15: deg. F. | G15: =IF(OR(AND(E15<E9,E16>0), AND(F15<F9,F16>0)), $I$22, IF(OR(AND(E15>E9,E16<=0),AND(F15>F9,F16<=0)),$I$16,"")) ->  | K15: 0 | N15: 51 | O15: Fuel oil no. 2 (average) | P15: Liquid | R15: 0 | S15: 0.5700979221 | T15: 105 | U15: 0.5500358252 | V15: 375.008 | W15: -0.004 | X15: 0 | Y15: 0 | Z15: 0 | AA15: FALSE | AB15: 0 | AC15: 2.387 | AD15: 244.23 | AE15: 2.303 | AF15: 190.56 | AG15: -17.78 | AH15: 0 | AI15: 0 | AJ15: 0
C16: Charge Liquid Vaporized (% of Charge) | D16: % | I16: Notice: The discharge temperature is higher than the vaporizing temperature, please enter proper percentage for charge liquid vaporized (>0% and <=100%). | N16: 52 | O16: Fuel oil no. 6 (average) | P16: Liquid | R16: 0 | S16: 0.5798901361 | T16: 108 | U16: 0.5500358252 | V16: 600.008 | W16: -0.004 | X16: 0 | Y16: 0 | Z16: 0 | AA16: FALSE | AB16: 0 | AC16: 2.428 | AD16: 251.208 | AE16: 2.303 | AF16: 315.56 | AG16: -17.78 | AH16: 0 | AI16: 0 | AJ16: 0
C17: Charge Liquid Reacted (% of Charge) | D17: % | N17: 53 | O17: Kerosene | P17: Liquid | R17: 0 | S17: 0.5700979221 | T17: 260 | U17: 0.6200143301 | V17: 260.006 | W17: -0.004 | X17: 0 | Y17: 0 | Z17: 0 | AA17: FALSE | AB17: 0 | AC17: 2.387 | AD17: 604.76 | AE17: 2.596 | AF17: 126.67 | AG17: -17.78 | AH17: 0 | AI17: 0 | AJ17: 0
C18: Heat of Reaction | D18: Btu/lb | N18: 54 | O18: Methanol | P18: Liquid | R18: 0 | S18: 0 | T18: 0 | U18: 0 | V18: 32 | W18: 32 | X18: 0 | Y18: 0 | Z18: 0 | AA18: FALSE | AJ18: 0
C19: Type of Reaction (Endothermic/Exothermic) | E19: Exothermic | F19: Exothermic | O19: Other
C20: Additional Heat Required | D20: %
C21: Total Heat Required For Charge Material 1 | D21: Btu/hr | E21: =E40 -> 0 | F21: =F40 -> 0 | L21: =IF('Control page'!$D$12=0,0,1) -> 1 | M21: Control
I22: Warning: The discharge temperature is lower than the vaporizing temperature, the percentage for charge liquid vaporized should be 0%.
I23: =I21*1.055 -> 0
C25: Calculations
C26: Weight of liquid vaporized | E26: =E13*E16 -> 0 | F26: =F13*F16 -> 0 | H26: lb./hr
C27: Total weight of liquid at discharge | E27: =E13-E26 -> 0 | F27: =F13-F26 -> 0 | H27: lb./hr
C29: Vapor heat requirement
C30: Heating liquid to vaporizing temperature | E30: =E26*E8*(E9-E14) -> 0 | F30: =F26*F8*(F9-F14) -> 0 | H30: Btu/hr
C31: Heat required for vaporization of liquid | E31: =IF(E15>E9,E26*E10,0) -> 0 | F31: =IF(F15>F9,F26*F10,0) -> 0 | H31: Btu/hr
C32: Heat for vapor superheat (to liquid discharge temp) | E32: =IF(E15>E9, E11*E26*(E15-E9), 0) -> 0 | F32: =IF(F15>F9, F11*F26*(F15-F9), 0) -> 0 | H32: Btu/hr
C33: Total heat for the vapor related thermal load | E33: =SUM(E30:E32) -> 0 | F33: =SUM(F30:F32) -> 0 | H33: Btu/hr
C35: Liquid heat requirement
C36: Heating of liquid to discharge temperature | E36: =E8*E27*(E15-E14) -> 0 | F36: =F8*F27*(F15-F14) -> 0 | H36: Btu/hr
C37: Heat of reaction for liquid | E37: =IF(E19="Endothermic",1,-1)*E17*E13*E18 -> 0 | F37: =IF(F19="Endothermic",1,-1)*F17*F13*F18 -> 0 | H37: Btu/hr | K37: =IF(E37<0,-1,0)*E37*L21 -> 0 | L37: =IF(F37<0,-1,0)*F37*L21 -> 0
C38: Total heat for liquid related thermal load | E38: =E36+(IF(E19="Endothermic",E37,0)) -> 0 | F38: =F36+(IF(F19="Endothermic",F37,0)) -> 0 | H38: Btu/hr
C40: Total heat required for liquid heating | E40: =E33+E38+E20 -> 0 | F40: =F33+F38+F20 -> 0 | H40: Btu/hr
C43: Load Charge Material 2 | E43: Current | F43: Modified
C44: Liquid
C45: Name of the Material (Choose from List) or "Other" if not on list then Enter Thermal Properties In Boxes | E45: Alcohol - methyl | F45: =E45 -> Alcohol - methyl
K46: Enter Matl Here
C47: Specific Heat of Liquid | D47: Btu/(lb-F) | E47: =IF(E45="Other",K51,VLOOKUP(E45,$O$5:$AA$44,5,)) -> 0.6009075711 | F47: =E47 -> 0.6009075711 | K47: 0
C48: Vaporizing Temperature | D48: F | E48: =IF(E45="Other",K52,VLOOKUP(E45,$O$5:$AA$44,8,)) -> 150.998 | F48: =E48 -> 150.998 | K48: 0
C49: Latent Heat of Vaporization | D49: Btu/lb | E49: =IF(E45="Other",K53,VLOOKUP(E45,$O$5:$AA$44,6,)) -> 481 | F49: =E49 -> 481 | K49: 0
C50: Specific Heat of Vapor | D50: Btu/(lb-F) | E50: =IF(E45="Other",K54,VLOOKUP(E45,$O$5:$AA$44,7,)) -> 0.330069262 | F50: =E50 -> 0.330069262 | K50: 0
K51: =VALUE(K47) -> 0
C52: Charge (Liquid)-Feed Rate | D52: lb/hr | I52: =E52*L60 -> 0 | J52: =F52*L60 -> 0 | K52: =VALUE(K48) -> 0
C53: Initial Temperature | D53: deg. F. | K53: 0
C54: Discharge Temperature | D54: deg. F. | G54: =IF(OR(AND(E54<E48,E55>0), AND(F54<F48,F55>0)), $I$22, IF(OR(AND(E54>E48,E55<=0),AND(F54>F48,F55<=0)),$I$16,"")) ->  | K54: 0
C55: Charge Liquid Vaporized (% of Charge) | D55: %
C56: Charge Liquid Reacted (% of Charge) | D56: %
C57: Heat of Reaction | D57: Btu/lb
C58: Type of Reaction (Endothermic/Exothermic) | E58: Endothermic | F58: Endothermic
C59: Additional Heat Required | D59: %
C60: Total Heat Required For Charge Material 2 | D60: Btu/hr | E60: =E79 -> 0 | F60: =F79 -> 0 | L60: =IF('Control page'!$D$12>1,1,0) -> 1 | M60: Control
C64: Calculations
C65: Weight of liquid vaporized | E65: =E52*E55 -> 0 | F65: =F52*F55 -> 0 | H65: lb./hr
C66: Total weight of liquid at discharge | E66: =E52-E65 -> 0 | F66: =F52-F65 -> 0 | H66: lb./hr
C68: Vapor heat requirement
C69: Heating liquid to vaporizing temperature | E69: =E65*E47*(E48-E53) -> 0 | F69: =F65*F47*(F48-F53) -> 0 | H69: Btu/hr
C70: Heat required for vaporization of liquid | E70: =IF(E54>E48,E65*E49,0) -> 0 | F70: =IF(F54>F48,F65*F49,0) -> 0 | H70: Btu/hr
C71: Heat for vapor superheat (to liquid discharge temp) | E71: =IF(E54>E48, E50*E65*(E54-E48), 0) -> 0 | F71: =IF(F54>F48, F50*F65*(F54-F48), 0) -> 0 | H71: Btu/hr
C72: Total heat for the vapor related thermal load | E72: =SUM(E69:E71) -> 0 | F72: =SUM(F69:F71) -> 0 | H72: Btu/hr
C74: Liquid heat requirement
C75: Heating of liquid to discharge temperature | E75: =E47*E66*(E54-E53) -> 0 | F75: =F47*F66*(F54-F53) -> 0 | H75: Btu/hr
C76: Heat of reaction for liquid | E76: =IF(E58="Endothermic",1,-1)*E56*E52*E57 -> 0 | F76: =IF(F58="Endothermic",1,-1)*F56*F52*F57 -> 0 | H76: Btu/hr | K76: =IF(E76<0,-1,0)*E76*L60 -> 0 | L76: =IF(F76<0,-1,0)*F76*L60 -> 0
C77: Total heat for liquid related thermal load | E77: =E75+(IF(E58="Endothermic",E76,0)) -> 0 | F77: =F75+(IF(F58="Endothermic",F76,0)) -> 0 | H77: Btu/hr
C79: Total heat required for liquid heating | E79: =E72+E77+E59 -> 0 | F79: =F72+F77+F59 -> 0 | H79: Btu/hr
C82: Load Charge Material 3 | E82: Current | F82: Modified
C83: Liquid
C84: Name of the Material (Choose from List) or "Other" if not on list then Enter Thermal Properties In Boxes | E84: Carbon tetrachloride | F84: =E84 -> Carbon tetrachloride
K85: Enter Matl Here
C86: Specific Heat of Liquid | D86: Btu/(lb-F) | E86: =IF(E84="Other",K90,VLOOKUP(E84,$O$5:$AA$44,5,)) -> 0.2149510389 | F86: =E86 -> 0.2149510389 | K86: 0
C87: Vaporizing Temperature | D87: deg. F. | E87: =IF(E84="Other",K91,VLOOKUP(E84,$O$5:$AA$44,8,)) -> 170.006 | F87: =E87 -> 170.006 | K87: 0
C88: Latent Heat of Vaporization | D88: Btu/lb | E88: =IF(E84="Other",K92,VLOOKUP(E84,$O$5:$AA$44,6,)) -> 83.5 | F88: =E88 -> 83.5 | K88: 0
C89: Specific Heat of Vapor | D89: Btu/(lb-F) | E89: =IF(E84="Other",K93,VLOOKUP(E84,$O$5:$AA$44,7,)) -> 0.2500597086 | F89: =E89 -> 0.2500597086 | K89: 0
K90: =VALUE(K86) -> 0
C91: Charge (Liquid)-Feed Rate | D91: lb/hr | I91: =E91*L99 -> 0 | J91: =F91*L99 -> 0 | K91: =VALUE(K87) -> 0
C92: Initial Temperature | D92: deg. F. | K92: 0
C93: Discharge Temperature | D93: deg. F. | G93: =IF(OR(AND(E93<E87,E94>0), AND(F93<F87,F94>0)), $I$22, IF(OR(AND(E93>E87,E94<=0),AND(F93>F87,F94<=0)),$I$16,"")) ->  | K93: 0
C94: Charge Liquid Vaporized (% of Charge) | D94: %
C95: Charge Liquid Reacted (% of Charge) | D95: %
C96: Heat of Reaction | D96: Btu/lb
C97: Type of Reaction (Endothermic/Exothermic) | E97: Exothermic | F97: Exothermic
C98: Additional Heat Required | D98: %
C99: Total Heat Required For Charge Material 3 | D99: Btu/hr | E99: =E118 -> 0 | F99: =F118 -> 0 | L99: =IF('Control page'!$D$12>2,1,0) -> 1 | M99: Control
C103: Calculations
C104: Weight of liquid vaporized | E104: =E91*E94 -> 0 | F104: =F91*F94 -> 0 | H104: lb./hr
C105: Total weight of liquid at discharge | E105: =E91-E104 -> 0 | F105: =F91-F104 -> 0 | H105: lb./hr
C107: Vapor heat requirement
C108: Heating liquid to vaporizing temperature | E108: =E104*E86*(E87-E92) -> 0 | F108: =F104*F86*(F87-F92) -> 0 | H108: Btu/hr
C109: Heat required for vaporization of liquid | E109: =IF(E93>E87,E104*E88,0) -> 0 | F109: =IF(F93>F87,F104*F88,0) -> 0 | H109: Btu/hr
C110: Heat for vapor superheat (to liquid discharge temp) | E110: =IF(E93>E87, E89*E104*(E93-E87), 0) -> 0 | F110: =IF(F93>F87, F89*F104*(F93-F87), 0) -> 0 | H110: Btu/hr
C111: Total heat for the vapor related thermal load | E111: =SUM(E108:E110) -> 0 | F111: =SUM(F108:F110) -> 0 | H111: Btu/hr
C113: Liquid heat requirement
C114: Heating of liquid to discharge temperature | E114: =E86*E105*(E93-E92) -> 0 | F114: =F86*F105*(F93-F92) -> 0 | H114: Btu/hr
C115: Heat of reaction for liquid | E115: =IF(E97="Endothermic",1,-1)*E95*E91*E96 -> 0 | F115: =IF(F97="Endothermic",1,-1)*F95*F91*F96 -> 0 | H115: Btu/hr | K115: =IF(E115<0,-1,0)*E115*L99 -> 0 | L115: =IF(F115<0,-1,0)*F115*L99 -> 0
C116: Total heat for liquid related thermal load | E116: =E114+(IF(E97="Endothermic",E115,0)) -> 0 | F116: =F114+(IF(F97="Endothermic",F115,0)) -> 0 | H116: Btu/hr
C118: Total heat required for liquid heating | E118: =E111+E116+E98 -> 0 | F118: =F111+F116+F98 -> 0 | H118: Btu/hr
I119: Btu/hr
C120: Total Heat For All Charge Material (Btu/hr) | E120: =(E21*L21)+(E60*L60)+(E99*L99) -> 0 | F120: =(F21*L21)+(F60*L60)+(F99*L99) -> 0 | I120: =I91+I52+I13 -> 0 | J120: =J91+J52+J13 -> 0 | K120: =K115+K76+K76 -> 0 | L120: =L115+L76+L76 -> 0
C122: NOTES:
C123: Enter notes here on proposed changes for the "Modified" conditions.
I124: =IF(C124="",0,1) -> 0
I125: =IF(C125="",0,1) -> 0
I126: =IF(C126="",0,1) -> 0
I127: =IF(C127="",0,1) -> 0
I128: =IF(C128="",0,1) -> 0
I129: =SUM(I124:I128) -> 0

Sheet Load Charge Gas-1
N3: ID | O3: Substance | P3: MaterialType | Q3: Composition | R3: Density (lb/cu.ft.) | S3: MeanSpecific Heat of Gas (Btu/lb.0F) | T3: LatentHeatOf Fusion Btu/lb. | U3: MeanSpecific Heat Of Vapor (Btu/lb.0F) | V3: Boiling Point (Deg. F.) | W3: Average Pouring Temp (Deg. F) | X3: HtContentOf Solid At MeltingPoint (Btu/lb.) | Y3: HtContentOf LiquidAt MeltingTemp (Btu/lb.) | Z3: HtContentOf LiquidAt PouringTemp (Btu/lb.) | AA3: Change
C4: Load Charge Material 1 | E4: Current | F4: Modified | R4: =16.02 -> 16.02 | S4: 4.187 | T4: 2.326 | U4: =S4 -> 4.187 | V4: C=(F-32)/1.8 | W4: C=(F-32)/1.8 | X4: 2.326 | Y4: =X4 -> 2.326 | Z4: =Y4 -> 2.326
C5: Gas | N5: 55 | O5: Water vapor - near atm. pressure | P5: Gas | R5: =AC5/$R$4 -> 0 | S5: =AD5/$S$4 -> 0.4700262718 | T5: 0 | U5: 0 | V5: =AG5*1.8+32 -> -0.004 | W5: =AH5*1.8+32 -> -0.004 | X5: 0 | Y5: 0 | Z5: 0 | AA5: FALSE | AC5: 0 | AD5: 1.968 | AE5: 0 | AF5: 0 | AG5: -17.78 | AH5: -17.78 | AI5: 0 | AJ5: 0 | AK5: 0
C6: Name of the Material (Choose from List) or "Other" if not on list then Enter Material Name and Thermal Properties In Boxes | E6: Water vapor - near atm. pressure | F6: =E6 -> Water vapor - near atm. pressure | I6: Copy Current to Modified | N6: 56 | O6: Steam - 50 psig, 400 degree F | P6: Gas | R6: 0 | S6: =AD6/$S$4 -> 0.4900883688 | T6: 0 | U6: 0 | V6: =AG6*1.8+32 -> -0.004 | W6: =AH6*1.8+32 -> -0.004 | X6: 0 | Y6: 0 | Z6: 0 | AA6: FALSE | AC6: 0 | AD6: 2.052 | AE6: 0 | AF6: 0 | AG6: -17.78 | AH6: -17.78 | AI6: 0 | AJ6: 0 | AK6: 0
I7: Done Entering Data | K7: Enter Matl Here | N7: 57 | O7: Steam - 150 psig, 500 degree F | P7: Gas | R7: 0 | S7: 0.5099116312 | T7: 0 | U7: 0 | V7: -0.004 | W7: -0.004 | X7: 0 | Y7: 0 | Z7: 0 | AA7: FALSE | AC7: 0 | AD7: 2.135 | AE7: 0 | AF7: 0 | AG7: -17.78 | AH7: -17.78 | AI7: 0 | AJ7: 0 | AK7: 0
C8: Specific Heat of Gas | D8: Btu/(lb-F) | E8: =IF(E6="Other",K8,VLOOKUP(E6,$O$5:$AA$44,5,)) -> 0.4700262718 | F8: =E8 -> 0.4700262718 | I8: Print Sheet | K8: 0 | N8: 58 | O8: Steam - 600 psig, 700 degree F | P8: Gas | R8: 0 | S8: 0.5899211846 | T8: 0 | U8: 0 | V8: -0.004 | W8: -0.004 | X8: 0 | Y8: 0 | Z8: 0 | AA8: FALSE | AC8: 0 | AD8: 2.47 | AE8: 0 | AF8: 0 | AG8: -17.78 | AH8: -17.78 | AI8: 0 | AJ8: 0 | AK8: 0
N9: 59 | O9: Air - low pressure | P9: Gas | R9: 0 | S9: 0.2450441844 | T9: 0 | U9: 0 | V9: -0.004 | W9: -0.004 | X9: 0 | Y9: 0 | Z9: 0 | AA9: FALSE | AC9: 0 | AD9: 1.026 | AE9: 0 | AF9: 0 | AG9: -17.78 | AH9: -17.78 | AI9: 0 | AJ9: 0 | AK9: 0
C10: Feed Rate for Gas Mixture | D10: lb/hr | I10: =E10*L19 -> 0 | J10: =F10*L19 -> 0 | N10: 60 | O10: Nitrogen - low pressure | P10: Gas | R10: 0 | S10: 0.2500597086 | T10: 0 | U10: 0 | V10: -0.004 | W10: -0.004 | X10: 0 | Y10: 0 | Z10: 0 | AA10: FALSE | AC10: 0 | AD10: 1.047 | AE10: 0 | AF10: 0 | AG10: -17.78 | AH10: -17.78 | AI10: 0 | AJ10: 0 | AK10: 0
C11: Vapor in Gas Mixture (% of Total) | D11: % | N11: 61 | O11: Oxygen - low pressure | P11: Gas | R11: 0 | S11: 0.2299976117 | T11: 0 | U11: 0 | V11: -0.004 | W11: -0.004 | X11: 0 | Y11: 0 | Z11: 0 | AA11: FALSE | AC11: 0 | AD11: 0.963 | AE11: 0 | AF11: 0 | AG11: -17.78 | AH11: -17.78 | AI11: 0 | AJ11: 0 | AK11: 0
C12: Initial Temperature | D12: deg. F. | N12: 62 | O12: Carbon dioxide - low pressure | P12: Gas | R12: 0 | S12: 0.2400286601 | T12: 0 | U12: 0 | V12: -0.004 | W12: -0.004 | X12: 0 | Y12: 0 | Z12: 0 | AA12: FALSE | AC12: 0 | AD12: 1.005 | AE12: 0 | AF12: 0 | AG12: -17.78 | AH12: -17.78 | AI12: 0 | AJ12: 0 | AK12: 0
C13: Discharge Temperature | D13: deg. F. | N13: 63 | O13: Carbon monoxide - low pressure | P13: Gas | R13: 0 | S13: 0.2500597086 | T13: 0 | U13: 0 | V13: -0.004 | W13: -0.004 | X13: 0 | Y13: 0 | Z13: 0 | AA13: FALSE | AC13: 0 | AD13: 1.047 | AE13: 0 | AF13: 0 | AG13: -17.78 | AH13: -17.78 | AI13: 0 | AJ13: 0 | AK13: 0
C14: Specific Heat of Vapor | D14: Btu/(lb-F) | N14: 64 | O14: Hydrogen - low pressure | P14: Gas | R14: 0 | S14: 14.445 | T14: 0 | U14: 0 | V14: -0.004 | W14: -0.004 | X14: 0 | Y14: 0 | Z14: 0 | AA14: FALSE | AC14: 0 | AD14: 14.445 | AE14: 0 | AF14: 0 | AG14: -17.78 | AH14: -17.78 | AI14: 0 | AJ14: 0 | AK14: 0
C15: Feed Gas Reacted (% of Total) | D15: % | O15: Other
C16: Heat of Reaction | D16: Btu/lb
C17: Type of Reaction (Endothermic/Exothermic) | E17: Endothermic | F17: Endothermic
C18: Additional Heat Required | D18: Btu/hr
C19: Total Heat Required For Charge Material 1 | D19: Btu/hr | E19: =E35 -> 0 | F19: =F35 -> 0 | L19: =IF('Control page'!$D$13=0,0,1) -> 1 | M19: Control
C24: Calculations
C25: Weight of vapor in gas mixture | E25: =ROUND(E11*E10,0) -> 0 | F25: =ROUND(F11*F10,0) -> 0 | G25: lb./hr.
C26: Weight of feed (total - vapor) gas | E26: =E10-E25 -> 0 | F26: =F10-F25 -> 0 | G26: lb./hr.
C28: Vapor heat requirement
C29: Heating vapor to discharge temperature | E29: =E14*E25*(E13-E12) -> 0 | F29: =F14*F25*(F13-F12) -> 0 | G29: Btu/hr.
C30: Heat required for reaction of gas mixture | E30: =IF(E17="Endothermic",1,-1)*E15*E10*E16 -> 0 | F30: =IF(F17="Endothermic",1,-1)*F15*F10*F16 -> 0 | G30: Btu/hr. | J30: =IF(E30<0,-1,0)*E30*L19 -> 0 | K30: =IF(F30<0,-1,0)*F30*L19 -> 0
C31: Heat for gas heating to discharge temp. | E31: =E8*E26*(E13-E12) -> 0 | F31: =F8*F26*(F13-F12) -> 0 | G31: Btu/hr.
C32: Total heat for the vapor related thermal load | E32: =E29+E31+(IF(E17="Endothermic",E30,0)) -> 0 | F32: =F29+F31+(IF(F17="Endothermic",F30,0)) -> 0 | G32: Btu/hr.
C35: Total heat required for gas mixture heating | E35: =E32+E18 -> 0 | F35: =F32+F18 -> 0 | G35: Btu/hr.
C38: Load Charge Material 2 | E38: Current | F38: Modified
C39: Gas
C40: Name of the Material (Choose from List) or "Other" if not on list then Enter Thermal Properties In Boxes | E40: Water vapor - near atm. pressure | F40: =E40 -> Water vapor - near atm. pressure
K41: Enter Matl Name
C42: Specific Heat of Gas | D42: Btu/(lb-F) | E42: =IF(E40="Other",K42,VLOOKUP(E40,$O$5:$AA$44,5,)) -> 0.4700262718 | F42: =E42 -> 0.4700262718 | K42: 0
C44: Feed Rate for Gas Mixture | D44: lb/hr | I44: =E44*L53 -> 0 | J44: =F44*L53 -> 0
C45: Vapor in Gas Mixture (% of Total) | D45: %
C46: Initial Temperature | D46: deg. F.
C47: Discharge Temperature | D47: deg. F.
C48: Specific Heat of Vapor | D48: Btu/(lb-F)
C49: Feed Gas Reacted (% of Total) | D49: %
C50: Heat of Reaction | D50: Btu/lb
C51: Type of Reaction (Endothermic/Exothermic) | E51: Endothermic | F51: Endothermic
C52: Additional Heat Required | D52: Btu/hr
C53: Total Heat Required For Charge Material 2 | D53: Btu/hr | E53: =E69 -> 0 | F53: =F69 -> 0 | L53: =IF('Control page'!$D$13>1,1,0) -> 1 | M53: Control
C58: Calculations
C59: Weight of vapor in gas mixture | E59: =ROUND(E45*E44,0) -> 0 | F59: =ROUND(F45*F44,0) -> 0 | G59: lb./hr.
C60: Weight of feed (total - vapor) gas | E60: =E44-E59 -> 0 | F60: =F44-F59 -> 0 | G60: lb./hr.
C62: Vapor heat requirement
C63: Heating vapor to discharge temperature | E63: =E48*E59*(E47-E46) -> 0 | F63: =F48*F59*(F47-F46) -> 0 | G63: Btu/hr.
C64: Heat required for reaction of gas mixture | E64: =IF(E51="Endothermic",1,-1)*E49*E44*E50 -> 0 | F64: =IF(F51="Endothermic",1,-1)*F49*F44*F50 -> 0 | G64: Btu/hr. | J64: =IF(E64<0,-1,0)*E64*L53 -> 0 | K64: =IF(F64<0,-1,0)*F64*L53 -> 0
C65: Heat for gas heating to discharge temp. | E65: =E42*E60*(E47-E46) -> 0 | F65: =F42*F60*(F47-F46) -> 0 | G65: Btu/hr.
C66: Total heat for the vapor related thermal load | E66: =E63+E65+(IF(E51="Endothermic",E64,0)) -> 0 | F66: =F63+F65+(IF(F51="Endothermic",F64,0)) -> 0 | G66: Btu/hr.
C69: Total heat required for gas mixture heating | E69: =E66+E52 -> 0 | F69: =F66+F52 -> 0 | G69: Btu/hr.
C72: Load Charge Material 3 | E72: Current | F72: Modified
C73: Gas
C74: Name of the Material (Choose from List) or "Other" if not on list then Enter Thermal Properties In Boxes | E74: Water vapor - near atm. pressure | F74: =E74 -> Water vapor - near atm. pressure
K75: Enter Matl Name
C76: Specific Heat of Gas | D76: Btu/(lb-F) | E76: =IF(E74="Other",K76,VLOOKUP(E74,$O$5:$AA$44,5,)) -> 0.4700262718 | F76: =E76 -> 0.4700262718 | K76: 0
C78: Feed Rate for Gas Mixture | D78: lb/hr | I78: =E78*L87 -> 0 | J78: =F78*L87 -> 0
C79: Vapor in Gas Mixture (% of Total) | D79: %
C80: Initial Temperature | D80: deg. F.
C81: Discharge Temperature | D81: deg. F.
C82: Specific Heat of Vapor | D82: Btu/(lb-F)
C83: Feed Gas Reacted (% of Total) | D83: %
C84: Heat of Reaction | D84: Btu/lb
C85: Type of Reaction (Endothermic/Exothermic) | E85: Endothermic | F85: Endothermic
C86: Additional Heat Required | D86: Btu/hr
C87: Total Heat Required For Charge Material 3 | D87: Btu/hr | E87: =E103 -> 0 | F87: =F103 -> 0 | L87: =IF('Control page'!$D$13>2,1,0) -> 1 | M87: Control
C92: Calculations
C93: Weight of vapor in gas mixture | E93: =ROUND(E79*E78,0) -> 0 | F93: =ROUND(F79*F78,0) -> 0 | G93: lb./hr.
C94: Weight of feed (total - vapor) gas | E94: =E78-E93 -> 0 | F94: =F78-F93 -> 0 | G94: lb./hr.
C96: Vapor heat requirement
C97: Heating vapor to discharge temperature | E97: =E82*E93*(E81-E80) -> 0 | F97: =F82*F93*(F81-F80) -> 0 | G97: Btu/hr.
C98: Heat required for reaction of gas mixture | E98: =IF(E85="Endothermic",1,-1)*E83*E78*E84 -> 0 | F98: =IF(F85="Endothermic",1,-1)*F83*F78*F84 -> 0 | G98: Btu/hr. | J98: =IF(E98<0,-1,0)*E98*L87 -> 0 | K98: =IF(F98<0,-1,0)*F98*L87 -> 0
C99: Heat for gas heating to discharge temp. | E99: =E76*E94*(E81-E80) -> 0 | F99: =F76*F94*(F81-F80) -> 0 | G99: Btu/hr.
C100: Total heat for the vapor related thermal load | E100: =E97+E99+(IF(E85="Endothermic",E98,0)) -> 0 | F100: =F97+F99+(IF(F85="Endothermic",F98,0)) -> 0 | G100: Btu/hr.
C103: Total heat required for gas mixture heating | E103: =E100+E86 -> 0 | F103: =F100+F86 -> 0 | G103: Btu/hr.
C105: Total Heat For All Charge Material (Btu/hr) | E105: =(E19*L19)+(E53*L53)+(E87*L87) -> 0 | F105: =(F19*L19)+(F53*L53)+(F87*L87) -> 0 | I105: =I78+I44+I10 -> 0 | J105: =J78+J44+J10 -> 0 | K105: =J98+J64+J30 -> 0 | L105: =K98+K64+K30 -> 0
C107: NOTES:
C108: Enter notes here on proposed changes for the "Modified" conditions.
I109: =IF(C109="",0,1) -> 0
I110: =IF(C110="",0,1) -> 0
I111: =IF(C111="",0,1) -> 0
I112: =IF(C112="",0,1) -> 0
I113: =IF(C113="",0,1) -> 0
I114: =SUM(I109:I113) -> 0

Sheet Fixture losses
B2: Number of fixture types | C2: ='Control page'!D14 -> 6 | D2: from control sheet
M3: ID | N3: Substance | O3: MaterialType | P3: Composition | Q3: Density (#s/ft^3) | R3: MeanSpecific Heat of solid (Btu/lb. 0F) | S3: LatentHeatof Fusion Btu/lb. | T3: MeanSpecific Heat Of Liquid (Btu/lb 0F) | U3: MeltingPoint (Deg. F.) | V3: Average Pouring Temp (Deg. F) | W3: HtContentOf Solid At MeltingPoint (Btu/lb.) | X3: HtContentOf LiquidAt MeltingTemp (Btu/lb.) | Y3: HtContentOf LiquidAt PouringTemp (Btu/lb.) | Z3: Change
B4: Fixtures, trays, conveyor etc. | D4: Current | E4: Modified | P4: Conversion Factor | Q4: 16.02 | R4: 4.187 | S4: 2.326 | T4: 4.187 | U4: C=(F-32)/1.8 | V4: C=(F-32)/1.8 | W4: 2.326 | X4: 2.326 | Y4: 2.326
M5: 1 | N5: Aluminum | O5: Solid | P5: Al | Q5: 166.6997503 | R5: 0.2479101982 | S5: 169 | T5: 0.2600907571 | U5: 1214.996 | V5: 1380.002 | W5: 286 | X5: 455 | Y5: 497 | Z5: FALSE
B6: Material Name | D6: Stainless Steel - 300 series | E6: Stainless Steel - 300 series | H6: Copy Current to Modified | K6: Enter Matl Name | M6: 2 | N6: Babbitt, lead base | O6: Solid | P6: 75 Pb,15 Sb,10 Sn | Q6: 0 | R6: 0.0389300215 | S6: 26.19991402 | T6: 0.03797468354 | U6: 462.002 | V6: 624.992 | W6: 15.80008598 | X6: 42 | Y6: 48 | Z6: FALSE
H7: Done Entering Data | K7: 0 | M7: 3 | N7: Babbitt, tin base | O7: Solid | P7: 83.3 Sn,8.4 Sb,8.3 Cu | Q7: 462 | R7: 0.07093384285 | S7: 34.10017197 | T7: 0.06305230475 | U7: 464 | V7: 915.998 | W7: 28.60017197 | X7: 67.69991402 | Y7: 91 | Z7: FALSE
B8: Specific heat | C8: Btu/(lb-F) | D8: =IF(D6="Other",K7,VLOOKUP($D6,$N$5:$Z$45,5,)) -> 0.1399570098 | E8: =IF(E6="Other",K9,VLOOKUP($E6,$N$5:$Z$45,5,)) -> 0.1399570098 | H8: Print Sheet | K8: Enter Matl Name | M8: 4 | N8: Bismuth | O8: Solid | P8: Bi | Q8: 612 | R8: 0.0329591593 | S8: 18.5 | T8: 0.03510866969 | U8: 518 | V8: 620.006 | W8: 15.10017197 | X8: 33.60017197 | Y8: 37.19991402 | Z8: FALSE
B9: Fixture Weight feed rate | C9: lb/hr | K9: 0 | M9: 5 | N9: Brass, Muntz metal | O9: Solid | P9: 60 Cu,40 Zn | Q9: 524 | R9: 0.1050871746 | S9: 69 | T9: 0.1249104371 | U9: 1630.004 | V9: 1850 | W9: 165 | X9: 234 | Y9: 261 | Z9: FALSE
B10: Initial Temperature | C10: deg. F. | M10: 6 | N10: Brass, red | O10: Solid | P10: 90 Cu,10 Zn | Q10: 546 | R10: 0.1038930021 | S10: 86.5 | T10: 0.1151182231 | U10: 1952.006 | V10: 2249.996 | W10: 197 | X10: 283.5 | Y10: 317.800086 | Z10: FALSE
B11: Final Temperature | C11: deg. F. | J11: =IF($C$2>0,1,0) -> 1 | K11: Control | M11: 7 | N11: Brass,yellow | O11: Solid | P11: 67 Cu,33 Zn | Q11: 528 | R11: 0.1050871746 | S11: 71 | T11: 0.1229997612 | U11: 1688 | V11: 1950.008 | W11: 171 | X11: 242 | Y11: 274.199914 | Z11: FALSE
B12: Correction factor | D12: 1 | E12: 1 | M12: 8 | N12: Bronze, bearing | O12: Solid | P12: 80 Cu,10 Pb,10 Sn | Q12: 556 | R12: 0.0950561261 | S12: 79.89982803 | T12: 0.1089085264 | U12: 1832 | V12: 2049.998 | W12: 168.300086 | X12: 248.199914 | Y12: 272 | Z12: FALSE
B13: Heat Required | C13: Btu/hr | D13: =D9*D8*(D11-D10)*D12 -> 0 | E13: =E9*E8*(E11-E10)*E12 -> 0 | M13: 9 | N13: Bronze, aluminum | O13: Solid | P13: 90 Cu,10 Al | Q13: 510 | R13: 0.1261046095 | S13: 98.60017197 | T13: 0.1249104371 | U13: 1922 | V13: 2199.992 | W13: 235 | X13: 333.600172 | Y13: 368 | Z13: FALSE
M14: 10 | N14: Bronze, bell metal | O14: Solid | P14: 78 Cu,22 Sn | Q14: 540 | R14: 0.1000716503 | S14: 76.30008598 | T14: 0.1189395749 | U14: 1634 | V14: 1900.004 | W14: 157.399828 | X14: 233.699914 | Y14: 265.399828 | Z14: FALSE
D15: Current | E15: Modified | M15: 11 | N15: Bronze, gun metal | O15: Solid | P15: 90 Cu,1oSn | Q15: 550 | R15: 0.1069978505 | S15: 84.19991402 | T15: 0.1060425125 | U15: 1850 | V15: 2100.002 | W15: 191.5 | X15: 275.699914 | Y15: 302 | Z15: FALSE
B16: Material | D16: Stainless Steel - 410 | E16: Stainless Steel - 410 | M16: 12 | N16: Bronze, tobin | O16: Solid | P16: 60 Cu,39.2 Zn,0.8 Sn | Q16: 525 | R16: 0.1069978505 | S16: 73.5 | T16: 0.1239550991 | U16: 1625 | V16: 1850 | W16: 167.5 | X16: 241 | Y16: 268.899828 | Z16: FALSE
K17: Enter Matl Name | M17: 13 | N17: Carbon Steel | O17: Solid | P17: 1000 series | Q17: 138 | R17: 0.16 | S17: 60 | T17: 0.1749701457 | U17: 2800.004 | V17: -0.004 | W17: 0 | X17: 0 | Y17: 0 | Z17: FALSE
B18: Specific heat | C18: Btu/(lb-F) | D18: =IF(D16="Other",K18,VLOOKUP($D16,$N$5:$Z$45,5,)) -> 0.12 | E18: =IF(E16="Other",K20,VLOOKUP($E16,$N$5:$Z$45,5,)) -> 0.12 | K18: 0.248 | M18: 14 | N18: Copper | O18: Solid | P18: Cu | Q18: 559 | R18: 0.1038930021 | S18: 91 | T18: 0.1110580368 | U18: 1981.994 | V18: 2199.992 | W18: 200 | X18: 291 | Y18: 315 | Z18: FALSE
B19: Fixture Weight feed rate | C19: lb/hr | K19: Enter Matl Name | M19: 15 | N19: Die casting metal | O19: Solid | P19: 92 Al,8 Cu | Q19: 176 | R19: 0.2359684738 | S19: 163 | T19: 0.2409839981 | U19: 1149.998 | V19: 1400 | W19: 257.300086 | X19: 420.300086 | Y19: 481 | Z19: FALSE
B20: Initial Temperature | C20: deg. F. | K20: 0 | M20: 16 | N20: Die casting metal | O20: Solid | P20: 80 Pb,10 Sn,10 Sb | Q20: 176 | R20: 0.03797468354 | S20: 17.5 | T20: 0.03701934559 | U20: 600.008 | V20: 820.004 | W20: 20.5 | X20: 38 | Y20: 146 | Z20: FALSE
B21: Final Temperature | C21: deg. F. | J21: =IF($C$2>1,1,0) -> 1 | K21: Control | M21: 17 | N21: Die casting metal | O21: Solid | P21: 90 Sn,4.5 Cu,5,5 Sb | Q21: 176 | R21: 0.0699785049 | S21: 30.19991402 | T21: 0.0620969668 | U21: 449.996 | V21: 649.994 | W21: 27.60017197 | X21: 57.80008598 | Y21: 70 | Z21: FALSE
B22: Correction factor | D22: 1 | E22: 1 | M22: 18 | N22: Die casting metal | O22: Solid | P22: 87.3 Zn,8.1Sn,4.1Cu,0.5A | Q22: 176 | R22: 0.1029376642 | S22: 48 | T22: 0.1380463339 | U22: 780.008 | V22: 980.006 | W22: 74 | X22: 122 | Y22: 150 | Z22: FALSE
B23: Heat Required | C23: Btu/hr | D23: =D19*D18*(D21-D20)*D22 -> 0 | E23: =E19*E18*(E21-E20)*E22 -> 0 | M23: 19 | N23: German silver | O23: Solid | P23: 60 Cu,25 Zn,1 5 Ni | Q23: 540 | R23: 0.1089085264 | S23: 86.19991402 | T23: 0.1229997612 | U23: 1850 | V23: 2100.002 | W23: 194 | X23: 280.199914 | Y23: 311 | Z23: FALSE
M24: 20 | N24: Gold | O24: Solid | P24: Au | Q24: 1205 | R24: 0.0329591593 | S24: 28.5 | T24: 0.03391449725 | U24: 1945.004 | V24: 2150.006 | W24: 62.19991402 | X24: 90.69991402 | Y24: 97.69991402 | Z24: FALSE
D25: Current | E25: Modified | M25: 21 | N25: Inconel - 600 | O25: Solid | P25: Inconel | Q25: 480 | R25: 0.1399570098 | S25: 0 | T25: 0 | U25: 2499.998 | V25: -0.004 | W25: 0 | X25: 0 | Y25: 0 | Z25: FALSE
B26: Material | D26: Babbitt, tin base | E26: Babbitt, tin base | M26: 22 | N26: Iron, cast, gray | O26: Solid | P26: 94 Fe,3.5 C,2.5 Si | Q26: 480 | R26: 0.1901122522 | S26: 41.39982803 | T26: 0 | U26: 2246 | V26: 2800.004 | W26: 415 | X26: 456 | Y26: 583 | Z26: FALSE
K27: Enter Matl Name | M27: 23 | N27: Iron, cast, white | O27: Solid | P27: 97 Fe,3 C | Q27: 480 | R27: 0.1800812037 | S27: 60.30008598 | T27: 0 | U27: 2102 | V27: 2899.994 | W27: 368 | X27: 428 | Y27: 612 | Z27: FALSE
B28: Specific heat | C28: Btu/(lb-F) | D28: =IF(D26="Other",K28,VLOOKUP($D26,$N$5:$Z$45,5,)) -> 0.07093384285 | E28: =IF(E26="Other",K30,VLOOKUP($E26,$N$5:$Z$45,5,)) -> 0.07093384285 | K28: 0 | M28: 24 | N28: Iron, pig | O28: Solid | P28: 93 Fe,4.22 C,1.48 Si,0.73 Mn,0.12P ,0.03 S | Q28: 480 | R28: 0.1530929066 | S28: 83.60017197 | T28: 0 | U28: 2012 | V28: 2300 | W28: 299 | X28: 384 | Y28: 450 | Z28: FALSE
B29: Fixture Weight feed rate | C29: lb/hr | D29: 0 | E29: 0 | K29: Enter Matl Name | M29: 25 | N29: Iron, pure | O29: Solid | P29: Fe | Q29: 491 | R29: 0.1679006449 | S29: 117 | T29: 0.1499880583 | U29: 2802.002 | V29: 3099.992 | W29: 451 | X29: 568 | Y29: 626 | Z29: FALSE
B30: Initial Temperature | C30: deg. F. | K30: 0 | M30: 26 | N30: Lead | O30: Solid | P30: Pb | Q30: 708 | R30: 0.03200382135 | S30: 10 | T30: 0.03391449725 | U30: 620.996 | V30: 719.996 | W30: 18 | X30: 28 | Y30: 31 | Z30: FALSE
B31: Final Temperature | C31: deg. F. | J31: =IF($C$2>2,1,0) -> 1 | K31: Control | M31: 27 | N31: Linotype | O31: Solid | P31: 86 pb,11 sb,3sn | Q31: 700 | R31: 0.03606400764 | S31: 21.5 | T31: 0.03606400764 | U31: 485.996 | V31: 620.006 | W31: 15.30008598 | X31: 36.80008598 | Y31: 41.60017197 | Z31: FALSE
B32: Correction factor | D32: 1 | E32: 1 | M32: 28 | N32: Magnesium | O32: Solid | P32: Mg | Q32: 108.5998752 | R32: 0.2720324815 | S32: 83.69991402 | T32: 0.2660616193 | U32: 1203.998 | V32: 1380.002 | W32: 311.199914 | X32: 394.899828 | Y32: 441.699914 | Z32: FALSE
B33: Heat Required | C33: Btu/hr | D33: =D29*D28*(D31-D30)*D32 -> 0 | E33: =E29*E28*(E31-E30)*E32 -> 0 | M33: 29 | N33: Manganese | O33: Solid | P33: Mn | Q33: 464 | R33: 0.1710054932 | S33: 66 | T33: 0.1920229281 | U33: 2246 | V33: 2400.008 | W33: 374 | X33: 440 | Y33: 469 | Z33: FALSE
M34: 30 | N34: Monel metal | O34: Solid | P34: 67 Ni,28 Cu; Fe, Mn, Si | Q34: 550 | R34: 0.1289706234 | S34: 117.399828 | T34: 0.1390016718 | U34: 2415.002 | V34: 2750 | W34: 304 | X34: 421.399828 | Y34: 468 | Z34: FALSE
D35: Current | E35: Modified | M35: 31 | N35: Nickel 60 to 2644 F | O35: Solid | P35: Ni | Q35: 556 | R35: 0.1339861476 | S35: 131.5 | T35: 0.1330308096 | U35: 2643.998 | V35: 2850.008 | W35: 346 | X35: 477.5 | Y35: 505 | Z35: FALSE
B36: Material | D36: Aluminum | E36: Aluminum | M36: 32 | N36: Silver | O36: Solid | P36: Ag | Q36: 655 | R36: 0.06305230475 | S36: 46.80008598 | T36: 0.0699785049 | U36: 1761.998 | V36: 1950.008 | W36: 107 | X36: 153.800086 | Y36: 167 | Z36: FALSE
K37: Alloy | M37: 33 | N37: solder, bismuth | O37: Solid | P37: 40 pb,20 Sn,40 Bi | Q37: 580 | R37: 0.03988535945 | S37: 16.39982803 | T37: 0.0389300215 | U37: 231.998 | V37: 330.008 | W37: 9.300085985 | X37: 25.69991402 | Y37: 29.5 | Z37: FALSE
B38: Specific heat | C38: Btu/(lb-F) | D38: =IF(D36="Other",K38,VLOOKUP($D36,$N$5:$Z$45,5,)) -> 0.2479101982 | E38: =IF(E36="Other",K40,VLOOKUP($E36,$N$5:$Z$45,5,)) -> 0.2479101982 | K38: 0.15 | M38: 34 | N38: Solder, plumbers | O38: Solid | P38: 50 pb,50 Sn | Q38: 580 | R38: 0.05111058037 | S38: 23 | T38: 0.04896106998 | U38: 413.996 | V38: 500 | W38: 18 | X38: 41 | Y38: 45 | Z38: FALSE
B39: Fixture Weight feed rate | C39: lb/hr | D39: 0 | E39: 0 | K39: Alloy | M39: 35 | N39: Stainless Steel - 300 series | O39: Solid | P39: 310 and 304 | Q39: 480 | R39: 0.1399570098 | S39: 0 | T39: 0 | U39: 2550.002 | V39: -0.004 | W39: 0 | X39: 0 | Y39: 0 | Z39: FALSE
B40: Initial Temperature | C40: deg. F. | K40: 0.15 | M40: 36 | N40: Stainless Steel - 410 | O40: Solid | P40: 410 SS | Q40: 480 | R40: 0.12 | S40: 48 | T40: 0 | U40: 2800.004 | V40: 2800.004 | W40: 750 | X40: 126 | Y40: 142 | Z40: FALSE
B41: Final Temperature | C41: deg. F. | J41: =IF($C$2>3,1,0) -> 1 | K41: Control | M41: 37 | N41: Tin | O41: Solid | P41: Sn | Q41: 455 | R41: 0.06902316695 | S41: 25 | T41: 0.06376880822 | U41: 449.996 | V41: 649.994 | W41: 27 | X41: 52 | Y41: 64 | Z41: FALSE
B42: Correction factor | D42: 1 | E42: 1 | M42: 38 | N42: Zinc | O42: Solid | P42: Zn | Q42: 445 | R42: 0.1069978505 | S42: 48 | T42: 0.145927872 | U42: 786.002 | V42: 899.996 | W42: 77.80008598 | X42: 125.800086 | Y42: 142 | Z42: FALSE
B43: Heat Required | C43: Btu/hr | D43: =D39*D38*(D41-D40)*D42 -> 0 | E43: =E39*E38*(E41-E40)*E42 -> 0 | M43: 39 | N43: Refractory | O43: Solid | Q43: 150 | R43: 0.2500597086 | S43: 0 | T43: 0 | U43: 5000 | V43: -0.004 | W43: 0 | X43: 0 | Y43: 0 | Z43: FALSE
M44: 40 | N44: Ladle Refractory | O44: Solid | Q44: 150 | R44: 0.2500597086 | S44: 0 | T44: 0 | U44: 5000 | V44: -0.004 | W44: 0 | X44: 0 | Y44: 0 | Z44: FALSE
D45: Current | E45: Modified | N45: Other
B46: Material | D46: Aluminum | E46: Aluminum
K47: Enter Matl Name
B48: Specific heat | C48: Btu/(lb-F) | D48: =IF(D46="Other",K48,VLOOKUP($D46,$N$5:$Z$45,5,)) -> 0.2479101982 | E48: =IF(E46="Other",K50,VLOOKUP($E46,$N$5:$Z$45,5,)) -> 0.2479101982 | K48: 0
B49: Fixture Weight feed rate | C49: lb/hr | D49: 0 | E49: 0 | K49: Enter Matl Name
B50: Initial Temperature | C50: deg. F. | K50: 0
B51: Final Temperature | C51: deg. F. | J51: =IF($C$2>4,1,0) -> 1 | K51: Control
B52: Correction factor | D52: 1 | E52: 1
B53: Heat Required | C53: Btu/hr | D53: =D49*D48*(D51-D50)*D52 -> 0 | E53: =E49*E48*(E51-E50)*E52 -> 0
D55: Current | E55: Modified
B56: Material | D56: Tin | E56: Tin
K57: Enter Matl Name
B58: Specific heat | C58: Btu/(lb-F) | D58: =IF(D56="Other",K58,VLOOKUP($D56,$N$5:$Z$45,5,)) -> 0.06902316695 | E58: =IF(E56="Other",K60,VLOOKUP($E56,$N$5:$Z$45,5,)) -> 0.06902316695 | K58: 0
B59: Fixture Weight feed rate | C59: lb/hr | D59: 0 | E59: 0 | K59: Enter Matl Name
B60: Initial Temperature | C60: deg. F. | K60: 0
B61: Final Temperature | C61: deg. F. | J61: =IF($C$2>5,1,0) -> 1 | K61: Control
B62: Correction factor | D62: 1 | E62: 1
B63: Heat Required | C63: Btu/hr | D63: =D59*D58*(D61-D60)*D62 -> 0 | E63: =E59*E58*(E61-E60)*E62 -> 0
B65: Total Fixture Losses | C65: Btu/hr | D65: =(D13*$J11)+(D23*$J21)+(D33*$J31)+(D43*$J41)+(D53*$J51)+(D63*$J61) -> 0 | E65: =(E13*$J11)+(E23*$J21)+(E33*$J31)+(E43*$J41)+(E53*$J51)+(E63*$J61) -> 0
B67: NOTES:
B68: Enter notes here on proposed changes for the "Modified" conditions.
I69: =IF(B69="",0,1) -> 0
I70: =IF(B70="",0,1) -> 0
I71: =IF(B71="",0,1) -> 0
I72: =IF(B72="",0,1) -> 0
I73: =IF(B73="",0,1) -> 0
I74: =SUM(I69:I73) -> 0
F80: `

Sheet Wall losses
B2: ='Control page'!C15 -> Wall surface heat losses
G3: Table - Surface shape/orientation factor
B4: Losses from the furnace wall surfaces | I4: Print Sheet
B5: Number of wall surfaces | C5: ='Control page'!D15 -> 10 | D5: (from control sheet) | I5: Copy Current to Modified
I6: Done Entering Data
B7: Surface name or designation | C7: Top roof | G7: Values of C | H7: Surface description | L7: Calculations
D8: Current | E8: Modified | G8: 1.016 | H8: Horizontal cylinders
B9: Average surface temperature (measured) | C9: deg. F. | G9: 1.235 | H9: Longer vertical cylinders | L9: =D9 -> 0 | M9: 0 | N9: Deg. F
B10: Ambient Temperature | C10: deg. F. | G10: 1.394 | H10: Vertical plates | L10: 0 | M10: 0 | N10: Deg. F
B11: Wind velocity | C11: miles/hr. | G11: 1.79 | H11: Horizontal plate facing up, warmer than air | L11: 0 | M11: 0 | N11: mph
B12: Surface shape/orientation (select using dropdown menu) | D12: Vertical plates | E12: Vertical plates | G12: 0.89 | H12: Horizontal plate facing down, warmer than air
B13: Surface shape/orientation factor | D13: =INDEX($G$8:$G$14,MATCH(D12,$H$8:$H$14,0)) -> 1.394 | E13: =INDEX($G$8:$G$14,MATCH(E12,$H$8:$H$14,0)) -> 1.394 | G13: 0.89 | H13: Horizontal plate facing up, cooler than air | L13: 1.394 | M13: 1.394
B14: Surface emissivity (Typical - 0.9) | F14: =IF(OR(D14>1,E14>1),"Surface emmissivity cannot be greater than 1","") ->  | G14: 1.79 | H14: Horizontal plate facing down, cooler than air | L14: =IF(L9>L10,((L13*(1/24)^0.2*(1/((L10+L9)/2)^0.181*(L9-L10)^0.266*(1+1.277*L11)^0.5)*(L9-L10)) + 0.1713*10^-8*D14*(((L9+460)^4-(L10+460)^4))),0) -> 0 | M14: =IF(M9>M10,((M13*(1/24)^0.2*(1/((M10+M9)/2)^0.181*(M9-M10)^0.266*(1+1.277*M11)^0.5)*(M9-M10)) + 0.1713*10^-8*E14*(((M9+460)^4-(M10+460)^4))),0) -> 0 | N14: Btu/hr-ft^2
B15: Total outside surface area | C15: ft^2 | L15: =L14*D15*D16 -> 0 | M15: =M14*E15*E16 -> 0 | N15: Btu/hr
B16: Correction factor (based on local conditions) | D16: 1 | E16: 1 | F16: =IF(OR(D9<=D10,E9<=E10),"Surface temperature lower than ambient temperature"," ") -> Surface temperature lower than ambient temperature | L16: =L15 -> 0 | M16: =M15 -> 0 | N16: Btu/hr
B17: Heat loss | C17: Btu/hr | D17: =L16 -> 0 | E17: =M16 -> 0
B19: Surface name or designation | C19: Sides - North
D20: Current | E20: Modified
B21: Average surface temperature (measured) | C21: deg. F. | L21: =D21 -> 0 | M21: 0 | N21: Deg. F
B22: Ambient Temperature | C22: deg. F. | L22: 0 | M22: 0 | N22: Deg. F
B23: Wind velocity | C23: miles/hr. | L23: 0 | M23: 0 | N23: mph
B24: Surface shape/orientation (select using dropdown menu) | D24: Horizontal plate facing down, warmer than air | E24: Horizontal plate facing down, warmer than air
B25: Surface shape/orientation factor | D25: =INDEX($G$8:$G$14,MATCH(D24,$H$8:$H$14,0)) -> 0.89 | E25: =INDEX($G$8:$G$14,MATCH(E24,$H$8:$H$14,0)) -> 0.89 | L25: 0.89 | M25: 0.89
B26: Surface emissivity (Typical - 0.9) | F26: =IF(OR(D26>1,E26>1),"Surface emmissivity cannot be greater than 1","") ->  | L26: =IF(L21>L22,((L25*(1/24)^0.2*(1/((L22+L21)/2)^0.181*(L21-L22)^0.266*(1+1.277*L23)^0.5)*(L21-L22)) + 0.1713*10^-8*D26*(((L21+460)^4-(L22+460)^4))),0) -> 0 | M26: =IF(M21>M22,((M25*(1/24)^0.2*(1/((M22+M21)/2)^0.181*(M21-M22)^0.266*(1+1.277*M23)^0.5)*(M21-M22)) + 0.1713*10^-8*E26*(((M21+460)^4-(M22+460)^4))),0) -> 0 | N26: Btu/hr-ft^2
B27: Total outside surface area | C27: ft^2 | D27: 0 | E27: 0 | L27: =L26*D27*D28 -> 0 | M27: =M26*E27*E28 -> 0 | N27: Btu/hr
B28: Correction factor (based on local conditions) | D28: 1 | E28: 1 | F28: =IF(OR(D21<=D22,E21<=E22),"Surface temperature lower than ambient temperature"," ") -> Surface temperature lower than ambient temperature | L28: =L27 -> 0 | M28: =M27 -> 0 | N28: Btu/hr | O28: =IF($C$5>1,1,0) -> 1 | P28: Control
B29: Heat loss | C29: Btu/hr | D29: =L28 -> 0 | E29: =M28 -> 0
B31: Surface name or designation | C31: Sides - South
D32: Current | E32: Modified
B33: Average surface temperature (measured) | C33: deg. F. | L33: =D33 -> 0 | M33: 0 | N33: Deg. F
B34: Ambient Temperature | C34: deg. F. | L34: 0 | M34: 0 | N34: Deg. F
B35: Wind velocity | C35: miles/hr. | L35: 0 | M35: 0 | N35: mph
B36: Surface shape/orientation (select using dropdown menu) | D36: Longer vertical cylinders | E36: Longer vertical cylinders
B37: Surface shape/orientation factor | D37: =INDEX($G$8:$G$14,MATCH(D36,$H$8:$H$14,0)) -> 1.235 | E37: =INDEX($G$8:$G$14,MATCH(E36,$H$8:$H$14,0)) -> 1.235 | L37: 1.235 | M37: 1.235
B38: Surface emissivity (Typical - 0.9) | F38: =IF(OR(D38>1,E38>1),"Surface emmissivity cannot be greater than 1","") ->  | L38: =IF(L33>L34,((L37*(1/24)^0.2*(1/((L34+L33)/2)^0.181*(L33-L34)^0.266*(1+1.277*L35)^0.5)*(L33-L34)) + 0.1713*10^-8*D38*(((L33+460)^4-(L34+460)^4))),0) -> 0 | M38: =IF(M33>M34,((M37*(1/24)^0.2*(1/((M34+M33)/2)^0.181*(M33-M34)^0.266*(1+1.277*M35)^0.5)*(M33-M34)) + 0.1713*10^-8*E38*(((M33+460)^4-(M34+460)^4))),0) -> 0 | N38: Btu/hr-ft^2
B39: Total outside surface area | C39: ft^2 | D39: 0 | E39: 0 | L39: =L38*D39*D40 -> 0 | M39: =M38*E39*E40 -> 0 | N39: Btu/hr
B40: Correction factor (based on local conditions) | D40: 1 | E40: 1 | F40: =IF(OR(D33<=D34,E33<=E34),"Surface temperature lower than ambient temperature"," ") -> Surface temperature lower than ambient temperature | L40: =L39 -> 0 | M40: =M39 -> 0 | N40: Btu/hr | O40: =IF($C$5>2,1,0) -> 1 | P40: Control
B41: Heat loss | C41: Btu/hr | D41: =L40 -> 0 | E41: =M40 -> 0
B43: Surface name or designation | C43: Ends
D44: Current | E44: Modified
B45: Average surface temperature (measured) | C45: deg. F. | L45: =D45 -> 0 | M45: 0 | N45: Deg. F
B46: Ambient Temperature | C46: deg. F. | L46: 0 | M46: 0 | N46: Deg. F
B47: Wind velocity | C47: miles/hr. | L47: 0 | M47: 0 | N47: mph
B48: Surface shape/orientation (select using dropdown menu) | D48: Horizontal plate facing up, cooler than air | E48: Horizontal plate facing up, cooler than air
B49: Surface shape/orientation factor | D49: =INDEX($G$8:$G$14,MATCH(D48,$H$8:$H$14,0)) -> 0.89 | E49: =INDEX($G$8:$G$14,MATCH(E48,$H$8:$H$14,0)) -> 0.89 | L49: 0.89 | M49: 0.89
B50: Surface emissivity (Typical - 0.9) | F50: =IF(OR(D50>1,E50>1),"Surface emmissivity cannot be greater than 1","") ->  | L50: =IF(L45>L46,((L49*(1/24)^0.2*(1/((L46+L45)/2)^0.181*(L45-L46)^0.266*(1+1.277*L47)^0.5)*(L45-L46)) + 0.1713*10^-8*D50*(((L45+460)^4-(L46+460)^4))),0) -> 0 | M50: =IF(M45>M46,((M49*(1/24)^0.2*(1/((M46+M45)/2)^0.181*(M45-M46)^0.266*(1+1.277*M47)^0.5)*(M45-M46)) + 0.1713*10^-8*E50*(((M45+460)^4-(M46+460)^4))),0) -> 0 | N50: Btu/hr-ft^2
B51: Total outside surface area | C51: ft^2 | D51: 0 | E51: 0 | L51: =L50*D51*D52 -> 0 | M51: =M50*E51*E52 -> 0 | N51: Btu/hr
B52: Correction factor (based on local conditions) | D52: 1 | E52: 1 | F52: =IF(OR(D53<=0,E53<=0),"Surface temperature lower than ambient temperature"," ") -> Surface temperature lower than ambient temperature | L52: =L51 -> 0 | M52: =M51 -> 0 | N52: Btu/hr | O52: =IF($C$5>3,1,0) -> 1 | P52: Control
B53: Heat loss | C53: Btu/hr | D53: =L52 -> 0 | E53: =M52 -> 0
B55: Surface name or designation
D56: Current | E56: Modified
B57: Average surface temperature (measured) | C57: deg. F. | L57: =D57 -> 0 | M57: 0 | N57: Deg. F
B58: Ambient Temperature | C58: deg. F. | L58: 0 | M58: 0 | N58: Deg. F
B59: Wind velocity | C59: miles/hr. | L59: 0 | M59: 0 | N59: mph
B60: Surface shape/orientation (select using dropdown menu) | D60: Horizontal plate facing down, cooler than air | E60: Horizontal plate facing down, cooler than air
B61: Surface shape/orientation factor | D61: =INDEX($G$8:$G$14,MATCH(D60,$H$8:$H$14,0)) -> 1.79 | E61: =INDEX($G$8:$G$14,MATCH(E60,$H$8:$H$14,0)) -> 1.79 | L61: 1.79 | M61: 1.79
B62: Surface emissivity (Typical - 0.9) | F62: =IF(OR(D62>1,E62>1),"Surface emmissivity cannot be greater than 1","") ->  | L62: =IF(L57>L58,((L61*(1/24)^0.2*(1/((L58+L57)/2)^0.181*(L57-L58)^0.266*(1+1.277*L59)^0.5)*(L57-L58)) + 0.1713*10^-8*D62*(((L57+460)^4-(L58+460)^4))),0) -> 0 | M62: =IF(M57>M58,((M61*(1/24)^0.2*(1/((M58+M57)/2)^0.181*(M57-M58)^0.266*(1+1.277*M59)^0.5)*(M57-M58)) + 0.1713*10^-8*E62*(((M57+460)^4-(M58+460)^4))),0) -> 0 | N62: Btu/hr-ft^2
B63: Total outside surface area | C63: ft^2 | D63: 0 | E63: 0 | L63: =L62*D63*D64 -> 0 | M63: =M62*E63*E64 -> 0 | N63: Btu/hr
B64: Correction factor (based on local conditions) | D64: 1 | E64: 1 | F64: =IF(OR(D57<=D58,E57<=E58),"Surface temperature lower than ambient temperature"," ") -> Surface temperature lower than ambient temperature | L64: =L63 -> 0 | M64: =M63 -> 0 | N64: Btu/hr | O64: =IF($C$5>4,1,0) -> 1 | P64: Control
B65: Heat loss | C65: Btu/hr | D65: =L64 -> 0 | E65: =M64 -> 0
B67: Surface name or designation
D68: Current | E68: Modified
B69: Average surface temperature (measured) | C69: deg. F. | L69: =D69 -> 0 | M69: 0 | N69: Deg. F
B70: Ambient Temperature | C70: deg. F. | L70: 0 | M70: 0 | N70: Deg. F
B71: Wind velocity | C71: miles/hr. | L71: 0 | M71: 0 | N71: mph
B72: Surface shape/orientation (select using dropdown menu) | D72: Horizontal cylinders | E72: Horizontal cylinders
B73: Surface shape/orientation factor | D73: =INDEX($G$8:$G$14,MATCH(D72,$H$8:$H$14,0)) -> 1.016 | E73: =INDEX($G$8:$G$14,MATCH(E72,$H$8:$H$14,0)) -> 1.016 | L73: 1.016 | M73: 1.016
B74: Surface emissivity (Typical - 0.9) | F74: =IF(OR(D74>1,E74>1),"Surface emmissivity cannot be greater than 1","") ->  | L74: =IF(L69>L70,((L73*(1/24)^0.2*(1/((L70+L69)/2)^0.181*(L69-L70)^0.266*(1+1.277*L71)^0.5)*(L69-L70)) + 0.1713*10^-8*D74*(((L69+460)^4-(L70+460)^4))),0) -> 0 | M74: =IF(M69>M70,((M73*(1/24)^0.2*(1/((M70+M69)/2)^0.181*(M69-M70)^0.266*(1+1.277*M71)^0.5)*(M69-M70)) + 0.1713*10^-8*E74*(((M69+460)^4-(M70+460)^4))),0) -> 0 | N74: Btu/hr-ft^2
B75: Total outside surface area | C75: ft^2 | D75: 0 | E75: 0 | L75: =L74*D75*D76 -> 0 | M75: =M74*E75*E76 -> 0 | N75: Btu/hr
B76: Correction factor (based on local conditions) | D76: 1 | E76: 1 | F76: =IF(OR(D69<=D70,E69<=E70),"Surface temperature lower than ambient temperature"," ") -> Surface temperature lower than ambient temperature | L76: =L75 -> 0 | M76: =M75 -> 0 | N76: Btu/hr | O76: =IF($C$5>5,1,0) -> 1 | P76: Control
B77: Heat loss | C77: Btu/hr | D77: =L76 -> 0 | E77: =M76 -> 0
B79: Surface name or designation
D80: Current | E80: Modified
B81: Average surface temperature (measured) | C81: deg. F. | L81: =D81 -> 0 | M81: 0 | N81: Deg. F
B82: Ambient Temperature | C82: deg. F. | L82: 0 | M82: 0 | N82: Deg. F
B83: Wind velocity | C83: miles/hr. | L83: 0 | M83: 0 | N83: mph
B84: Surface shape/orientation (select using dropdown menu) | D84: Longer vertical cylinders | E84: Longer vertical cylinders
B85: Surface shape/orientation factor | D85: =INDEX($G$8:$G$14,MATCH(D84,$H$8:$H$14,0)) -> 1.235 | E85: =INDEX($G$8:$G$14,MATCH(E84,$H$8:$H$14,0)) -> 1.235 | L85: 1.235 | M85: 1.235
B86: Surface emissivity (Typical - 0.9) | F86: =IF(OR(D86>1,E86>1),"Surface emmissivity cannot be greater than 1","") ->  | L86: =IF(L81>L82,((L85*(1/24)^0.2*(1/((L82+L81)/2)^0.181*(L81-L82)^0.266*(1+1.277*L83)^0.5)*(L81-L82)) + 0.1713*10^-8*D86*(((L81+460)^4-(L82+460)^4))),0) -> 0 | M86: =IF(M81>M82,((M85*(1/24)^0.2*(1/((M82+M81)/2)^0.181*(M81-M82)^0.266*(1+1.277*M83)^0.5)*(M81-M82)) + 0.1713*10^-8*E86*(((M81+460)^4-(M82+460)^4))),0) -> 0 | N86: Btu/hr-ft^2
B87: Total outside surface area | C87: ft^2 | D87: 0 | E87: 0 | L87: =L86*D87*D88 -> 0 | M87: =M86*E87*E88 -> 0 | N87: Btu/hr
B88: Correction factor (based on local conditions) | D88: 1 | E88: 1 | F88: =IF(OR(D81<=D82,E81<=E82),"Surface temperature lower than ambient temperature"," ") -> Surface temperature lower than ambient temperature | L88: =L87 -> 0 | M88: =M87 -> 0 | N88: Btu/hr | O88: =IF($C$5>6,1,0) -> 1 | P88: Control
B89: Heat loss | C89: Btu/hr | D89: =L88 -> 0 | E89: =M88 -> 0
D90: 1 | E90: 1
B91: Surface name or designation
D92: Current | E92: Modified
B93: Average surface temperature (measured) | C93: deg. F. | L93: =D93 -> 0 | M93: 0 | N93: Deg. F
B94: Ambient Temperature | C94: deg. F. | L94: 0 | M94: 0 | N94: Deg. F
B95: Wind velocity | C95: miles/hr. | L95: 0 | M95: 0 | N95: mph
B96: Surface shape/orientation (select using dropdown menu) | D96: Horizontal plate facing up, cooler than air | E96: Horizontal plate facing up, cooler than air
B97: Surface shape/orientation factor | D97: =INDEX($G$8:$G$14,MATCH(D96,$H$8:$H$14,0)) -> 0.89 | E97: =INDEX($G$8:$G$14,MATCH(E96,$H$8:$H$14,0)) -> 0.89 | L97: 0.89 | M97: 0.89
B98: Surface emissivity (Typical - 0.9) | F98: =IF(OR(D98>1,E98>1),"Surface emmissivity cannot be greater than 1","") ->  | L98: =IF(L93>L94,((L97*(1/24)^0.2*(1/((L94+L93)/2)^0.181*(L93-L94)^0.266*(1+1.277*L95)^0.5)*(L93-L94)) + 0.1713*10^-8*D98*(((L93+460)^4-(L94+460)^4))),0) -> 0 | M98: =IF(M93>M94,((M97*(1/24)^0.2*(1/((M94+M93)/2)^0.181*(M93-M94)^0.266*(1+1.277*M95)^0.5)*(M93-M94)) + 0.1713*10^-8*E98*(((M93+460)^4-(M94+460)^4))),0) -> 0 | N98: Btu/hr-ft^2
B99: Total outside surface area | C99: ft^2 | D99: 0 | E99: 0 | L99: =L98*D99*D100 -> 0 | M99: =M98*E99*E100 -> 0 | N99: Btu/hr
B100: Correction factor (based on local conditions) | D100: 1 | E100: 1 | F100: =IF(OR(D93<=D94,E93<=E94),"Surface temperature lower than ambient temperature"," ") -> Surface temperature lower than ambient temperature | L100: =L99 -> 0 | M100: =M99 -> 0 | N100: Btu/hr | O100: =IF($C$5>7,1,0) -> 1 | P100: Control
B101: Heat loss | C101: Btu/hr | D101: =L100 -> 0 | E101: =M100 -> 0
B103: Surface name or designation
D104: Current | E104: Modified
B105: Average surface temperature (measured) | C105: deg. F. | L105: =D105 -> 0 | M105: 0 | N105: Deg. F
B106: Ambient Temperature | C106: deg. F. | L106: 0 | M106: 0 | N106: Deg. F
B107: Wind velocity | C107: miles/hr. | L107: 0 | M107: 0 | N107: mph
B108: Surface shape/orientation (select using dropdown menu) | D108: Horizontal plate facing up, cooler than air | E108: Horizontal plate facing up, cooler than air
B109: Surface shape/orientation factor | D109: =INDEX($G$8:$G$14,MATCH(D108,$H$8:$H$14,0)) -> 0.89 | E109: =INDEX($G$8:$G$14,MATCH(E108,$H$8:$H$14,0)) -> 0.89 | L109: 0.89 | M109: 0.89
B110: Surface emissivity (Typical - 0.9) | F110: =IF(OR(D110>1,E110>1),"Surface emmissivity cannot be greater than 1","") ->  | L110: =IF(L105>L106,((L109*(1/24)^0.2*(1/((L106+L105)/2)^0.181*(L105-L106)^0.266*(1+1.277*L107)^0.5)*(L105-L106)) + 0.1713*10^-8*D110*(((L105+460)^4-(L106+460)^4))),0) -> 0 | M110: =IF(M105>M106,((M109*(1/24)^0.2*(1/((M106+M105)/2)^0.181*(M105-M106)^0.266*(1+1.277*M107)^0.5)*(M105-M106)) + 0.1713*10^-8*E110*(((M105+460)^4-(M106+460)^4))),0) -> 0 | N110: Btu/hr-ft^2
B111: Total outside surface area | C111: ft^2 | D111: 0 | E111: 0 | L111: =L110*D111*D112 -> 0 | M111: =M110*E111*E112 -> 0 | N111: Btu/hr
B112: Correction factor (based on local conditions) | D112: 1 | E112: 1 | F112: =IF(OR(D105<=D106,E105<=E106),"Surface temperature lower than ambient temperature"," ") -> Surface temperature lower than ambient temperature | L112: =L111 -> 0 | M112: =M111 -> 0 | N112: Btu/hr | O112: =IF($C$5>8,1,0) -> 1 | P112: Control
B113: Heat loss | C113: Btu/hr | D113: =L112 -> 0 | E113: =M112 -> 0
B115: Surface name or designation
B116: Data - User input | D116: Current | E116: Modified
B117: Average surface temperature (measured) | C117: deg. F. | L117: =D117 -> 0 | M117: 0 | N117: Deg. F
B118: Ambient Temperature | C118: deg. F. | L118: 0 | M118: 0 | N118: Deg. F
B119: Wind velocity | C119: miles/hr. | L119: 0 | M119: 0 | N119: mph
B120: Surface shape/orientation (select using dropdown menu) | D120: Horizontal plate facing down, cooler than air | E120: Horizontal plate facing down, cooler than air
B121: Surface shape/orientation factor | D121: =INDEX($G$8:$G$14,MATCH(D120,$H$8:$H$14,0)) -> 1.79 | E121: =INDEX($G$8:$G$14,MATCH(E120,$H$8:$H$14,0)) -> 1.79 | L121: 1.79 | M121: 1.79
B122: Surface emissivity (Typical - 0.9) | F122: =IF(OR(D122>1,E122>1),"Surface emmissivity cannot be greater than 1","") ->  | L122: =IF(L117>L118,((L121*(1/24)^0.2*(1/((L118+L117)/2)^0.181*(L117-L118)^0.266*(1+1.277*L119)^0.5)*(L117-L118)) + 0.1713*10^-8*D122*(((L117+460)^4-(L118+460)^4))),0) -> 0 | M122: =IF(M117>M118,((M121*(1/24)^0.2*(1/((M118+M117)/2)^0.181*(M117-M118)^0.266*(1+1.277*M119)^0.5)*(M117-M118)) + 0.1713*10^-8*E122*(((M117+460)^4-(M118+460)^4))),0) -> 0 | N122: Btu/hr-ft^2
B123: Total outside surface area | C123: ft^2 | D123: 0 | E123: 0 | L123: =L122*D123*D124 -> 0 | M123: =M122*E123*E124 -> 0 | N123: Btu/hr
B124: Correction factor (based on local conditions) | D124: 1 | E124: 1 | F124: =IF(OR(D117<=D118,E117<=E118),"Surface temperature lower than ambient temperature"," ") -> Surface temperature lower than ambient temperature | L124: =L123 -> 0 | M124: =M123 -> 0 | N124: Btu/hr | O124: =IF($C$5>9,1,0) -> 1 | P124: Control
B125: Heat loss | C125: Btu/hr | D125: =L124 -> 0 | E125: =M124 -> 0
B129: Total Losses From Wall Surfaces | C129: Btu/hr | D129: =L129 -> 0 | E129: =M129 -> 0 | L129: =SUM(($O124*L124)+($O112*L112)+($O100*L100)+($O88*L88)+($O76*L76)+($O64*L64)+($O52*L52)+($O40*L40)+($O28*L28)+L16) -> 0 | M129: =SUM(($O124*M124)+($O112*M112)+($O100*M100)+($O88*M88)+($O76*M76)+($O64*M64)+($O52*M52)+($O40*M40)+($O28*M28)+M16) -> 0 | N129: Btu/hr.
B131: NOTES:
B132: Enter notes here on proposed changes for the "Modified" conditions.
J133: =IF(B133="",0,1) -> 0
J134: =IF(B134="",0,1) -> 0
J135: =IF(B135="",0,1) -> 0
J136: =IF(B136="",0,1) -> 0
J137: =IF(B137="",0,1) -> 0
J138: =SUM(J133:J137) -> 0

Sheet Water-Air cooling
B2: Water or air cooling (internal)
B3: Number of Loops | C3: ='Control page'!D16 -> 6 | D3: (from Control Sheet)
B5: Cooling - Loop 1
D6: Current | E6: Modified | I6: Copy Current to Modified | K6: Liquid Flow | L6: gal/min
B7: Cooling Medium | D7: AIR | E7: AIR | I7: Done Entering Data | K7: Gas Flow | L7: SCFM
B8: Average Specific Heat | C8: (Btu/lb-F)
B9: Density | C9: =IF(B10="Gas Flow","(lb/SCF)", "(lb/gal)") -> (lb/SCF)
B10: =IF(OR(D7="Air",D7="OTHER GAS"),K$7,K$6) -> Gas Flow | C10: =IF(B10="Gas Flow",L$7,L$6) -> SCFM | I10: Help
B11: Inlet Temperature | C11: deg. F. | I11: Print Sheet
B12: =IF(OR(D7="Water",E7="Water",D7="Other Liquid",E7="Other Liquid"), "Outlet Temperature (Below boiling point)","Outlet Temperature") -> Outlet Temperature | C12: deg. F.
B13: Heat Required | C13: Btu/hr | D13: =D40 -> 0 | E13: =E40 -> 0 | L13: =IF($C$3=0,0,1) -> 1 | M13: Control
B14: Correction factor | D14: 1 | E14: 1
B15: Heat required calculations-Water | J15: $E$17+$E$18*C4+$E$19*C4^2-$E$20*C4^3
J16: Specific Heat of Air
B17: Flow rate of water (l/min) | C17: gal/min | D17: =D10 -> 0 | E17: =E10 -> 0 | J17: Temp F | K17: Btu/(lb.F.)
B18: Mass flow for water - rate | C18: lb/min | D18: =D17*8.335 -> 0 | E18: =E17*8.335 -> 0 | J18: 0 | L18: Density of AIR @32 DEG. F
B19: Sp. Heat of water | C19: (Btu/(lb-F) | D19: 1 | E19: 1 | F19: This is constant at normal ambient temperature | J19: =100+J18 -> 100 | L19: 0.0763 | M19: lb/scf
B20: Heat required | C20: Btu/hr | D20: =D18*60*D19*(D12-D11) -> 0 | E20: =E18*60*E19*(E12-E11) -> 0 | J20: 200 | L20: Standard condition
J21: 300
B22: Heat required calculations-Air | J22: 400
B23: Mean temp of air | C23: deg. F | D23: =(D11+D12)/2 -> 0 | E23: =(E11+E12)/2 -> 0 | J23: 500
B24: Sp. Heat of air at average air temperature | C24: Btu/(lb-F) | D24: =$L$27+$L$28*D23+$L$29*D23^2-$L$30*D23^3 -> 0.2371 | E24: =$L$27+$L$28*E23+$L$29*E23^2-$L$30*E23^3 -> 0.2371 | J24: 600
B25: Density of air at NTP (32 F, 1 atm.) | C25: lb/SCF | D25: 0.0763 | E25: 0.0763 | J25: 700
B26: Mass flow of air | C26: lb/hr. | D26: =D10*$L$19*60 -> 0 | E26: =E10*$L$19*60 -> 0 | K26: Constants for sp. Heat calculations
B27: Heat required | C27: Btu/hr | D27: =D24*D26*(D12-D11) -> 0 | E27: =E24*E26*(E12-E11) -> 0 | K27: Constant | L27: 0.2371
K28: x | L28: =-9*10^(-6) -> -9e-06
B29: Heat required calculations-Other Fluid | K29: x^2 | L29: =7*10^(-8) -> 7e-08
K30: x^3 | L30: =3*10^(-11) -> 3e-11
B31: Sp. Heat of Gas or Liquid | C31: (Btu/(lb-F) | D31: =D8 -> 0 | E31: =E8 -> 0
B32: Density of Gas or Liquid NTP (0 C, 100 pa) | C32: lb/SCF or lb/gal | D32: =D9 -> 0 | E32: =E9 -> 0
B33: Mass flow of Gas or Liquid | C33: lb/hr. | D33: =D10*D32*60 -> 0 | E33: =E10*E32*60 -> 0
B35: Heat required | C35: Btu/hr | D35: =D31*D33*(D12-D11) -> 0 | E35: =E31*E33*(E12-E11) -> 0
B37: If Air or Water | D37: =OR((D7="Air"),(D7="Water")) -> TRUE | E37: =OR((E7="Air"),(E7="Water")) -> TRUE
B38: If Air or Water | D38: =IF(D7="Air",(D27*D37),(D20*D37)) -> 0 | E38: =IF(E7="Air",(E27*E37),(E20*E37)) -> 0
B39: If Other Gas or Liquid | D39: =OR((D7="Other Gas"),(D7="Other Liquid")) -> FALSE | E39: =OR((E7="Other Gas"),(E7="Other Liquid")) -> FALSE
C40: Total | D40: =IF(D39,D35,D38) -> 0 | E40: =IF(E39,E35,E38) -> 0
B42: Cooling - Loop 2
D43: Current | E43: Modified
B44: Cooling Medium | D44: OTHER LIQUID | E44: OTHER LIQUID
B45: Average Specific Heat | C45: (Btu/lb-F)
B46: Density | C46: =IF(B47="Gas Flow","(lb/SCF)", "(lb/gal)") -> (lb/gal)
B47: =IF(OR(D44="Air",D44="OTHER GAS"),K$7,K$6) -> Liquid Flow | C47: =IF(B47="Gas Flow",L$7,L$6) -> gal/min
B48: Inlet Temperature | C48: deg. F.
B49: =IF(OR(D44="Water",E44="Water",D44="Other Liquid",E44="Other Liquid"), "Outlet Temperature (Below boiling point)","Outlet Temperature") -> Outlet Temperature (Below boiling point) | C49: deg. F.
B50: Heat Required | C50: Btu/hr | D50: =D77 -> 0 | E50: =E77 -> 0 | L50: =IF($C$3>1,1,0) -> 1 | M50: Control
B51: Correction factor | D51: 1 | E51: 1
B52: Heat required calculations-Water
B54: Flow rate of water (GPM) | C54: gal/min | D54: =D47 -> 0 | E54: =E47 -> 0
B55: Mass flow for water - rate | C55: lb/min | D55: =D54*8.335 -> 0 | E55: =E54*8.335 -> 0
B56: Sp. Heat of water | C56: (Btu/(lb-F) | D56: 1 | E56: 1 | F56: This is constant at normal ambinet temperature
B57: Heat required | C57: Btu/hr | D57: =D55*60*D56*(D49-D48) -> 0 | E57: =E55*60*E56*(E49-E48) -> 0
B59: Heat required calculations-Air
B60: Mean temp of air | C60: deg. F | D60: =(D48+D49)/2 -> 0 | E60: =(E48+E49)/2 -> 0
B61: Sp. Heat of air at average air temperature | C61: Btu/(lb-F) | D61: =$L$27+$L$28*D60+$L$29*D60^2-$L$30*D60^3 -> 0.2371 | E61: =$L$27+$L$28*E60+$L$29*E60^2-$L$30*E60^3 -> 0.2371
B62: Density of air at NTP (32 C, 1 atm.) | C62: lb/SCF | D62: =L19 -> 0.0763 | E62: =D62 -> 0.0763
B63: Mass flow of air | C63: lb/hr. | D63: =D47*$L$19*60 -> 0 | E63: =E47*$L$19*60 -> 0
B64: Heat required | C64: Btu/hr | D64: =D61*D63*(D49-D48) -> 0 | E64: =E61*E63*(E49-E48) -> 0
B66: Heat required calculations-Other Fluid
B68: Sp. Heat of Gas or Liquid | C68: (Btu/(lb-F) | D68: =D45 -> 0 | E68: =E45 -> 0
B69: Density of Gas or Liquid NTP (32 F, 1 atm.) | C69: lb/SCF or lb/gal | D69: =D46 -> 0 | E69: =E46 -> 0
B70: Mass flow of Gas or Liquid | C70: lb/hr. | D70: =D47*D69*60 -> 0 | E70: =E47*E69*60 -> 0
B72: Heat required | C72: Btu/hr | D72: =D68*D70*(D49-D48) -> 0 | E72: =E68*E70*(E49-E48) -> 0
B74: If Air or Water | D74: =OR((D44="Air"),(D44="Water")) -> FALSE | E74: =OR((E44="Air"),(E44="Water")) -> FALSE
B75: If Air or Water | D75: =IF(D44="Air",(D64*D74),(D57*D74)) -> 0 | E75: =IF(E44="Air",(E64*E74),(E57*E74)) -> 0
B76: If Other Gas or Liquid | D76: =OR((D44="Other Gas"),(D44="Other Liquid")) -> TRUE | E76: =OR((E44="Other Gas"),(E44="Other Liquid")) -> TRUE
C77: Total | D77: =IF(D76,D72,D75) -> 0 | E77: =IF(E76,E72,E75) -> 0
B80: Cooling - Loop 3
D81: Current | E81: Modified
B82: Cooling Medium | D82: OTHER GAS | E82: OTHER GAS
B83: Average Specific Heat | C83: (Btu/lb-F)
B84: Density | C84: =IF(B85="Gas Flow","(lb/SCF)", "(lb/gal)") -> (lb/SCF) | L84: =IF($C$3>2,1,0) -> 1 | M84: Control
B85: =IF(OR(D82="Air",D82="OTHER GAS"),K$7,K$6) -> Gas Flow | C85: =IF(B85="Gas Flow",L$7,L$6) -> SCFM
B86: Inlet Temperature | C86: deg. F.
B87: =IF(OR(D82="Water",E82="Water",D82="Other Liquid",E82="Other Liquid"), "Outlet Temperature (Below boiling point)","Outlet Temperature") -> Outlet Temperature | C87: deg. F.
B88: Heat Required | C88: Btu/hr | D88: =D115 -> 0 | E88: =E115 -> 0
B89: Correction factor | D89: 1 | E89: 1
B90: Heat required calculations-Water | F90: This is constant at normal ambinet temperature
B92: Flow rate of water (l/min) | C92: gal/min | D92: =D85 -> 0 | E92: =E85 -> 0
B93: Mass flow for water - rate | C93: lb/min | D93: =D92*8.335 -> 0 | E93: =E92*8.335 -> 0
B94: Sp. Heat of water | C94: (Btu/(lb-F) | D94: 1 | E94: =D94 -> 1
B95: Heat required | C95: Btu/hr | D95: =D93*60*D94*(D87-D86) -> 0 | E95: =E93*60*E94*(E87-E86) -> 0
B97: Heat required calculations-Air
B98: Mean temp of air | C98: deg. F | D98: =(D86+D87)/2 -> 0 | E98: =(E86+E87)/2 -> 0
B99: Sp. Heat of air at average air temperature | C99: Btu/(lb-F) | D99: =$L$27+$L$28*D98+$L$29*D98^2-$L$30*D98^3 -> 0.2371 | E99: =$L$27+$L$28*E98+$L$29*E98^2-$L$30*E98^3 -> 0.2371
B100: Density of air at NTP (032 F, 1 atm.) | C100: lb/SCF | D100: =L19 -> 0.0763 | E100: =D100 -> 0.0763
B101: Mass flow of air | C101: lb/hr. | D101: =D85*$L$19*60 -> 0 | E101: =E85*$L$19*60 -> 0
B102: Heat required | C102: Btu/hr | D102: =D99*D101*(D87-D86) -> 0 | E102: =E99*E101*(E87-E86) -> 0
B104: Heat required calculations-Other Fluid
B106: Sp. Heat of Gas or Liquid | C106: (Btu/(lb-F) | D106: =D83 -> 0 | E106: =E83 -> 0
B107: Density of Gas or Liquid NTP (32 C, 1 atm) | C107: lb/SCF or lb/gal | D107: =D84 -> 0 | E107: =E84 -> 0
B108: Mass flow of Gas or Liquid | C108: lb/hr. | D108: =D85*D107*60 -> 0 | E108: =E85*E107*60 -> 0 | L108: =IF($C$3>3,1,0) -> 1 | M108: Control
B110: Heat required | C110: Btu/hr | D110: =D106*D108*(D87-D86) -> 0 | E110: =E106*E108*(E87-E86) -> 0
B112: If Air or Water | D112: =OR((D82="Air"),(D82="Water")) -> FALSE | E112: =OR((E82="Air"),(E82="Water")) -> FALSE
B113: If Air or Water | D113: =IF(D82="Air",(D102*D112),(D95*D112)) -> 0 | E113: =IF(E82="Air",(E102*E112),(E95*E112)) -> 0
B114: If Other Gas or Liquid | D114: =OR((D82="Other Gas"),(D82="Other Liquid")) -> TRUE | E114: =OR((E82="Other Gas"),(E82="Other Liquid")) -> TRUE
C115: Total | D115: =IF(D114,D110,D113) -> 0 | E115: =IF(E114,E110,E113) -> 0
B118: Cooling - Loop 4
D119: Current | E119: Modified
B120: Cooling Medium | D120: OTHER GAS | E120: OTHER GAS
B121: Average Specific Heat | C121: (Btu/lb-F)
B122: Density | C122: =IF(B123="Gas Flow","(lb/SCF)", "(lb/gal)") -> (lb/SCF)
B123: =IF(OR(D120="Air",D120="OTHER GAS"),K$7,K$6) -> Gas Flow | C123: =IF(B123="Gas Flow",L$7,L$6) -> SCFM
B124: Inlet Temperature | C124: deg. F.
B125: =IF(OR(D120="Water",E120="Water",D120="Other Liquid",E120="Other Liquid"), "Outlet Temperature (Below boiling point)","Outlet Temperature") -> Outlet Temperature | C125: deg. F.
B126: Heat Required | C126: Btu/hr | D126: =D153 -> 0 | E126: =E153 -> 0
B127: Correction factor | D127: 1 | E127: 1
B128: Heat required calculations-Water
B130: Flow rate of water (gallons/min) | C130: gal/min | D130: =D123 -> 0 | E130: =E123 -> 0
B131: Mass flow for water - rate | C131: lb/min | D131: =D130*8.335 -> 0 | E131: =E130*8.335 -> 0
B132: Sp. Heat of water | C132: (Btu/(lb-F) | D132: 1 | E132: 1
B133: Heat required | C133: Btu/hr | D133: =D131*60*D132*(D125-D124) -> 0 | E133: =E131*60*E132*(E125-E124) -> 0
L134: =IF($C$3>4,1,0) -> 1 | M134: Control
B135: Heat required calculations-Air
B136: Mean temp of air | C136: deg. F | D136: =(D124+D125)/2 -> 0 | E136: =(E124+E125)/2 -> 0
B137: Sp. Heat of air at average air temperature | C137: Btu/(lb-F) | D137: =$L$27+$L$28*D136+$L$29*D136^2-$L$30*D136^3 -> 0.2371 | E137: =$L$27+$L$28*E136+$L$29*E136^2-$L$30*E136^3 -> 0.2371
B138: Density of air at NTP (32 F, 1atm) | C138: lb/SCF | D138: 0.0763 | E138: 0.0763
B139: Mass flow of air | C139: lb/hr. | D139: =D123*$L$19*60 -> 0 | E139: =E123*$L$19*60 -> 0
B140: Heat required | C140: Btu/hr | D140: =D137*D139*(D125-D124) -> 0 | E140: =E137*E139*(E125-E124) -> 0
B142: Heat required calculations-Other Fluid
B144: Sp. Heat of Gas or Liquid | C144: (Btu/(lb-F) | D144: =D121 -> 0 | E144: =E121 -> 0
B145: Density of Gas or Liquid NTP (0 C, 100 pa) | C145: lb/SCF or lb/gal | D145: =D122 -> 0 | E145: =E122 -> 0
B146: Mass flow of Gas or Liquid | C146: lb/hr. | D146: =D123*D145*60 -> 0 | E146: =E123*E145*60 -> 0
B148: Heat required | C148: Btu/hr | D148: =D144*D146*(D125-D124) -> 0 | E148: =E144*E146*(E125-E124) -> 0
B150: If Air or Water | D150: =OR((D120="Air"),(D120="Water")) -> FALSE | E150: =OR((E120="Air"),(E120="Water")) -> FALSE
B151: If Air or Water | D151: =IF(D120="Air",(D140*D150),(D133*D150)) -> 0 | E151: =IF(E120="Air",(E140*E150),(E133*E150)) -> 0
B152: If Other Gas or Liquid | D152: =OR((D120="Other Gas"),(D120="Other Liquid")) -> TRUE | E152: =OR((E120="Other Gas"),(E120="Other Liquid")) -> TRUE
C153: Total | D153: =IF(D152,D148,D151) -> 0 | E153: =IF(E152,E148,E151) -> 0
B156: Cooling - Loop 5
D157: Current | E157: Modified
B158: Cooling Medium | D158: OTHER LIQUID | E158: OTHER LIQUID
B159: Average Specific Heat | C159: (Btu/lb-F)
B160: Density | C160: =IF(B161="Gas Flow","(lb/SCF)", "(lb/gal)") -> (lb/gal)
B161: =IF(OR(D158="Air",D158="OTHER GAS"),K$7,K$6) -> Liquid Flow | C161: =IF(B161="Gas Flow",L$7,L$6) -> gal/min | L161: =IF($C$3>5,1,0) -> 1 | M161: Control
B162: Inlet Temperature | C162: deg. F.
B163: =IF(OR(D158="Water",E158="Water",D158="Other Liquid",E158="Other Liquid"), "Outlet Temperature (Below boiling point)","Outlet Temperature") -> Outlet Temperature (Below boiling point) | C163: deg. F.
B164: Heat Required | C164: Btu/hr | D164: =D191 -> 0 | E164: =E191 -> 0
B165: Correction factor | D165: 1 | E165: 1
B166: Heat required calculations-Water
B168: Flow rate of water (l/min) | C168: gal/min | D168: =D161 -> 0 | E168: =E161 -> 0
B169: Mass flow for water - rate | C169: lb/min | D169: =D168*8.335 -> 0 | E169: =E168*8.335 -> 0
B170: Sp. Heat of water | C170: (Btu/(lb-F) | D170: 1 | E170: 1
B171: Heat required | C171: Btu/hr | D171: =D169*60*D170*(D163-D162) -> 0 | E171: =E169*60*E170*(E163-E162) -> 0
B173: Heat required calculations-Air
B174: Mean temp of air | C174: deg. F | D174: =(D162+D163)/2 -> 0 | E174: =(E162+E163)/2 -> 0
B175: Sp. Heat of air at average air temperature | C175: Btu/(lb-F) | D175: =$L$27+$L$28*D174+$L$29*D174^2-$L$30*D174^3 -> 0.2371 | E175: =$L$27+$L$28*E174+$L$29*E174^2-$L$30*E174^3 -> 0.2371
B176: Density of air at NTP (032 F, 1 atm.) | C176: lb/SCF | D176: 0.0763 | E176: 0.0763
B177: Mass flow of air | C177: lb/hr. | D177: =D161*$L$19*60 -> 0 | E177: =E161*$L$19*60 -> 0
B178: Heat required | C178: Btu/hr | D178: =D175*D177*(D163-D162) -> 0 | E178: =E175*E177*(E163-E162) -> 0
B180: Heat required calculations-Other Fluid
B182: Sp. Heat of Gas or Liquid | C182: (Btu/(lb-F) | D182: =D159 -> 0 | E182: =E159 -> 0
B183: Density of Gas or Liquid NTP (32 F, 1 atm.) | C183: lb/SCF or lb/gal | D183: =D160 -> 0 | E183: =E160 -> 0
B184: Mass flow of Gas or Liquid | C184: lb/hr. | D184: =D161*D183*60 -> 0 | E184: =E161*E183*60 -> 0
B186: Heat required | C186: Btu/hr | D186: =D182*D184*(D163-D162) -> 0 | E186: =E182*E184*(E163-E162) -> 0
B188: If Air or Water | D188: =OR((D158="Air"),(D158="Water")) -> FALSE | E188: =OR((E158="Air"),(E158="Water")) -> FALSE
B189: If Air or Water | D189: =IF(D158="Air",(D178*D188),(D171*D188)) -> 0 | E189: =IF(E158="Air",(E178*E188),(E171*E188)) -> 0
B190: If Other Gas or Liquid | D190: =OR((D158="Other Gas"),(D158="Other Liquid")) -> TRUE | E190: =OR((E158="Other Gas"),(E158="Other Liquid")) -> TRUE
C191: Total | D191: =IF(D190,D186,D189) -> 0 | E191: =IF(E190,E186,E189) -> 0
B194: Cooling - Loop 6
D195: Current | E195: Modified
B196: Cooling Medium | D196: AIR | E196: AIR
B197: Average Specific Heat | C197: (Btu/lb-F) | D197: 0.25 | E197: 0.25
B198: Density | C198: =IF(B199="Gas Flow","(lb/SCF)", "(lb/gal)") -> (lb/SCF) | D198: 0.08 | E198: 0.08
B199: =IF(OR(D196="Air",D196="OTHER GAS"),K$7,K$6) -> Gas Flow | C199: =IF(B199="Gas Flow",L$7,L$6) -> SCFM
B200: Inlet Temperature | C200: deg. F.
B201: =IF(OR(D196="Water",E196="Water",D196="Other Liquid",E196="Other Liquid"), "Outlet Temperature (Below boiling point)","Outlet Temperature") -> Outlet Temperature | C201: deg. F.
B202: Heat Required | C202: Btu/hr | D202: =D230 -> 0 | E202: =E230 -> 0
B203: Correction factor | D203: 1 | E203: 1
B205: Heat required calculations-Water
B207: Flow rate of water (l/min) | C207: gal/min | D207: =D199 -> 0 | E207: =E199 -> 0
B208: Mass flow for water - rate | C208: lb/min | D208: =D207*8.335 -> 0 | E208: =E207*8.335 -> 0
B209: Sp. Heat of water | C209: (Btu/(lb-F) | D209: 1 | E209: 1
B210: Heat required | C210: Btu/hr | D210: =D208*60*D209*(D201-D200) -> 0 | E210: =E208*60*E209*(E201-E200) -> 0
B212: Heat required calculations-Air
B213: Mean temp of air | C213: deg. F | D213: =(D200+D201)/2 -> 0 | E213: =(E200+E201)/2 -> 0
B214: Sp. Heat of air at average air temperature | C214: Btu/(lb-F) | D214: =$L$27+$L$28*D213+$L$29*D213^2-$L$30*D213^3 -> 0.2371 | E214: =$L$27+$L$28*E213+$L$29*E213^2-$L$30*E213^3 -> 0.2371
B215: Density of air at NTP (32 F, 1 atm.) | C215: lb/ft^3 | D215: 0.0763 | E215: 0.0763
B216: Mass flow of air | C216: lb/hr. | D216: =D199*$L$19*60 -> 0 | E216: =E199*$L$19*60 -> 0
B217: Heat required | C217: Btu/hr | D217: =D214*D216*(D201-D200) -> 0 | E217: =E214*E216*(E201-E200) -> 0
B219: Heat required calculations-Other Fluid
B221: Sp. Heat of Gas or Liquid | C221: (Btu/(lb-F) | D221: =D198 -> 0.08 | E221: =E198 -> 0.08
B222: Density of Gas or Liquid NTP (0 C, 100 pa) | C222: lb/ft^3 or lb/gal | D222: =D197 -> 0.25 | E222: =E197 -> 0.25
B223: Mass flow of Gas or Liquid | C223: lb/hr. | D223: =D199*D222*60 -> 0 | E223: =E199*E222*60 -> 0
B225: Heat required | C225: Btu/hr | D225: =D221*D223*(D201-D200) -> 0 | E225: =E221*E223*(E201-E200) -> 0
B227: If Air or Water | D227: =OR((D196="Air"),(D196="Water")) -> TRUE | E227: =OR((E196="Air"),(E196="Water")) -> TRUE
B228: If Air or Water | D228: =IF(D196="Air",(D217*D227),(D210*D227)) -> 0 | E228: =IF(E196="Air",(E217*E227),(E210*E227)) -> 0
B229: If Other Gas or Liquid | D229: =OR((D196="Other Gas"),(D196="Other Liquid")) -> FALSE | E229: =OR((E196="Other Gas"),(E196="Other Liquid")) -> FALSE
C230: Total | D230: =IF(D229,D225,D228) -> 0 | E230: =IF(E229,E225,E228) -> 0
B233: Total Heat loss for cooling | C233: Btu/hr | D233: =(D13*D14*$L$13)+(D50*D51*$L$50)+(D88*D89*$L$84)+(D126*D127*$L$108)+(D164*D165*$L$134)+(D202*D203*$L$161) -> 0 | E233: =(E13*E14*$L$13)+(E50*E51*$L$50)+(E88*E89*$L$84)+(E126*E127*$L$108)+(E164*E165*$L$134)+(E202*E203*$L$161) -> 0
B235: NOTES:
B236: Enter notes here on proposed changes for the "Modified" conditions.

Sheet Atmosphere losses
B2: Number of atmosphere-gases | C2: ='Control page'!D17 -> 3 | D2: From Control Sheet
B4: Atmosphere losses | J4: Process Atmosphere | K4: Specific Heat | L4: Specific Heat
D5: Current | E5: Modified | I5: Copy Current to Modified | K5: Btu/(s.cu.ft.- deg. F) | L5: =K5 -> Btu/(s.cu.ft.- deg. F)
B6: Atmosphere Gas 1 | D6: Hydrogen | E6: =D6 -> Hydrogen | I6: Done Entering Data | J6: Conversion factor | K6: 1 | L6: 1
I7: Help | J7: Nitrogen | K7: =0.0185 -> 0.0185 | L7: =K7 -> 0.0185
B8: Specific heat of the gas (air or atmosphere) | C8: Btu/(SCF- deg. F) | D8: =IF(D6="Other",M8,VLOOKUP($D6,$J$7:$L$14,3,)) -> 0.0182 | E8: =D8 -> 0.0182 | G8: F | H8: =D9*1.8+32 -> 32 | I8: Print Sheet | J8: Hydrogen | K8: 0.0182 | L8: 0.0182 | M8: 0
B9: Initial Temperature | C9: deg. F. | G9: F | H9: =D10*1.8+32 -> 32 | J9: Exothermic gas | K9: 0.0185 | L9: 0.0185
B10: Final Temperature | C10: deg. F. | G10: scfh | H10: =D11*35.31 -> 0 | J10: Endothermic gas | K10: =0.0185 -> 0.0185 | L10: 0.0185
B11: Flow Rate | C11: SCF/hr | G11: Btu/hr | H11: =0.0195*H10*(H9-H8) -> 0 | I11: =IF('Control page'!D$17=0,0,1) -> 1 | J11: Air | K11: 0.0184 | L11: 0.0184
B12: Correction factor | D12: 1 | E12: 1 | J12: Water vapor | K12: 0.0212 | L12: =K12 -> 0.0212
B13: Heat Loss | C13: Btu/hr | D13: =D11*D12*D8*(D10-D9) -> 0 | E13: =E11*E12*E8*(E10-E9) -> 0 | G13: kJ/hr | H13: =H11*1.055 -> 0 | J13: Other | K13: ?
D16: Current | E16: Modified
B17: Makeup Air | D17: Nitrogen | E17: =D17 -> Nitrogen
M18: Enter Material Name
B19: Specific heat of the gas (air or atmosphere) | C19: Btu/(SCF- deg. F) | D19: =IF(D17="Other",M19,VLOOKUP($D17,$J$7:$L$14,3,)) -> 0.0185 | E19: =D19 -> 0.0185 | G19: F | H19: =D20*1.8+32 -> 32 | M19: 0
B20: Initial Temperature | C20: deg. F. | G20: F | H20: =D21*1.8+32 -> 32
B21: Final Temperature | C21: deg. F. | G21: scfh | H21: =D22*35.31 -> 0
B22: Flow Rate | C22: SCF/hr | G22: Btu/hr | H22: =0.0195*H21*(H20-H19) -> 0 | I22: =IF('Control page'!D$17=0,0,1) -> 1 | J22: Control
B23: Correction factor | D23: 1 | E23: 1
B24: Heat Loss | C24: Btu/hr | D24: =D22*D23*D19*(D21-D20) -> 0 | E24: =E22*E23*E19*(E21-E20) -> 0 | G24: kJ/hr | H24: =H22*1.055 -> 0
D28: Current | E28: Modified
B29: Atmosphere Gas 2 | D29: Nitrogen | E29: =D29 -> Nitrogen
M30: Enter Material Name
B31: Specific heat of the gas (air or atmosphere) | C31: Btu/(SCF- deg. F) | D31: =IF(D29="Other",M31,VLOOKUP($D29,$J$7:$L$14,3,)) -> 0.0185 | E31: =D31 -> 0.0185 | G31: F | H31: =D32*1.8+32 -> 32 | M31: 0
B32: Initial Temperature | C32: deg. F. | G32: F | H32: =D33*1.8+32 -> 32
B33: Final Temperature | C33: deg. F. | G33: scfh | H33: =D34*35.31 -> 0
B34: Flow Rate | C34: SCF/hr | G34: Btu/hr | H34: =0.0195*H33*(H32-H31) -> 0 | I34: =IF('Control page'!D$17>1,1,0) -> 1 | J34: Control
B35: Correction factor | D35: 1 | E35: 1
B36: Heat Loss | C36: Btu/hr | D36: =D34*D35*D31*(D33-D32) -> 0 | E36: =E34*E35*E31*(E33-E32) -> 0 | G36: kJ/hr | H36: =H34*1.055 -> 0
D39: Current | E39: Modified
B40: Atmosphere Gas 3 | D40: Nitrogen | E40: =D40 -> Nitrogen
M41: Enter Material Name
B42: Specific heat of the gas (air or atmosphere) | C42: Btu/(SCF- deg. F) | D42: =IF(D40="Other",M42,VLOOKUP($D40,$J$7:$L$14,3,)) -> 0.0185 | E42: =D42 -> 0.0185 | G42: F | H42: =D43*1.8+32 -> 32 | M42: 0
B43: Initial Temperature | C43: deg. F. | G43: F | H43: =D44*1.8+32 -> 32
B44: Final Temperature | C44: deg. F. | G44: scfh | H44: =D45*35.31 -> 0
B45: Flow Rate | C45: SCF/hr | G45: Btu/hr | H45: =0.0195*H44*(H43-H42) -> 0 | I45: =IF('Control page'!D$17>2,1,0) -> 1 | J45: Control
B46: Correction factor | D46: 1 | E46: 1
B47: Heat Loss | C47: Btu/hr | D47: =D45*D46*D42*(D44-D43) -> 0 | E47: =E45*E46*E42*(E44-E43) -> 0 | G47: kJ/hr | H47: =H45*1.055 -> 0
B50: Total Heat Loss (Required) for Process Atmosphere - Makeup Air | C50: Btu/hr | D50: =(D47*I45)+(D36*I34)+(D24*I22)+(D13*I11) -> 0 | E50: =(E47*I45)+(E36*I34)+(E24*I22)+(E13*I11) -> 0
G52: Btu/(scfF) | H52: 0.0185
B53: NOTES:
B54: Enter notes here on proposed changes for the "Modified" conditions.
I55: =IF(B55="",0,1) -> 0
I56: =IF(B56="",0,1) -> 0
I57: =IF(B57="",0,1) -> 0
I58: =IF(B58="",0,1) -> 0
I59: =IF(B59="",0,1) -> 0
I60: =SUM(I55:I59) -> 0

Sheet Cp calculationsHTcurrent (hidden)
B2: Initial Gas temperature (F) | C2: 60
B3: Final Gas temperature (F) | C3: 1000
E6: Cp | G6: Cp | H6: Sp. Vol | I6: Sp. Wt | J6: Sp. Gravity | K6: Cp | L6: Mean CP
B7: Gas | C7: Temp (F) | D7: Temp ® | E7: Btu/(#mole.F) | F7: Mol wt | G7: Btu/(#F) | H7: SCF/# | I7: #/SCF | J7: wrt Air @stp | K7: Btu/SCF | L7: Btu/SCF
B8: Oxygen | C8: =C2 -> 60 | D8: =460+C8 -> 520 | E8: =11.515-172/D8^0.5 +1530/D8 -> 6.914608726 | F8: 32 | G8: =E8/F8 -> 0.2160815227 | H8: =378.2/F8 -> 11.81875 | I8: =1/H8 -> 0.08461131676 | J8: =I8/0.0763 -> 1.108929446 | K8: =G8/H8 -> 0.01828294216 | L8: =(K8+K9)/2 -> 0.0181599079
B9: Oxygen | C9: ='Av.Ht.Solid - current '!C88 -> 0 | D9: =460+C9 -> 460 | E9: =11.515-172/D9^0.5 +1530/D9 -> 6.821545606 | F9: 32 | G9: =E9/F9 -> 0.2131733002 | H9: =378.2/F9 -> 11.81875 | I9: =1/H9 -> 0.08461131676 | J9: =I9/0.0763 -> 1.108929446 | K9: =G9/H9 -> 0.01803687363
B11: Nitrogen | C11: =C8 -> 60 | D11: =460+C11 -> 520 | E11: =9.47-3.47*10^3/D11 +1.07*10^6/D11^2 -> 6.754023669 | F11: 28 | G11: =E11/F11 -> 0.241215131 | H11: =378.2/F11 -> 13.50714286 | I11: =1/H11 -> 0.07403490217 | J11: =I11/0.0763 -> 0.9703132656 | K11: =G11/H11 -> 0.01785833863 | L11: =(K11+K12)/2 -> 0.0181613646
B12: Nitrogen | C12: =C9 -> 0 | D12: =460+C12 -> 460 | E12: =9.47-3.47*10^3/D12 +1.07*10^6/D12^2 -> 6.983232514 | F12: 28 | G12: =E12/F12 -> 0.2494011612 | H12: =378.2/F12 -> 13.50714286 | I12: =1/H12 -> 0.07403490217 | J12: =I12/0.0763 -> 0.9703132656 | K12: =G12/H12 -> 0.01846439057
B14: Carbon Monoxide | C14: =C11 -> 60 | D14: =460+C14 -> 520 | E14: =9.46-3.29*10^3/D14+1.07*10^6/D14^2 -> 7.090177515 | F14: 28 | G14: =E14/F14 -> 0.2532206255 | H14: =378.2/F14 -> 13.50714286 | I14: =1/H14 -> 0.07403490217 | J14: =I14/0.0763 -> 0.9703132656 | K14: =G14/H14 -> 0.01874716424 | L14: =(K14+K15)/2 -> 0.01910988151
B15: Carbon Monoxide | C15: =C12 -> 0 | D15: =460+C15 -> 460 | E15: =9.46-3.29*10^3/D15+1.07*10^6/D15^2 -> 7.364536862 | F15: 28 | G15: =E15/F15 -> 0.2630191736 | H15: =378.2/F15 -> 13.50714286 | I15: =1/H15 -> 0.07403490217 | J15: =I15/0.0763 -> 0.9703132656 | K15: =G15/H15 -> 0.01947259879
B17: Hydrogen | C17: =C14 -> 60 | D17: =460+C17 -> 520 | E17: =5.76+0.578*D17/10^3+20/D17^0.5 -> 6.937618019 | F17: 2 | G17: =E17/F17 -> 3.46880901 | H17: =378.2/F17 -> 189.1 | I17: =1/H17 -> 0.005288207298 | J17: =I17/0.0763 -> 0.0693080904 | K17: =G17/H17 -> 0.01834378112 | L17: =(K17+K18)/2 -> 0.01837123589
B18: Hydrogen | C18: =C15 -> 0 | D18: =460+C18 -> 460 | E18: =5.76+0.578*D18/10^3+20/D18^0.5 -> 6.958384808 | F18: 2 | G18: =E18/F18 -> 3.479192404 | H18: =378.2/F18 -> 189.1 | I18: =1/H18 -> 0.005288207298 | J18: =I18/0.0763 -> 0.0693080904 | K18: =G18/H18 -> 0.01839869066
B20: Water vapor (H2O) | C20: =C17 -> 60 | D20: =460+C20 -> 520 | E20: =19.86-597/D20^0.5+7500/D20 -> 8.102895047 | F20: 18 | G20: =E20/F20 -> 0.4501608359 | H20: =378.2/F20 -> 21.01111111 | I20: =1/H20 -> 0.04759386568 | J20: =I20/0.0763 -> 0.6237728136 | K20: =G20/H20 -> 0.02142489436 | L20: =(K20+K21)/2 -> 0.02172392166
B21: Water vapor (H2O) | C21: =C18 -> 0 | D21: =460+C21 -> 460 | E21: =19.86-597/D21^0.5+7500/D21 -> 8.3290793 | F21: 18 | G21: =E21/F21 -> 0.4627266278 | H21: =378.2/F21 -> 21.01111111 | I21: =1/H21 -> 0.04759386568 | J21: =I21/0.0763 -> 0.6237728136 | K21: =G21/H21 -> 0.02202294897
B23: Carbon Dioxide | C23: =C20 -> 60 | D23: =460+C23 -> 520 | E23: =16.2-6.53*10^3/D23+1.41*10^6/D23^2 -> 8.856804734 | F23: 44 | G23: =E23/F23 -> 0.2012910167 | H23: =378.2/F23 -> 8.595454545 | I23: =1/H23 -> 0.1163405605 | J23: =I23/0.0763 -> 1.524777989 | K23: =G23/H23 -> 0.02341830971 | L23: =(K23+K24)/2 -> 0.02316852013
B24: Carbon Dioxide | C24: =C21 -> 0 | D24: =460+C24 -> 460 | E24: =16.2-6.53*10^3/D24+1.41*10^6/D24^2 -> 8.667863894 | F24: 44 | G24: =E24/F24 -> 0.1969969067 | H24: =378.2/F24 -> 8.595454545 | I24: =1/H24 -> 0.1163405605 | J24: =I24/0.0763 -> 1.524777989 | K24: =G24/H24 -> 0.02291873055
B26: Methane - CH4 | C26: =C23 -> 60 | D26: =460+C26 -> 520 | E26: =4.23+0.01177*D26 -> 10.3504 | F26: 16 | G26: =E26/F26 -> 0.6469 | H26: =378.2/F26 -> 23.6375 | I26: =1/H26 -> 0.04230565838 | J26: =I26/0.0763 -> 0.5544647232 | K26: =G26/H26 -> 0.02736753041 | L26: =(K26+K27)/2 -> 0.02643389741
B27: Methane - CH5 | C27: =C24 -> 0 | D27: =460+C27 -> 460 | E27: =4.23+0.01177*D27 -> 9.6442 | F27: 16 | G27: =E27/F27 -> 0.6027625 | H27: =378.2/F27 -> 23.6375 | I27: =1/H27 -> 0.04230565838 | J27: =I27/0.0763 -> 0.5544647232 | K27: =G27/H27 -> 0.02550026441
B29: Ethylene C2H4 | C29: =C26 -> 60 | D29: =460+C29 -> 520 | E29: =4.52+0.00737*D29 -> 8.3524 | F29: 28 | G29: =E29/F29 -> 0.2983 | H29: =378.2/F29 -> 13.50714286 | I29: =1/H29 -> 0.07403490217 | J29: =I29/0.0763 -> 0.9703132656 | K29: =G29/H29 -> 0.02208461132 | L29: =(K29+K30)/2 -> 0.0215
B30: Ethylene C2H5 | C30: =C27 -> 0 | D30: =460+C30 -> 460 | E30: =4.52+0.00737*D30 -> 7.9102 | F30: 28 | G30: =E30/F30 -> 0.2825071429 | H30: =378.2/F30 -> 13.50714286 | I30: =1/H30 -> 0.07403490217 | J30: =I30/0.0763 -> 0.9703132656 | K30: =G30/H30 -> 0.02091538868
B32: Ethane C2H6 | C32: =C29 -> 60 | D32: =460+C32 -> 520 | E32: =4.04+0.01636*D32 -> 12.5472 | F32: 30 | G32: =E32/F32 -> 0.41824 | H32: =378.2/F32 -> 12.60666667 | I32: =1/H32 -> 0.07932310947 | J32: =I32/0.0763 -> 1.039621356 | K32: =G32/H32 -> 0.0331760973 | L32: =(K32+K33)/2 -> 0.03187837123
B33: Ethane C2H7 | C33: =C30 -> 0 | D33: =460+C33 -> 460 | E33: =4.04+0.01636*D33 -> 11.5656 | F33: 30 | G33: =E33/F33 -> 0.38552 | H33: =378.2/F33 -> 12.60666667 | I33: =1/H33 -> 0.07932310947 | J33: =I33/0.0763 -> 1.039621356 | K33: =G33/H33 -> 0.03058064516
B35: Source - Gas Engineers Handbook
B37: For Air at 60 F., 80% Humidity
B38: Composition of gas mixture | C38: % Vol | D38: % mass | E38: Mean CP Btu/scf | F38: Cp-60 F | G38: Cp 1000F
B39: Oxygen | C39: 20.7 | E39: =L8 -> 0.0181599079 | F39: =K8 -> 0.01828294216 | G39: =K9 -> 0.01803687363
B40: Carbon Dioxide | C40: 0 | E40: =L23 -> 0.02316852013 | F40: =K23 -> 0.02341830971 | G40: =K24 -> 0.02291873055
B41: Nitrogen & Other | C41: 78.3 | E41: =L11 -> 0.0181613646 | F41: =K11 -> 0.01785833863 | G41: =K12 -> 0.01846439057
B42: Water vapor | C42: 1 | E42: =L20 -> 0.02172392166 | F42: =K20 -> 0.02142489436 | G42: =K21 -> 0.02202294897
B44: Total | C44: =SUM(C39:C43) -> 100
B45: Mean value | E45: =($C$39*E39+$C$40*E40+$C$41*E41+$C$42*E42)/100 -> 0.01819668863 | F45: =($C$39*F39+$C$40*F40+$C$41*F41+$C$42*F42)/100 -> 0.01798189712 | G45: =($C$39*G39+$C$40*G40+$C$41*G41+$C$42*G42)/100 -> 0.01841148015
F47: B | G47: =(G45-F45)/(1000-60) -> 4.570032253e-07
F48: A | G48: =G45-G47*1000 -> 0.01795447692
E50: cp for air
E51: Temp | F51: Cp (Btu/scf)
E52: 60 | F52: =$G$48+$G$47*E52 -> 0.01798189712
E53: 100 | F53: 0.01800017725
E54: =100+E53 -> 200 | F54: 0.01804587757
E55: 300 | F55: 0.01809157789
E56: 400 | F56: 0.01813727821
E57: 500 | F57: 0.01818297854
E58: 600 | F58: 0.01822867886
E59: 700 | F59: 0.01827437918
E60: 800 | F60: 0.0183200795
E61: 900 | F61: 0.01836577983
E62: 1000 | F62: 0.01841148015
E63: 1100 | F63: 0.01845718047
E64: 1200 | F64: 0.01850288079
E65: 1300 | F65: 0.01854858112
E66: 1400 | F66: 0.01859428144
E67: 1500 | F67: 0.01863998176
E68: ='Av.Ht.Solid - current '!C86 -> 0 | F68: 0.01795447692 | G68: Air temp. entering sp. Ht.
E70: =100+E67 -> 1600 | F70: =$G$48+$G$47*E70 -> 0.01868568208
E71: Cp | G71: Cp | H71: Sp. Vol | I71: Sp. Wt | J71: Sp. Gravity | K71: Cp | L71: Mean CP
B72: Gas | C72: Temp (F) | D72: Temp ® | E72: Btu/(#mole.F) | F72: Mol wt | G72: Btu/(#F) | H72: SCF/# | I72: #/SCF | J72: wrt Air @stp | K72: Btu/SCF | L72: Btu/SCF
B73: Water vapor (H2O) | C73: 300 | D73: =460+C73 -> 760 | E73: =19.86-597/D73^0.5+7500/D73 -> 8.072954987 | F73: 18 | G73: =E73/F73 -> 0.4484974993 | H73: =378.2/F73 -> 21.01111111 | I73: =1/H73 -> 0.04759386568 | J73: =I73/0.0763 -> 0.6237728136 | K73: =G73/H73 -> 0.02134572974 | N73: =E73/(18*21.011) -> 0.02134584262
C74: =C73+100 -> 400 | D74: 860 | E74: 8.223399199 | F74: =F73 -> 18 | G74: 0.4568555111 | H74: 21.01111111 | I74: 0.04759386568 | J74: 0.6237728136 | K74: 0.02174351983 | N74: 0.02174363481
C75: 500 | D75: 960 | E75: 8.404407853 | F75: 18 | G75: 0.4669115474 | H75: 21.01111111 | I75: 0.04759386568 | J75: 0.6237728136 | K75: 0.02222212547 | N75: 0.02222224299
C76: 600 | D76: 1060 | E76: 8.598762461 | F76: 18 | G76: 0.4777090256 | H76: 21.01111111 | I76: 0.04759386568 | J76: 0.6237728136 | K76: 0.0227360192 | N76: 0.02273613943
C77: 700 | D77: 1160 | E77: 8.796993689 | F77: 18 | G77: 0.4887218716 | H77: 21.01111111 | I77: 0.04759386568 | J77: 0.6237728136 | K77: 0.02326016311 | N77: 0.02326028612
C78: 800 | D78: 1260 | E78: 8.993811283 | F78: 18 | G78: 0.4996561824 | H78: 21.01111111 | I78: 0.04759386568 | J78: 0.6237728136 | K78: 0.02378056923 | N78: 0.02378069499
C79: 900 | D79: 1360 | E79: 9.186270468 | F79: 18 | G79: 0.5103483593 | H79: 21.01111111 | I79: 0.04759386568 | J79: 0.6237728136 | K79: 0.02428945126 | N79: 0.02428957971
C80: 1000 | D80: 1460 | E80: 9.372782212 | F80: 18 | G80: 0.5207101229 | H80: 21.01111111 | I80: 0.04759386568 | J80: 0.6237728136 | K80: 0.02478260765 | N80: 0.0247827387
C81: 1100 | D81: 1560 | E81: 9.552557254 | F81: 18 | G81: 0.5306976252 | H81: 21.01111111 | I81: 0.04759386568 | J81: 0.6237728136 | K81: 0.02525795149 | N81: 0.02525808506
C82: 1200 | D82: 1660 | E82: 9.725283583 | F82: 18 | G82: 0.5402935324 | H82: 21.01111111 | I82: 0.04759386568 | J82: 0.6237728136 | K82: 0.02571465781
C83: 1300 | D83: 1760 | E83: 9.890934492 | F83: 18 | G83: 0.5494963607 | H83: 21.01111111 | I83: 0.04759386568 | J83: 0.6237728136 | K83: 0.02615265598
C84: 1400 | D84: 1860 | E84: 10.04965203 | F84: 18 | G84: 0.5583140014 | H84: 21.01111111 | I84: 0.04759386568 | J84: 0.6237728136 | K84: 0.02657232159
C85: 1500 | D85: 1960 | E85: 10.20167516 | F85: 18 | G85: 0.5667597312 | H85: 21.01111111 | I85: 0.04759386568 | J85: 0.6237728136 | K85: 0.02697428652
C86: 1600 | D86: 2060 | E86: 10.34729512 | F86: 18 | G86: 0.5748497288 | H86: 21.01111111 | I86: 0.04759386568 | J86: 0.6237728136 | K86: 0.02735932078
C87: 1700 | D87: 2160 | E87: 10.48682746 | F87: 18 | G87: 0.5826015254 | H87: 21.01111111 | I87: 0.04759386568 | J87: 0.6237728136 | K87: 0.02772825874
C88: 1800 | D88: 2260 | E88: 10.62059469 | F88: 18 | G88: 0.5900330382 | H88: 21.01111111 | I88: 0.04759386568 | J88: 0.6237728136 | K88: 0.02808195317
C89: 1900 | D89: 2360 | E89: 10.74891558 | F89: 18 | G89: 0.5971619767 | H89: 21.01111111 | I89: 0.04759386568 | J89: 0.6237728136 | K89: 0.02842124691
C90: 2000 | D90: 2460 | E90: 10.87209875 | F90: 18 | G90: 0.604005486 | H90: 21.01111111 | I90: 0.04759386568 | J90: 0.6237728136 | K90: 0.02874695597
C91: 2100 | D91: 2560 | E91: 10.99043898 | F91: 18 | G91: 0.6105799434 | H91: 21.01111111 | I91: 0.04759386568 | J91: 0.6237728136 | K91: 0.02905985981
C92: 2200 | D92: 2660 | E92: 11.10421536 | F92: 18 | G92: 0.6169008535 | H92: 21.01111111 | I92: 0.04759386568 | J92: 0.6237728136 | K92: 0.02936069636
C93: 2300 | D93: 2760 | E93: 11.21369051 | F93: 18 | G93: 0.6229828063 | H93: 21.01111111 | I93: 0.04759386568 | J93: 0.6237728136 | K93: 0.02965016001
C94: ='Av.Ht.Solid - current '!C88 -> 0 | D94: 460 | E94: 8.3290793 | F94: 18 | G94: 0.4627266278 | H94: 21.01111111 | I94: 0.04759386568 | J94: 0.6237728136 | K94: 0.02202294897
C100: 300 | D100: 0.4484974993 | E100: =0.424+6*10^-5*C100+7*10^-8*C100^2-4*10^-11*C100^3+8*10^-15*C100^4 -> 0.4472848 | F100: =(D100-E100)/D100 -> 0.002703915342
C101: 400 | D101: 0.4568555111 | E101: 0.4568448 | F101: 2.344521527e-05
C102: 500 | D102: 0.4669115474 | E102: 0.467 | F102: -0.0001894419464
C103: 600 | D103: 0.4777090256 | E103: 0.4775968 | F103: 0.0002349245754
C104: 700 | D104: 0.4887218716 | E104: 0.4885008 | F104: 0.00045234645
C105: 800 | D105: 0.4996561824 | E105: 0.4995968 | F105: 0.0001188465323
C106: 900 | D106: 0.5103483593 | E106: 0.5107888 | F106: -0.000863019698
C107: 1000 | D107: 0.5207101229 | E107: 0.522 | F107: -0.002477150052
C108: 1100 | D108: 0.5306976252 | E108: 0.5331728 | F108: -0.004664001989
C109: 1200 | D109: 0.5402935324 | E109: 0.5442688 | F109: -0.007357607251
C110: 1300 | D110: 0.5494963607 | E110: 0.5552688 | F110: -0.01050496373
C111: 1400 | D111: 0.5583140014 | E111: 0.5661728 | F111: -0.01407594746
C112: 1500 | D112: 0.5667597312 | E112: 0.577 | F112: -0.01806809526
C113: 1600 | D113: 0.5748497288 | E113: 0.5877888 | F113: -0.02250861487
C114: 1700 | D114: 0.5826015254 | E114: 0.5985968 | F114: -0.02745491369
C115: 1800 | D115: 0.5900330382 | E115: 0.6095008 | F115: -0.03299435884
C116: 1900 | D116: 0.5971619767 | E116: 0.6205968 | F116: -0.03924366289
C117: 2000 | D117: 0.604005486 | E117: 0.632 | F117: -0.04634811219
C118: 2100 | D118: 0.6105799434 | E118: 0.6438448 | F118: -0.05448075555
C119: 2200 | D119: 0.6169008535 | E119: 0.6562848 | F119: -0.06384161461
C120: 2300 | D120: 0.6229828063 | E120: 0.6694928 | F120: -0.07465694589
D126: Btu/(scf-F) | E126: Btu/(# - F) | G126: Avg. Btu/(scf-F)
B127: =B128-100 -> 0 | C127: =B127+460 -> 460 | D127: =(19.86-597/C127^0.5+7500/C127)/(18*21.011) -> 0.02202306543 | E127: =(19.86-597/C127^0.5+7500/C127)/18 -> 0.4627266278 | G127: =($K$73+(D127-$K$73)/2) -> 0.02168439758 | I127: =(D127+$D$127)/2 -> 0.02202306543 | K127: =(D127-I127)/D127 -> 0
B128: 100 | C128: 560 | D128: 0.02121905097 | E128: 0.44583348 | G128: 0.02128239035 | I128: 0.0216210582 | K128: -0.01894558012
B129: 200 | C129: 660 | D129: 0.02111445032 | E129: 0.4436357156 | G129: 0.02123009003 | I129: 0.02156875787 | K129: -0.02151642838
B130: 300 | C130: 760 | D130: 0.02134584262 | E130: 0.4484974993 | G130: 0.02134578618 | I130: 0.02168445403 | K130: -0.01586310797
B131: 400 | C131: 860 | D131: 0.02174363481 | E131: 0.4568555111 | G131: 0.02154468228 | I131: 0.02188335012 | K131: -0.006425572819
B132: 500 | C132: 960 | D132: 0.02222224299 | E132: 0.4669115474 | G132: 0.02178398636 | I132: 0.02212265421 | K132: 0.004481490774
B133: 600 | C133: 1060 | D133: 0.02273613943 | E133: 0.4777090256 | G133: 0.02204093458 | I133: 0.02237960243 | K133: 0.01568151009
B134: 700 | C134: 1160 | D134: 0.02326028612 | E134: 0.4887218716 | G134: 0.02230300793 | I134: 0.02264167577 | K134: 0.02659513041
B135: 800 | C135: 1260 | D135: 0.02378069499 | E135: 0.4996561824 | G135: 0.02256321236 | I135: 0.02290188021 | K135: 0.03695496616
B136: 900 | C136: 1360 | D136: 0.02428957971 | E136: 0.5103483593 | G136: 0.02281765472 | I136: 0.02315632257 | K136: 0.04665610329
B137: 1000 | C137: 1460 | D137: 0.0247827387 | E137: 0.5207101229 | G137: 0.02306423422 | I137: 0.02340290207 | K137: 0.05567732656
B138: 1100 | C138: 1560 | D138: 0.02525808506 | E138: 0.5306976252 | G138: 0.0233019074 | I138: 0.02364057525 | K138: 0.06403928924
B139: 1200 | C139: 1660 | D139: 0.02571479379 | E139: 0.5402935324 | G139: 0.02353026177 | I139: 0.02386892961 | K139: 0.07178218871
B140: 1300 | C140: 1760 | D140: 0.02615279428 | E140: 0.5494963607 | G140: 0.02374926201 | I140: 0.02408792986 | K140: 0.07895387403
B141: 1400 | C141: 1860 | D141: 0.02657246211 | E141: 0.5583140014 | G141: 0.02395909593 | I141: 0.02429776377 | K141: 0.08560359709
B142: 1500 | C142: 1960 | D142: 0.02697442917 | E142: 0.5667597312 | G142: 0.02416007945 | I142: 0.0244987473 | K142: 0.09177884179
B143: 1600 | C143: 2060 | D143: 0.02735946546 | E143: 0.5748497288 | G143: 0.0243525976 | I143: 0.02469126545 | K143: 0.09752383574
B144: 1700 | C144: 2160 | D144: 0.02772840538 | E144: 0.5826015254 | G144: 0.02453706756 | I144: 0.02487573541 | K144: 0.1028789768
B145: 1800 | C145: 2260 | D145: 0.02808210167 | E145: 0.5900330382 | G145: 0.0247139157 | I145: 0.02505258355 | K145: 0.1078807475
B146: 1900 | C146: 2360 | D146: 0.02842139721 | E146: 0.5971619767 | G146: 0.02488356347 | I146: 0.02522223132 | K146: 0.1125618795
B147: 2000 | C147: 2460 | D147: 0.02874710799 | E147: 0.604005486 | G147: 0.02504641886 | I147: 0.02538508671 | K147: 0.1169516349
B148: 2100 | C148: 2560 | D148: 0.02906001349 | E148: 0.6105799434 | G148: 0.02520287161 | I148: 0.02554153946 | K148: 0.121076132
B149: 2200 | C149: 2660 | D149: 0.02936085162 | E149: 0.6169008535 | G149: 0.02535329068 | I149: 0.02569195853 | K149: 0.1249586743
B150: 2300 | C150: 2760 | D150: 0.0296503168 | E150: 0.6229828063 | G150: 0.02549802327 | I150: 0.02583669112 | K150: 0.1286200654
B154: Average value
D155: (19.86-597/C122^0.5+7500/C122)/(18*21.011)
D157: 19.86 | E157: 597 | F157: 7500
B159: 100

Sheet Cp calculationsHTmod (hidden)
B2: Initial Gas temperature (F) | C2: 60
B3: Final Gas temperature (F) | C3: 1000
E6: Cp | G6: Cp | H6: Sp. Vol | I6: Sp. Wt | J6: Sp. Gravity | K6: Cp | L6: Mean CP
B7: Gas | C7: Temp (F) | D7: Temp ® | E7: Btu/(#mole.F) | F7: Mol wt | G7: Btu/(#F) | H7: SCF/# | I7: #/SCF | J7: wrt Air @stp | K7: Btu/SCF | L7: Btu/SCF
B8: Oxygen | C8: =C2 -> 60 | D8: =460+C8 -> 520 | E8: =11.515-172/D8^0.5 +1530/D8 -> 6.914608726 | F8: 32 | G8: =E8/F8 -> 0.2160815227 | H8: =378.2/F8 -> 11.81875 | I8: =1/H8 -> 0.08461131676 | J8: =I8/0.0763 -> 1.108929446 | K8: =G8/H8 -> 0.01828294216 | L8: =(K8+K9)/2 -> 0.0181599079
B9: Oxygen | C9: ='Av.Ht.Solid - modified'!C88 -> 0 | D9: =460+C9 -> 460 | E9: =11.515-172/D9^0.5 +1530/D9 -> 6.821545606 | F9: 32 | G9: =E9/F9 -> 0.2131733002 | H9: =378.2/F9 -> 11.81875 | I9: =1/H9 -> 0.08461131676 | J9: =I9/0.0763 -> 1.108929446 | K9: =G9/H9 -> 0.01803687363
B11: Nitrogen | C11: =C8 -> 60 | D11: =460+C11 -> 520 | E11: =9.47-3.47*10^3/D11 +1.07*10^6/D11^2 -> 6.754023669 | F11: 28 | G11: =E11/F11 -> 0.241215131 | H11: =378.2/F11 -> 13.50714286 | I11: =1/H11 -> 0.07403490217 | J11: =I11/0.0763 -> 0.9703132656 | K11: =G11/H11 -> 0.01785833863 | L11: =(K11+K12)/2 -> 0.0181613646
B12: Nitrogen | C12: =C9 -> 0 | D12: =460+C12 -> 460 | E12: =9.47-3.47*10^3/D12 +1.07*10^6/D12^2 -> 6.983232514 | F12: 28 | G12: =E12/F12 -> 0.2494011612 | H12: =378.2/F12 -> 13.50714286 | I12: =1/H12 -> 0.07403490217 | J12: =I12/0.0763 -> 0.9703132656 | K12: =G12/H12 -> 0.01846439057
B14: Carbon Monoxide | C14: =C11 -> 60 | D14: =460+C14 -> 520 | E14: =9.46-3.29*10^3/D14+1.07*10^6/D14^2 -> 7.090177515 | F14: 28 | G14: =E14/F14 -> 0.2532206255 | H14: =378.2/F14 -> 13.50714286 | I14: =1/H14 -> 0.07403490217 | J14: =I14/0.0763 -> 0.9703132656 | K14: =G14/H14 -> 0.01874716424 | L14: =(K14+K15)/2 -> 0.01910988151
B15: Carbon Monoxide | C15: =C12 -> 0 | D15: =460+C15 -> 460 | E15: =9.46-3.29*10^3/D15+1.07*10^6/D15^2 -> 7.364536862 | F15: 28 | G15: =E15/F15 -> 0.2630191736 | H15: =378.2/F15 -> 13.50714286 | I15: =1/H15 -> 0.07403490217 | J15: =I15/0.0763 -> 0.9703132656 | K15: =G15/H15 -> 0.01947259879
B17: Hydrogen | C17: =C14 -> 60 | D17: =460+C17 -> 520 | E17: =5.76+0.578*D17/10^3+20/D17^0.5 -> 6.937618019 | F17: 2 | G17: =E17/F17 -> 3.46880901 | H17: =378.2/F17 -> 189.1 | I17: =1/H17 -> 0.005288207298 | J17: =I17/0.0763 -> 0.0693080904 | K17: =G17/H17 -> 0.01834378112 | L17: =(K17+K18)/2 -> 0.01837123589
B18: Hydrogen | C18: =C15 -> 0 | D18: =460+C18 -> 460 | E18: =5.76+0.578*D18/10^3+20/D18^0.5 -> 6.958384808 | F18: 2 | G18: =E18/F18 -> 3.479192404 | H18: =378.2/F18 -> 189.1 | I18: =1/H18 -> 0.005288207298 | J18: =I18/0.0763 -> 0.0693080904 | K18: =G18/H18 -> 0.01839869066
B20: Water vapor (H2O) | C20: =C17 -> 60 | D20: =460+C20 -> 520 | E20: =19.86-597/D20^0.5+7500/D20 -> 8.102895047 | F20: 18 | G20: =E20/F20 -> 0.4501608359 | H20: =378.2/F20 -> 21.01111111 | I20: =1/H20 -> 0.04759386568 | J20: =I20/0.0763 -> 0.6237728136 | K20: =G20/H20 -> 0.02142489436 | L20: =(K20+K21)/2 -> 0.02172392166
B21: Water vapor (H2O) | C21: =C18 -> 0 | D21: =460+C21 -> 460 | E21: =19.86-597/D21^0.5+7500/D21 -> 8.3290793 | F21: 18 | G21: =E21/F21 -> 0.4627266278 | H21: =378.2/F21 -> 21.01111111 | I21: =1/H21 -> 0.04759386568 | J21: =I21/0.0763 -> 0.6237728136 | K21: =G21/H21 -> 0.02202294897
B23: Carbon Dioxide | C23: =C20 -> 60 | D23: =460+C23 -> 520 | E23: =16.2-6.53*10^3/D23+1.41*10^6/D23^2 -> 8.856804734 | F23: 44 | G23: =E23/F23 -> 0.2012910167 | H23: =378.2/F23 -> 8.595454545 | I23: =1/H23 -> 0.1163405605 | J23: =I23/0.0763 -> 1.524777989 | K23: =G23/H23 -> 0.02341830971 | L23: =(K23+K24)/2 -> 0.02316852013
B24: Carbon Dioxide | C24: =C21 -> 0 | D24: =460+C24 -> 460 | E24: =16.2-6.53*10^3/D24+1.41*10^6/D24^2 -> 8.667863894 | F24: 44 | G24: =E24/F24 -> 0.1969969067 | H24: =378.2/F24 -> 8.595454545 | I24: =1/H24 -> 0.1163405605 | J24: =I24/0.0763 -> 1.524777989 | K24: =G24/H24 -> 0.02291873055
B26: Methane - CH4 | C26: =C23 -> 60 | D26: =460+C26 -> 520 | E26: =4.23+0.01177*D26 -> 10.3504 | F26: 16 | G26: =E26/F26 -> 0.6469 | H26: =378.2/F26 -> 23.6375 | I26: =1/H26 -> 0.04230565838 | J26: =I26/0.0763 -> 0.5544647232 | K26: =G26/H26 -> 0.02736753041 | L26: =(K26+K27)/2 -> 0.02643389741
B27: Methane - CH5 | C27: =C24 -> 0 | D27: =460+C27 -> 460 | E27: =4.23+0.01177*D27 -> 9.6442 | F27: 16 | G27: =E27/F27 -> 0.6027625 | H27: =378.2/F27 -> 23.6375 | I27: =1/H27 -> 0.04230565838 | J27: =I27/0.0763 -> 0.5544647232 | K27: =G27/H27 -> 0.02550026441
B29: Ethylene C2H4 | C29: =C26 -> 60 | D29: =460+C29 -> 520 | E29: =4.52+0.00737*D29 -> 8.3524 | F29: 28 | G29: =E29/F29 -> 0.2983 | H29: =378.2/F29 -> 13.50714286 | I29: =1/H29 -> 0.07403490217 | J29: =I29/0.0763 -> 0.9703132656 | K29: =G29/H29 -> 0.02208461132 | L29: =(K29+K30)/2 -> 0.0215
B30: Ethylene C2H5 | C30: =C27 -> 0 | D30: =460+C30 -> 460 | E30: =4.52+0.00737*D30 -> 7.9102 | F30: 28 | G30: =E30/F30 -> 0.2825071429 | H30: =378.2/F30 -> 13.50714286 | I30: =1/H30 -> 0.07403490217 | J30: =I30/0.0763 -> 0.9703132656 | K30: =G30/H30 -> 0.02091538868
B32: Ethane C2H6 | C32: =C29 -> 60 | D32: =460+C32 -> 520 | E32: =4.04+0.01636*D32 -> 12.5472 | F32: 30 | G32: =E32/F32 -> 0.41824 | H32: =378.2/F32 -> 12.60666667 | I32: =1/H32 -> 0.07932310947 | J32: =I32/0.0763 -> 1.039621356 | K32: =G32/H32 -> 0.0331760973 | L32: =(K32+K33)/2 -> 0.03187837123
B33: Ethane C2H7 | C33: =C30 -> 0 | D33: =460+C33 -> 460 | E33: =4.04+0.01636*D33 -> 11.5656 | F33: 30 | G33: =E33/F33 -> 0.38552 | H33: =378.2/F33 -> 12.60666667 | I33: =1/H33 -> 0.07932310947 | J33: =I33/0.0763 -> 1.039621356 | K33: =G33/H33 -> 0.03058064516
B35: Source - Gas Engineers Handbook
B37: For Air at 60 F., 80% Humidity
B38: Composition of gas mixture | C38: % Vol | D38: % mass | E38: Mean CP Btu/scf | F38: Cp-60 F | G38: Cp 1000F
B39: Oxygen | C39: 20.7 | E39: =L8 -> 0.0181599079 | F39: =K8 -> 0.01828294216 | G39: =K9 -> 0.01803687363
B40: Carbon Dioxide | C40: 0 | E40: =L23 -> 0.02316852013 | F40: =K23 -> 0.02341830971 | G40: =K24 -> 0.02291873055
B41: Nitrogen & Other | C41: 78.3 | E41: =L11 -> 0.0181613646 | F41: =K11 -> 0.01785833863 | G41: =K12 -> 0.01846439057
B42: Water vapor | C42: 1 | E42: =L20 -> 0.02172392166 | F42: =K20 -> 0.02142489436 | G42: =K21 -> 0.02202294897
B44: Total | C44: =SUM(C39:C43) -> 100
B45: Mean value | E45: =($C$39*E39+$C$40*E40+$C$41*E41+$C$42*E42)/100 -> 0.01819668863 | F45: =($C$39*F39+$C$40*F40+$C$41*F41+$C$42*F42)/100 -> 0.01798189712 | G45: =($C$39*G39+$C$40*G40+$C$41*G41+$C$42*G42)/100 -> 0.01841148015
F47: B | G47: =(G45-F45)/(1000-60) -> 4.570032253e-07
F48: A | G48: =G45-G47*1000 -> 0.01795447692
E50: cp for air
E51: Temp | F51: Cp (Btu/scf)
E52: 60 | F52: =$G$48+$G$47*E52 -> 0.01798189712
E53: 100 | F53: 0.01800017725
E54: =100+E53 -> 200 | F54: 0.01804587757
E55: 300 | F55: 0.01809157789
E56: 400 | F56: 0.01813727821
E57: 500 | F57: 0.01818297854
E58: 600 | F58: 0.01822867886
E59: 700 | F59: 0.01827437918
E60: 800 | F60: 0.0183200795
E61: 900 | F61: 0.01836577983
E62: 1000 | F62: 0.01841148015
E63: 1100 | F63: 0.01845718047
E64: 1200 | F64: 0.01850288079
E65: 1300 | F65: 0.01854858112
E66: 1400 | F66: 0.01859428144
E67: 1500 | F67: 0.01863998176
E68: ='Av.Ht.Solid - modified'!C86 -> 0 | F68: 0.01795447692 | G68: Air temp. entering sp. Ht.
E70: =100+E67 -> 1600 | F70: =$G$48+$G$47*E70 -> 0.01868568208
E71: Cp | G71: Cp | H71: Sp. Vol | I71: Sp. Wt | J71: Sp. Gravity | K71: Cp | L71: Mean CP
B72: Gas | C72: Temp (F) | D72: Temp ® | E72: Btu/(#mole.F) | F72: Mol wt | G72: Btu/(#F) | H72: SCF/# | I72: #/SCF | J72: wrt Air @stp | K72: Btu/SCF | L72: Btu/SCF
B73: Water vapor (H2O) | C73: 300 | D73: =460+C73 -> 760 | E73: =19.86-597/D73^0.5+7500/D73 -> 8.072954987 | F73: 18 | G73: =E73/F73 -> 0.4484974993 | H73: =378.2/F73 -> 21.01111111 | I73: =1/H73 -> 0.04759386568 | J73: =I73/0.0763 -> 0.6237728136 | K73: =G73/H73 -> 0.02134572974 | N73: =E73/(18*21.011) -> 0.02134584262
C74: =C73+100 -> 400 | D74: 860 | E74: 8.223399199 | F74: =F73 -> 18 | G74: 0.4568555111 | H74: 21.01111111 | I74: 0.04759386568 | J74: 0.6237728136 | K74: 0.02174351983 | N74: 0.02174363481
C75: 500 | D75: 960 | E75: 8.404407853 | F75: 18 | G75: 0.4669115474 | H75: 21.01111111 | I75: 0.04759386568 | J75: 0.6237728136 | K75: 0.02222212547 | N75: 0.02222224299
C76: 600 | D76: 1060 | E76: 8.598762461 | F76: 18 | G76: 0.4777090256 | H76: 21.01111111 | I76: 0.04759386568 | J76: 0.6237728136 | K76: 0.0227360192 | N76: 0.02273613943
C77: 700 | D77: 1160 | E77: 8.796993689 | F77: 18 | G77: 0.4887218716 | H77: 21.01111111 | I77: 0.04759386568 | J77: 0.6237728136 | K77: 0.02326016311 | N77: 0.02326028612
C78: 800 | D78: 1260 | E78: 8.993811283 | F78: 18 | G78: 0.4996561824 | H78: 21.01111111 | I78: 0.04759386568 | J78: 0.6237728136 | K78: 0.02378056923 | N78: 0.02378069499
C79: 900 | D79: 1360 | E79: 9.186270468 | F79: 18 | G79: 0.5103483593 | H79: 21.01111111 | I79: 0.04759386568 | J79: 0.6237728136 | K79: 0.02428945126 | N79: 0.02428957971
C80: 1000 | D80: 1460 | E80: 9.372782212 | F80: 18 | G80: 0.5207101229 | H80: 21.01111111 | I80: 0.04759386568 | J80: 0.6237728136 | K80: 0.02478260765 | N80: 0.0247827387
C81: 1100 | D81: 1560 | E81: 9.552557254 | F81: 18 | G81: 0.5306976252 | H81: 21.01111111 | I81: 0.04759386568 | J81: 0.6237728136 | K81: 0.02525795149 | N81: 0.02525808506
C82: 1200 | D82: 1660 | E82: 9.725283583 | F82: 18 | G82: 0.5402935324 | H82: 21.01111111 | I82: 0.04759386568 | J82: 0.6237728136 | K82: 0.02571465781
C83: 1300 | D83: 1760 | E83: 9.890934492 | F83: 18 | G83: 0.5494963607 | H83: 21.01111111 | I83: 0.04759386568 | J83: 0.6237728136 | K83: 0.02615265598
C84: 1400 | D84: 1860 | E84: 10.04965203 | F84: 18 | G84: 0.5583140014 | H84: 21.01111111 | I84: 0.04759386568 | J84: 0.6237728136 | K84: 0.02657232159
C85: 1500 | D85: 1960 | E85: 10.20167516 | F85: 18 | G85: 0.5667597312 | H85: 21.01111111 | I85: 0.04759386568 | J85: 0.6237728136 | K85: 0.02697428652
C86: 1600 | D86: 2060 | E86: 10.34729512 | F86: 18 | G86: 0.5748497288 | H86: 21.01111111 | I86: 0.04759386568 | J86: 0.6237728136 | K86: 0.02735932078
C87: 1700 | D87: 2160 | E87: 10.48682746 | F87: 18 | G87: 0.5826015254 | H87: 21.01111111 | I87: 0.04759386568 | J87: 0.6237728136 | K87: 0.02772825874
C88: 1800 | D88: 2260 | E88: 10.62059469 | F88: 18 | G88: 0.5900330382 | H88: 21.01111111 | I88: 0.04759386568 | J88: 0.6237728136 | K88: 0.02808195317
C89: 1900 | D89: 2360 | E89: 10.74891558 | F89: 18 | G89: 0.5971619767 | H89: 21.01111111 | I89: 0.04759386568 | J89: 0.6237728136 | K89: 0.02842124691
C90: 2000 | D90: 2460 | E90: 10.87209875 | F90: 18 | G90: 0.604005486 | H90: 21.01111111 | I90: 0.04759386568 | J90: 0.6237728136 | K90: 0.02874695597
C91: 2100 | D91: 2560 | E91: 10.99043898 | F91: 18 | G91: 0.6105799434 | H91: 21.01111111 | I91: 0.04759386568 | J91: 0.6237728136 | K91: 0.02905985981
C92: 2200 | D92: 2660 | E92: 11.10421536 | F92: 18 | G92: 0.6169008535 | H92: 21.01111111 | I92: 0.04759386568 | J92: 0.6237728136 | K92: 0.02936069636
C93: 2300 | D93: 2760 | E93: 11.21369051 | F93: 18 | G93: 0.6229828063 | H93: 21.01111111 | I93: 0.04759386568 | J93: 0.6237728136 | K93: 0.02965016001
C94: ='Av.Ht.Solid - current '!C88 -> 0 | D94: 460 | E94: 8.3290793 | F94: 18 | G94: 0.4627266278 | H94: 21.01111111 | I94: 0.04759386568 | J94: 0.6237728136 | K94: 0.02202294897
C100: 300 | D100: 0.4484974993 | E100: =0.424+6*10^-5*C100+7*10^-8*C100^2-4*10^-11*C100^3+8*10^-15*C100^4 -> 0.4472848 | F100: =(D100-E100)/D100 -> 0.002703915342
C101: 400 | D101: 0.4568555111 | E101: 0.4568448 | F101: 2.344521527e-05
C102: 500 | D102: 0.4669115474 | E102: 0.467 | F102: -0.0001894419464
C103: 600 | D103: 0.4777090256 | E103: 0.4775968 | F103: 0.0002349245754
C104: 700 | D104: 0.4887218716 | E104: 0.4885008 | F104: 0.00045234645
C105: 800 | D105: 0.4996561824 | E105: 0.4995968 | F105: 0.0001188465323
C106: 900 | D106: 0.5103483593 | E106: 0.5107888 | F106: -0.000863019698
C107: 1000 | D107: 0.5207101229 | E107: 0.522 | F107: -0.002477150052
C108: 1100 | D108: 0.5306976252 | E108: 0.5331728 | F108: -0.004664001989
C109: 1200 | D109: 0.5402935324 | E109: 0.5442688 | F109: -0.007357607251
C110: 1300 | D110: 0.5494963607 | E110: 0.5552688 | F110: -0.01050496373
C111: 1400 | D111: 0.5583140014 | E111: 0.5661728 | F111: -0.01407594746
C112: 1500 | D112: 0.5667597312 | E112: 0.577 | F112: -0.01806809526
C113: 1600 | D113: 0.5748497288 | E113: 0.5877888 | F113: -0.02250861487
C114: 1700 | D114: 0.5826015254 | E114: 0.5985968 | F114: -0.02745491369
C115: 1800 | D115: 0.5900330382 | E115: 0.6095008 | F115: -0.03299435884
C116: 1900 | D116: 0.5971619767 | E116: 0.6205968 | F116: -0.03924366289
C117: 2000 | D117: 0.604005486 | E117: 0.632 | F117: -0.04634811219
C118: 2100 | D118: 0.6105799434 | E118: 0.6438448 | F118: -0.05448075555
C119: 2200 | D119: 0.6169008535 | E119: 0.6562848 | F119: -0.06384161461
C120: 2300 | D120: 0.6229828063 | E120: 0.6694928 | F120: -0.07465694589
D126: Btu/(scf-F) | E126: Btu/(# - F) | G126: Avg. Btu/(scf-F)
B127: =B128-100 -> 0 | C127: =B127+460 -> 460 | D127: =(19.86-597/C127^0.5+7500/C127)/(18*21.011) -> 0.02202306543 | E127: =(19.86-597/C127^0.5+7500/C127)/18 -> 0.4627266278 | G127: =($K$73+(D127-$K$73)/2) -> 0.02168439758 | I127: =(D127+$D$127)/2 -> 0.02202306543 | K127: =(D127-I127)/D127 -> 0
B128: 100 | C128: 560 | D128: 0.02121905097 | E128: 0.44583348 | G128: 0.02128239035 | I128: 0.0216210582 | K128: -0.01894558012
B129: 200 | C129: 660 | D129: 0.02111445032 | E129: 0.4436357156 | G129: 0.02123009003 | I129: 0.02156875787 | K129: -0.02151642838
B130: 300 | C130: 760 | D130: 0.02134584262 | E130: 0.4484974993 | G130: 0.02134578618 | I130: 0.02168445403 | K130: -0.01586310797
B131: 400 | C131: 860 | D131: 0.02174363481 | E131: 0.4568555111 | G131: 0.02154468228 | I131: 0.02188335012 | K131: -0.006425572819
B132: 500 | C132: 960 | D132: 0.02222224299 | E132: 0.4669115474 | G132: 0.02178398636 | I132: 0.02212265421 | K132: 0.004481490774
B133: 600 | C133: 1060 | D133: 0.02273613943 | E133: 0.4777090256 | G133: 0.02204093458 | I133: 0.02237960243 | K133: 0.01568151009
B134: 700 | C134: 1160 | D134: 0.02326028612 | E134: 0.4887218716 | G134: 0.02230300793 | I134: 0.02264167577 | K134: 0.02659513041
B135: 800 | C135: 1260 | D135: 0.02378069499 | E135: 0.4996561824 | G135: 0.02256321236 | I135: 0.02290188021 | K135: 0.03695496616
B136: 900 | C136: 1360 | D136: 0.02428957971 | E136: 0.5103483593 | G136: 0.02281765472 | I136: 0.02315632257 | K136: 0.04665610329
B137: 1000 | C137: 1460 | D137: 0.0247827387 | E137: 0.5207101229 | G137: 0.02306423422 | I137: 0.02340290207 | K137: 0.05567732656
B138: 1100 | C138: 1560 | D138: 0.02525808506 | E138: 0.5306976252 | G138: 0.0233019074 | I138: 0.02364057525 | K138: 0.06403928924
B139: 1200 | C139: 1660 | D139: 0.02571479379 | E139: 0.5402935324 | G139: 0.02353026177 | I139: 0.02386892961 | K139: 0.07178218871
B140: 1300 | C140: 1760 | D140: 0.02615279428 | E140: 0.5494963607 | G140: 0.02374926201 | I140: 0.02408792986 | K140: 0.07895387403
B141: 1400 | C141: 1860 | D141: 0.02657246211 | E141: 0.5583140014 | G141: 0.02395909593 | I141: 0.02429776377 | K141: 0.08560359709
B142: 1500 | C142: 1960 | D142: 0.02697442917 | E142: 0.5667597312 | G142: 0.02416007945 | I142: 0.0244987473 | K142: 0.09177884179
B143: 1600 | C143: 2060 | D143: 0.02735946546 | E143: 0.5748497288 | G143: 0.0243525976 | I143: 0.02469126545 | K143: 0.09752383574
B144: 1700 | C144: 2160 | D144: 0.02772840538 | E144: 0.5826015254 | G144: 0.02453706756 | I144: 0.02487573541 | K144: 0.1028789768
B145: 1800 | C145: 2260 | D145: 0.02808210167 | E145: 0.5900330382 | G145: 0.0247139157 | I145: 0.02505258355 | K145: 0.1078807475
B146: 1900 | C146: 2360 | D146: 0.02842139721 | E146: 0.5971619767 | G146: 0.02488356347 | I146: 0.02522223132 | K146: 0.1125618795
B147: 2000 | C147: 2460 | D147: 0.02874710799 | E147: 0.604005486 | G147: 0.02504641886 | I147: 0.02538508671 | K147: 0.1169516349
B148: 2100 | C148: 2560 | D148: 0.02906001349 | E148: 0.6105799434 | G148: 0.02520287161 | I148: 0.02554153946 | K148: 0.121076132
B149: 2200 | C149: 2660 | D149: 0.02936085162 | E149: 0.6169008535 | G149: 0.02535329068 | I149: 0.02569195853 | K149: 0.1249586743
B150: 2300 | C150: 2760 | D150: 0.0296503168 | E150: 0.6229828063 | G150: 0.02549802327 | I150: 0.02583669112 | K150: 0.1286200654
B154: Average value
D155: (19.86-597/C122^0.5+7500/C122)/(18*21.011)
D157: 19.86 | E157: 597 | F157: 7500
B159: 100

Sheet Radiation losses from opening
A2: 1.1
A3: + 92.85714285700499 * x | D3: 3.5 | G3: 2.7 | L3: 13
A4: - 57.589285713967165 * x^2 | D4: + 89.58333333320397 * x | G4: + 112.67857142839111 * x | H4: Help | L4: + 123.74999999979063 * x
A5: + 15.624999999800524 * x^3 | D5: - 49.99999999970236 * x^2 | G5: - 70.98214285673158 * x^2 | H5: Copy Current to Modified | L5: - 99.99999999951825 * x^2
D6: + 10.416666666480479 * x^3 | G6: + 15.624999999744734 * x^3 | H6: Done Entering Data | L6: + 31.249999999699078 * x^3
A7: f(x) = | D7: f(x) = | G7: f(x) = | H7: Display Chart | L7: f(x) =
H8: Print Sheet
A9: 29.5 | D9: 24 | G9: 35.5 | H9: =IF('Control page'!J2 = "English",#REF!,#REF!) ->  | L9: 26.99999999
A10: + 26.84166666841611 * x | D10: + 39.39166667187432 * x | G10: + 29.458333334781596 * x | L10: + 64.56666668066461 * x
A11: - 4.354166667853229 * x^2 | D11: - 11.604166669748727 * x^2 | G11: - 4.520833334469769 * x^2 | L11: - 29.916666674500892 * x^2
A12: - 0.0833333330461522 * x^3 | D12: + 1.8541666670689478 * x^3 | G12: - 0.6874999996066529 * x^3 | L12: + 7.145833333961459 * x^3
A13: + 0.10416666665553202 * x^4 | D13: - 0.14583333321793268 * x^4 | G13: + 0.2708333332730645 * x^4 | L13: - 0.8333333328744414 * x^4
A14: - 0.008333333336867471 * x^5 | D14: + 0.004166666639021022 * x^5 | G14: - 0.020833333330372142 * x^5 | L14: + 0.037499999908537356 * x^5
A17: Ratio(Dia/Thk.) | B17: Cylindrical | C17: Square | D17: 2x1 Rectangular
A18: 0 | B18: =+ 1.10000000001829 + 92.8571428570049 *A18 - 57.5892857139671 * A18^2 + 15.6249999998005 *A18^3 -> 1.1 | C18: =+ 3.50000000001719 + 89.5833333332039 * A18 - 49.9999999997023 * A18^2 + 10.4166666664804 * A18^3 -> 3.5 | D18: =+ 2.70000000002409 + 112.678571428391 * A18 - 70.9821428567315 * A18^2 + 15.6249999997447 * A18^3 -> 2.7
A19: 0.2 | B19: =+ 1.10000000001829 + 92.8571428570049 *A19 - 57.5892857139671 * A19^2 + 15.6249999998005 *A19^3 -> 17.49285714 | C19: =+ 3.50000000001719 + 89.5833333332039 * A19 - 49.9999999997023 * A19^2 + 10.4166666664804 * A19^3 -> 19.5 | D19: =+ 2.70000000002409 + 112.678571428391 * A19 - 70.9821428567315 * A19^2 + 15.6249999997447 * A19^3 -> 22.52142857
A20: 0.4 | B20: =+ 1.10000000001829 + 92.8571428570049 *A20 - 57.5892857139671 * A20^2 + 15.6249999998005 *A20^3 -> 30.02857143 | C20: =+ 3.50000000001719 + 89.5833333332039 * A20 - 49.9999999997023 * A20^2 + 10.4166666664804 * A20^3 -> 32 | D20: =+ 2.70000000002409 + 112.678571428391 * A20 - 70.9821428567315 * A20^2 + 15.6249999997447 * A20^3 -> 37.41428571
A21: 0.6 | B21: =+ 1.10000000001829 + 92.8571428570049 *A21 - 57.5892857139671 * A21^2 + 15.6249999998005 *A21^3 -> 39.45714286 | C21: =+ 3.50000000001719 + 89.5833333332039 * A21 - 49.9999999997023 * A21^2 + 10.4166666664804 * A21^3 -> 41.5 | D21: =+ 2.70000000002409 + 112.678571428391 * A21 - 70.9821428567315 * A21^2 + 15.6249999997447 * A21^3 -> 48.12857143
A22: 0.8 | B22: =+ 1.10000000001829 + 92.8571428570049 *A22 - 57.5892857139671 * A22^2 + 15.6249999998005 *A22^3 -> 46.52857143 | C22: =+ 3.50000000001719 + 89.5833333332039 * A22 - 49.9999999997023 * A22^2 + 10.4166666664804 * A22^3 -> 48.5 | D22: =+ 2.70000000002409 + 112.678571428391 * A22 - 70.9821428567315 * A22^2 + 15.6249999997447 * A22^3 -> 55.41428571
A23: 1 | B23: =+ 29.4999999989821 + 26.8416666684161 * A23 - 4.35416666785322 * A23^2 - 0.0833333330461522 *A23^3 + 0.104166666655532 * A23^4 - 0.00833333333686747 *A23^5 -> 52 | C23: =+ 23.9999999965639 + 39.3916666718743 * A23 - 11.6041666697487 * A23^2 + 1.85416666706894 *A23^3 - 0.145833333217932 * A23^4 + 0.00416666663902102 *A23^5 -> 53.5 | D23: =+ 35.4999999992976 + 29.4583333347815 * A23 - 4.52083333446976 *A23^2 - 0.687499999606652 *A23^3 + 0.270833333273064 *A23^4 - 0.0208333333303721 * A23^5 -> 60
A24: 2 | B24: 66.5 | C24: 69 | D24: 74.5
A25: 3 | B25: 75 | C25: 77 | D25: 81.5
A26: 4 | B26: 80 | C26: 81.5 | D26: 85
A27: 5 | B27: 83.5 | C27: 84.49999998 | D27: 88
A28: 6 | B28: 85.99999999 | C28: 86.49999994 | D28: 90
B31: Number of Openings | C31: ='Control page'!D19 -> 6 | D31: =IF('Control page'!J2="English", "from control sheet", "来自控制页面") -> 来自控制页面
B33: Radiation losses from openings
B34: Equipment name or designation | O34: Round | Q34: =OR(C35=O$34,C35=P$34) -> FALSE
B35: Shape of opening | C35: Rectangular | I35: Calculations - Rectangular
B36: Name or designation of the opening | D36: Current | E36: Modified
B37: Number of openings of same size and shape
B38: Total opening area | C38: ft^2 | D38: =IF($C35="Rectangular",D37*D42*D43/144,(D37*PI()*(D42^2)/4)/144) -> 0 | E38: =IF($C35="Rectangular",E37*E42*E43/144,(E37*PI()*(E42^2)/4)/144) -> 0 | I38: ft^2 | J38: =D38 -> 0 | K38: 0
B39: Average zone or radiation source temp. | C39: deg. F. | I39: deg. F. | J39: 0 | K39: 0
B40: Ambient Temperature | C40: deg. F. | I40: deg. F. | J40: 0 | K40: 0
B41: Wall thickness or opening depth (Thickness) | C41: Inch
B42: =IF(C35="Round","Diameter of Opening","Length of Opening (L)") -> Length of Opening (L) | C42: Inch
B43: =IF(C35="Round","","Height of Opening (H)") -> Height of Opening (H) | C43: Inch
B44: View factor - user defined if known or from chart | H44: =$H$7 -> Display Chart | J44: =D44 -> 0 | K44: 0 | L44: Use user defined or calculated if user defined
B45: Emissivity of the source (Typical - 0.9) | F45: =IF(OR(D45>1,E45>1),"Surface emmissivity cannot be greater than 1","") ->  | J45: 0 | K45: 0 | L45: =IF($C$31=0,0,1) -> 1 | M45: Control
B46: % Open time | C46: % | J46: 0 | K46: 0
I47: Btu/hr | J47: =0.1713*10^-8*J45*((J39+460)^4 - (J40+460)^4)*J44*J38*D46/100 -> 0 | K47: =0.1713*10^-8*K45*((K39+460)^4 - (K40+460)^4)*K44*K38*K46/100 -> 0
I48: Btu/hr | J48: =J47 -> 0 | K48: =K47 -> 0
B49: View factor calculated | D49: =D44 -> 0 | E49: =E44 -> 0
B50: Ratio X (lowest of height or length/wall thickness) | D50: =IF(C35="Rectangular",(MIN(D42:D43)/(D41/1000)),D42/(D41/1000)) ->  | E50: =IF(C35="Rectangular",(MIN(E42:E43)/(E41/1000)),E42/(E41/1000)) -> 
B51: Radiation loss | C51: Btu/hr | D51: =L45*J47 -> 0 | E51: =L45*K47 -> 0
B52: Radiation loss | C52: Btu/hr | D52: =D51 -> 0 | E52: =E51 -> 0
B55: Equipment name or designation
B56: Shape of opening | C56: Rectangular | I56: Calculations - 2nd Opening
B57: Name or designation of the opening | D57: Current | E57: Modified
B58: Number of openings of same size and shape
B59: Total opening area | C59: ft^2 | D59: =IF($C56="Rectangular",D58*D63*D64/144,(D58*PI()*(D63^2)/4)/144) -> 0 | E59: =IF($C56="Rectangular",E58*E63*E64/144,(E58*PI()*(E63^2)/4)/144) -> 0 | I59: ft^2 | J59: =D59 -> 0 | K59: 0 | Q59: =OR(C56=O$34,C56=P$34) -> FALSE
B60: Average zone or radiation source temp. | C60: deg. F. | I60: deg. F. | J60: 0 | K60: 0
B61: Ambient Temperature | C61: deg. F. | I61: deg. F. | J61: 0 | K61: 0
B62: Wall thickness or opening depth (Thickness) | C62: Inch | J62: =D65 -> 0 | K62: 0
B63: =IF(C56="Round","Diameter of Opening","Length of Opening (L)") -> Length of Opening (L) | C63: Inch | J63: 0 | K63: 0
B64: =IF(C56="Round","","Height of Opening (H)") -> Height of Opening (H) | C64: Inch | J64: 0 | K64: 0
B65: View factor - user defined if known or from chart | H65: =$H$7 -> Display Chart | I65: Btu/hr | J65: =0.1713*10^-8*J63*((J60+460)^4 - (J61+460)^4)*J62*J59*J64/100 -> 0 | K65: =0.1713*10^-8*K63*((K60+460)^4 - (K61+460)^4)*K62*K59*K64/100 -> 0
B66: Emissivity of the source (Typical - 0.9) | F66: =IF(OR(D66>1,E66>1),"Surface emmissivity cannot be greater than 1","") ->  | I66: Btu/hr | J66: =J65 -> 0 | K66: =K65 -> 0 | L66: =IF($C$31>1,1,0) -> 1 | M66: Control
B67: % Open time | C67: %
B70: View factor calculated | D70: =D65 -> 0 | E70: =E65 -> 0
B71: Ratio X (lowest of height or length/wall thickness) | D71: =IF(C56="Rectangular",(MIN(D63:D64)/(D62/1000)),D63/(D62/1000)) ->  | E71: =IF(C56="Rectangular",(MIN(E63:E64)/(E62/1000)),E63/(E62/1000)) -> 
B72: Radiation loss | C72: Btu/hr | D72: =J65*L66 -> 0 | E72: =K65*L66 -> 0
B73: Radiation loss | C73: Btu/hr | D73: =D72 -> 0 | E73: =E72 -> 0
B76: Equipment name or designation
B77: Shape of opening | C77: Rectangular | I77: Calculations - 3rd Opening
B78: Name or designation of the opening | D78: Current | E78: Modified
B79: Number of openings of same size and shape | D79: 0 | E79: 0
B80: Total opening area | C80: ft^2 | D80: =IF($C77="Rectangular",D79*D84*D85/144,(D79*PI()*(D84^2)/4)/144) -> 0 | E80: =IF($C77="Rectangular",E79*E84*E85/144,(E79*PI()*(E84^2)/4)/144) -> 0 | I80: ft^2 | J80: =D80 -> 0 | K80: 0
B81: Average zone or radiation source temp. | C81: deg. F. | I81: deg. F. | J81: 0 | K81: 0
B82: Ambient Temperature | C82: deg. F. | I82: deg. F. | J82: 0 | K82: 0
B83: Wall thickness or opening depth (Thickness) | C83: Inch | J83: =D86 -> 0 | K83: 0
B84: =IF(C77="Round","Diameter of Opening","Length of Opening (L)") -> Length of Opening (L) | C84: Inch | J84: 0.9 | K84: 0.9
B85: =IF(C77="Round","","Height of Opening (H)") -> Height of Opening (H) | C85: Inch | J85: 100 | K85: 100
B86: View factor - user defined if known or from chart | H86: =$H$7 -> Display Chart | I86: Btu/hr | J86: =0.1713*10^-8*J84*((J81+460)^4 - (J82+460)^4)*J83*J80*J85/100 -> 0 | K86: =0.1713*10^-8*K84*((K81+460)^4 - (K82+460)^4)*K83*K80*K85/100 -> 0
B87: Emissivity of the source (Typical - 0.9) | D87: 0.9 | E87: 0.9 | F87: =IF(OR(D87>1,E87>1),"Surface emmissivity cannot be greater than 1","") ->  | I87: Btu/hr | J87: =J86 -> 0 | K87: =K86 -> 0 | L87: =IF($C$31>2,1,0) -> 1 | M87: Control
B88: % Open time | C88: % | D88: 100 | E88: 100
B91: View factor calculated | D91: =D86 -> 0 | E91: =E86 -> 0
B92: Ratio X (lowest of height or length/wall thickness) | D92: =IF(C77="Rectangular",(MIN(D84:D85)/(D83/1000)),D84/(D83/1000)) ->  | E92: =IF(C77="Rectangular",(MIN(E84:E85)/(E83/1000)),E84/(E83/1000)) -> 
B93: Radiation loss | C93: Btu/hr | D93: =J86*L87 -> 0 | E93: =K86*L87 -> 0
B94: Radiation loss | C94: Btu/hr | D94: =D93 -> 0 | E94: =E93 -> 0
B97: Equipment name or designation
B98: Shape of opening | C98: Rectangular | I98: Calculations - 4th Opening
B99: Name or designation of the opening | D99: Current | E99: Modified
B100: Number of openings of same size and shape | D100: 0 | E100: 0
B101: Total opening area | C101: ft^2 | D101: =IF($C98="Rectangular",D100*D105*D106/144,(D100*PI()*(D105^2)/4)/144) -> 0 | E101: =IF($C98="Rectangular",E100*E105*E106/144,(E100*PI()*(E105^2)/4)/144) -> 0 | I101: ft^2 | J101: =D101 -> 0 | K101: 0
B102: Average zone or radiation source temp. | C102: deg. F. | I102: deg. F. | J102: 0 | K102: 0
B103: Ambient Temperature | C103: deg. F. | I103: deg. F. | J103: 0 | K103: 0
B104: Wall thickness or opening depth (Thickness) | C104: Inch | J104: =D107 -> 0 | K104: 0
B105: =IF(C98="Round","Diameter of Opening","Length of Opening (L)") -> Length of Opening (L) | C105: Inch | J105: 0.9 | K105: 0.9
B106: =IF(C98="Round","","Height of Opening (H)") -> Height of Opening (H) | C106: Inch | J106: 100 | K106: 100
B107: View factor - user defined if known or from chart | H107: =$H$7 -> Display Chart | I107: Btu/hr | J107: =0.1713*10^-8*J105*((J102+460)^4 - (J103+460)^4)*J104*J101*J106/100 -> 0 | K107: =0.1713*10^-8*K105*((K102+460)^4 - (K103+460)^4)*K104*K101*K106/100 -> 0
B108: Emissivity of the source (Typical - 0.9) | D108: 0.9 | E108: 0.9 | F108: =IF(OR(D108>1,E108>1),"Surface emmissivity cannot be greater than 1","") ->  | I108: Btu/hr | J108: =J107 -> 0 | K108: =K107 -> 0 | L108: =IF($C$31>3,1,0) -> 1 | M108: Control
B109: % Open time | C109: % | D109: 100 | E109: 100
B112: View factor calculated | D112: =D107 -> 0 | E112: =E107 -> 0
B113: Ratio X (lowest of height or length/wall thickness) | D113: =IF(C98="Rectangular",(MIN(D105:D106)/(D104/1000)),D105/(D104/1000)) ->  | E113: =IF(C98="Rectangular",(MIN(E105:E106)/(E104/1000)),E105/(E104/1000)) -> 
B114: Radiation loss | C114: Btu/hr | D114: =J107*L108 -> 0 | E114: =K107*L108 -> 0
B115: Radiation loss | C115: Btu/hr | D115: =D114 -> 0 | E115: =E114 -> 0
B118: Equipment name or designation
B119: Shape of opening | C119: Rectangular | I119: Calculations - 5th Opening
B120: Name or designation of the opening | D120: Current | E120: Modified
B121: Number of openings of same size and shape | D121: 0 | E121: 0
B122: Total opening area | C122: ft^2 | D122: =IF($C119="Rectangular",D121*D126*D127/144,(D121*PI()*(D126^2)/4)/144) -> 0 | E122: =IF($C119="Rectangular",E121*E126*E127/144,(E121*PI()*(E126^2)/4)/144) -> 0 | I122: ft^2 | J122: =D122 -> 0 | K122: 0
B123: Average zone or radiation source temp. | C123: deg. F. | I123: deg. F. | J123: 0 | K123: 0
B124: Ambient Temperature | C124: deg. F. | I124: deg. F. | J124: 0 | K124: 0
B125: Wall thickness or opening depth (Thickness) | C125: Inch | J125: =D128 -> 0 | K125: 0
B126: =IF(C119="Round","Diameter of Opening","Length of Opening (L)") -> Length of Opening (L) | C126: Inch | J126: 0.9 | K126: 0.9
B127: =IF(C119="Round","","Height of Opening (H)") -> Height of Opening (H) | C127: Inch | J127: 100 | K127: 100
B128: View factor - user defined if known or from chart | H128: =$H$7 -> Display Chart | I128: Btu/hr | J128: =0.1713*10^-8*J126*((J123+460)^4 - (J124+460)^4)*J125*J122*J127/100 -> 0 | K128: =0.1713*10^-8*K126*((K123+460)^4 - (K124+460)^4)*K125*K122*K127/100 -> 0
B129: Emissivity of the source (Typical - 0.9) | D129: 0.9 | E129: 0.9 | F129: =IF(OR(D129>1,E129>1),"Surface emmissivity cannot be greater than 1","") ->  | I129: kJ/hr | J129: =J128 -> 0 | K129: =K128 -> 0 | L129: =IF($C$31>4,1,0) -> 1 | M129: Control
B130: % Open time | C130: % | D130: 100 | E130: 100
B133: View factor calculated | D133: =D128 -> 0 | E133: =E128 -> 0
B134: Ratio X (lowest of height or length/wall thickness) | D134: =IF(C119="Rectangular",(MIN(D126:D127)/(D125/1000)),D126/(D125/1000)) ->  | E134: =IF(C119="Rectangular",(MIN(E126:E127)/(E125/1000)),E126/(E125/1000)) -> 
B135: Radiation loss | C135: Btu/hr | D135: =J129*L129 -> 0 | E135: =K129*L129 -> 0
B136: Radiation loss | C136: Btu/hr | D136: =D135 -> 0 | E136: =E135 -> 0
B139: Equipment name or designation
B140: Shape of opening | C140: Rectangular | I140: Calculations - 6th Opening
B141: Name or designation of the opening | D141: Current | E141: Modified
B142: Number of openings of same size and shape | D142: 0 | E142: 0
B143: Total opening area | C143: ft^2 | D143: =IF($C140="Rectangular",D142*D147*D148/144,(D142*PI()*(D147^2)/4)/144) -> 0 | E143: =IF($C140="Rectangular",E142*E147*E148/144,(E142*PI()*(E147^2)/4)/144) -> 0 | I143: ft^2 | J143: =D143 -> 0 | K143: 0 | Q143: =OR(C140=O$34,C140=P$34) -> FALSE
B144: Average zone or radiation source temp. | C144: deg. F. | I144: deg. F. | J144: 0 | K144: 0
B145: Ambient Temperature | C145: deg. F. | I145: deg. F. | J145: 0 | K145: 0
B146: Wall thickness or opening depth (Thickness) | C146: Inch | J146: =D149 -> 0 | K146: 0
B147: =IF(C140="Round","Diameter of Opening","Length of Opening (L)") -> Length of Opening (L) | C147: Inch | J147: 0.9 | K147: 0.9
B148: =IF(C140="Round","","Height of Opening (H)") -> Height of Opening (H) | C148: Inch | J148: 100 | K148: 100
B149: View factor - user defined if known or from chart | H149: =$H$7 -> Display Chart | I149: Btu/hr | J149: =0.1713*10^-8*J147*((J144+460)^4 - (J145+460)^4)*J146*J143*J148/100 -> 0 | K149: =0.1713*10^-8*K147*((K144+460)^4 - (K145+460)^4)*K146*K143*K148/100 -> 0
B150: Emissivity of the source (Typical - 0.9) | D150: 0.9 | E150: 0.9 | F150: =IF(OR(D150>1,E150>1),"Surface emmissivity cannot be greater than 1","") ->  | I150: Btu/hr | J150: =J149 -> 0 | K150: =K149 -> 0 | L150: =IF($C$31>5,1,0) -> 1 | M150: Control
B151: % Open time | C151: % | D151: 100 | E151: 100
B154: View factor calculated | D154: =D149 -> 0 | E154: =E149 -> 0
B155: Ratio X (lowest of height or length/wall thickness) | D155: =IF(C140="Rectangular",(MIN(D147:D148)/(D146/1000)),D147/(D146/1000)) ->  | E155: =IF(C140="Rectangular",(MIN(E147:E148)/(E146/1000)),E147/(E146/1000)) -> 
B156: Radiation loss | C156: Btu/hr | D156: =J150*L150 -> 0 | E156: =K150*L150 -> 0
B157: Radiation loss | C157: Btu/hr | D157: =D156 -> 0 | E157: =E156 -> 0
B160: Total Radiation Losses From Openings | C160: Btu/hr | D160: =D73+D52+D94+D115+D136+D157 -> 0 | E160: =E73+E52+E94+E115+E136+E157 -> 0
B162: NOTES:
B163: Enter notes here on proposed changes for the "Modified" conditions.
I164: =IF(B164="",0,1) -> 0
I165: =IF(B165="",0,1) -> 0
I166: =IF(B166="",0,1) -> 0
I167: =IF(B167="",0,1) -> 0
I168: =IF(B168="",0,1) -> 0
I169: =SUM(I164:I168) -> 0

Sheet 8- Power- Motor driven systems
K2: Help
B3: Number of Motors (from control page) | C3: ='Control page'!D20 -> 10 | D3: from control sheet | K3: Copy Current to Modified
K4: Print Sheet
B5: ='Control page'!C20 -> Power use by Electric Motors & Other Devices | N5: ='Control page'!J2 -> 0
D7: Current | E7: Modified | K7: Done Entering Data
B9: Name or designation of the drive motor | C9: Fans for combustion air; exhaust; or other use
B10: Electric motor or fan Model
B11: Pressure (for fans only) | C11: Psi | K11: Calcualtions | M11: Current | N11: Modified
B12: Flow (for fans only) | C12: ft^3/hr | K12: Power used | L12: kW | M12: =D14^0.5*D15*D17*D16*(D18/100)/1000 -> 0 | N12: =E14^0.5*E15*E17*E16*(E18/100)/1000 -> 0
B13: Motor power (name plate) | C13: kW
B14: Motor phase
B15: Supply voltage | C15: Volts
B16: Average current | C16: Amps
B17: Power factor (average value) (Typical - 0.85) | G17: Power Conversion | S17: =IF('Control page'!J2="English",1,2) -> 2 | T17: 1 | U17: =VLOOKUP(T17,L$17:N$20,S$17+1) -> 
B18: % Operating time (as % of total time) (Typical - 100%) | G18: HP | H18: kW
H19: =G19*0.74569987 -> 0
D22: Current | E22: Modified
B24: Name or designation of the drive motor | C24: Fans for combustion air; exhaust; or other use | T24: 1 | U24: =VLOOKUP(T24,L$17:N$20,S$17+1) -> 
B25: Electric motor or fan Model
B26: Pressure (for fans only) | C26: Psi | K26: Calcualtions | M26: Current | N26: Modified
B27: Flow (for fans only) | C27: ft^3/hr | K27: Power used | L27: kW | M27: =D29^0.5*D30*D32*D31*(D33/100)/1000 -> 0 | N27: =E29^0.5*E30*E32*E31*(E33/100)/1000 -> 0
B28: Motor power (name plate) | C28: kW
B29: Motor phase
B30: Supply voltage | C30: Volts
B31: Average current | C31: Amps
B32: Power factor (average value) (Typical - 0.85) | K32: Default
B33: % Operating time (as % of total time) (Typical - 100%) | K33: Default
M34: =IF($C$3>1,1,0) -> 1 | N34: Control
D38: Current | E38: Modified
B40: Name or designation of the drive motor | C40: Fans for combustion air; exhaust; or other use | T40: 1 | U40: =VLOOKUP(T40,L$17:N$20,S$17+1) -> 
B41: Electric motor or fan Model
B42: Pressure (for fans only) | C42: Psi | K42: Calcualtions | M42: Current | N42: Modified
B43: Flow (for fans only) | C43: ft^3/hr | K43: Power used | L43: kW | M43: =D45^0.5*D46*D48*D47*(D49/100)/1000 -> 0 | N43: =E45^0.5*E46*E48*E47*(E49/100)/1000 -> 0
B44: Motor power (name plate) | C44: kW
B45: Motor phase
B46: Supply voltage | C46: Volts
B47: Average current | C47: Amps
B48: Power factor (average value) (Typical - 0.85)
B49: % Operating time (as % of total time) (Typical - 100%)
M50: =IF($C$3>2,1,0) -> 1 | N50: Control
D53: Current | E53: Modified
B55: Name or designation of the drive motor | C55: Fans for combustion air; exhaust; or other use | T55: 1 | U55: =VLOOKUP(T55,L$17:N$20,S$17+1) -> 
B56: Electric motor or fan Model
B57: Pressure (for fans only) | C57: Psi | K57: Calcualtions | M57: Current | N57: Modified
B58: Flow (for fans only) | C58: ft^3/hr | K58: Power used | L58: kW | M58: =D60^0.5*D61*D63*D62*(D64/100)/1000 -> 0 | N58: =E60^0.5*E61*E63*E62*(E64/100)/1000 -> 0
B59: Motor power (name plate) | C59: kW
B60: Motor phase
B61: Supply voltage | C61: Volts
B62: Average current | C62: Amps
B63: Power factor (average value) (Typical - 0.85)
B64: % Operating time (as % of total time) (Typical - 100%)
M65: =IF($C$3>3,1,0) -> 1 | N65: Control
B67: Equipment name or designation | D67: Current | E67: Modified
B68: Motor driven system name designation -Enter Below
C69: kW
C70: kW
C71: kW
C72: kW
C73: kW | M73: =IF($C$3>4,1,0) -> 1 | N73: Control
C74: kW
C75: kW
C76: kW
C77: kW | M77: Current | N77: Modified
C78: kW | K78: Power used | L78: kW | M78: =SUM(D69:D78) -> 0 | N78: =SUM(E69:E78) -> 0
B83: Total Power Use By Motors | C83: Kw | D83: =SUM(M78+(M65*M58)+(M50*M43)+(M34*M27)+M12) -> 0 | E83: =SUM(N78+(M65*N58)+(M50*N43)+(M34*N27)+N12) -> 0
B85: NOTES:
B86: Enter notes here on proposed changes for the "Modified" conditions.
L87: =IF(B87="",0,1) -> 0
L88: =IF(B88="",0,1) -> 0
L89: =IF(B89="",0,1) -> 0
L90: =IF(B90="",0,1) -> 0
L91: =IF(B91="",0,1) -> 0
L92: =SUM(L87:L91) -> 0
B94: Type of equipment | C94: Drop Down Menu
B95: Name of the equipment | C95: Cooling fan | D95: Cooling fan
B96: Motor phase | C96: 3 | D96: 3 | E96: 1) take the average amps
B97: Supply voltage (volts) | C97: 480 | D97: 480 | E97: 2) multiply by square root of 3,
B98: Average current (amperes) | C98: 11.7 | D98: 11.7 | E98: 3) multiply by the voltage (460; or whatever -- from the motor's nameplate).
B99: Power factor (average value) | C99: 0.85 | D99: 0.85 | E99: 4) multiply by the power factor (from the motor's nameplate). Assume 0.85 if you don't have that data available (or better yet consult the manufacturer's data).
B100: % Operating time (as % of cycle time) | C100: 100 | D100: 100 | E100: 5) divide by one thousand
B101: Power used (kW) | C101: =(C96^0.5*C97*C98*C99*C100/100)/1000 -> 8.268117735 | D101: =($N$25*D96^0.5*D97*D98*D99*D100/100)/1000 -> 0 | E101: 6) multiply by the number of anticipated operating hours per year.
E102: 7) multipy by the cost of electricity per kWh.
M109: =#REF! -> 
M110: =#REF! -> 
M111: =#REF! -> 
M112: =#REF! -> 
M113: =#REF! -> 
M114: =#REF! -> 
M115: =#REF! -> 
M116: =#REF! -> 
M117: =#REF! -> 
M118: =#REF! -> 
M119: =#REF! -> 
M120: =#REF! -> 
M121: =IF('Control page'!J2="English",#REF!,#REF!) -> 
M124: =IF('Control page'!J2="English",#REF!,#REF!) -> 
M125: =IF('Control page'!J$2="English",#REF!,#REF!) -> 
M126: =IF('Control page'!J$2="English",#REF!,#REF!) -> 
M127: =IF('Control page'!J$2="English",#REF!,#REF!) -> 
M128: =IF('Control page'!J$2="English",#REF!,#REF!) -> 
M129: =IF('Control page'!J$2="English",#REF!,#REF!) -> 
M130: =IF('Control page'!J$2="English",#REF!,#REF!) -> 
M138: =IF('Control page'!J2="English",#REF!,#REF!) -> 
M142: =IF('Control page'!J2="English",#REF!,#REF!) -> 
M143: =IF('Control page'!J2="English",#REF!,#REF!) -> 

Sheet 9- Other heat loss
L2: Help
L3: Print Sheet
L5: Copy Current to Modified
L6: Done Entering Data
A8: 12 | C8: Other heat loss or generation
C10: Note: Use positive (+ve) number for heat loss and negative (-ve) number for heat input or generation for the system
C11: Surface 1 | E11: Current | F11: Modified
C13: Area of heat loss source (m2) | D13: ft2
C14: Average Temperature | D14: deg. F.
C15: Ambient Temperature | D15: deg. F. | G15: =IF(OR(E16>1,F16>1),"Surface emmissivity cannot be greater than 1","") -> 
C16: Surface emissivity of the heat source (Typical - 0.9)
C17: Heat Loss * | D17: Btu/hr | E17: =IFERROR(E22*E13,0) -> 0 | F17: =IFERROR(F22*F13,0) -> 0 | L17: =IF('Control page'!D21=0,0,1) -> 1 | M17: Control
C19: Surface Temp. | D19: F | E19: =E14 -> 0 | F19: =F14 -> 0
C20: Ambient Temp. | D20: F | E20: =E15 -> 0 | F20: =F15 -> 0
C22: Heat Required from equation | D22: Btu/(hr-ft^2) | E22: =(1*(1/24)^0.2*(1/((E14+E15)/2)^0.181*(E14-E15)^0.266*((1+1.277*5))^0.5+(0.1713*10^-8*E16*((E14+460)^4-(E15+460)^4)/(E14-E15))))*(E19-E15) ->  | F22: =(1*(1/24)^0.2*(1/((F14+F15)/2)^0.181*(F14-F15)^0.266*((1+1.277*5))^0.5+(0.1713*10^-8*F16*((F14+460)^4-(F15+460)^4)/(F14-F15))))*(F19-F15) -> 
C23: Conversion | D23: kJ/(hr.m^2) | E23: =E22*11.3078 ->  | F23: =F22*11.3078 -> 
C24: Total heat loss | D24: kJ/(hr.m^2) | E24: =E23*E13 ->  | F24: =F23*F13 -> 
C26: Surface 2 | E26: Current | F26: Modified
C28: Area of heat loss source (m2) | D28: ft2 | E28: 0 | F28: 0
C29: Average Temperature | D29: deg. F.
C30: Ambient Temperature | D30: deg. F. | G30: =IF(OR(E31>1,F31>1),"Surface emmissivity cannot be greater than 1","") -> 
C31: Surface emissivity of the heat source (Typical - 0.9)
C32: Heat Loss * | D32: Btu/hr | E32: =IFERROR(E37*E28,0) -> 0 | F32: =IFERROR(F37*F28,0) -> 0 | L32: =IF('Control page'!D21>1,1,0) -> 1 | M32: Control
C34: Surface Temp. | D34: F | E34: =E29 -> 0 | F34: =F29 -> 0
C35: Ambient Temp. | D35: F | E35: =E30 -> 0 | F35: =F30 -> 0
C37: Heat Required from equation | D37: Btu/(hr-ft^2) | E37: =(1*(1/24)^0.2*(1/((E29+E30)/2)^0.181*(E29-E30)^0.266*((1+1.277*5))^0.5+(0.1713*10^-8*E31*((E29+460)^4-(E30+460)^4)/(E29-E30))))*(E34-E30) ->  | F37: =(1*(1/24)^0.2*(1/((F29+F30)/2)^0.181*(F29-F30)^0.266*((1+1.277*5))^0.5+(0.1713*10^-8*F31*((F29+460)^4-(F30+460)^4)/(F29-F30))))*(F34-F30) -> 
C38: Conversion | D38: kJ/(hr.m^2) | E38: =E37*11.3078 ->  | F38: =F37*11.3078 -> 
C39: Total heat loss | D39: kJ/(hr.m^2) | E39: =E38*E28 ->  | F39: =F38*F28 -> 
C41: * Based on assumptions: Wind velocity: 5 miles/hr., surface shape/orientation factor: 1.0. For other conditions use "Wall Loss" section.
C44: Hot Flue Gases Leakage Heat Loss from Oven or Furnace (Select "Yes" or "No") | E44: Yes
E45: Current | F45: Modified | H45: Pressure Conversion
C46: Furnace draft (+ positive. pressure) | D46: Inch W.C. | H46: Pascal | I46: Inch w.c.* | J46: mm w.c.*
C47: Opening area | D47: ft2 | H47: 5 | I47: =H47*0.00401574 -> 0.0200787 | J47: =I47*25.4 -> 0.50999898
C48: Temperature of gases leaking from the furnace | D48: deg. F. | H48: mm w.c.* | I48: Pascal | J48: Inch w.c.*
C49: Specific density of flue gases | D49: Air =1.0 | H49: 0.51 | I49: =H49/0.102 -> 5 | J49: =H49/25.4 -> 0.02007874016
C50: Ambient temperature | D50: deg. F. | H50: * w.c. = Water Column
C51: Hot flue gas leakage heat loss | D51: Btu/hr | E51: =IFERROR(IF(E44="Yes", E92,"0"),0) -> 0 | F51: =IFERROR(IF(E44="Yes", F92,"0"),0) -> 0
C54: List of other heat loss (enter heat loss as a +ve value) | E54: Current | F54: Modified
D56: Btu/hr
D57: Btu/hr | E57: 0 | F57: 0 | P57: Yes
D58: Btu/hr | E58: 0 | F58: 0 | P58: No
C59: Total heat loss | D59: Btu/hr | E59: =IFERROR((SUM(E56:E58)*L59)+(E32*L32)+(E17*L17) + E51,0) -> 0 | F59: =IFERROR((SUM(F56:F58)*L59)+(F32*L32)+(F17*L17) + F51,0) -> 0 | L59: =IF('Control page'!D21=0,0,1) -> 1 | M59: Control
C63: Note:
C64: The heat loss is given as positive number
C65: Heat generation or addition is given as negative number
C68: NOTES:
C69: Enter notes here on proposed changes for the "Modified" conditions.
L70: =IF(C70="",0,1) -> 0
L71: =IF(C71="",0,1) -> 0
L72: =IF(C72="",0,1) -> 0
L73: =IF(C73="",0,1) -> 0
L74: =IF(C74="",0,1) -> 0
L75: =SUM(L70:L74) -> 0
Q77: Pressure Conversion
Q80: Inch w.c.* | R80: Pascal | S80: mm w.c.
Q81: =0.02 -> 0.02 | R81: =Q81/0.00401574 -> 4.980402118 | S81: =Q81*25.4 -> 0.508
Q84: mm w. c. | R84: Pascal | S84: in w.c. *
Q85: 0.51 | R85: =Q85/0.102 -> 5 | S85: =Q85/25.4 -> 0.02007874016
C91: Results
C92: Heat loss in hot gases Btu/hour | E92: =E103 ->  | F92: =F103 -> 
C93: Heat loss in hot gases kgCE/hour | E93: =E92*3.41355*10^-5 ->  | F93: =F92*3.41355*10^-5 -> 
C95: Detail Calculations
C96: Furnace draft (+ or - ve. pressure) inch. W.C. | E96: =E46 -> 0 | F96: =F46 -> 0 | M96: Specific heat of air | Q96: C | R96: x | S96: x^2 | T96: x^3
C97: Opening size - area ft^2 | E97: =E47 -> 0 | F97: =F47 -> 0 | M97: Cpm air | N97: Btu/(#-F) | Q97: =0.2371 -> 0.2371 | R97: =(-0.000009) -> -9e-06 | S97: =7*10^(-8) -> 7e-08 | T97: -3e-11
C98: Air exfiltration from the opening (SCFH) - standard condition* | E98: =1655*0.8052*(E97*144)*(E96/(E49))^0.5 ->  | F98: =1655*0.8052*(F97*144)*(F96/(F49))^0.5 -> 
C99: Temp of gases leaking from the furnace (F) | E99: =E48 -> 0 | F99: =F48 -> 0 | M99: Current | Q99: cpm | R99: Cpsv
C100: Density corrected flow (scfh) | E100: =E98*(520/(E99+460))^0.5 ->  | F100: =F98*(520/(F99+460))^0.5 ->  | M100: Average temperature (F) | P100: =(E99+E102)/2 -> 0 | Q100: =Q97+R97*P100+S97*P100^2+T97*P100^3 -> 0.2371 | R100: =Q100*0.0793 -> 0.01880203
C101: Density corrected flow (nm^3/hour) | E101: =E100/35.31 ->  | F101: =F100/35.31 -> 
C102: Ambient temp (F) | E102: =E50 -> 0 | F102: =F50 -> 0 | M102: Modified | Q102: Cpm | R102: Cpsv
C103: Heat in gases Btu/hr | E103: =R100*E100*(E99-E102) ->  | F103: =R103*F100*(F99-F102) ->  | M103: Average temperature (F) | P103: =(F99+F102)/2 -> 0 | Q103: =Q97+R97*P103+S97*P103^2+T97*P103^3 -> 0.2371 | R103: =Q103*0.0793 -> 0.01880203
C104: Number of operating hours per year | E104: 8000 | F104: 8000
C105: Total energy loss MM Btu/year | E105: =E103*E104/10^6 ->  | F105: =F103*F104/10^6 ->  | M105: Cpm | N105: Mass specific heat Btu/(lb. F)
M106: cpsv | N106: Standard volume specific heat Btu/(scf. F)
C107: * Reference: North American Combustion Handbook, Page 187, Third Edition Volume 1
C108: Formula: cu.ft./sec (cfs) = 1655* K * a*(inch w.c./[sp. Density or sp. Gravity])^0.5
C109: K = flow coefficint used as 0.8052 based on data given in graphs (NA Handbook, Vol II page 62 Fig. 7.18 for air),
C110: Sp. Garvity is based on air=1.0

Sheet Flue gases
B2: Exhaust Gases Available Heat or Combustion Efficiency
D3: Current | E3: Modified
D4: Please enter values in both Current and Modified columns. | L4: English Units | O4: Av. Heat 1 | P4: Xs air correction | Q4: Pht. Air correction | R4: Cp air
B5: Furnace Flue Gas Temperature | C5: deg. F. | I5: Copy Current to Modified | L5: =D5 -> 0 | M5: =E5 -> 0 | O5: =95-0.025*L5 -> 95 | P5: =-(-1.078914+R5*L5)*(L26/100) -> 0 | Q5: =(-1.078914+R5*L9)*(1+L26/100) -> -1.078914 | R5: =0.0178285179931519 + 0.00000255632*L9 -> 0.01782851799
B6: Select Input (% XS Air or % O2) | D6: % XS Air | E6: =D6 -> % XS Air
B7: Oxygen in Flue Gases (%) | C7: % | I7: Done Entering Data | L7: =D7 -> 0 | M7: =E7 -> 0 | O7: =95-0.025*M5 -> 95 | P7: =-(-1.078914+R7*M5)*(M26/100) -> 0 | Q7: =(-1.078914+R7*M9)*(1+M26/100) -> -1.078914 | R7: =0.0178285179931519 + 0.00000255632*M9 -> 0.01782851799
B8: % Excess Air | C8: % | I8: Help | L8: =100*8.52381*(L7/100)/(2-9.52381*(L7/100)) -> 0 | M8: =100*8.52381*(M7/100)/(2-9.52381*(M7/100)) -> 0
B9: Combustion Air Temperature | C9: deg. F. | I9: Print Sheet | L9: =D9 -> 0 | M9: =E9 -> 0
B10: =IF(D6="% XS Air","Calculated % O2 in Flue Gas","Calculated % XS Air") -> Calculated % O2 in Flue Gas | C10: % | D10: =IFERROR(IF(D6="% XS Air",L20,L24),0) -> 0 | E10: =IFERROR(IF(E6="% XS Air",M20,M24),0) -> 0
B11: Available Heat (%) | C11: % | D11: =IF(OR((L11<0),(L11>100)),NA(),L11) -> 93.921086 | E11: =IF(OR((M11<0),(M11>100)),NA(),M11) -> 93.921086 | L11: =SUM(O5:Q5) -> 93.921086 | M11: =SUM(O7:Q7) -> 93.921086
B12: Available Heat (If User Defined) (%) | C12: % | D12: =IFERROR(IF(I13 = 0, D60, D94 * 100),"0") -> 90.13390414 | E12: =IFERROR(IF(I13 = 0, E60, E94 * 100),"0") -> 90.13390414 | F12: =IF( OR(D13="User Defined", E13="User Defined"), " Click button below to calculate user defined available heat", "") -> Click button below to calculate user defined available heat | L12: =IF(D6="% XS Air",L17,D7) ->  | M12: =IF(E6="% XS Air",M16,E7) -> 
B13: Available Heat to Use In Calculation | D13: User Defined | E13: Calculated | I13: 1 | J13: The left cell (I13) is used to indicate optionbutton state
B14: Available Heat | C14: % | D14: =IF(D13="Calculated",D11,D12) -> 90.13390414 | E14: =IF(E13="Calculated",E11,E12) -> 93.921086 | L14: =D8 -> 0 | M14: =E8 -> 0 | N14: % XS Air (Input)
L15: =L14/100 -> 0 | M15: =M14/100 -> 0
B16: NOTES: | L16: =8.52381/L15 ->  | M16: =8.52381/M15 -> 
B17: Enter notes here on proposed changes for the "Modified" conditions. | L17: =L16+9.52381 ->  | M17: =M16+9.52381 -> 
I18: =IF(B18="",0,1) -> 0 | L18: =1/L17 ->  | M18: =1/M17 -> 
I19: =IF(B19="",0,1) -> 0 | L19: =L18*2 ->  | M19: =M18*2 -> 
I20: =IF(B20="",0,1) -> 0 | L20: =L19*100 ->  | M20: =M19*100 ->  | N20: % O2 (Output)
I21: =IF(B21="",0,1) -> 0
I22: =IF(B22="",0,1) -> 0 | L22: =D7/100 -> 0 | M22: =E7/100 -> 0 | N22: % O2 (Input)
I23: =SUM(I18:I22) -> 0 | L23: =(8.52381*L22)/(2-(9.52381*L22)) -> 0 | M23: =(8.52381*M22)/(2-9.52381*M22) -> 0
L24: =L23*100 -> 0 | M24: =M23*100 -> 0 | N24: % XS Air (Output)
L26: =IF(D6="% XS Air",D8,L24) -> 0 | M26: =IF(E6="% XS Air",E8,M24) -> 0
B27: Select Fuel Analysis by weight (mass) percentage or by volume percentage.
B36: Fuel (for user defined available heat calculation)
B37: Coal
B38: Component - use ultimate analysis | C38: % by weight
B39: C | C39: 75
B40: H2 | C40: 5
B41: S | C41: 0.5
B42: Inerts - ash | C42: 10
B43: O2 | C43: 8
B44: Moisture | C44: 0
B45: N2 | C45: 1.5
B46: Total % ** | C46: ='Data Input & RESULTS '!C13 * 100 -> 100
B48: User Defined Available Heat
D49: Current | E49: Modified
B50: Excess air for combustion | C50: % | D50: =IF(D6="% XS Air", D8, D10) -> 0 | E50: =IF(E6="% XS Air", E8, E10) -> 0
B51: Combustion air temperature | C51: Deg. F | D51: =D9 -> 0 | E51: =E9 -> 0
B52: Flue gas temperature | C52: Deg. F | D52: =D5 -> 0 | E52: =E5 -> 0
B53: Fuel temperature | C53: Deg. F | D53: 70 | E53: 70
B54: Moisture in air combustion (lb. H2O/lb. of dry air *) | C54: % | D54: 1 | E54: 1
B55: Ash discharge temperature | C55: Deg. F | D55: 10 | E55: 10
B56: Unburned carbon in ash | C56: % of ash collected | D56: 0 | E56: 0
B57: * See psychometric chart below.
B58: ** If the total is not exactly 100%, then the program will normalize the component values to get 100% total.
B60: Available Heat (User Defined) (%)* | D60: ='Data Input & RESULTS '!C27 * 100 -> 96.50560168 | E60: ='Data Input & RESULTS '!D27 * 100 -> 96.50560168
B61: * Based on higher heating value
B65: Available Heat Calculation for Gaseous Fuels
B66: Given Volumetric Gas Analysis
B68: Name or designation of fuel | C68: Natural Gas - East Ohio
B70: Gas composition | C70: By volume
B71: CH4 | C71: 0.941 | D71: Note: The gas analysis will be adjusted to make total 100% for the calculations.
B72: C2H6 | C72: 0.0301
B73: N2 and other inert | C73: 0.0141
B74: H2 | C74: 0.0001
B75: C3H8 | C75: 0.0042
B76: C4H10 + CnH2n | C76: 0.0028
B77: H2O | C77: 0
B78: CO | C78: 0
B79: CO2 | C79: 2e-05
B80: SO2 | C80: 0
B81: O2 | C81: 0.0001
B82: Total of fuel components | C82: =SUM(C71:C81) -> 0.99242
B83: Difference | C83: =1-C82 -> 0.00758
B85: Weight % for tar in gas-tar mixture | C85: % | D85: 0
D86: Current | E86: Modified
B87: Fuel temperature | C87: Deg. F.
B88: Combustion air temperature | C88: Deg. F. | D88: =D9 -> 0 | E88: =E9 -> 0
B89: Flue gas temperature | C89: Deg. F. | D89: =D5 -> 0 | E89: =E5 -> 0
B90: Excess air used for combustion | C90: % | D90: =IF($D$6="% Oxygen",D10/100,D8/100) -> 0 | E90: =IF($D$6="% Oxygen",E10/100,E8/100) -> 0
B91: Percent O2 in flue gas | C91: %
B93: Results | D93: Current | E93: Modified
B94: Avaiable Heat | C94: % | D94: ='Calculations - vol current'!H75 -> 0.9013390414 | E94: ='Calculations vol mod'!H75 -> 0.9013390414
B95: Higher (Gross) calorific (heating value) of the fuel | C95: Btu/ft3 | D95: ='Calculations - vol current'!C48 -> 1033.217269 | E95: ='Calculations vol mod'!C48 -> 1033.217269
C96: kcal/m3 | D96: ='Calculations - vol current'!C48*8.9 -> 9195.63369 | E96: ='Calculations vol mod'!C48*8.9 -> 9195.63369
B97: % O2 in Flue gases (dry basis) | C97: % | D97: ='Calculations - vol current'!I14 -> 0 | E97: ='Calculations vol mod'!I14 -> 0
B98: Stoichiometric air required | C98: ft3 air/ft3 fuel gas | D98: ='Calculations - vol current'!C80 -> 10.22734446 | E98: ='Calculations vol mod'!C80 -> 10.22734446
B99: Actual air required | D99: ='Calculations - vol current'!C83 -> 10.22734446 | E99: ='Calculations vol mod'!C83 -> 10.22734446
B100: Available heat based on higher calorific value of the fuel

Sheet Av.Ht.Solid - current (hidden)
B8: Data - Operating Parameters | C8: Units | F8: Current | G8: New | L8: Comments
F9: No flue gas recirculation | G9: With flue gas recirculation
B10: Heat input in the dryer/oven | C10: M Btu/hour | F10: 3500 | G10: =G11 ->  | L10: Note - M (Thousand) Btu and not MM (Million) Btu
B11: Gas used in the dryer-oven | C11: scfh | F11: =F10 -> 3500 | G11: =F44 ->  | L11: Meter reading or estimate
B12: Combustion air for the burners | C12: scfh | F12: =F11*(1+F16/100)*10 -> 52500 | L12: Based on excess air used and 10 scf/1000 Btu
B13: Mass (Air + Gas) stoichiometric | C13: #s/hr | F13: =0.0763*(0.6*F11+10*F11) -> 2830.73
B14: Mass (Air + Gas) input | C14: #s/hr | F14: =0.0763*(0.6*F11+F12) -> 4165.98
B15: Flue gas temperature from dryer/oven | C15: Deg. F. | F15: 425 | G15: =F15 -> 425 | L15: From FGA
B16: % Excess air in burners | C16: % | F16: 50 | G16: =F16 -> 50 | L16: From burner setting. DO NOT use FGA analysis numbers!
B17: Av. Heat of the flue gases | C17: % | F17: =#REF! -> 
B18: Mass of water in comb. Products | C18: #s/hr | F18: =G107 -> 1926.511879 | L18: 10% of the mass flow of POC of stoich comb. Of n. gas - by weight
B19: Water evaporated from work-load | C19: #s/hr | F19: 1000 | G19: =F19 -> 1000 | L19: Using production data
B20: Makeup air volume used in the dryer/oven | C20: scfm | F20: 3500 | G20: =F40 -> 2258.828896 | L20: Using dryer design or other methods
B21: Check on heat input values | F21: =IF(F10<F35,"Heat Input Values are Too Low. Check data input","") -> 
B22: Makeup air mass | C22: #s/hr | F22: =0.0763*F20*60 -> 16023
B23: Mass flow of dry combustion products | C23: #s/hr | F23: =F14-F18 -> 2239.468121
B24: % moisture in flue gases (FG) | C24: #s/# dry FG | F24: =(F19+F18)/(F22+F23) -> 0.1602473368 | G24: =F50 -> 
B25: Total FG volume | C25: scfh | F25: =(1/0.0763)*((F14-F18) +F22) +20*(F18+F19) -> 297881.0649
B26: Total FG volume | C26: scfm | F26: =F25/60 -> 4964.684414
B27: % FG Recirculation by volume | C27: % | F27: 0.25 | G27: =F27 -> 0.25 | L27: Usually less than 40%
B28: Recirculated volume | C28: scfm | F28: =F27*F26 -> 1241.171104
B29: % Gas savings | C29: % | F29: Base | G29: =F51 -> 
B30: No. of operating hours per year | C30: hrs/year | F30: 6500 | G30: =F30 -> 6500
B31: Gas cost (Dollars per therm) | C31: $/therm | F31: 0.95 | G31: =F31 -> 0.95
B32: Therms saved per year | C32: Therms/year | F32: Base | G32: =G29*G30*F11/100 -> 
B33: Gas Cost savings | C33: $/year | F33: Base | G33: =G32*G31 -> 
B35: Minimum total heat required in dryer/oven | C35: M Btu/hr | F35: =(F19*1100 + 0.02*F20*(F15-60)*60)/1000 -> 2633
B38: New conditions with recycled flue gases
B39: Reduction in make up air | C39: scfm | F39: =F28 -> 1241.171104
B40: New makeup air volume | C40: scfm | F40: =F20-F39 -> 2258.828896
B41: New makeup air mass | C41: #s/hr | F41: =0.0763*F40*60 -> 10340.91869
B42: Reduction in net heat load | C42: Btu/hr | F42: =F39*60*0.02* (F15-100) -> 484056.7304
B43: Reduction in burner heat input | C43: Btu/hr | F43: =F42/(F17/100) -> 
B44: New value of gas input | C44: scfh | F44: =F11-F43/1000 -> 
B45: New value of air input | C45: scfh | F45: =F44*(1+F16/100)*10 -> 
B46: New value of (air+ gas) input - burner | C46: #s/hr | F46: =0.0763*(0.6*F44+F45) -> 
B47: New value of stoichiometric air + gas mass | C47: #s/hr | F47: =0.0763*(0.6*F44+10*F44) -> 
B48: Mass of water in comb. Products | C48: #s/hr | F48: =0.1*11*F44*0.0763 -> 
B49: Mass flow of dry combustion products | C49: #s/hr | F49: =F46-F48 -> 
B50: New % moisture in flue gases | C50: #s/# dry FG | F50: =(F19+F48)/(F41+F49) -> 
B51: % gas savings | F51: =(F11-F44)/F11 -> 
D58: TENTATIVE | L58: =I69+J69 -> 1.727861771
B60: Carbon Dioxide and water vapor in stoich. Combustion of solid-liquid fuels
F61: Coefficients
C62: O2 | D62: N2 | E62: Ratio N2/O2
B63: Composition of air - wt. | C63: 23.15 | D63: =100-C63 -> 76.85 | E63: =D63/C63 -> 3.319654428
B64: Composition of air - vol | C64: 20.99 | D64: =100-C64 -> 79.01 | E64: =D64/C64 -> 3.764173416
B66: Fuel composition | C66: By weight - wet | D66: By weight -dry | E66: Heating value Bt/lb. | F66: CO2 (Lbs/lb.) | G66: H2O (Lbs/lb.) | H66: SO2 (Lbs/lb.) | I66: O2 (Lbs/lb.) required | J66: N2 (Lbs/lb.) | K66: Air | L66: Heating value Btu/lb. | M66: Comb. Products (Lbs./lb.) | N66: Vol air- ft3/lb. fuel
B67: Bituminous Coal
B68: C | C68: ='Data Input & RESULTS '!C6 -> 0.75 | D68: =C68/$C$82 -> 0.75 | E68: 14100 | F68: =(D68)*44/12 -> 2.75 | I68: =D68*32/12 -> 2 | J68: =I68*$E$63 -> 6.639308855 | K68: =I68+J68 -> 8.639308855 | L68: =C68*E68 -> 10575 | M68: =D68*44/12 -> 2.75 | N68: 150 | P68: =SUM(F68:H68)+J68 -> 9.389308855 | Q68: =D68*44/12 -> 2.75
B69: H | C69: ='Data Input & RESULTS '!C7 -> 0.05 | D69: 0.05 | E69: 61100 | G69: =D69*18/2 -> 0.45 | I69: =D69*16/2 -> 0.4 | J69: =I69*$E$63 -> 1.327861771 | K69: =I69+J69 -> 1.727861771 | L69: 3055 | M69: =D69*18/2 -> 0.45 | N69: 451 | P69: 1.777861771
B70: S | C70: ='Data Input & RESULTS '!C8 -> 0.005 | D70: 0.005 | E70: 3980 | H70: =D70*64/32 -> 0.01 | I70: =D70*32/32 -> 0.005 | J70: =I70*$E$63 -> 0.01659827214 | K70: =I70+J70 -> 0.02159827214 | L70: 19.9 | M70: 0.053 | N70: 56.4 | P70: 0.02659827214
B71: Inerts | C71: ='Data Input & RESULTS '!C9 -> 0.1 | D71: 0.1 | J71: =I71*$E$63 -> 0 | K71: =I71+J71 -> 0 | L71: 0 | M71: 0.01 | N71: 0 | P71: 0
B72: O2 | C72: ='Data Input & RESULTS '!C10 -> 0.08 | D72: 0.08 | I72: =-(C72) -> -0.08 | J72: =I72*$E$63 -> -0.2655723542 | K72: =I72+J72 -> -0.3455723542 | L72: 0 | M72: -0.0331 | N72: =-1/0.0763 -> -13.1061599 | P72: -0.2655723542
B73: Moisture | C73: ='Data Input & RESULTS '!C11 -> 0 | D73: 0 | G73: =D73 -> 0 | L73: 0 | N73: 0 | P73: 0
B74: N | C74: ='Data Input & RESULTS '!C12 -> 0.015 | D74: 0.015 | N74: 0 | P74: 0
B75: Total | F75: =SUM(F68:F74) -> 2.75 | G75: 0.45 | H75: 0.01 | I75: 2.325 | J75: 7.718196544 | K75: 10.04319654 | L75: 13649.9
B76: Excess air contributions | I76: =($C$83)*I75 -> 0 | J76: =($C$83)*J75 -> 0 | K76: =($C$83)*K75 -> 0
B77: Total with Xs air | I77: =I75+I76 -> 2.325 | J77: =J75+J76 -> 7.718196544 | K77: =K75+K76 -> 10.04319654
B78: Moisture in air lb./lb of air | C78: ='Data Input & RESULTS '!C21 -> 0.01 | G78: =(C78*K77) -> 0.1004319654 | L78: lb. /lb of fuel
C79: Comb producta incl. Xs air | F79: =F75 -> 2.75 | G79: =G75+G78 -> 0.5504319654 | H79: =H75 -> 0.01 | I79: =I76 -> 0 | J79: =J77 -> 7.718196544 | L79: =SUM(F79:J79) -> 11.02862851
C80: Wet | L80: =L79 -> 11.02862851
C81: Dry | L81: =L80-G79 -> 10.47819654
B82: Total of fuel components | C82: =SUM(C68:C74) -> 1 | D82: =SUM(D68:D81) -> 1
B83: Excess air % | C83: ='Data Input & RESULTS '!C17 -> 0
M84: 0.001819
B85: Total incl. effect of Excess air | F85: =SUM(F68:F74) -> 2.75 | G85: =SUM(G68:G74) -> 0.45 | H85: =SUM(H68:H74) -> 0.01 | I85: =SUM(I68:I74) -> 2.325 | J85: =SUM(J68:J75) -> 15.43639309 | L85: =SUM(L68:L73) -> 13649.9 | M85: =100*(C68*M68+M69*C69+C70*M70+C71*M71+C72*M72) -> 208.3617 | N85: =($C$68*N68+0.5*$C$69*N69+$C$70*N70+$C$71*N71+$C$72*N72+$C$73*N73+$C$74*N74+$C$75*N75+$C$76*N76+$C$77*N77+$C$81*N81)*(1+$C$83/100) ->  | P85: =SUM(P68:P75) -> 10.92819654 | Q85: =I86+F85+G85+H85-I85 -> 18.64639309
B86: Temperature of combustion air (F) | C86: ='Data Input & RESULTS '!C18 -> 0 | H86: Ait | I86: =I85+J85 -> 17.76139309
B87: Fuel temperature (F) | C87: ='Data Input & RESULTS '!C20 -> 70 | N87: =100*N85/L85 -> 
B88: Flue gas temperature (F) | C88: ='Data Input & RESULTS '!C19 -> 0
B91: Excess air used % | C91: =C83 -> 0 | N91: =1/N87 -> 
B92: Additional O2 lbs./lb of fuel | C92: =I85*C91 -> 0
B93: Additioanl N2 in excess air lbs./lb. of fuel | C93: =C92*H206 -> 0 | L93: =16/0.23 -> 69.56521739
B94: Ttaol additional air lb of lb. of fuel | C94: =C92+C93 -> 0 | N94: Component | O94: o2 | P94: n2 | Q94: co2 | R94: fg | S94: fg per #
N95: 12 | O95: 32 | P95: =O95*3.3103 -> 105.9296 | Q95: 44 | R95: =P95+Q95 -> 149.9296 | S95: =R95/N95 -> 12.49413333
N96: 2 | O96: 16 | P96: =O96*3.3103 -> 52.9648 | Q96: 18 | R96: =P96+Q96 -> 70.9648 | S96: =R96/N96 -> 35.4824
N97: 32 | O97: 32 | P97: =O97*3.3103 -> 105.9296 | Q97: 64 | R97: =P97+Q97 -> 169.9296 | S97: =R97/N97 -> 5.3103
B98: Flue gas composition - content | F98: CO2 | G98: H2O | H98: SO2 | I98: O2 | J98: N2 | L98: Total | M98: Diff
B99: Lbs./lb. of fuel | F99: =F79 -> 2.75 | G99: =G79 -> 0.5504319654 | H99: =H79 -> 0.01 | I99: =I79 -> 0 | J99: =J79 -> 7.718196544 | L99: =SUM(F99:J99) -> 11.02862851 | M99: =(M85-L99)/L99 -> 17.89280247
B100: Composition by weight (wet) | F100: =F99/$L$99 -> 0.249351041 | G100: =G99/$L$99 -> 0.04990937585 | H100: =H99/$L$99 -> 0.0009067310583 | I100: =I99/$L$99 -> 0 | J100: =J99/$L$99 -> 0.6998328521 | L100: =L99/$L$99 -> 1
B101: Composition by weight (dry) | F101: =F99/$L$81 -> 0.2624497439 | G101: 0 | H101: =H99/$L$81 -> 0.0009543627052 | I101: =I99/$L$81 -> 0 | J101: =J99/$L$81 -> 0.7365958934 | L101: =L100 -> 1
B102: Volume per lb. of fuel (scf/lb of fuel) -wet | F102: =F99*'Cp calculationsHTcurrent'!H14 -> 37.14464286 | G102: =G99*'Cp calculationsHTcurrent'!H20 -> 11.56518719 | H102: =H99*'Cp calculationsHTcurrent'!H14 -> 0.1350714286 | I102: =I99*'Cp calculationsHTcurrent'!H8 -> 0 | J102: =J99*'Cp calculationsHTcurrent'!H11 -> 104.2507833 | L102: =SUM(F102:J102) -> 153.0956848
B103: Composition by volume (wet) | F103: =F102/$L$102 -> 0.2426237089 | G103: =G102/$L$102 -> 0.07554221532 | H103: =H102/$L$102 -> 0.0008822680323 | I103: =I102/$L$102 -> 0 | J103: =J102/$L$102 -> 0.6809518078 | L103: =L102/$L$102 -> 1
B104: Composition by volume (dry) | F104: =F103/(1-$G$103) -> 0.2624497439 | G104: 0 | H104: =H103/(1-$G$103) -> 0.0009543627052 | I104: =I103/(1-$G$103) -> 0 | J104: =J103/(1-$G$103) -> 0.7365958934 | L104: =SUM(H104:J104)+F104 -> 1
B105: Heating value (Btu/lb of fuel) | L105: =L85 -> 13649.9
B106: Cu. ft. of fuel | F106: =F11 -> 3500 | G106: =F11 -> 3500
B107: Total in flue gases (Lbs.) | F107: =F99*F11 -> 9625 | G107: =G99*F11 -> 1926.511879
B108: Heat in the flue gas components (Btu/lb of fuel) | F108: =F99*'Cp calculationsHTcurrent'!G24*('Av.Ht.Solid - current '!C88-60) -> -32.5044896 | G108: ='Av.Ht.Solid - current '!G75*(J121+'Cp calculationsHTcurrent'!G94*('Av.Ht.Solid - current '!C88-60))+G78*'Cp calculationsHTcurrent'!G94*('Av.Ht.Solid - current '!C88-60) -> 483.493923 | H108: =H99*'Cp calculationsHTcurrent'!G24*('Av.Ht.Solid - current '!C88-60) -> -0.118198144 | I108: =I99*'Cp calculationsHTcurrent'!G9*('Av.Ht.Solid - current '!C88-60) -> 0 | J108: =J99*'Cp calculationsHTcurrent'!G12*('Av.Ht.Solid - current '!C88-60) -> -115.4956308 | L108: =SUM(F108:J108) -> 335.3756044
B110: CO2 and H2O values (Lbs./MM Btu) | F110: =F99*10^6/$L$105 -> 201.4666774 | G110: =G99*10^6/$L$105 -> 40.32498153
B111: Carbon equivalent - (Lbs. of Carbon/MM Btu) | F111: =F110*12/44 -> 54.94545748
B114: Heat entering the system
B115: Sensible heat
B116: Air | D116: Btu/lb. of fuel | E116: =K77*'Cp calculationsHTcurrent'!F68*('Av.Ht.Solid - current '!C86-60)/0.075 -> -144.2562725 | H116: Calculations for Water vapor - steam enthalpy etc.
B117: Fuel | D117: Btu/lb. of fuel | E117: =0.24*(1-C73)*(C87-60) -> 2.4 | H117: Equation coeff for enthalpy @ saturation calculations | J117: Enthalpy | L117: 1096.7 | M117: 0.013 | N117: Equation: Enthalpy = 1096 * Partial pressure (inch HG) ^ 0.013
B118: Moisturer in fuel | D118: Btu/lb. of fuel | E118: =C73*(C87-60) -> 0
B119: Chemical heat or heating value of fuel | D119: Btu/lb. of fuel | E119: =L105 -> 13649.9 | H119: Partial pressure of H2O | J119: =G103 -> 0.07554221532 | L119: atm | N119: From volumetric wet analysis
B120: Total heat in | D120: Btu/lb. of fuel | E120: =SUM(E116:E119) -> 13508.04373 | J120: =J119*29.926 -> 2.260676336 | L120: inch HG | N120: Conversion from atm to inch HG
B121: Heat in flue gases | D121: Btu/lb. of fuel | E121: =L108 -> 335.3756044 | H121: Enthalpy at saturated condition | J121: =L117*J120^M117 -> 1108.390877 | L121: Btu/lb of steam | N121: Enthalpy for partial pressure using coeffs.
B122: Heating value of carbon | D122: Btu/lb. | E122: 14093
B123: Sensible heat in ash discharged | D123: Btu/lb of fuel | E123: ='Data Input & RESULTS '!C9*0.25*(1.8*'Data Input & RESULTS '!C22+32-60) -> -0.25
B124: Chemical heat in unburned carbon | D124: Btu/lb. of fuel | E124: ='Data Input & RESULTS '!C23*'Data Input & RESULTS '!C9*'Av.Ht.Solid - current '!E122 -> 0
B126: Available heat | D126: % | E126: =(E120-E121-E124-E123)/E119 -> 0.9650560168 | H126: Saturation temperature | J126: =J127*LN(J120)+J128 -> 110.4252461 | L126: deg. F. | N126: Equation: Sat. Temp (F) = 36.009 * LN(partial pressure inch HG) + 81.054
I127: Coeff for satuation temp (F) calculation | J127: 36.009
J128: 81.054
H136: Total heat content of water vapor = Mass or weight of water/lb of fuel * (Enthalpy at saturation + Sp. Heat of vapor *(flue gas temp. [F] - 60 [F])
H137: =G99*(J121+'Cp calculationsHTcurrent'!G94*('Av.Ht.Solid - current '!C88-60)) -> 594.8117973 | I137: E111*(M120+E112*(C89-M121))
B142: Emission | C142: CO2 equivalnet in Lbs. | F142: 2001 values *
B143: Carbon dioxide (CO2) | C143: 1 | F143: 1
B144: Methane (CH4) | C144: 21 | F144: 23
B145: Nitrous oxide (N2O) | C145: 310 | F145: 296
B146: Hydrofluorocarbon (HFC)-134a (used in mobile source air conditioning) | C146: 1300 | F146: 1300
B150: * See note below
B151: These estimates are from the IPCC’s Second Assessment Report (1996). These are the values used internationally for reporting greenhouse gas (GHG) emissions to the United Nations. (EPA also uses them for the Inventory of U.S. Greenhouse Gas Emissions and S
B153: Relationship Between Ultimate Analysis and Proximate Analysis
B154: %C | C154: =B156 -> 0.97C+ 0.7(VM - 0.1A) - M(0.6-0.01M)
B155: =
B156: 0.97C+ 0.7(VM - 0.1A) - M(0.6-0.01M)
B157: %H | C157: =B159 -> 0.036C + 0.086 (VM -0.1xA) - 0.0035M2 (1-0.02M)
B158: =
B159: 0.036C + 0.086 (VM -0.1xA) - 0.0035M2 (1-0.02M)
B160: %N2 | C160: =B162 -> 2.10 -0.020 VM
B161: =
B162: 2.10 -0.020 VM
B163: where
B164: C | C164: =B166 -> % of fixed carbon
B165: =
B166: % of fixed carbon
B167: A | C167: =B169 -> % of ash
B168: =
B169: % of ash
B170: VM | C170: =B172 -> % of volatile matter
B171: =
B172: % of volatile matter
B173: M | C173: =B175 -> % of moisture
B174: =
B175: % of moisture
B176: Relationship Between Ultimate Analysis and Proximate Analysis
B177: %C | C177: 0.97+ 0.7(VM - 0.1A) - M(0.6-0.01M)
B178: =
B179: 0.97C+ 0.7(VM - 0.1A) - M(0.6-0.01M)
B180: %H
B181: =
B182: 0.036C + 0.086 (VM -0.1xA) - 0.0035M2 (1-0.02M)
B183: %N2
B184: =
B185: 2.10 -0.020 VM
B186: where
B187: C
B188: =
B189: % of fixed carbon
B190: A
B191: =
B192: % of ash
B193: VM
B194: =
B195: % of volatile matter
B196: M
B197: =
B198: % of moisture
B203: Table 1: Standard Composition of Dry Air (Detailed Analysis):
B204: Gas | C204: % by Volume | D204: % by Weight | E204: Parts per Million (by Volume) | F204: Chemical Symbol | G204: Molecular Weight
B205: Nitrogen | C205: 78.08 | D205: 75.47 | E205: 780805 | F205: N2 | G205: 28.01 | H205: Ratio N2/O2 wt.
B206: Oxygen | C206: 20.95 | D206: 23.2 | E206: 209450 | F206: O2 | G206: 32 | H206: =(100-D206)/D206 -> 3.310344828
B207: Argon | C207: 0.93 | D207: 1.28 | E207: 9340 | F207: Ar | G207: 39.95
B208: Carbon Dioxide | C208: 0.039 | D208: 0.0606 | E208: 390 | F208: CO2 | G208: 44.01
B209: Neon | C209: 0.0018 | D209: 0.0012 | E209: 18.21 | F209: Ne | G209: 20.18
B210: Helium | C210: 0.0005 | D210: 7e-05 | E210: 5.24 | F210: He | G210: 4
B211: Krypton | C211: 0.0001 | D211: 0.0003 | E211: 1.14 | F211: Kr | G211: 83.8
B212: Hydrogen | C212: 0.00005 | D212: Negligible | E212: 0.5 | F212: H2 | G212: 2.02
B213: Xenon | C213: 8.7 x 10-6 | D213: 4e-05 | E213: 0.087 | F213: Xe | G213: 131.3
B216: C | C216: % Fixed carbon | E216: 0.675
B217: A | C217: % Ash | E217: 0.1
B218: VM | C218: % Volatime matter | E218: 0.15
B219: M | C219: % Moisture | E219: 0.075
B220: Total | E220: =SUM(E216:E219) -> 1
B221: C
B222: H2 | E222: =0.97*E216+0.7*(E218-0.1*E217)-E219*(0.6 - 0.01*E219) -> 0.70780625
B223: N2 | E223: =0.036*E216+0.086*(E218-0.1*E217)-0.0035*E219^2*(1-0.02*E219) -> 0.03632034203
E224: =(2.1-0.02*E218)/100 -> 0.02097
F225: =SUM(E222:E224) -> 0.765096592

Sheet Av.Ht.Solid - modified (hidden)
B8: Data - Operating Parameters | C8: Units | F8: Current | G8: New | L8: Comments
F9: No flue gas recirculation | G9: With flue gas recirculation
B10: Heat input in the dryer/oven | C10: M Btu/hour | F10: 3500 | G10: =G11 ->  | L10: Note - M (Thousand) Btu and not MM (Million) Btu
B11: Gas used in the dryer-oven | C11: scfh | F11: =F10 -> 3500 | G11: =F44 ->  | L11: Meter reading or estimate
B12: Combustion air for the burners | C12: scfh | F12: =F11*(1+F16/100)*10 -> 52500 | L12: Based on excess air used and 10 scf/1000 Btu
B13: Mass (Air + Gas) stoichiometric | C13: #s/hr | F13: =0.0763*(0.6*F11+10*F11) -> 2830.73
B14: Mass (Air + Gas) input | C14: #s/hr | F14: =0.0763*(0.6*F11+F12) -> 4165.98
B15: Flue gas temperature from dryer/oven | C15: Deg. F. | F15: 425 | G15: =F15 -> 425 | L15: From FGA
B16: % Excess air in burners | C16: % | F16: 50 | G16: =F16 -> 50 | L16: From burner setting. DO NOT use FGA analysis numbers!
B17: Av. Heat of the flue gases | C17: % | F17: =#REF! -> 
B18: Mass of water in comb. Products | C18: #s/hr | F18: =G107 -> 1926.511879 | L18: 10% of the mass flow of POC of stoich comb. Of n. gas - by weight
B19: Water evaporated from work-load | C19: #s/hr | F19: 1000 | G19: =F19 -> 1000 | L19: Using production data
B20: Makeup air volume used in the dryer/oven | C20: scfm | F20: 3500 | G20: =F40 -> 2258.828896 | L20: Using dryer design or other methods
B21: Check on heat input values | F21: =IF(F10<F35,"Heat Input Values are Too Low. Check data input","") -> 
B22: Makeup air mass | C22: #s/hr | F22: =0.0763*F20*60 -> 16023
B23: Mass flow of dry combustion products | C23: #s/hr | F23: =F14-F18 -> 2239.468121
B24: % moisture in flue gases (FG) | C24: #s/# dry FG | F24: =(F19+F18)/(F22+F23) -> 0.1602473368 | G24: =F50 -> 
B25: Total FG volume | C25: scfh | F25: =(1/0.0763)*((F14-F18) +F22) +20*(F18+F19) -> 297881.0649
B26: Total FG volume | C26: scfm | F26: =F25/60 -> 4964.684414
B27: % FG Recirculation by volume | C27: % | F27: 0.25 | G27: =F27 -> 0.25 | L27: Usually less than 40%
B28: Recirculated volume | C28: scfm | F28: =F27*F26 -> 1241.171104
B29: % Gas savings | C29: % | F29: Base | G29: =F51 -> 
B30: No. of operating hours per year | C30: hrs/year | F30: 6500 | G30: =F30 -> 6500
B31: Gas cost (Dollars per therm) | C31: $/therm | F31: 0.95 | G31: =F31 -> 0.95
B32: Therms saved per year | C32: Therms/year | F32: Base | G32: =G29*G30*F11/100 -> 
B33: Gas Cost savings | C33: $/year | F33: Base | G33: =G32*G31 -> 
B35: Minimum total heat required in dryer/oven | C35: M Btu/hr | F35: =(F19*1100 + 0.02*F20*(F15-60)*60)/1000 -> 2633
B38: New conditions with recycled flue gases
B39: Reduction in make up air | C39: scfm | F39: =F28 -> 1241.171104
B40: New makeup air volume | C40: scfm | F40: =F20-F39 -> 2258.828896
B41: New makeup air mass | C41: #s/hr | F41: =0.0763*F40*60 -> 10340.91869
B42: Reduction in net heat load | C42: Btu/hr | F42: =F39*60*0.02* (F15-100) -> 484056.7304
B43: Reduction in burner heat input | C43: Btu/hr | F43: =F42/(F17/100) -> 
B44: New value of gas input | C44: scfh | F44: =F11-F43/1000 -> 
B45: New value of air input | C45: scfh | F45: =F44*(1+F16/100)*10 -> 
B46: New value of (air+ gas) input - burner | C46: #s/hr | F46: =0.0763*(0.6*F44+F45) -> 
B47: New value of stoichiometric air + gas mass | C47: #s/hr | F47: =0.0763*(0.6*F44+10*F44) -> 
B48: Mass of water in comb. Products | C48: #s/hr | F48: =0.1*11*F44*0.0763 -> 
B49: Mass flow of dry combustion products | C49: #s/hr | F49: =F46-F48 -> 
B50: New % moisture in flue gases | C50: #s/# dry FG | F50: =(F19+F48)/(F41+F49) -> 
B51: % gas savings | F51: =(F11-F44)/F11 -> 
D58: TENTATIVE | L58: =I69+J69 -> 1.727861771
B60: Carbon Dioxide and water vapor in stoich. Combustion of solid-liquid fuels
F61: Coefficients
C62: O2 | D62: N2 | E62: Ratio N2/O2
B63: Composition of air - wt. | C63: 23.15 | D63: =100-C63 -> 76.85 | E63: =D63/C63 -> 3.319654428
B64: Composition of air - vol | C64: 20.99 | D64: =100-C64 -> 79.01 | E64: =D64/C64 -> 3.764173416
B66: Fuel composition | C66: By weight - wet | D66: By weight -dry | E66: Heating value Bt/lb. | F66: CO2 (Lbs/lb.) | G66: H2O (Lbs/lb.) | H66: SO2 (Lbs/lb.) | I66: O2 (Lbs/lb.) required | J66: N2 (Lbs/lb.) | K66: Air | L66: Heating value Btu/lb. | M66: Comb. Products (Lbs./lb.) | N66: Vol air- ft3/lb. fuel
B67: Bituminous Coal
B68: C | C68: ='Data Input & RESULTS '!C6 -> 0.75 | D68: =C68/$C$82 -> 0.75 | E68: 14100 | F68: =(D68)*44/12 -> 2.75 | I68: =D68*32/12 -> 2 | J68: =I68*$E$63 -> 6.639308855 | K68: =I68+J68 -> 8.639308855 | L68: =C68*E68 -> 10575 | M68: =D68*44/12 -> 2.75 | N68: 150 | P68: =SUM(F68:H68)+J68 -> 9.389308855 | Q68: =D68*44/12 -> 2.75
B69: H | C69: ='Data Input & RESULTS '!C7 -> 0.05 | D69: 0.05 | E69: 61100 | G69: =D69*18/2 -> 0.45 | I69: =D69*16/2 -> 0.4 | J69: =I69*$E$63 -> 1.327861771 | K69: =I69+J69 -> 1.727861771 | L69: 3055 | M69: =D69*18/2 -> 0.45 | N69: 451 | P69: 1.777861771
B70: S | C70: ='Data Input & RESULTS '!C8 -> 0.005 | D70: 0.005 | E70: 3980 | H70: =D70*64/32 -> 0.01 | I70: =D70*32/32 -> 0.005 | J70: =I70*$E$63 -> 0.01659827214 | K70: =I70+J70 -> 0.02159827214 | L70: 19.9 | M70: 0.053 | N70: 56.4 | P70: 0.02659827214
B71: Inerts | C71: ='Data Input & RESULTS '!C9 -> 0.1 | D71: 0.1 | J71: =I71*$E$63 -> 0 | K71: =I71+J71 -> 0 | L71: 0 | M71: 0.01 | N71: 0 | P71: 0
B72: O2 | C72: ='Data Input & RESULTS '!C10 -> 0.08 | D72: 0.08 | I72: =-(C72) -> -0.08 | J72: =I72*$E$63 -> -0.2655723542 | K72: =I72+J72 -> -0.3455723542 | L72: 0 | M72: -0.0331 | N72: =-1/0.0763 -> -13.1061599 | P72: -0.2655723542
B73: Moisture | C73: ='Data Input & RESULTS '!C11 -> 0 | D73: 0 | G73: =D73 -> 0 | L73: 0 | N73: 0 | P73: 0
B74: N | C74: ='Data Input & RESULTS '!C12 -> 0.015 | D74: 0.015 | N74: 0 | P74: 0
B75: Total | F75: =SUM(F68:F74) -> 2.75 | G75: 0.45 | H75: 0.01 | I75: 2.325 | J75: 7.718196544 | K75: 10.04319654 | L75: 13649.9
B76: Excess air contributions | I76: =($C$83)*I75 -> 0 | J76: =($C$83)*J75 -> 0 | K76: =($C$83)*K75 -> 0
B77: Total with Xs air | I77: =I75+I76 -> 2.325 | J77: =J75+J76 -> 7.718196544 | K77: =K75+K76 -> 10.04319654
B78: Moisture in air lb./lb of air | C78: ='Data Input & RESULTS '!D21 -> 0.01 | G78: =C78*K77 -> 0.1004319654 | L78: lb. /lb of fuel
C79: Comb producta incl. Xs air | F79: =F75 -> 2.75 | G79: =G75+G78 -> 0.5504319654 | H79: =H75 -> 0.01 | I79: =I76 -> 0 | J79: =J77 -> 7.718196544 | L79: =SUM(F79:J79) -> 11.02862851
C80: Wet | L80: =L79 -> 11.02862851
C81: Dry | L81: =L80-G79 -> 10.47819654
B82: Total of fuel components | C82: =SUM(C68:C74) -> 1 | D82: =SUM(D68:D81) -> 1
B83: Excess air % | C83: ='Data Input & RESULTS '!D17 -> 0
M84: 0.001819
B85: Total incl. effect of Excess air | F85: =SUM(F68:F74) -> 2.75 | G85: =SUM(G68:G74) -> 0.45 | H85: =SUM(H68:H74) -> 0.01 | I85: =SUM(I68:I74) -> 2.325 | J85: =SUM(J68:J75) -> 15.43639309 | L85: =SUM(L68:L73) -> 13649.9 | M85: =100*(C68*M68+M69*C69+C70*M70+C71*M71+C72*M72) -> 208.3617 | N85: =($C$68*N68+0.5*$C$69*N69+$C$70*N70+$C$71*N71+$C$72*N72+$C$73*N73+$C$74*N74+$C$75*N75+$C$76*N76+$C$77*N77+$C$81*N81)*(1+$C$83/100) ->  | P85: =SUM(P68:P75) -> 10.92819654 | Q85: =I86+F85+G85+H85-I85 -> 18.64639309
B86: Temperature of combustion air (F) | C86: ='Data Input & RESULTS '!D18 -> 0 | H86: Ait | I86: =I85+J85 -> 17.76139309
B87: Fuel temperature (F) | C87: ='Data Input & RESULTS '!D20 -> 70 | N87: =100*N85/L85 -> 
B88: Flue gas temperature (F) | C88: ='Data Input & RESULTS '!D19 -> 0
B91: Excess air used % | C91: =C83 -> 0 | N91: =1/N87 -> 
B92: Additional O2 lbs./lb of fuel | C92: =I85*C91 -> 0
B93: Additioanl N2 in excess air lbs./lb. of fuel | C93: =C92*H206 -> 0 | L93: =16/0.23 -> 69.56521739
B94: Ttaol additional air lb of lb. of fuel | C94: =C92+C93 -> 0 | N94: Component | O94: o2 | P94: n2 | Q94: co2 | R94: fg | S94: fg per #
N95: 12 | O95: 32 | P95: =O95*3.3103 -> 105.9296 | Q95: 44 | R95: =P95+Q95 -> 149.9296 | S95: =R95/N95 -> 12.49413333
N96: 2 | O96: 16 | P96: =O96*3.3103 -> 52.9648 | Q96: 18 | R96: =P96+Q96 -> 70.9648 | S96: =R96/N96 -> 35.4824
N97: 32 | O97: 32 | P97: =O97*3.3103 -> 105.9296 | Q97: 64 | R97: =P97+Q97 -> 169.9296 | S97: =R97/N97 -> 5.3103
B98: Flue gas composition - content | F98: CO2 | G98: H2O | H98: SO2 | I98: O2 | J98: N2 | L98: Total | M98: Diff
B99: Lbs./lb. of fuel | F99: =F79 -> 2.75 | G99: =G79 -> 0.5504319654 | H99: =H79 -> 0.01 | I99: =I79 -> 0 | J99: =J79 -> 7.718196544 | L99: =SUM(F99:J99) -> 11.02862851 | M99: =(M85-L99)/L99 -> 17.89280247
B100: Composition by weight (wet) | F100: =F99/$L$99 -> 0.249351041 | G100: =G99/$L$99 -> 0.04990937585 | H100: =H99/$L$99 -> 0.0009067310583 | I100: =I99/$L$99 -> 0 | J100: =J99/$L$99 -> 0.6998328521 | L100: =L99/$L$99 -> 1
B101: Composition by weight (dry) | F101: =F99/$L$81 -> 0.2624497439 | G101: 0 | H101: =H99/$L$81 -> 0.0009543627052 | I101: =I99/$L$81 -> 0 | J101: =J99/$L$81 -> 0.7365958934 | L101: =L100 -> 1
B102: Volume per lb. of fuel (scf/lb of fuel) -wet | F102: =F99*'Cp calculationsHTmod'!H14 -> 37.14464286 | G102: =G99*'Cp calculationsHTmod'!H20 -> 11.56518719 | H102: =H99*'Cp calculationsHTmod'!H14 -> 0.1350714286 | I102: =I99*'Cp calculationsHTmod'!H8 -> 0 | J102: =J99*'Cp calculationsHTmod'!H11 -> 104.2507833 | L102: =SUM(F102:J102) -> 153.0956848
B103: Composition by volume (wet) | F103: =F102/$L$102 -> 0.2426237089 | G103: =G102/$L$102 -> 0.07554221532 | H103: =H102/$L$102 -> 0.0008822680323 | I103: =I102/$L$102 -> 0 | J103: =J102/$L$102 -> 0.6809518078 | L103: =L102/$L$102 -> 1
B104: Composition by volume (dry) | F104: =F103/(1-$G$103) -> 0.2624497439 | G104: 0 | H104: =H103/(1-$G$103) -> 0.0009543627052 | I104: =I103/(1-$G$103) -> 0 | J104: =J103/(1-$G$103) -> 0.7365958934 | L104: =SUM(H104:J104)+F104 -> 1
B105: Heating value (Btu/lb of fuel) | L105: =L85 -> 13649.9
B106: Cu. ft. of fuel | F106: =F11 -> 3500 | G106: =F11 -> 3500
B107: Total in flue gases (Lbs.) | F107: =F99*F11 -> 9625 | G107: =G99*F11 -> 1926.511879
B108: Heat in the flue gas components (Btu/lb of fuel) | F108: =F99*'Cp calculationsHTmod'!G24*('Av.Ht.Solid - modified'!C88-60) -> -32.5044896 | G108: ='Av.Ht.Solid - modified'!G75*(J121+'Cp calculationsHTmod'!G94*('Av.Ht.Solid - modified'!C88-60))+G78*'Cp calculationsHTmod'!G94*('Av.Ht.Solid - modified'!C88-60) -> 483.493923 | H108: =H99*'Cp calculationsHTmod'!G24*('Av.Ht.Solid - modified'!C88-60) -> -0.118198144 | I108: =I99*'Cp calculationsHTmod'!G9*('Av.Ht.Solid - modified'!C88-60) -> 0 | J108: =J99*'Cp calculationsHTmod'!G12*('Av.Ht.Solid - modified'!C88-60) -> -115.4956308 | L108: =SUM(F108:J108) -> 335.3756044
B110: CO2 and H2O values (Lbs./MM Btu) | F110: =F99*10^6/$L$105 -> 201.4666774 | G110: =G99*10^6/$L$105 -> 40.32498153
B111: Carbon equivalent - (Lbs. of Carbon/MM Btu) | F111: =F110*12/44 -> 54.94545748
B114: Heat entering the system
B115: Sensible heat
B116: Air | D116: Btu/lb. of fuel | E116: =K77*'Cp calculationsHTmod'!F68*('Av.Ht.Solid - modified'!C86-60)/0.075 -> -144.2562725 | H116: Calculations for Water vapor - steam enthalpy etc.
B117: Fuel | D117: Btu/lb. of fuel | E117: =0.24*(1-C73)*(C87-60) -> 2.4 | H117: Equation coeff for enthalpy @ saturation calculations | J117: Enthalpy | L117: 1096.7 | M117: 0.013 | N117: Equation: Enthalpy = 1096 * Partial pressure (inch HG) ^ 0.013
B118: Moisturer in fuel | D118: Btu/lb. of fuel | E118: =C73*(C87-60) -> 0
B119: Chemical heat or heating value of fuel | D119: Btu/lb. of fuel | E119: =L105 -> 13649.9 | H119: Partial pressure of H2O | J119: =G103 -> 0.07554221532 | L119: atm | N119: From volumetric wet analysis
B120: Total heat in | D120: Btu/lb. of fuel | E120: =SUM(E116:E119) -> 13508.04373 | J120: =J119*29.926 -> 2.260676336 | L120: inch HG | N120: Conversion from atm to inch HG
B121: Heat in flue gases | D121: Btu/lb. of fuel | E121: =L108 -> 335.3756044 | H121: Enthalpy at saturated condition | J121: =L117*J120^M117 -> 1108.390877 | L121: Btu/lb of steam | N121: Enthalpy for partial pressure using coeffs.
B122: Heating value of carbon | D122: Btu/lb. | E122: 14093
B123: Sensible heat in ash discharged | D123: Btu/lb of fuel | E123: ='Data Input & RESULTS '!C9*0.25*(1.8*'Data Input & RESULTS '!D22+32-60) -> -0.25
B124: Chemical heat in unburned carbon | D124: Btu/lb. of fuel | E124: ='Data Input & RESULTS '!D23*'Data Input & RESULTS '!C9*'Av.Ht.Solid - modified'!E122 -> 0
B126: Available heat | D126: % | E126: =(E120-E121-E124-E123)/E119 -> 0.9650560168 | H126: Saturation temperature | J126: =J127*LN(J120)+J128 -> 110.4252461 | L126: deg. F. | N126: Equation: Sat. Temp (F) = 36.009 * LN(partial pressure inch HG) + 81.054
I127: Coeff for satuation temp (F) calculation | J127: 36.009
J128: 81.054
H136: Total heat content of water vapor = Mass or weight of water/lb of fuel * (Enthalpy at saturation + Sp. Heat of vapor *(flue gas temp. [F] - 60 [F])
H137: =G99*(J121+'Cp calculationsHTcurrent'!G94*('Av.Ht.Solid - modified'!C88-60)) -> 594.8117973 | I137: E111*(M120+E112*(C89-M121))
B142: Emission | C142: CO2 equivalnet in Lbs. | F142: 2001 values *
B143: Carbon dioxide (CO2) | C143: 1 | F143: 1
B144: Methane (CH4) | C144: 21 | F144: 23
B145: Nitrous oxide (N2O) | C145: 310 | F145: 296
B146: Hydrofluorocarbon (HFC)-134a (used in mobile source air conditioning) | C146: 1300 | F146: 1300
B150: * See note below
B151: These estimates are from the IPCC’s Second Assessment Report (1996). These are the values used internationally for reporting greenhouse gas (GHG) emissions to the United Nations. (EPA also uses them for the Inventory of U.S. Greenhouse Gas Emissions and S
B153: Relationship Between Ultimate Analysis and Proximate Analysis
B154: %C | C154: =B156 -> 0.97C+ 0.7(VM - 0.1A) - M(0.6-0.01M)
B155: =
B156: 0.97C+ 0.7(VM - 0.1A) - M(0.6-0.01M)
B157: %H | C157: =B159 -> 0.036C + 0.086 (VM -0.1xA) - 0.0035M2 (1-0.02M)
B158: =
B159: 0.036C + 0.086 (VM -0.1xA) - 0.0035M2 (1-0.02M)
B160: %N2 | C160: =B162 -> 2.10 -0.020 VM
B161: =
B162: 2.10 -0.020 VM
B163: where
B164: C | C164: =B166 -> % of fixed carbon
B165: =
B166: % of fixed carbon
B167: A | C167: =B169 -> % of ash
B168: =
B169: % of ash
B170: VM | C170: =B172 -> % of volatile matter
B171: =
B172: % of volatile matter
B173: M | C173: =B175 -> % of moisture
B174: =
B175: % of moisture
B176: Relationship Between Ultimate Analysis and Proximate Analysis
B177: %C | C177: 0.97+ 0.7(VM - 0.1A) - M(0.6-0.01M)
B178: =
B179: 0.97C+ 0.7(VM - 0.1A) - M(0.6-0.01M)
B180: %H
B181: =
B182: 0.036C + 0.086 (VM -0.1xA) - 0.0035M2 (1-0.02M)
B183: %N2
B184: =
B185: 2.10 -0.020 VM
B186: where
B187: C
B188: =
B189: % of fixed carbon
B190: A
B191: =
B192: % of ash
B193: VM
B194: =
B195: % of volatile matter
B196: M
B197: =
B198: % of moisture
B203: Table 1: Standard Composition of Dry Air (Detailed Analysis):
B204: Gas | C204: % by Volume | D204: % by Weight | E204: Parts per Million (by Volume) | F204: Chemical Symbol | G204: Molecular Weight
B205: Nitrogen | C205: 78.08 | D205: 75.47 | E205: 780805 | F205: N2 | G205: 28.01 | H205: Ratio N2/O2 wt.
B206: Oxygen | C206: 20.95 | D206: 23.2 | E206: 209450 | F206: O2 | G206: 32 | H206: =(100-D206)/D206 -> 3.310344828
B207: Argon | C207: 0.93 | D207: 1.28 | E207: 9340 | F207: Ar | G207: 39.95
B208: Carbon Dioxide | C208: 0.039 | D208: 0.0606 | E208: 390 | F208: CO2 | G208: 44.01
B209: Neon | C209: 0.0018 | D209: 0.0012 | E209: 18.21 | F209: Ne | G209: 20.18
B210: Helium | C210: 0.0005 | D210: 7e-05 | E210: 5.24 | F210: He | G210: 4
B211: Krypton | C211: 0.0001 | D211: 0.0003 | E211: 1.14 | F211: Kr | G211: 83.8
B212: Hydrogen | C212: 0.00005 | D212: Negligible | E212: 0.5 | F212: H2 | G212: 2.02
B213: Xenon | C213: 8.7 x 10-6 | D213: 4e-05 | E213: 0.087 | F213: Xe | G213: 131.3
B216: C | C216: % Fixed carbon | E216: 0.675
B217: A | C217: % Ash | E217: 0.1
B218: VM | C218: % Volatime matter | E218: 0.15
B219: M | C219: % Moisture | E219: 0.075
B220: Total | E220: =SUM(E216:E219) -> 1
B221: C
B222: H2 | E222: =0.97*E216+0.7*(E218-0.1*E217)-E219*(0.6 - 0.01*E219) -> 0.70780625
B223: N2 | E223: =0.036*E216+0.086*(E218-0.1*E217)-0.0035*E219^2*(1-0.02*E219) -> 0.03632034203
E224: =(2.1-0.02*E218)/100 -> 0.02097
F225: =SUM(E222:E224) -> 0.765096592

Sheet Data Input & RESULTS (hidden)
B3: Fuel Name or description
B4: ='Flue gases'!B37 -> Coal
B5: Component - use ultimate analysis | C5: % by weight
B6: C | C6: ='Flue gases'!C39 / 100 -> 0.75 | D6: User defined
B7: H2 | C7: ='Flue gases'!C40 / 100 -> 0.05
B8: S | C8: ='Flue gases'!C41 / 100 -> 0.005
B9: Inerts - ash | C9: ='Flue gases'!C42 / 100 -> 0.1
B10: O2 | C10: ='Flue gases'!C43 / 100 -> 0.08
B11: Moisture | C11: ='Flue gases'!C44 / 100 -> 0
B12: N2 | C12: ='Flue gases'!C45 / 100 -> 0.015
B13: Total** | C13: =SUM(C6:C12) -> 1
C16: Current | D16: Modified
B17: Excess air for combustion (%) | C17: ='Flue gases'!D50 / 100 -> 0 | D17: ='Flue gases'!E50 / 100 -> 0 | E17: D8 and E8 | F17: flue gas tab
B18: Combustion air temperature (oF) | C18: ='Flue gases'!D51 -> 0 | D18: ='Flue gases'!E51 -> 0 | E18: D9 and E9 | F18: flue gas tab
B19: Flue gas temperature (oF) | C19: ='Flue gases'!D52 -> 0 | D19: ='Flue gases'!E52 -> 0 | E19: D5 and E5 | F19: flue gas tab
B20: Fuel temperature (0F) | C20: ='Flue gases'!D53 -> 70 | D20: ='Flue gases'!E53 -> 70 | E20: User defined
B21: Moisture in air combustion lb H2O/lb of dry air * | C21: ='Flue gases'!D54 / 100 -> 0.01 | D21: ='Flue gases'!E54 / 100 -> 0.01 | E21: User defined
B22: Ash discharge temperature (oF) | C22: ='Flue gases'!D55 -> 10 | D22: ='Flue gases'!E55 -> 10 | E22: User defined
B23: Unburned carbon in ash (% of ash collected) | C23: ='Flue gases'!D56 / 100 -> 0 | D23: ='Flue gases'!E56 / 100 -> 0 | E23: User defined
B24: * See psychometric chart below.
B25: ** If the total is not exactly 100%, then the program will normalize the component values to get 100% total.
B27: Available heat* | C27: ='Av.Ht.Solid - current '!E126 -> 0.9650560168 | D27: ='Av.Ht.Solid - modified'!E126 -> 0.9650560168 | E27: This goes back to PHASTEx Flue gas tab
B28: * Based on higher heating value | E28: D12 (for current) and E12 (for modified )
B30: © Arvind Thekdi (E3M Inc.)

Sheet Data-Results vol current (hidden)
A3: Available Heat Calculation for Gaseous Fuels
A4: Given Volumetric Gas Analysis
A6: Name or designation of fuel | B6: ='Flue gases'!C68 -> Natural Gas - East Ohio
A8: Gas composition | B8: By volume
A9: CH4 | B9: ='Flue gases'!C71 -> 0.941
A10: C2H6 | B10: ='Flue gases'!C72 -> 0.0301
A11: N2 and other inert | B11: ='Flue gases'!C73 -> 0.0141 | C11: Note:
A12: H2 | B12: ='Flue gases'!C74 -> 0.0001 | C12: The gas analysis
A13: C3H8 | B13: ='Flue gases'!C75 -> 0.0042 | C13: will be adjusted to
A14: C4H10 + CnH2n | B14: ='Flue gases'!C76 -> 0.0028 | C14: make total 100%
A15: H2O | B15: ='Flue gases'!C77 -> 0 | C15: for the calculations
A16: CO | B16: ='Flue gases'!C78 -> 0
A17: CO2 | B17: ='Flue gases'!C79 -> 2e-05
A18: SO2 | B18: ='Flue gases'!C80 -> 0
A19: O2 | B19: ='Flue gases'!C81 -> 0.0001
A20: Total of fuel components | B20: =SUM(B9:B19) -> 0.99242
A21: Difference | B21: =1-B20 -> 0.00758
A23: Weight % for tar in gas-tar mixture | B23: % | C23: 0
A25: Fuel gas temperature | B25: Deg. F. | C25: ='Flue gases'!D87 -> 0
A26: Combustion air temperature | B26: Deg. F. | C26: ='Flue gases'!D88 -> 0
A27: Flue gas temperature | B27: Deg. F. | C27: ='Flue gases'!D89 -> 0
A28: Excess air used for combustion | B28: % | C28: ='Flue gases'!D90 -> 0
A29: Percent O2 in flue gas | B29: %
A31: Results
A32: Avaiable Heat | B32: % | C32: ='Calculations - vol current'!H75 -> 0.9013390414
A33: Higher (Gross) calorific (heating value) of the fuel | B33: Btu/ft3 | C33: ='Calculations - vol current'!C48*37.3 -> 38539.00412
B34: kcal/m3 | C34: ='Calculations - vol current'!C48*8.9 -> 9195.63369
A35: % O2 in Flue gases (dry basis) | B35: % | C35: ='Calculations - vol current'!I14 -> 0
A36: Stoichiometric air required | B36: ft3 air/m3 fuel gas | C36: ='Calculations - vol current'!C80 -> 10.22734446
A37: Actual air required | C37: ='Calculations - vol current'!C83 -> 10.22734446

Sheet Calculations - vol current (hidden)
C1: Per # of other vapor at stoich ratio | F1: # Per # of gas from gasifier at stoich ratio | J1: Total
C2: CO2 | D2: H2O | E2: N2 | F2: CO2 | G2: H2O | H2: N2 | I2: Excess O2 in FG | K2: SO2 | L2: O2 supplied for comb | M2: Comb air required | N2: Stoich air
A3: Wt. of other vapors | B3: ='Data-Results vol current '!C23 -> 0 | C3: 3.18 | D3: 0.572 | E3: 9.3 | F3: =$B$3*C3 -> 0 | G3: =$B$3*D3 -> 0 | H3: =$B$3*E3 -> 0 | I3: 0 | J3: =SUM(F3:H3) -> 0 | K3: 0 | L3: =0.231*12.052*B3 -> 0 | M3: =L3/0.231 -> 0 | N3: =M3 -> 0
A4: With Excess air | B4: =C57 -> 0 | F4: =F3 -> 0 | G4: =G3 -> 0 | H4: =H3+I4/(1-0.231) -> 0 | I4: =B4*L3 -> 0 | J4: =SUM(F4:I4) -> 0 | K4: 0 | L4: =I4 -> 0 | M4: =L4/0.231 -> 0
A7: Wt. of gases from gas combustion | B7: =1-B3 -> 1 | F7: =$B$7*Q40 -> 2.709583521 | G7: =$B$7*R40 -> 2.125349353 | H7: =B7*T40 -> 12.86403229 | I7: =B7*U40 -> 0 | J7: =SUM(F7:I7)+K7 -> 17.69896516 | K7: =B7*S40 -> 0 | L7: =I7+B7*U36 -> 3.857460952 | M7: =L7/0.231 -> 16.69896516 | N7: =M7-I7/0.231 -> 16.69896516
A9: Total wt. of FG # per # of fuel | F9: =F4+F7 -> 2.709583521 | G9: 2.125349353 | H9: 12.86403229 | I9: 0 | J9: 17.69896516 | K9: 0 | L9: =SUM(L3:L7) -> 3.857460952 | M9: =SUM(M3:M7) -> 16.69896516 | N9: =M9/(1+B4) -> 16.69896516
A10: Wet analysis % by weight | F10: =F9/$J$9 -> 0.1530927654 | G10: 0.1200832554 | H10: 0.7268239792 | I10: 0 | J10: 1 | K10: 0
A11: dry analysis % by weight | F11: =F9/($J$9-$G$9) -> 0.1739855121 | G11: 0 | H11: =H9/($J$9-$G$9) -> 0.8260144879 | I11: =I9/($J$9-$G$9) -> 0 | J11: =SUM(F11:I11) -> 1 | K11: =K9/($J$9-$G$9) -> 0
A12: Volume scf /#of Fuel | F12: =F9*'Cp calculations (2)'!H23 -> 23.29010199 | G12: =G9*'Cp calculations (2)'!H20 -> 44.65595141 | H12: =H9*'Cp calculations (2)'!H11 -> 173.7563218 | I12: =I9*'Cp calculations (2)'!H8 -> 0 | J12: =SUM(F12:I12)+K12 -> 241.7023752 | K12: =K9*'Cp calculations (2)'!H41 -> 0
A13: Wet analysis % by volume | F13: =F12/$J$12 -> 0.09635859793 | G13: 0.1847559478 | H13: 0.7188854543 | I13: 0 | J13: 1 | K13: 0
A14: Dry analysis % by volume | F14: =F12/($J$12-$G$12) -> 0.1181960146 | G14: 0 | H14: =H12/($J$12-$G$12) -> 0.8818039854 | I14: =I12/($J$12-$G$12) -> 0 | J14: =SUM(F14:I14) -> 1 | K14: =K12/($J$12-$G$12) -> 0
AC15: =T39*'Cp calculations (2)'!H11 -> 0 | AD15: =U39*'Cp calculations (2)'!H8 -> 0
A16: Heating value of fuel (higher) | I16: Density of FG | J16: =J9/J12 -> 0.07322627734 | K16: #/scf of FG
A17: Other vapors | B17: Btu/# | C17: 15720 | I17: Sp. Volume of FG | J17: =1/J16 -> 13.65629985 | K17: SCF/lb of FG
A18: Gas fuel | B18: Btu/# | C18: =C47 -> 23081.06553
A19: Total heating value Higher for mixed fuel | B19: Btu/# | C19: =C17*B3+C18*B7 -> 23081.06553
A23: Gas (Fuel) Analysis (See note below) | K23: Heating value Btu/lb. | M23: Comment | O23: By weight analysis | Q23: By weight #s/# of component | U23: required | W23: Total | Z23: By volume scf/# of component
A24: Gas composition | B24: Mol wt | C24: O2 reqd | D24: CO2 | E24: H2O | F24: SO2 | G24: By volume | H24: Adjusted by volume | I24: Heat value Btu/scf comp. | J24: Heat value Btu/scf fuel | L24: Ht. value /lb of fuel | O24: lbs./cu.ft. | P24: % | Q24: CO2 | R24: H2O | S24: SO2 | T24: N2 | U24: O2 | Z24: CO2 | AA24: H2O | AB24: SO2 | AC24: N2 | AD24: O2 | AE24: Total
A25: CH4 | B25: =16.042 -> 16.042 | C25: 64 | D25: =B33 -> 44.01 | E25: =2*B31 -> 36.032 | G25: ='Data-Results vol current '!B9 -> 0.941 | H25: =G25*(1+$G$37) -> 0.94813278 | I25: 1012 | J25: =I25*H25 -> 959.5103734 | K25: 23875 | L25: =K25*P25 -> 20511.62083 | O25: =H25*'Cp calculations (2)'!I26 -> 0.04011138149 | P25: =O25/$O$36 -> 0.8591254797 | Q25: =P25*D25/B25 -> 2.356945042 | R25: =P25*E25/B25 -> 1.929685157 | T25: =U25*(1-0.231)/0.231 -> 11.41017805 | U25: =P25*C25/B25 -> 3.427504719 | V25: =T25/U25 -> 3.329004329 | Z25: =Q25*'Cp calculations (2)'!$H$23 -> 20.25901397 | AA25: =R25*'Cp calculations (2)'!$H$20 -> 40.54482924 | AB25: =S25*'Cp calculations (2)'!H41 -> 0 | AC25: =T25*'Cp calculations (2)'!$H$11 -> 154.1189049 | AD25: =U25*'Cp calculations (2)'!$H$8 -> 40.5088214
A26: C2H6 | B26: 30.068 | C26: 112 | D26: =2*B33 -> 88.02 | E26: =3*B31 -> 54.048 | G26: ='Data-Results vol current '!B10 -> 0.0301 | H26: 0.030328158 | I26: 1773 | J26: 53.77182413 | K26: 22323 | L26: 1073.554458 | O26: =H26*'Cp calculations (2)'!I29 -> 0.00224534221 | P26: 0.04809185403 | Q26: =P26*D26/B26 -> 0.140782393 | R26: =P26*E26/B26 -> 0.08644633919 | T26: =U26*(1-0.231)/0.231 -> 0.5963474428 | U26: =P26*C26/B26 -> 0.1791368781 | Z26: =Q26*'Cp calculations (2)'!$H$23 -> 1.21008866 | AA26: =R26*'Cp calculations (2)'!$H$20 -> 1.816333638 | AB26: =S26*'Cp calculations (2)'!H42 -> 0 | AC26: =T26*'Cp calculations (2)'!$H$11 -> 8.054950102 | AD26: =U26*'Cp calculations (2)'!$H$8 -> 2.117173978
A27: N2 and other inert | B27: 28.016 | C27: 0 | D27: 0 | E27: 0 | G27: ='Data-Results vol current '!B11 -> 0.0141 | H27: 0.014206878 | I27: 0 | J27: 0 | K27: 0 | L27: 0 | O27: =H27*'Cp calculations (2)'!I11 -> 0.001051804823 | P27: 0.0225280778 | T27: =P27 -> 0.0225280778 | Z27: =Q27*'Cp calculations (2)'!$H$23 -> 0 | AA27: =R27*'Cp calculations (2)'!$H$20 -> 0 | AB27: =S27*'Cp calculations (2)'!H43 -> 0 | AC27: =T27*'Cp calculations (2)'!$H$11 -> 0.3042899652 | AD27: =U27*'Cp calculations (2)'!$H$8 -> 0
A28: H2 | B28: 2.016 | C28: 16 | D28: 0 | E28: =B31 -> 18.016 | G28: ='Data-Results vol current '!B12 -> 0.0001 | H28: 0.000100758 | I28: 325 | J28: 0.03274635 | K28: 61095 | L28: 0.6972405843 | O28: =H28*'Cp calculations (2)'!I17 -> 5.328291909e-07 | P28: 1.14124001e-05 | R28: =P28*E28/B28 -> 0.0001019870041 | T28: =U28*(1-0.231)/0.231 -> 0.0003015232488 | U28: =P28*C28/B28 -> 9.057460399e-05 | Z28: =Q28*'Cp calculations (2)'!$H$23 -> 0 | AA28: =R28*'Cp calculations (2)'!$H$20 -> 0.002142860275 | AB28: =S28*'Cp calculations (2)'!H44 -> 0 | AC28: =T28*'Cp calculations (2)'!$H$11 -> 0.004072717596 | AD28: =U28*'Cp calculations (2)'!$H$8 -> 0.001070478601
A29: C3H8 | B29: 44.094 | C29: 160 | D29: =3*B33 -> 132.03 | E29: =4*B31 -> 72.064 | G29: ='Data-Results vol current '!B13 -> 0.0042 | H29: 0.004231836 | I29: 2523 | J29: 10.67692223 | K29: 21669 | L29: 155.7960376 | O29: =H29*'Cp calculations (2)'!I32 -> 0.0003356823903 | P29: 0.007189812065 | Q29: =P29*D29/B29 -> 0.02152834596 | R29: =P29*E29/B29 -> 0.01175050158 | T29: =U29*(1-0.231)/0.231 -> 0.08685051204 | U29: =P29*C29/B29 -> 0.02608903548 | Z29: =Q29*'Cp calculations (2)'!$H$23 -> 0.1850459192 | AA29: =R29*'Cp calculations (2)'!$H$20 -> 0.2468910943 | AB29: =S29*'Cp calculations (2)'!H47 -> 0 | AC29: =T29*'Cp calculations (2)'!$H$11 -> 1.173102273 | AD29: =U29*'Cp calculations (2)'!$H$8 -> 0.308339788
A30: C4H10 + CnH2n | B30: 58.12 | C30: 208 | D30: =4*B33 -> 176.04 | E30: =5*B31 -> 90.08 | G30: ='Data-Results vol current '!B14 -> 0.0028 | H30: 0.002821224 | I30: 3270 | J30: 9.22540248 | K30: 21321 | L30: 1339.396968 | O30: =H30*'Cp calculations (2)'!J32 -> 0.002933004721 | P30: 0.06282055102 | Q30: =P30*D30/B30 -> 0.1902775258 | R30: =P30*E30/B30 -> 0.09736536883 | T30: =U30*(1-0.231)/0.231 -> 0.7484345553 | U30: =P30*C30/B30 -> 0.2248223436 | Z30: =Q30*'Cp calculations (2)'!$H$23 -> 1.635521824 | AA30: =R30*'Cp calculations (2)'!$H$20 -> 2.045754583 | AB30: =S30*'Cp calculations (2)'!H48 -> 0 | AC30: =T30*'Cp calculations (2)'!$H$11 -> 10.10921246 | AD30: =U30*'Cp calculations (2)'!$H$8 -> 2.657119074
A31: H2O | B31: 18.016 | E31: =B31 -> 18.016 | G31: ='Data-Results vol current '!B15 -> 0 | H31: 0 | I31: 0 | J31: 0 | K31: 0 | L31: 0 | O31: =H31*'Cp calculations (2)'!I20 -> 0 | P31: 0 | R31: =O31 -> 0 | Z31: =Q31*'Cp calculations (2)'!$H$23 -> 0 | AA31: =R31*'Cp calculations (2)'!$H$20 -> 0 | AB31: =S31*'Cp calculations (2)'!H49 -> 0 | AC31: =T31*'Cp calculations (2)'!$H$11 -> 0 | AD31: =U31*'Cp calculations (2)'!$H$8 -> 0
A32: CO | B32: 28.01 | C32: 16 | D32: =B33 -> 44.01 | G32: ='Data-Results vol current '!B16 -> 0 | H32: 0 | I32: 321 | J32: 0 | K32: 4347 | L32: 0 | O32: =H32*'Cp calculations (2)'!I14 -> 0 | P32: 0 | Q32: =P32*D32/B32 -> 0 | T32: =U32*(1-0.231)/0.231 -> 0 | U32: =P32*C32/B32 -> 0 | Z32: =Q32*'Cp calculations (2)'!$H$23 -> 0 | AA32: =R32*'Cp calculations (2)'!$H$20 -> 0 | AB32: =S32*'Cp calculations (2)'!H50 -> 0 | AC32: =T32*'Cp calculations (2)'!$H$11 -> 0 | AD32: =U32*'Cp calculations (2)'!$H$8 -> 0
A33: CO2 | B33: 44.01 | D33: =B33 -> 44.01 | G33: ='Data-Results vol current '!B17 -> 2e-05 | H33: 2.01516e-05 | I33: 0 | J33: 0 | K33: 0 | L33: 0 | O33: =H33*'Cp calculations (2)'!I23 -> 2.34444844e-06 | P33: 5.021456045e-05 | Q33: =P33*D33/B33 -> 5.021456045e-05 | Z33: =Q33*'Cp calculations (2)'!$H$23 -> 0.0004316169719 | AA33: =R33*'Cp calculations (2)'!$H$20 -> 0 | AB33: =S33*'Cp calculations (2)'!H51 -> 0 | AC33: =T33*'Cp calculations (2)'!$H$11 -> 0 | AD33: =U33*'Cp calculations (2)'!$H$8 -> 0
A34: SO2 | B34: 64.06 | F34: 64 | G34: ='Data-Results vol current '!B18 -> 0 | H34: 0 | I34: 0 | J34: 0 | K34: 0 | L34: 0 | O34: =H34*'Cp calculations (2)'!I14 -> 0 | P34: 0 | S34: =P34 -> 0 | Z34: =Q34*'Cp calculations (2)'!$H$23 -> 0 | AA34: =R34*'Cp calculations (2)'!$H$20 -> 0 | AB34: =S34*'Cp calculations (2)'!H52 -> 0 | AC34: =T34*'Cp calculations (2)'!$H$11 -> 0 | AD34: =U34*'Cp calculations (2)'!$H$8 -> 0
A35: O2 | B35: 32 | C35: -32 | G35: ='Data-Results vol current '!B19 -> 0.0001 | H35: 0.000100758 | I35: 0 | J35: 0 | K35: 0 | L35: 0 | O35: =H35*'Cp calculations (2)'!I8 -> 8.525267054e-06 | P35: 0.0001825984016 | T35: =U35*(1-0.231)/0.231 -> -0.0006078708695 | U35: =P35*C35/B35 -> -0.0001825984016 | Z35: =Q35*'Cp calculations (2)'!$H$23 -> 0 | AA35: =R35*'Cp calculations (2)'!$H$20 -> 0 | AB35: =S35*'Cp calculations (2)'!H53 -> 0 | AC35: =T35*'Cp calculations (2)'!$H$11 -> -0.008210598673 | AD35: =U35*'Cp calculations (2)'!$H$8 -> -0.002158084859
A36: Total of fuel components | G36: =SUM(G25:G35) -> 0.99242 | H36: =SUM(H25:H35) -> 0.9999425436 | J36: =SUM(J25:J35) -> 1033.217269 | L36: =SUM(L25:L35) -> 23081.06553 | O36: =SUM(O25:O35) -> 0.04668861818 | P36: 1 | Q36: =SUM(Q25:Q35) -> 2.709583521 | R36: =SUM(R25:R35) -> 2.125349353 | S36: =SUM(S25:S35) -> 0 | T36: =SUM(T25:T35) -> 12.86403229 | U36: =SUM(U25:U35) -> 3.857460952 | W36: =SUM(Q36:T36) -> 17.69896516 | Z36: =Q36*'Cp calculations (2)'!$H$23 -> 23.29010199 | AA36: =R36*'Cp calculations (2)'!$H$20 -> 44.65595141 | AB36: =S36*'Cp calculations (2)'!H54 -> 0 | AC36: =T36*'Cp calculations (2)'!$H$11 -> 173.7563218 | AD36: =U36*'Cp calculations (2)'!$H$8 -> 45.59036663 | AE36: =SUM(Z36:AC36) -> 241.7023752
A37: Difference | G37: =1-G36 -> 0.00758 | H37: =1-H36 -> 5.74564e-05 | P37: =SUM(P25:P35) -> 1 | Q37: =Q36/$W$36 -> 0.1530927654 | R37: =R36/$W$36 -> 0.1200832554 | S37: =S36/$W$36 -> 0 | T37: =T36/$W$36 -> 0.7268239792 | W37: =SUM(Q37:T37) -> 1 | Z37: =Z36/$AE$36 -> 0.09635859793 | AA37: =AA36/$AE$36 -> 0.1847559478 | AB37: =AB36/$AE$36 -> 0 | AC37: =AC36/$AE$36 -> 0.7188854543 | AE37: =SUM(Z37:AC37) -> 1
A39: Excess air | M39: Excess air | N39: % | O39: =C57 -> 0 | T39: =U39*(1-0.231)/0.231 -> 0 | U39: =U36*O39 -> 0 | X39: Excess air % | Y39: =O39 -> 0 | Z39: 0 | AA39: 0 | AB39: 0 | AC39: =T39*'Cp calculations (2)'!H11 -> 0 | AD39: =Y39*AD36 -> 0
M40: Weight of FG with Xs air | Q40: =Q36 -> 2.709583521 | R40: =R36+R38 -> 2.125349353 | S40: =S36 -> 0 | T40: =T36+T39 -> 12.86403229 | U40: =U39 -> 0 | W40: =SUM(Q40:U40) -> 17.69896516 | X40: Volume of FG with Xs air | Z40: =Z36 +Z39 -> 23.29010199 | AA40: =AA36 +AA39 -> 44.65595141 | AB40: =AB36 +AB39 -> 0 | AC40: =AC36 +AC39 -> 173.7563218 | AD40: =AD39 -> 0 | AE40: =SUM(Z40:AD40) -> 241.7023752
M41: Weight % - wet | N41: % | Q41: =Q40/$W$40 -> 0.1530927654 | R41: =R40/$W$40 -> 0.1200832554 | S41: =S40/$W$40 -> 0 | T41: =T40/$W$40 -> 0.7268239792 | U41: =U40/$W$40 -> 0 | X41: Volume % - wet | Z41: =Z40/$AE$40 -> 0.09635859793 | AA41: =AA40/$AE$40 -> 0.1847559478 | AB41: =AB40/$AE$40 -> 0 | AC41: =AC40/$AE$40 -> 0.7188854543 | AD41: =AD40/$AE$40 -> 0
M42: Weight of FG- dry | Q42: =Q40 -> 2.709583521 | R42: 0 | S42: =S40 -> 0 | T42: =T40 -> 12.86403229 | U42: =U40 -> 0 | W42: =SUM(Q42:U42) -> 15.57361581 | X42: Volume of FG- dry | Z42: =Z40 -> 23.29010199 | AA42: 0 | AB42: =AB40 -> 0 | AC42: =AC40 -> 173.7563218 | AD42: =AD40 -> 0 | AE42: =SUM(Z42:AD42) -> 197.0464238
M43: Weight % - dry | N43: % | Q43: =Q42/$W$42 -> 0.1739855121 | R43: =R42/$W$42 -> 0 | S43: =S42/$W$42 -> 0 | T43: =T42/$W$42 -> 0.8260144879 | U43: =U42/$W$42 -> 0 | X43: Volume % - dry | Z43: =Z42/$AE$42 -> 0.1181960146 | AA43: =AA42/$AE$42 -> 0 | AB43: =AB42/$AE$42 -> 0 | AC43: =AC42/$AE$42 -> 0.8818039854 | AD43: =AD42/$AE$42 -> 0
M46: fuel sp. Volume | O46: =1/O36 -> 21.41849639 | P46: scf/# | T46: Air used #s/# fuel | V46: =U36*(1+O39)/0.231 -> 16.69896516
A47: Heating value of fuel - GAS only | B47: Btu/# | C47: =L36 -> 23081.06553
B48: Btu/scf | C48: =J36 -> 1033.217269 | AC48: =AC40*O36 -> 8.112442566
A49: Heating value for mixed gas | B49: Btu/# | C49: =C19 -> 23081.06553
A52: Fuel temperature | B52: Deg. F | C52: ='Data-Results vol current '!C25 -> 0 | M52: #s/ scf of fuel | Q52: =Q40*$O$36 -> 0.1265067105 | R52: 0.09922962446 | S52: 0 | T52: 0.6006038917 | U52: 0 | V52: 0 | W52: 0.8263402266
A53: Combustion air temperature | B53: =B52 -> Deg. F | C53: ='Data-Results vol current '!C26 -> 0 | M53: Avg Cp/# of gas
A55: Flue gas temperature | B55: =B52 -> Deg. F | C55: ='Data-Results vol current '!C27 -> 0
A57: Excess air | B57: % | C57: ='Data-Results vol current '!C28 -> 0
A59: Mass flow of fuel | B59: lbs./hr | C59: 1
A60: Mass flow of combustion air | B60: lbs./hr | C60: =C78*(1+C57) -> 16.69896516 | F60: By vol ht value
A61: Avg. sp. Heat of fuel | B61: Btu/(#-deg. F) | C61: =(P25*'Cp calculations (2)'!G26+'Calculations - vol current'!P26*'Cp calculations (2)'!G32+'Calculations - vol current'!P27*'Cp calculations (2)'!G11+'Calculations - vol current'!P28*'Cp calculations (2)'!G17+'Calculations - vol current'!P29*'Cp calculations (2)'!G35+'Calculations - vol current'!P30*'Cp calculations (2)'!G38+'Calculations - vol current'!P31*'Cp calculations (2)'!G20+'Calculations - vol current'!P32*'Cp calculations (2)'!G14+'Calculations - vol current'!P33*'Cp calculations (2)'!G23+'Calculations - vol current'!P34*'Cp calculations (2)'!G41+'Calculations - vol current'!P35*'Cp calculations (2)'!G8) -> 0.6608506235
A62: Sensible heat in fuel | B62: Btu/hr | C62: =C61*(C52-32)*C59 -> -21.14721995 | F62: =C62 -> -21.14721995 | G62: =F62/F64 -> -0.0009162150647
A63: Heat in combustion air | B63: Btu/hr | C63: ='Cp calculations (2)'!Q55*('Calculations - vol current'!C53-32)*C60 -> -128.7997998 | F63: =C63 -> -128.7997998 | G63: =F63/F64 -> -0.005580322954
A64: Heating value (chem heat) of fuel | B64: Btu/hr | C64: =C19 -> 23081.06553 | F64: =C19 -> 23081.06553
A65: Total heat coming in | B65: Btu/hr | C65: =SUM(C62:C64) -> 22931.11851 | F65: =SUM(F62:F64) -> 22931.11851
A67: Heat in FG | E67: Avg. | H67: Based on sat temp
A68: Heat in water vapor | B68: Btu/hr | C68: =G9*(K73+(('Cp calculations (2)'!G21+'Cp calculations (2)'!G20)/2)*('Calculations - vol current'!C55-212)) -> 2179.047967 | D68: =G9*(970+'Cp calculations (2)'!G20*('Calculations - vol current'!C55-212)) -> 1861.644703 | F68: =C68 -> 2179.047967 | H68: =G9*(K73+(('Cp calculations (2)'!G21+'Cp calculations (2)'!G20)/2)*('Calculations - vol current'!C55-K74)) -> 2245.871999 | I68: Calculations for Water vapor - steam enthalpy etc. | L68: const | M68: power
A69: Heat in CO2 | B69: Btu/hr | C69: =F9*(('Cp calculations (2)'!G23+'Cp calculations (2)'!G24)/2)*('Calculations - vol current'!C55-32) -> -17.6381051 | D69: =C69 -> -17.6381051 | F69: -17.6381051 | H69: =F69 -> -17.6381051 | I69: Equation | K69: Enthalpy | L69: 1096.7 | M69: 0.013
A70: Heat in N2 | B70: Btu/hr | C70: =H9*(('Cp calculations (2)'!G12 + 'Cp calculations (2)'!G11)/2)*('Calculations - vol current'!C55-32) -> -100.9808612 | D70: =C70 -> -100.9808612 | F70: -100.9808612 | H70: =F70 -> -100.9808612
A71: Heat in O2 | B71: Btu/hr | C71: =I9*(('Cp calculations (2)'!G9+'Cp calculations (2)'!G8)/2)*('Calculations - vol current'!C55-32) -> 0 | D71: =C71 -> 0 | F71: 0 | H71: =F71 -> 0 | I71: Partial pressure of H2O | K71: =G13 -> 0.1847559478 | L71: tam
A72: Heat in SO2 | B72: Btu/hr | C72: =K9*'Cp calculations (2)'!G41*('Calculations - vol current'!C55-32) -> 0 | D72: =C72 -> 0 | F72: 0 | H72: =F72 -> 0 | I72: Base | K72: =K71*29.926 -> 5.529006493 | L72: inch HG
A73: TOTAL | B73: Btu/hr | C73: =SUM(C68:C72) -> 2060.429001 | D73: =SUM(D68:D72) -> 1743.025737 | F73: 2060.429001 | H73: =SUM(H68:H72) -> 2127.253032 | I73: Enthalpy at saturated condition | K73: =L69*K72^M69 -> 1121.352759 | L73: Btu/lb of steam
I74: Saturation temperature | K74: =K75*LN(K72) +L76 -> 142.6296832 | L74: deg. F.
A75: Av. Heat | B75: % | C75: =(C65-C73)/C64 -> 0.9042342297 | D75: =(C65-D73)/C64 -> 0.9179859026 | E75: =AVERAGE(C75:D75) -> 0.9111100661 | F75: =(F65-F73)/F64 -> 0.9042342297 | H75: =(F65-H73)/F64 -> 0.9013390414 | J75: Coeff | K75: 36.009
L76: =81.054 -> 81.054
A77: O2 required @ stoich condition | B77: #s/# of fuel | C77: =U36 -> 3.857460952
A78: Stoich air required | B78: #s/# of fuel | C78: =C77/0.231 -> 16.69896516 | I78: Equation: steam enthalpy = | K78: const * base^power
A79: Stoich air required | B79: scf/# of fuel | C79: =C78*'Cp calculations (2)'!M58 -> 219.0543405 | I79: Saturation temperature = | K79: 36.009*Ln(base) = 81.054
B80: scf/scf of fuel | C80: =C79*O36 -> 10.22734446
J81: N59*LN(N56) +N60
A82: Actual air required | B82: scf/# of fuel | C82: =C79*(1+$C$57) -> 219.0543405
B83: scf/scf of fuel | C83: =C80*(1+$C$57) -> 10.22734446
A86: Volume of FG | B86: scf/# of fuel | C86: =J12 -> 241.7023752
A88: Mass of FG | B88: #s/# of fuel mix | C88: =J9 -> 17.69896516
B89: Scf/scf of gaseous fuel | C89: =C86*O36 -> 11.28474991
A90: Note: The fuel gas composition is in volume %. The higher hydrocarbons in fuel are treated as same as C4H10 and all other inert gases are treated as N2. | AA90: =12*14*0.6 -> 100.8
A93: Combustion air temperature | M93: 60 | N93: Deg. F.
A94: % Oxygen in COMBUSTION AIR | M94: 20.9 | N94: %
A95: % O2 in flue gases (ONLY for combustion with ambient air containing approximately 21% O2) | N95: %
A96: Calculated value of excess air used. (ONLY for combustion with ambient air containing approximately 21% O2) | M96: =O39 -> 0 | N96: %
A97: % Excess air used for combustion. (Give this number if O2 in combustion air is higher than approximately 21%.) | M97: 0 | N97: %
A98: Exhaust (flue) gas temperature | M98: 1400 | N98: Deg. F.
A99: % Excess air used for calculations | M99: =IF(M94>21.1,M97,M96) -> 0 | N99: Deg. F.
A102: © Developed by: Arvind Thekdi, E3M Inc.

Sheet Cp calculations (2) (hidden)
B2: Initial Gas temperature (F) | C2: 60
B3: Final Gas temperature (F) | C3: ='Calculations - vol current'!C55 -> 0
E6: Cp | G6: Cp | H6: Sp. Vol | I6: Sp. Wt | J6: Sp. Gravity | K6: Cp | L6: Mean CP
B7: Gas | C7: Temp (F) | D7: Temp ® | E7: Btu/(#mole.F) | F7: Mol wt | G7: Btu/(#F) | H7: SCF/# | I7: #/SCF | J7: wrt Air @stp | K7: Btu/SCF | L7: Btu/SCF
B8: Oxygen | C8: =C2 -> 60 | D8: =460+C8 -> 520 | E8: =11.515-172/D8^0.5 +1530/D8 -> 6.914608726 | F8: 32 | G8: =E8/F8 -> 0.2160815227 | H8: =378.2/F8 -> 11.81875 | I8: =1/H8 -> 0.08461131676 | J8: =I8/0.0763 -> 1.108929446 | K8: =G8/H8 -> 0.01828294216 | L8: =(K8+K9)/2 -> 0.0181599079
B9: Oxygen | C9: =C3 -> 0 | D9: =460+C9 -> 460 | E9: =11.515-172/D9^0.5 +1530/D9 -> 6.821545606 | F9: 32 | G9: =E9/F9 -> 0.2131733002 | H9: =378.2/F9 -> 11.81875 | I9: =1/H9 -> 0.08461131676 | J9: =I9/0.0763 -> 1.108929446 | K9: =G9/H9 -> 0.01803687363 | N9: =G9/G8 -> 0.9865410865
B11: Nitrogen | C11: =C8 -> 60 | D11: =460+C11 -> 520 | E11: =9.47-3.47*10^3/D11 +1.07*10^6/D11^2 -> 6.754023669 | F11: 28 | G11: =E11/F11 -> 0.241215131 | H11: =378.2/F11 -> 13.50714286 | I11: =1/H11 -> 0.07403490217 | J11: =I11/0.0763 -> 0.9703132656 | K11: =G11/H11 -> 0.01785833863 | L11: =(K11+K12)/2 -> 0.0181613646
B12: Nitrogen | C12: =C9 -> 0 | D12: =460+C12 -> 460 | E12: =9.47-3.47*10^3/D12 +1.07*10^6/D12^2 -> 6.983232514 | F12: 28 | G12: =E12/F12 -> 0.2494011612 | H12: =378.2/F12 -> 13.50714286 | I12: =1/H12 -> 0.07403490217 | J12: =I12/0.0763 -> 0.9703132656 | K12: =G12/H12 -> 0.01846439057 | N12: =G12/G11 -> 1.033936636
B14: Carbon Monoxide | C14: =C11 -> 60 | D14: =460+C14 -> 520 | E14: =9.46-3.29*10^3/D14+1.07*10^6/D14^2 -> 7.090177515 | F14: 28 | G14: =E14/F14 -> 0.2532206255 | H14: =378.2/F14 -> 13.50714286 | I14: =1/H14 -> 0.07403490217 | J14: =I14/0.0763 -> 0.9703132656 | K14: =G14/H14 -> 0.01874716424 | L14: =(K14+K15)/2 -> 0.01910988151
B15: Carbon Monoxide | C15: =C12 -> 0 | D15: =460+C15 -> 460 | E15: =9.46-3.29*10^3/D15+1.07*10^6/D15^2 -> 7.364536862 | F15: 28 | G15: =E15/F15 -> 0.2630191736 | H15: =378.2/F15 -> 13.50714286 | I15: =1/H15 -> 0.07403490217 | J15: =I15/0.0763 -> 0.9703132656 | K15: =G15/H15 -> 0.01947259879 | N15: =G15/G14 -> 1.038695695
B17: Hydrogen | C17: =C14 -> 60 | D17: =460+C17 -> 520 | E17: =5.76+0.578*D17/10^3+20/D17^0.5 -> 6.937618019 | F17: 2 | G17: =E17/F17 -> 3.46880901 | H17: =378.2/F17 -> 189.1 | I17: =1/H17 -> 0.005288207298 | J17: =I17/0.0763 -> 0.0693080904 | K17: =G17/H17 -> 0.01834378112 | L17: =(K17+K18)/2 -> 0.01837123589
B18: Hydrogen | C18: =C15 -> 0 | D18: =460+C18 -> 460 | E18: =5.76+0.578*D18/10^3+20/D18^0.5 -> 6.958384808 | F18: 2 | G18: =E18/F18 -> 3.479192404 | H18: =378.2/F18 -> 189.1 | I18: =1/H18 -> 0.005288207298 | J18: =I18/0.0763 -> 0.0693080904 | K18: =G18/H18 -> 0.01839869066 | N18: =G18/G17 -> 1.00299336
B20: Water vapor (H2O) | C20: =140 -> 140 | D20: =460+C20 -> 600 | E20: =19.86-597/D20^0.5+7500/D20 -> 7.987577059 | F20: 18 | G20: =E20/F20 -> 0.4437542811 | H20: =378.2/F20 -> 21.01111111 | I20: =1/H20 -> 0.04759386568 | J20: =I20/0.0763 -> 0.6237728136 | K20: =G20/H20 -> 0.02111998165 | L20: =(K20+K21)/2 -> 0.02157146531
B21: Water vapor (H2O) | C21: =C18 -> 0 | D21: =460+C21 -> 460 | E21: =19.86-597/D21^0.5+7500/D21 -> 8.3290793 | F21: 18 | G21: =E21/F21 -> 0.4627266278 | H21: =378.2/F21 -> 21.01111111 | I21: =1/H21 -> 0.04759386568 | J21: =I21/0.0763 -> 0.6237728136 | K21: =G21/H21 -> 0.02202294897 | N21: =G21/G20 -> 1.042754172
B23: Carbon Dioxide | C23: =C20 -> 140 | D23: =460+C23 -> 600 | E23: =16.2-6.53*10^3/D23+1.41*10^6/D23^2 -> 9.233333333 | F23: 44 | G23: =E23/F23 -> 0.2098484848 | H23: =378.2/F23 -> 8.595454545 | I23: =1/H23 -> 0.1163405605 | J23: =I23/0.0763 -> 1.524777989 | K23: =G23/H23 -> 0.02441389036 | L23: =(K23+K24)/2 -> 0.02366631045
B24: Carbon Dioxide | C24: =C21 -> 0 | D24: =460+C24 -> 460 | E24: =16.2-6.53*10^3/D24+1.41*10^6/D24^2 -> 8.667863894 | F24: 44 | G24: =E24/F24 -> 0.1969969067 | H24: =378.2/F24 -> 8.595454545 | I24: =1/H24 -> 0.1163405605 | J24: =I24/0.0763 -> 1.524777989 | K24: =G24/H24 -> 0.02291873055 | N24: =G24/G23 -> 0.9387578225
B26: Methane - CH4 | C26: =C23 -> 140 | D26: =460+C26 -> 600 | E26: =4.23+0.01177*D26 -> 11.292 | F26: 16 | G26: =E26/F26 -> 0.70575 | H26: =378.2/F26 -> 23.6375 | I26: =1/H26 -> 0.04230565838 | J26: =I26/0.0763 -> 0.5544647232 | K26: =G26/H26 -> 0.0298572184 | L26: =(K26+K27)/2 -> 0.02767874141
B27: Methane - CH4 | C27: =C24 -> 0 | D27: =460+C27 -> 460 | E27: =4.23+0.01177*D27 -> 9.6442 | F27: 16 | G27: =E27/F27 -> 0.6027625 | H27: =378.2/F27 -> 23.6375 | I27: =1/H27 -> 0.04230565838 | J27: =I27/0.0763 -> 0.5544647232 | K27: =G27/H27 -> 0.02550026441 | N27: =G27/G26 -> 0.8540736805
B29: Ethylene C2H4 | C29: =C26 -> 140 | D29: =460+C29 -> 600 | E29: =4.52+0.00737*D29 -> 8.942 | F29: 28 | G29: =E29/F29 -> 0.3193571429 | H29: =378.2/F29 -> 13.50714286 | I29: =1/H29 -> 0.07403490217 | J29: =I29/0.0763 -> 0.9703132656 | K29: =G29/H29 -> 0.02364357483 | L29: =(K29+K30)/2 -> 0.02227948176
B30: Ethylene C2H4 | C30: =C27 -> 0 | D30: =460+C30 -> 460 | E30: =4.52+0.00737*D30 -> 7.9102 | F30: 28 | G30: =E30/F30 -> 0.2825071429 | H30: =378.2/F30 -> 13.50714286 | I30: =1/H30 -> 0.07403490217 | J30: =I30/0.0763 -> 0.9703132656 | K30: =G30/H30 -> 0.02091538868 | N30: =G30/G29 -> 0.8846119436
B32: Ethane C2H6 | C32: =C29 -> 140 | D32: =460+C32 -> 600 | E32: =4.04+0.01636*D32 -> 13.856 | F32: 30 | G32: =E32/F32 -> 0.4618666667 | H32: =378.2/F32 -> 12.60666667 | I32: =1/H32 -> 0.07932310947 | J32: =I32/0.0763 -> 1.039621356 | K32: =G32/H32 -> 0.03663670016 | L32: =(K32+K33)/2 -> 0.03360867266
B33: Ethane C2H6 | C33: =C30 -> 0 | D33: =460+C33 -> 460 | E33: =4.04+0.01636*D33 -> 11.5656 | F33: 30 | G33: =E33/F33 -> 0.38552 | H33: =378.2/F33 -> 12.60666667 | I33: =1/H33 -> 0.07932310947 | J33: =I33/0.0763 -> 1.039621356 | K33: =G33/H33 -> 0.03058064516 | N33: =G33/G32 -> 0.8346997691
B35: Propane C3H8 | C35: =C32 -> 140 | D35: =460+C35 -> 600 | F35: 44 | G35: 0.388 | H35: =378.2/F35 -> 8.595454545 | I35: =1/H35 -> 0.1163405605 | J35: =I35/0.0763 -> 1.524777989 | K35: =G35/H35 -> 0.04514013749 | L35: =(K35+K36)/2 -> 
B36: Propane C3H8 | C36: =C33 -> 0 | D36: =460+C36 -> 460 | F36: 44 | G36: =E36/F36 ->  | H36: =378.2/F36 -> 8.595454545 | I36: =1/H36 -> 0.1163405605 | J36: =I36/0.0763 -> 1.524777989 | K36: =G36/H36 -> 
B38: Butane C4H10 | C38: =C35 -> 140 | D38: =460+C38 -> 600 | F38: 58 | G38: 0.382 | H38: =378.2/F38 -> 6.520689655 | I38: =1/H38 -> 0.1533580116 | J38: =I38/0.0763 -> 2.009934622 | K38: =G38/H38 -> 0.05858276044 | L38: =(K38+K39)/2 -> 
B39: Butane C4H10 | C39: =C36 -> 0 | D39: =460+C39 -> 460 | F39: 58 | G39: =E39/F39 ->  | H39: =378.2/F39 -> 6.520689655 | I39: =1/H39 -> 0.1533580116 | J39: =I39/0.0763 -> 2.009934622 | K39: =G39/H39 -> 
B41: Sulfur Dioxide | C41: =C38 -> 140 | D41: =460+C41 -> 600 | F41: 64 | G41: 0.273 | H41: =378.2/F41 -> 5.909375 | I41: =1/H41 -> 0.1692226335 | J41: =I41/0.0763 -> 2.217858893 | K41: =G41/H41 -> 0.04619777895 | L41: =(K41+K42)/2 -> 
B42: Sulfur Dioxide | C42: =C39 -> 0 | D42: =460+C42 -> 460 | F42: 64 | G42: =E42/F42 ->  | H42: =378.2/F42 -> 5.909375 | I42: =1/H42 -> 0.1692226335 | J42: =I42/0.0763 -> 2.217858893 | K42: =G42/H42 -> 
B44: Air | C44: =C2 -> 60 | G44: =J52*G8+(1-J52)*G11 -> 0.2354199131
C45: =C3 -> 0 | G45: =J52*G9+(1-J52)*G12 -> 0.24104787
B46: Comb air | C46: ='Calculations - vol current'!C53 -> 0 | G46: =G83 -> 0.2354813909
B48: Source - Gas Engineers Handbook
B50: For Air at 60 F., 80% Humidity | N50: Specific Heat (Btu/[F-#])for Comb. Air
B51: Composition of gas mixture | C51: % Vol | D51: % mass | E51: Mean CP Btu/scf | F51: Cp-60 F | G51: Cp 1000F | I51: mass | J51: % mass | L51: Ratio | M51: sp. Vol scf/# | N51: By mass | O51: Cp fraction | P51: Temp (R) | Q51: Cp Btu/(#F)
B52: Oxygen | C52: 20.7 | E52: =L8 -> 0.0181599079 | F52: =K8 -> 0.01828294216 | G52: =K9 -> 0.01803687363 | I52: =C52*I8 -> 1.751454257 | J52: =I52/I58 -> 0.2305764411 | L52: Ratio | M52: =J52*H8 -> 2.725125313 | N52: 0.231 | O52: =N52*(G8+G9)/2 -> 0.04957893204 | P52: ='Calculations - vol current'!C53 +460 -> 460 | Q52: =N52*(11.515-172/P52^0.5 +1530/P52)/32 -> 0.04924303234 | R52: O2 in air
B53: Carbon Dioxide | C53: 0 | E53: =L23 -> 0.02366631045 | F53: =K23 -> 0.02441389036 | G53: =K24 -> 0.02291873055
B54: Nitrogen & Other | C54: 78.3 | E54: =L11 -> 0.0181613646 | F54: =K11 -> 0.01785833863 | G54: =K12 -> 0.01846439057 | I54: =C54*I11 -> 5.79693284 | J54: =I54/I58 -> 0.7631578947 | L54: =(J54+J55)/J52 -> 3.336956522 | M54: =(1-J52)*H11 -> 10.39271393 | N54: =1-N52 -> 0.769 | O54: =N54*(G11+G12)/2 -> 0.1886419644 | P54: =P52 -> 460 | Q54: =N54*(9.47-3.47*10^3/P54 +1.07*10^6/P54^2)/28 -> 0.191789493 | R54: N2 in air
B55: Water vapor | C55: 1 | E55: =L20 -> 0.02157146531 | F55: =K20 -> 0.02111998165 | G55: =K21 -> 0.02202294897 | I55: =C55*I20 -> 0.04759386568 | J55: =I55/I58 -> 0.00626566416 | N55: Total | O55: =O52+O54 -> 0.2382208964 | Q55: =SUM(Q52:Q54) -> 0.2410325253
B57: Total | C57: =SUM(C52:C56) -> 100
B58: Mean value | E58: =($C$52*E52+$C$53*E53+$C$54*E54+$C$55*E55)/100 -> 0.01819516407 | F58: =($C$52*F52+$C$53*F53+$C$54*F54+$C$55*F55)/100 -> 0.01797884799 | G58: =($C$52*G52+$C$53*G53+$C$54*G54+$C$55*G55)/100 -> 0.01841148015 | I58: =SUM(I52:I55) -> 7.595980962 | M58: =M52+M54 -> 13.11783924
F60: B | G60: =(G58-F58)/(1000-60) -> 4.602469776e-07 | S60: C | T60: x | U60: x^2 | V60: x^3
F61: A | G61: =G58-G60*1000 -> 0.01795123317 | N61: Specific heat of air | O61: Cp | P61: Btu/(#-F) | S61: =0.2371 -> 0.2371 | T61: =(-0.000009) -> -9e-06 | U61: =7*10^(-8) -> 7e-08 | V61: -3e-11
E63: cp for air | O63: Specific heat of air | P63: Cp | Q63: Btu/(#-F)
E64: Temp | F64: Cp (Btu/scf) | N64: Temp (F) | O64: Temp - R | P64: Cpo2 | Q64: Cpn2 | R64: Cpair | S64: Cp calculated | T64: Error
E65: 60 | F65: =$G$61+$G$60*E65 -> 0.01797884799 | G65: =F65*M58 -> 0.2358436377 | N65: 0 | O65: =N65+460 -> 460 | P65: =0.231*(11.515-172/O65^0.5 +1530/O65)/32 -> 0.04924303234 | Q65: =0.769*(9.47-3.47*10^3/O65 +1.07*10^6/O65^2)/28 -> 0.191789493 | R65: =P65+Q65 -> 0.2410325253 | S65: =$S$61+$T$61*N65+$U$61*N65^2+$V$61*N65^3 -> 0.2371 | T65: =(R65-S65)/R65 -> 0.01631533053
E66: 100 | F66: 0.01799725787 | G66: 0 | N66: 100 | O66: =N66+460 -> 560 | P66: =0.231*(11.515-172/O66^0.5 +1530/O66)/32 -> 0.05037832992 | Q66: =0.769*(9.47-3.47*10^3/O66 +1.07*10^6/O66^2)/28 -> 0.1836141636 | R66: =P66+Q66 -> 0.2339924936 | S66: =$S$61+$T$61*N66+$U$61*N66^2+$V$61*N66^3 -> 0.23687 | T66: =(R66-S66)/R66 -> -0.01229743058
E67: =100+E66 -> 200 | F67: 0.01804328257 | G67: 0 | N67: =100+N66 -> 200 | O67: =N67+460 -> 660 | P67: =0.231*(11.515-172/O67^0.5 +1530/O67)/32 -> 0.05152809367 | Q67: =0.769*(9.47-3.47*10^3/O67 +1.07*10^6/O67^2)/28 -> 0.1831540001 | R67: =P67+Q67 -> 0.2346820937 | S67: 0.23786 | T67: -0.01354132397
E68: 300 | F68: 0.01808930726 | G68: 0 | N68: =100+N67 -> 300 | O68: =N68+460 -> 760 | P68: =0.231*(11.515-172/O68^0.5 +1530/O68)/32 -> 0.05261791735 | Q68: =0.769*(9.47-3.47*10^3/O68 +1.07*10^6/O68^2)/28 -> 0.1855680382 | R68: =P68+Q68 -> 0.2381859555 | S68: 0.23989 | T68: -0.007154260872
E69: 400 | F69: 0.01813533196 | G69: 0 | N69: 400 | O69: 860 | P69: 0.05362750505 | Q69: 0.1890049365 | R69: 0.2426324415 | S69: 0.24278 | T69: -0.0006081565205
E70: 500 | F70: 0.01818135666 | G70: 0 | N70: 500 | O70: 960 | P70: 0.0545555145 | Q70: 0.1927015396 | R70: 0.2472570541 | S70: 0.24635 | T70: 0.003668465857
E71: 600 | F71: 0.01822738136 | G71: 0 | N71: 600 | O71: 1060 | P71: 0.05540721404 | Q71: 0.1963342492 | R71: 0.2517414633 | S71: 0.25042 | T71: 0.005249287284
E72: 700 | F72: 0.01827340605 | G72: 0 | N72: 700 | O72: 1160 | P72: 0.05618982332 | Q72: 0.1997698586 | R72: 0.2559596819 | S72: 0.25481 | T72: 0.004491652369
E73: 800 | F73: 0.01831943075 | G73: 0 | N73: 800 | O73: 1260 | P73: 0.05691070953 | Q73: 0.2029612098 | R73: 0.2598719194 | S73: 0.25934 | T73: 0.002046851989
E74: 900 | F74: 0.01836545545 | G74: 0 | N74: 900 | O74: 1360 | P74: 0.05757671504 | Q74: 0.2059006528 | R74: 0.2634773678 | S74: 0.26383 | T74: -0.001338377405
E75: 1000 | F75: 0.01841148015 | G75: 0 | N75: 1000 | O75: 1460 | P75: 0.05819394931 | Q75: 0.2085983364 | R75: 0.2667922857 | S75: 0.2681 | T75: -0.004901619606
E76: 1100 | F76: 0.01845750485 | G76: 0 | N76: 1100 | O76: 1560 | P76: 0.05876777122 | Q76: 0.2110717932 | R76: 0.2698395644 | S76: 0.27197 | T76: -0.00789519342
E77: 1200 | F77: 0.01850352954 | G77: 0 | N77: 1200 | O77: 1660 | P77: 0.05930284539 | Q77: 0.213340889 | R77: 0.2726437344 | S77: 0.27526 | T77: -0.009595913025
E78: 1300 | F78: 0.01854955424 | G78: 0 | N78: 1300 | O78: 1760 | P78: 0.05980322219 | Q78: 0.2154254027 | R78: 0.2752286249 | S78: 0.27779 | T78: -0.009306354316
E79: 1400 | F79: 0.01859557894 | G79: 0 | N79: 1400 | O79: 1860 | P79: 0.06027241996 | Q79: 0.2173439232 | R79: 0.2776163432 | S79: 0.27938 | T79: -0.006352856668
E80: 1500 | F80: 0.01864160364 | G80: 0 | N80: 1500 | O80: 1960 | P80: 0.06071350089 | Q80: 0.2191134115 | R80: 0.2798269124 | S80: 0.27985 | T80: -8.250664885e-05
E81: 1600 | F81: 0.01868762833 | G81: 0 | N81: 1600 | O81: 2060 | P81: 0.06112913776 | Q81: 0.2207490957 | R81: 0.2818782334 | S81: 0.27902 | T81: 0.01013995796
G82: Btu/# | N82: 1700 | O82: 2160 | P82: 0.06152167113 | Q82: 0.2222645274 | R82: 0.2837861985 | S82: 0.27671 | T82: 0.02493496345
D83: Cob air temp | E83: ='Calculations - vol current'!C53 -> 0 | F83: =$G$61+$G$60*E83 -> 0.01795123317 | G83: =F83*M58 -> 0.2354813909 | N83: 1800 | O83: 2260 | P83: 0.06189315795 | Q83: 0.223671711 | R83: 0.2855648689 | S83: 0.27274 | T83: 0.0449105276
N84: 1900 | O84: 2360 | P84: 0.06224541243 | Q84: 0.2249812588 | R84: 0.2872266712 | S84: 0.26693 | T84: 0.07066429839
N85: 2000 | O85: 2460 | P85: 0.06258004046 | Q85: 0.2262025485 | R85: 0.2887825889 | S85: 0.2591 | T85: 0.1027852443
N86: 2100 | O86: 2560 | P86: 0.06289846856 | Q86: 0.2273438723 | R86: 0.2902423409
N87: 2200 | O87: 2660 | P87: 0.06320196825 | Q87: 0.2284125723 | R87: 0.2916145406
N88: 2300 | O88: 2760 | P88: 0.06349167666 | Q88: 0.2294151606 | R88: 0.2929068373 | S88: =$T$65-$T$64*N88+$T$63*N88^2-$T$62*N88^3+$T$61*N88^4 -> 

Sheet Data-Results vol mod (hidden)
A3: Available Heat Calculation for Gaseous Fuels
A4: Given Volumetric Gas Analysis
A6: Name or designation of fuel | B6: ='Flue gases'!C68 -> Natural Gas - East Ohio
A8: Gas composition | B8: By volume
A9: CH4 | B9: ='Flue gases'!C71 -> 0.941
A10: C2H6 | B10: ='Flue gases'!C72 -> 0.0301
A11: N2 and other inert | B11: ='Flue gases'!C73 -> 0.0141 | C11: Note:
A12: H2 | B12: ='Flue gases'!C74 -> 0.0001 | C12: The gas analysis
A13: C3H8 | B13: ='Flue gases'!C75 -> 0.0042 | C13: will be adjusted to
A14: C4H10 + CnH2n | B14: ='Flue gases'!C76 -> 0.0028 | C14: make total 100%
A15: H2O | B15: ='Flue gases'!C77 -> 0 | C15: for the calculations
A16: CO | B16: ='Flue gases'!C78 -> 0
A17: CO2 | B17: ='Flue gases'!C79 -> 2e-05
A18: SO2 | B18: ='Flue gases'!C80 -> 0
A19: O2 | B19: ='Flue gases'!C81 -> 0.0001
A20: Total of fuel components | B20: =SUM(B9:B19) -> 0.99242
A21: Difference | B21: =1-B20 -> 0.00758
A23: Weight % for tar in gas-tar mixture | B23: % | C23: 0
A25: Fuel gas temperature | B25: Deg. F. | C25: ='Flue gases'!E87 -> 0
A26: Combustion air temperature | B26: Deg. F. | C26: ='Flue gases'!E88 -> 0
A27: Flue gas temperature | B27: Deg. F. | C27: ='Flue gases'!E89 -> 0
A28: Excess air used for combustion | B28: % | C28: ='Flue gases'!E90 -> 0
A29: Percent O2 in flue gas | B29: %
A31: Results
A32: Avaiable Heat | B32: % | C32: ='Calculations vol mod'!H75 -> 0.9013390414
A33: Higher (Gross) calorific (heating value) of the fuel | B33: kJ/m3 | C33: ='Calculations vol mod'!C48*37.3 -> 38539.00412
B34: kcal/m3 | C34: ='Calculations vol mod'!C48*8.9 -> 9195.63369
A35: % O2 in Flue gases (dry basis) | B35: % | C35: ='Calculations vol mod'!I14 -> 0
A36: Stoichiometric air required | B36: m3 air/m3 fuel gas | C36: ='Calculations vol mod'!C80 -> 10.22734446
A37: Actual air required | C37: ='Calculations vol mod'!C83 -> 10.22734446

Sheet Calculations vol mod (hidden)
C1: Per # of other vapor at stoich ratio | F1: # Per # of gas from gasifier at stoich ratio | J1: Total
C2: CO2 | D2: H2O | E2: N2 | F2: CO2 | G2: H2O | H2: N2 | I2: Excess O2 in FG | K2: SO2 | L2: O2 supplied for comb | M2: Comb air required | N2: Stoich air
A3: Wt. of other vapors | B3: ='Data-Results vol mod '!C23 -> 0 | C3: 3.18 | D3: 0.572 | E3: 9.3 | F3: =$B$3*C3 -> 0 | G3: =$B$3*D3 -> 0 | H3: =$B$3*E3 -> 0 | I3: 0 | J3: =SUM(F3:H3) -> 0 | K3: 0 | L3: =0.231*12.052*B3 -> 0 | M3: =L3/0.231 -> 0 | N3: =M3 -> 0
A4: With Excess air | B4: =C57 -> 0 | F4: =F3 -> 0 | G4: =G3 -> 0 | H4: =H3+I4/(1-0.231) -> 0 | I4: =B4*L3 -> 0 | J4: =SUM(F4:I4) -> 0 | K4: 0 | L4: =I4 -> 0 | M4: =L4/0.231 -> 0
A7: Wt. of gases from gas combustion | B7: =1-B3 -> 1 | F7: =$B$7*Q40 -> 2.709583521 | G7: =$B$7*R40 -> 2.125349353 | H7: =B7*T40 -> 12.86403229 | I7: =B7*U40 -> 0 | J7: =SUM(F7:I7)+K7 -> 17.69896516 | K7: =B7*S40 -> 0 | L7: =I7+B7*U36 -> 3.857460952 | M7: =L7/0.231 -> 16.69896516 | N7: =M7-I7/0.231 -> 16.69896516
A9: Total wt. of FG # per # of fuel | F9: =F4+F7 -> 2.709583521 | G9: 2.125349353 | H9: 12.86403229 | I9: 0 | J9: 17.69896516 | K9: 0 | L9: =SUM(L3:L7) -> 3.857460952 | M9: =SUM(M3:M7) -> 16.69896516 | N9: =M9/(1+B4) -> 16.69896516
A10: Wet analysis % by weight | F10: =F9/$J$9 -> 0.1530927654 | G10: 0.1200832554 | H10: 0.7268239792 | I10: 0 | J10: 1 | K10: 0
A11: dry analysis % by weight | F11: =F9/($J$9-$G$9) -> 0.1739855121 | G11: 0 | H11: =H9/($J$9-$G$9) -> 0.8260144879 | I11: =I9/($J$9-$G$9) -> 0 | J11: =SUM(F11:I11) -> 1 | K11: =K9/($J$9-$G$9) -> 0
A12: Volume scf /#of Fuel | F12: =F9*'Cp calculations (3)'!H23 -> 23.29010199 | G12: =G9*'Cp calculations (3)'!H20 -> 44.65595141 | H12: =H9*'Cp calculations (3)'!H11 -> 173.7563218 | I12: =I9*'Cp calculations (3)'!H8 -> 0 | J12: =SUM(F12:I12)+K12 -> 241.7023752 | K12: =K9*'Cp calculations (3)'!H41 -> 0
A13: Wet analysis % by volume | F13: =F12/$J$12 -> 0.09635859793 | G13: 0.1847559478 | H13: 0.7188854543 | I13: 0 | J13: 1 | K13: 0
A14: Dry analysis % by volume | F14: =F12/($J$12-$G$12) -> 0.1181960146 | G14: 0 | H14: =H12/($J$12-$G$12) -> 0.8818039854 | I14: =I12/($J$12-$G$12) -> 0 | J14: =SUM(F14:I14) -> 1 | K14: =K12/($J$12-$G$12) -> 0
AC15: =T39*'Cp calculations (3)'!H11 -> 0 | AD15: =U39*'Cp calculations (3)'!H8 -> 0
A16: Heating value of fuel (higher) | I16: Density of FG | J16: =J9/J12 -> 0.07322627734 | K16: #/scf of FG
A17: Other vapors | B17: Btu/# | C17: 15720 | I17: Sp. Volume of FG | J17: =1/J16 -> 13.65629985 | K17: SCF/lb of FG
A18: Gas fuel | B18: Btu/# | C18: =C47 -> 23081.06553
A19: Total heating value Higher for mixed fuel | B19: Btu/# | C19: =C17*B3+C18*B7 -> 23081.06553
A23: Gas (Fuel) Analysis (See note below) | K23: Heating value Btu/lb. | M23: Comment | O23: By weight analysis | Q23: By weight #s/# of component | U23: required | W23: Total | Z23: By volume scf/# of component
A24: Gas composition | B24: Mol wt | C24: O2 reqd | D24: CO2 | E24: H2O | F24: SO2 | G24: By volume | H24: Adjusted by volume | I24: Heat value Btu/scf comp. | J24: Heat value Btu/scf fuel | L24: Ht. value /lb of fuel | O24: lbs./cu.ft. | P24: % | Q24: CO2 | R24: H2O | S24: SO2 | T24: N2 | U24: O2 | Z24: CO2 | AA24: H2O | AB24: SO2 | AC24: N2 | AD24: O2 | AE24: Total
A25: CH4 | B25: =16.042 -> 16.042 | C25: 64 | D25: =B33 -> 44.01 | E25: =2*B31 -> 36.032 | G25: ='Data-Results vol mod '!B9 -> 0.941 | H25: =G25*(1+$G$37) -> 0.94813278 | I25: 1012 | J25: =I25*H25 -> 959.5103734 | K25: 23875 | L25: =K25*P25 -> 20511.62083 | O25: =H25*'Cp calculations (3)'!I26 -> 0.04011138149 | P25: =O25/$O$36 -> 0.8591254797 | Q25: =P25*D25/B25 -> 2.356945042 | R25: =P25*E25/B25 -> 1.929685157 | T25: =U25*(1-0.231)/0.231 -> 11.41017805 | U25: =P25*C25/B25 -> 3.427504719 | V25: =T25/U25 -> 3.329004329 | Z25: =Q25*'Cp calculations (3)'!$H$23 -> 20.25901397 | AA25: =R25*'Cp calculations (3)'!$H$20 -> 40.54482924 | AB25: =S25*'Cp calculations (3)'!H41 -> 0 | AC25: =T25*'Cp calculations (3)'!$H$11 -> 154.1189049 | AD25: =U25*'Cp calculations (3)'!$H$8 -> 40.5088214
A26: C2H6 | B26: 30.068 | C26: 112 | D26: =2*B33 -> 88.02 | E26: =3*B31 -> 54.048 | G26: ='Data-Results vol mod '!B10 -> 0.0301 | H26: 0.030328158 | I26: 1773 | J26: 53.77182413 | K26: 22323 | L26: 1073.554458 | O26: =H26*'Cp calculations (3)'!I29 -> 0.00224534221 | P26: 0.04809185403 | Q26: =P26*D26/B26 -> 0.140782393 | R26: =P26*E26/B26 -> 0.08644633919 | T26: =U26*(1-0.231)/0.231 -> 0.5963474428 | U26: =P26*C26/B26 -> 0.1791368781 | Z26: =Q26*'Cp calculations (3)'!$H$23 -> 1.21008866 | AA26: =R26*'Cp calculations (3)'!$H$20 -> 1.816333638 | AB26: =S26*'Cp calculations (3)'!H42 -> 0 | AC26: =T26*'Cp calculations (3)'!$H$11 -> 8.054950102 | AD26: =U26*'Cp calculations (3)'!$H$8 -> 2.117173978
A27: N2 and other inert | B27: 28.016 | C27: 0 | D27: 0 | E27: 0 | G27: ='Data-Results vol mod '!B11 -> 0.0141 | H27: 0.014206878 | I27: 0 | J27: 0 | K27: 0 | L27: 0 | O27: =H27*'Cp calculations (3)'!I11 -> 0.001051804823 | P27: 0.0225280778 | T27: =P27 -> 0.0225280778 | Z27: =Q27*'Cp calculations (3)'!$H$23 -> 0 | AA27: =R27*'Cp calculations (3)'!$H$20 -> 0 | AB27: =S27*'Cp calculations (3)'!H43 -> 0 | AC27: =T27*'Cp calculations (3)'!$H$11 -> 0.3042899652 | AD27: =U27*'Cp calculations (3)'!$H$8 -> 0
A28: H2 | B28: 2.016 | C28: 16 | D28: 0 | E28: =B31 -> 18.016 | G28: ='Data-Results vol mod '!B12 -> 0.0001 | H28: 0.000100758 | I28: 325 | J28: 0.03274635 | K28: 61095 | L28: 0.6972405843 | O28: =H28*'Cp calculations (3)'!I17 -> 5.328291909e-07 | P28: 1.14124001e-05 | R28: =P28*E28/B28 -> 0.0001019870041 | T28: =U28*(1-0.231)/0.231 -> 0.0003015232488 | U28: =P28*C28/B28 -> 9.057460399e-05 | Z28: =Q28*'Cp calculations (3)'!$H$23 -> 0 | AA28: =R28*'Cp calculations (3)'!$H$20 -> 0.002142860275 | AB28: =S28*'Cp calculations (3)'!H44 -> 0 | AC28: =T28*'Cp calculations (3)'!$H$11 -> 0.004072717596 | AD28: =U28*'Cp calculations (3)'!$H$8 -> 0.001070478601
A29: C3H8 | B29: 44.094 | C29: 160 | D29: =3*B33 -> 132.03 | E29: =4*B31 -> 72.064 | G29: ='Data-Results vol mod '!B13 -> 0.0042 | H29: 0.004231836 | I29: 2523 | J29: 10.67692223 | K29: 21669 | L29: 155.7960376 | O29: =H29*'Cp calculations (3)'!I32 -> 0.0003356823903 | P29: 0.007189812065 | Q29: =P29*D29/B29 -> 0.02152834596 | R29: =P29*E29/B29 -> 0.01175050158 | T29: =U29*(1-0.231)/0.231 -> 0.08685051204 | U29: =P29*C29/B29 -> 0.02608903548 | Z29: =Q29*'Cp calculations (3)'!$H$23 -> 0.1850459192 | AA29: =R29*'Cp calculations (3)'!$H$20 -> 0.2468910943 | AB29: =S29*'Cp calculations (3)'!H47 -> 0 | AC29: =T29*'Cp calculations (3)'!$H$11 -> 1.173102273 | AD29: =U29*'Cp calculations (3)'!$H$8 -> 0.308339788
A30: C4H10 + CnH2n | B30: 58.12 | C30: 208 | D30: =4*B33 -> 176.04 | E30: =5*B31 -> 90.08 | G30: ='Data-Results vol mod '!B14 -> 0.0028 | H30: 0.002821224 | I30: 3270 | J30: 9.22540248 | K30: 21321 | L30: 1339.396968 | O30: =H30*'Cp calculations (3)'!J32 -> 0.002933004721 | P30: 0.06282055102 | Q30: =P30*D30/B30 -> 0.1902775258 | R30: =P30*E30/B30 -> 0.09736536883 | T30: =U30*(1-0.231)/0.231 -> 0.7484345553 | U30: =P30*C30/B30 -> 0.2248223436 | Z30: =Q30*'Cp calculations (3)'!$H$23 -> 1.635521824 | AA30: =R30*'Cp calculations (3)'!$H$20 -> 2.045754583 | AB30: =S30*'Cp calculations (3)'!H48 -> 0 | AC30: =T30*'Cp calculations (3)'!$H$11 -> 10.10921246 | AD30: =U30*'Cp calculations (3)'!$H$8 -> 2.657119074
A31: H2O | B31: 18.016 | E31: =B31 -> 18.016 | G31: ='Data-Results vol mod '!B15 -> 0 | H31: 0 | I31: 0 | J31: 0 | K31: 0 | L31: 0 | O31: =H31*'Cp calculations (3)'!I20 -> 0 | P31: 0 | R31: =O31 -> 0 | Z31: =Q31*'Cp calculations (3)'!$H$23 -> 0 | AA31: =R31*'Cp calculations (3)'!$H$20 -> 0 | AB31: =S31*'Cp calculations (3)'!H49 -> 0 | AC31: =T31*'Cp calculations (3)'!$H$11 -> 0 | AD31: =U31*'Cp calculations (3)'!$H$8 -> 0
A32: CO | B32: 28.01 | C32: 16 | D32: =B33 -> 44.01 | G32: ='Data-Results vol mod '!B16 -> 0 | H32: 0 | I32: 321 | J32: 0 | K32: 4347 | L32: 0 | O32: =H32*'Cp calculations (3)'!I14 -> 0 | P32: 0 | Q32: =P32*D32/B32 -> 0 | T32: =U32*(1-0.231)/0.231 -> 0 | U32: =P32*C32/B32 -> 0 | Z32: =Q32*'Cp calculations (3)'!$H$23 -> 0 | AA32: =R32*'Cp calculations (3)'!$H$20 -> 0 | AB32: =S32*'Cp calculations (3)'!H50 -> 0 | AC32: =T32*'Cp calculations (3)'!$H$11 -> 0 | AD32: =U32*'Cp calculations (3)'!$H$8 -> 0
A33: CO2 | B33: 44.01 | D33: =B33 -> 44.01 | G33: ='Data-Results vol mod '!B17 -> 2e-05 | H33: 2.01516e-05 | I33: 0 | J33: 0 | K33: 0 | L33: 0 | O33: =H33*'Cp calculations (3)'!I23 -> 2.34444844e-06 | P33: 5.021456045e-05 | Q33: =P33*D33/B33 -> 5.021456045e-05 | Z33: =Q33*'Cp calculations (3)'!$H$23 -> 0.0004316169719 | AA33: =R33*'Cp calculations (3)'!$H$20 -> 0 | AB33: =S33*'Cp calculations (3)'!H51 -> 0 | AC33: =T33*'Cp calculations (3)'!$H$11 -> 0 | AD33: =U33*'Cp calculations (3)'!$H$8 -> 0
A34: SO2 | B34: 64.06 | F34: 64 | G34: ='Data-Results vol mod '!B18 -> 0 | H34: 0 | I34: 0 | J34: 0 | K34: 0 | L34: 0 | O34: =H34*'Cp calculations (3)'!I14 -> 0 | P34: 0 | S34: =P34 -> 0 | Z34: =Q34*'Cp calculations (3)'!$H$23 -> 0 | AA34: =R34*'Cp calculations (3)'!$H$20 -> 0 | AB34: =S34*'Cp calculations (3)'!H52 -> 0 | AC34: =T34*'Cp calculations (3)'!$H$11 -> 0 | AD34: =U34*'Cp calculations (3)'!$H$8 -> 0
A35: O2 | B35: 32 | C35: -32 | G35: ='Data-Results vol mod '!B19 -> 0.0001 | H35: 0.000100758 | I35: 0 | J35: 0 | K35: 0 | L35: 0 | O35: =H35*'Cp calculations (3)'!I8 -> 8.525267054e-06 | P35: 0.0001825984016 | T35: =U35*(1-0.231)/0.231 -> -0.0006078708695 | U35: =P35*C35/B35 -> -0.0001825984016 | Z35: =Q35*'Cp calculations (3)'!$H$23 -> 0 | AA35: =R35*'Cp calculations (3)'!$H$20 -> 0 | AB35: =S35*'Cp calculations (3)'!H53 -> 0 | AC35: =T35*'Cp calculations (3)'!$H$11 -> -0.008210598673 | AD35: =U35*'Cp calculations (3)'!$H$8 -> -0.002158084859
A36: Total of fuel components | G36: =SUM(G25:G35) -> 0.99242 | H36: =SUM(H25:H35) -> 0.9999425436 | J36: =SUM(J25:J35) -> 1033.217269 | L36: =SUM(L25:L35) -> 23081.06553 | O36: =SUM(O25:O35) -> 0.04668861818 | P36: 1 | Q36: =SUM(Q25:Q35) -> 2.709583521 | R36: =SUM(R25:R35) -> 2.125349353 | S36: =SUM(S25:S35) -> 0 | T36: =SUM(T25:T35) -> 12.86403229 | U36: =SUM(U25:U35) -> 3.857460952 | W36: =SUM(Q36:T36) -> 17.69896516 | Z36: =Q36*'Cp calculations (3)'!$H$23 -> 23.29010199 | AA36: =R36*'Cp calculations (3)'!$H$20 -> 44.65595141 | AB36: =S36*'Cp calculations (3)'!H54 -> 0 | AC36: =T36*'Cp calculations (3)'!$H$11 -> 173.7563218 | AD36: =U36*'Cp calculations (3)'!$H$8 -> 45.59036663 | AE36: =SUM(Z36:AC36) -> 241.7023752
A37: Difference | G37: =1-G36 -> 0.00758 | H37: =1-H36 -> 5.74564e-05 | P37: =SUM(P25:P35) -> 1 | Q37: =Q36/$W$36 -> 0.1530927654 | R37: =R36/$W$36 -> 0.1200832554 | S37: =S36/$W$36 -> 0 | T37: =T36/$W$36 -> 0.7268239792 | W37: =SUM(Q37:T37) -> 1 | Z37: =Z36/$AE$36 -> 0.09635859793 | AA37: =AA36/$AE$36 -> 0.1847559478 | AB37: =AB36/$AE$36 -> 0 | AC37: =AC36/$AE$36 -> 0.7188854543 | AE37: =SUM(Z37:AC37) -> 1
A39: Excess air | M39: Excess air | N39: % | O39: =C57 -> 0 | T39: =U39*(1-0.231)/0.231 -> 0 | U39: =U36*O39 -> 0 | X39: Excess air % | Y39: =O39 -> 0 | Z39: 0 | AA39: 0 | AB39: 0 | AC39: =T39*'Cp calculations (3)'!H11 -> 0 | AD39: =Y39*AD36 -> 0
M40: Weight of FG with Xs air | Q40: =Q36 -> 2.709583521 | R40: =R36 -> 2.125349353 | S40: =S36 -> 0 | T40: =T36+T39 -> 12.86403229 | U40: =U39 -> 0 | W40: =SUM(Q40:U40) -> 17.69896516 | X40: Volume of FG with Xs air | Z40: =Z36 +Z39 -> 23.29010199 | AA40: =AA36 +AA39 -> 44.65595141 | AB40: =AB36 +AB39 -> 0 | AC40: =AC36 +AC39 -> 173.7563218 | AD40: =AD39 -> 0 | AE40: =SUM(Z40:AD40) -> 241.7023752
M41: Weight % - wet | N41: % | Q41: =Q40/$W$40 -> 0.1530927654 | R41: =R40/$W$40 -> 0.1200832554 | S41: =S40/$W$40 -> 0 | T41: =T40/$W$40 -> 0.7268239792 | U41: =U40/$W$40 -> 0 | X41: Volume % - wet | Z41: =Z40/$AE$40 -> 0.09635859793 | AA41: =AA40/$AE$40 -> 0.1847559478 | AB41: =AB40/$AE$40 -> 0 | AC41: =AC40/$AE$40 -> 0.7188854543 | AD41: =AD40/$AE$40 -> 0
M42: Weight of FG- dry | Q42: =Q40 -> 2.709583521 | R42: 0 | S42: =S40 -> 0 | T42: =T40 -> 12.86403229 | U42: =U40 -> 0 | W42: =SUM(Q42:U42) -> 15.57361581 | X42: Volume of FG- dry | Z42: =Z40 -> 23.29010199 | AA42: 0 | AB42: =AB40 -> 0 | AC42: =AC40 -> 173.7563218 | AD42: =AD40 -> 0 | AE42: =SUM(Z42:AD42) -> 197.0464238
M43: Weight % - dry | N43: % | Q43: =Q42/$W$42 -> 0.1739855121 | R43: =R42/$W$42 -> 0 | S43: =S42/$W$42 -> 0 | T43: =T42/$W$42 -> 0.8260144879 | U43: =U42/$W$42 -> 0 | X43: Volume % - dry | Z43: =Z42/$AE$42 -> 0.1181960146 | AA43: =AA42/$AE$42 -> 0 | AB43: =AB42/$AE$42 -> 0 | AC43: =AC42/$AE$42 -> 0.8818039854 | AD43: =AD42/$AE$42 -> 0
M46: fuel sp. Volume | O46: =1/O36 -> 21.41849639 | P46: scf/# | T46: Air used #s/# fuel | V46: =U36*(1+O39)/0.231 -> 16.69896516
A47: Heating value of fuel - GAS only | B47: Btu/# | C47: =L36 -> 23081.06553
B48: Btu/scf | C48: =J36 -> 1033.217269 | AC48: =AC40*O36 -> 8.112442566
A49: Heating value for mixed gas | B49: Btu/# | C49: =C19 -> 23081.06553
A52: Fuel temperature | B52: Deg. F | C52: ='Data-Results vol mod '!C25 -> 0 | M52: #s/ scf of fuel | Q52: =Q40*$O$36 -> 0.1265067105 | R52: 0.09922962446 | S52: 0 | T52: 0.6006038917 | U52: 0 | V52: 0 | W52: 0.8263402266
A53: Combustion air temperature | B53: =B52 -> Deg. F | C53: ='Data-Results vol mod '!C26 -> 0 | M53: Avg Cp/# of gas
A55: Flue gas temperature | B55: =B52 -> Deg. F | C55: ='Data-Results vol mod '!C27 -> 0
A57: Excess air | B57: % | C57: ='Data-Results vol mod '!C28 -> 0
A59: Mass flow of fuel | B59: lbs./hr | C59: 1
A60: Mass flow of combustion air | B60: lbs./hr | C60: =C78*(1+C57) -> 16.69896516 | F60: By vol ht value
A61: Avg. sp. Heat of fuel | B61: Btu/(#-deg. F) | C61: =(P25*'Cp calculations (3)'!G26+'Calculations vol mod'!P26*'Cp calculations (3)'!G32+'Calculations vol mod'!P27*'Cp calculations (3)'!G11+'Calculations vol mod'!P28*'Cp calculations (3)'!G17+'Calculations vol mod'!P29*'Cp calculations (3)'!G35+'Calculations vol mod'!P30*'Cp calculations (3)'!G38+'Calculations vol mod'!P31*'Cp calculations (3)'!G20+'Calculations vol mod'!P32*'Cp calculations (3)'!G14+'Calculations vol mod'!P33*'Cp calculations (3)'!G23+'Calculations vol mod'!P34*'Cp calculations (3)'!G41+'Calculations vol mod'!P35*'Cp calculations (3)'!G8) -> 0.6608506235
A62: Sensible heat in fuel | B62: Btu/hr | C62: =C61*(C52-32)*C59 -> -21.14721995 | F62: =C62 -> -21.14721995 | G62: =F62/F64 -> -0.0009162150647
A63: Heat in combustion air | B63: Btu/hr | C63: ='Cp calculations (3)'!Q55*('Calculations vol mod'!C53-32)*C60 -> -128.7997998 | F63: =C63 -> -128.7997998 | G63: =F63/F64 -> -0.005580322954
A64: Heating value (chem heat) of fuel | B64: Btu/hr | C64: =C19 -> 23081.06553 | F64: =C19 -> 23081.06553
A65: Total heat coming in | B65: Btu/hr | C65: =SUM(C62:C64) -> 22931.11851 | F65: =SUM(F62:F64) -> 22931.11851
A67: Heat in FG | E67: Avg. | H67: Based on sat temp
A68: Heat in water vapor | B68: Btu/hr | C68: =G9*(K73+(('Cp calculations (3)'!G21+'Cp calculations (3)'!G20)/2)*('Calculations vol mod'!C55-212)) -> 2179.047967 | D68: =G9*(970+'Cp calculations (3)'!G20*('Calculations vol mod'!C55-212)) -> 1861.644703 | F68: =C68 -> 2179.047967 | H68: =G9*(K73+(('Cp calculations (3)'!G21+'Cp calculations (3)'!G20)/2)*('Calculations vol mod'!C55-K74)) -> 2245.871999 | I68: Calculations for Water vapor - steam enthalpy etc. | L68: const | M68: power
A69: Heat in CO2 | B69: Btu/hr | C69: =F9*(('Cp calculations (3)'!G23+'Cp calculations (3)'!G24)/2)*('Calculations vol mod'!C55-32) -> -17.6381051 | D69: =C69 -> -17.6381051 | F69: -17.6381051 | H69: =F69 -> -17.6381051 | I69: Equation | K69: Enthalpy | L69: 1096.7 | M69: 0.013
A70: Heat in N2 | B70: Btu/hr | C70: =H9*(('Cp calculations (3)'!G12 + 'Cp calculations (3)'!G11)/2)*('Calculations vol mod'!C55-32) -> -100.9808612 | D70: =C70 -> -100.9808612 | F70: -100.9808612 | H70: =F70 -> -100.9808612
A71: Heat in O2 | B71: Btu/hr | C71: =I9*(('Cp calculations (3)'!G9+'Cp calculations (3)'!G8)/2)*('Calculations vol mod'!C55-32) -> 0 | D71: =C71 -> 0 | F71: 0 | H71: =F71 -> 0 | I71: Partial pressure of H2O | K71: =G13 -> 0.1847559478 | L71: tam
A72: Heat in SO2 | B72: Btu/hr | C72: =K9*'Cp calculations (3)'!G41*('Calculations vol mod'!C55-32) -> 0 | D72: =C72 -> 0 | F72: 0 | H72: =F72 -> 0 | I72: Base | K72: =K71*29.926 -> 5.529006493 | L72: inch HG
A73: TOTAL | B73: Btu/hr | C73: =SUM(C68:C72) -> 2060.429001 | D73: =SUM(D68:D72) -> 1743.025737 | F73: 2060.429001 | H73: =SUM(H68:H72) -> 2127.253032 | I73: Enthalpy at saturated condition | K73: =L69*K72^M69 -> 1121.352759 | L73: Btu/lb of steam
I74: Saturation temperature | K74: =K75*LN(K72) +L76 -> 142.6296832 | L74: deg. F.
A75: Av. Heat | B75: % | C75: =(C65-C73)/C64 -> 0.9042342297 | D75: =(C65-D73)/C64 -> 0.9179859026 | E75: =AVERAGE(C75:D75) -> 0.9111100661 | F75: =(F65-F73)/F64 -> 0.9042342297 | H75: =(F65-H73)/F64 -> 0.9013390414 | J75: Coeff | K75: 36.009
L76: =81.054 -> 81.054
A77: O2 required @ stoich condition | B77: #s/# of fuel | C77: =U36 -> 3.857460952
A78: Stoich air required | B78: #s/# of fuel | C78: =C77/0.231 -> 16.69896516 | I78: Equation: steam enthalpy = | K78: const * base^power
A79: Stoich air required | B79: scf/# of fuel | C79: =C78*'Cp calculations (3)'!M58 -> 219.0543405 | I79: Saturation temperature = | K79: 36.009*Ln(base) = 81.054
B80: scf/scf of fuel | C80: =C79*O36 -> 10.22734446
J81: N59*LN(N56) +N60
A82: Actual air required | B82: scf/# of fuel | C82: =C79*(1+$C$57) -> 219.0543405
B83: scf/scf of fuel | C83: =C80*(1+$C$57) -> 10.22734446
A86: Volume of FG | B86: scf/# of fuel | C86: =J12 -> 241.7023752
A88: Mass of FG | B88: #s/# of fuel mix | C88: =J9 -> 17.69896516
B89: Scf/scf of gaseous fuel | C89: =C86*O36 -> 11.28474991
A90: Note: The fuel gas composition is in volume %. The higher hydrocarbons in fuel are treated as same as C4H10 and all other inert gases are treated as N2. | AA90: =12*14*0.6 -> 100.8
A93: Combustion air temperature | M93: 60 | N93: Deg. F.
A94: % Oxygen in COMBUSTION AIR | M94: 20.9 | N94: %
A95: % O2 in flue gases (ONLY for combustion with ambient air containing approximately 21% O2) | N95: %
A96: Calculated value of excess air used. (ONLY for combustion with ambient air containing approximately 21% O2) | M96: =O39 -> 0 | N96: %
A97: % Excess air used for combustion. (Give this number if O2 in combustion air is higher than approximately 21%.) | M97: 0 | N97: %
A98: Exhaust (flue) gas temperature | M98: 1400 | N98: Deg. F.
A99: % Excess air used for calculations | M99: =IF(M94>21.1,M97,M96) -> 0 | N99: Deg. F.
A102: © Developed by: Arvind Thekdi, E3M Inc.

Sheet Cp calculations (3) (hidden)
B2: Initial Gas temperature (F) | C2: 60
B3: Final Gas temperature (F) | C3: ='Calculations vol mod'!C55 -> 0
E6: Cp | G6: Cp | H6: Sp. Vol | I6: Sp. Wt | J6: Sp. Gravity | K6: Cp | L6: Mean CP
B7: Gas | C7: Temp (F) | D7: Temp ® | E7: Btu/(#mole.F) | F7: Mol wt | G7: Btu/(#F) | H7: SCF/# | I7: #/SCF | J7: wrt Air @stp | K7: Btu/SCF | L7: Btu/SCF
B8: Oxygen | C8: =C2 -> 60 | D8: =460+C8 -> 520 | E8: =11.515-172/D8^0.5 +1530/D8 -> 6.914608726 | F8: 32 | G8: =E8/F8 -> 0.2160815227 | H8: =378.2/F8 -> 11.81875 | I8: =1/H8 -> 0.08461131676 | J8: =I8/0.0763 -> 1.108929446 | K8: =G8/H8 -> 0.01828294216 | L8: =(K8+K9)/2 -> 0.0181599079
B9: Oxygen | C9: =C3 -> 0 | D9: =460+C9 -> 460 | E9: =11.515-172/D9^0.5 +1530/D9 -> 6.821545606 | F9: 32 | G9: =E9/F9 -> 0.2131733002 | H9: =378.2/F9 -> 11.81875 | I9: =1/H9 -> 0.08461131676 | J9: =I9/0.0763 -> 1.108929446 | K9: =G9/H9 -> 0.01803687363 | N9: =G9/G8 -> 0.9865410865
B11: Nitrogen | C11: =C8 -> 60 | D11: =460+C11 -> 520 | E11: =9.47-3.47*10^3/D11 +1.07*10^6/D11^2 -> 6.754023669 | F11: 28 | G11: =E11/F11 -> 0.241215131 | H11: =378.2/F11 -> 13.50714286 | I11: =1/H11 -> 0.07403490217 | J11: =I11/0.0763 -> 0.9703132656 | K11: =G11/H11 -> 0.01785833863 | L11: =(K11+K12)/2 -> 0.0181613646
B12: Nitrogen | C12: =C9 -> 0 | D12: =460+C12 -> 460 | E12: =9.47-3.47*10^3/D12 +1.07*10^6/D12^2 -> 6.983232514 | F12: 28 | G12: =E12/F12 -> 0.2494011612 | H12: =378.2/F12 -> 13.50714286 | I12: =1/H12 -> 0.07403490217 | J12: =I12/0.0763 -> 0.9703132656 | K12: =G12/H12 -> 0.01846439057 | N12: =G12/G11 -> 1.033936636
B14: Carbon Monoxide | C14: =C11 -> 60 | D14: =460+C14 -> 520 | E14: =9.46-3.29*10^3/D14+1.07*10^6/D14^2 -> 7.090177515 | F14: 28 | G14: =E14/F14 -> 0.2532206255 | H14: =378.2/F14 -> 13.50714286 | I14: =1/H14 -> 0.07403490217 | J14: =I14/0.0763 -> 0.9703132656 | K14: =G14/H14 -> 0.01874716424 | L14: =(K14+K15)/2 -> 0.01910988151
B15: Carbon Monoxide | C15: =C12 -> 0 | D15: =460+C15 -> 460 | E15: =9.46-3.29*10^3/D15+1.07*10^6/D15^2 -> 7.364536862 | F15: 28 | G15: =E15/F15 -> 0.2630191736 | H15: =378.2/F15 -> 13.50714286 | I15: =1/H15 -> 0.07403490217 | J15: =I15/0.0763 -> 0.9703132656 | K15: =G15/H15 -> 0.01947259879 | N15: =G15/G14 -> 1.038695695
B17: Hydrogen | C17: =C14 -> 60 | D17: =460+C17 -> 520 | E17: =5.76+0.578*D17/10^3+20/D17^0.5 -> 6.937618019 | F17: 2 | G17: =E17/F17 -> 3.46880901 | H17: =378.2/F17 -> 189.1 | I17: =1/H17 -> 0.005288207298 | J17: =I17/0.0763 -> 0.0693080904 | K17: =G17/H17 -> 0.01834378112 | L17: =(K17+K18)/2 -> 0.01837123589
B18: Hydrogen | C18: =C15 -> 0 | D18: =460+C18 -> 460 | E18: =5.76+0.578*D18/10^3+20/D18^0.5 -> 6.958384808 | F18: 2 | G18: =E18/F18 -> 3.479192404 | H18: =378.2/F18 -> 189.1 | I18: =1/H18 -> 0.005288207298 | J18: =I18/0.0763 -> 0.0693080904 | K18: =G18/H18 -> 0.01839869066 | N18: =G18/G17 -> 1.00299336
B20: Water vapor (H2O) | C20: =140 -> 140 | D20: =460+C20 -> 600 | E20: =19.86-597/D20^0.5+7500/D20 -> 7.987577059 | F20: 18 | G20: =E20/F20 -> 0.4437542811 | H20: =378.2/F20 -> 21.01111111 | I20: =1/H20 -> 0.04759386568 | J20: =I20/0.0763 -> 0.6237728136 | K20: =G20/H20 -> 0.02111998165 | L20: =(K20+K21)/2 -> 0.02157146531
B21: Water vapor (H2O) | C21: =C18 -> 0 | D21: =460+C21 -> 460 | E21: =19.86-597/D21^0.5+7500/D21 -> 8.3290793 | F21: 18 | G21: =E21/F21 -> 0.4627266278 | H21: =378.2/F21 -> 21.01111111 | I21: =1/H21 -> 0.04759386568 | J21: =I21/0.0763 -> 0.6237728136 | K21: =G21/H21 -> 0.02202294897 | N21: =G21/G20 -> 1.042754172
B23: Carbon Dioxide | C23: =C20 -> 140 | D23: =460+C23 -> 600 | E23: =16.2-6.53*10^3/D23+1.41*10^6/D23^2 -> 9.233333333 | F23: 44 | G23: =E23/F23 -> 0.2098484848 | H23: =378.2/F23 -> 8.595454545 | I23: =1/H23 -> 0.1163405605 | J23: =I23/0.0763 -> 1.524777989 | K23: =G23/H23 -> 0.02441389036 | L23: =(K23+K24)/2 -> 0.02366631045
B24: Carbon Dioxide | C24: =C21 -> 0 | D24: =460+C24 -> 460 | E24: =16.2-6.53*10^3/D24+1.41*10^6/D24^2 -> 8.667863894 | F24: 44 | G24: =E24/F24 -> 0.1969969067 | H24: =378.2/F24 -> 8.595454545 | I24: =1/H24 -> 0.1163405605 | J24: =I24/0.0763 -> 1.524777989 | K24: =G24/H24 -> 0.02291873055 | N24: =G24/G23 -> 0.9387578225
B26: Methane - CH4 | C26: =C23 -> 140 | D26: =460+C26 -> 600 | E26: =4.23+0.01177*D26 -> 11.292 | F26: 16 | G26: =E26/F26 -> 0.70575 | H26: =378.2/F26 -> 23.6375 | I26: =1/H26 -> 0.04230565838 | J26: =I26/0.0763 -> 0.5544647232 | K26: =G26/H26 -> 0.0298572184 | L26: =(K26+K27)/2 -> 0.02767874141
B27: Methane - CH4 | C27: =C24 -> 0 | D27: =460+C27 -> 460 | E27: =4.23+0.01177*D27 -> 9.6442 | F27: 16 | G27: =E27/F27 -> 0.6027625 | H27: =378.2/F27 -> 23.6375 | I27: =1/H27 -> 0.04230565838 | J27: =I27/0.0763 -> 0.5544647232 | K27: =G27/H27 -> 0.02550026441 | N27: =G27/G26 -> 0.8540736805
B29: Ethylene C2H4 | C29: =C26 -> 140 | D29: =460+C29 -> 600 | E29: =4.52+0.00737*D29 -> 8.942 | F29: 28 | G29: =E29/F29 -> 0.3193571429 | H29: =378.2/F29 -> 13.50714286 | I29: =1/H29 -> 0.07403490217 | J29: =I29/0.0763 -> 0.9703132656 | K29: =G29/H29 -> 0.02364357483 | L29: =(K29+K30)/2 -> 0.02227948176
B30: Ethylene C2H4 | C30: =C27 -> 0 | D30: =460+C30 -> 460 | E30: =4.52+0.00737*D30 -> 7.9102 | F30: 28 | G30: =E30/F30 -> 0.2825071429 | H30: =378.2/F30 -> 13.50714286 | I30: =1/H30 -> 0.07403490217 | J30: =I30/0.0763 -> 0.9703132656 | K30: =G30/H30 -> 0.02091538868 | N30: =G30/G29 -> 0.8846119436
B32: Ethane C2H6 | C32: =C29 -> 140 | D32: =460+C32 -> 600 | E32: =4.04+0.01636*D32 -> 13.856 | F32: 30 | G32: =E32/F32 -> 0.4618666667 | H32: =378.2/F32 -> 12.60666667 | I32: =1/H32 -> 0.07932310947 | J32: =I32/0.0763 -> 1.039621356 | K32: =G32/H32 -> 0.03663670016 | L32: =(K32+K33)/2 -> 0.03360867266
B33: Ethane C2H6 | C33: =C30 -> 0 | D33: =460+C33 -> 460 | E33: =4.04+0.01636*D33 -> 11.5656 | F33: 30 | G33: =E33/F33 -> 0.38552 | H33: =378.2/F33 -> 12.60666667 | I33: =1/H33 -> 0.07932310947 | J33: =I33/0.0763 -> 1.039621356 | K33: =G33/H33 -> 0.03058064516 | N33: =G33/G32 -> 0.8346997691
B35: Propane C3H8 | C35: =C32 -> 140 | D35: =460+C35 -> 600 | F35: 44 | G35: 0.388 | H35: =378.2/F35 -> 8.595454545 | I35: =1/H35 -> 0.1163405605 | J35: =I35/0.0763 -> 1.524777989 | K35: =G35/H35 -> 0.04514013749 | L35: =(K35+K36)/2 -> 
B36: Propane C3H8 | C36: =C33 -> 0 | D36: =460+C36 -> 460 | F36: 44 | G36: =E36/F36 ->  | H36: =378.2/F36 -> 8.595454545 | I36: =1/H36 -> 0.1163405605 | J36: =I36/0.0763 -> 1.524777989 | K36: =G36/H36 -> 
B38: Butane C4H10 | C38: =C35 -> 140 | D38: =460+C38 -> 600 | F38: 58 | G38: 0.382 | H38: =378.2/F38 -> 6.520689655 | I38: =1/H38 -> 0.1533580116 | J38: =I38/0.0763 -> 2.009934622 | K38: =G38/H38 -> 0.05858276044 | L38: =(K38+K39)/2 -> 
B39: Butane C4H10 | C39: =C36 -> 0 | D39: =460+C39 -> 460 | F39: 58 | G39: =E39/F39 ->  | H39: =378.2/F39 -> 6.520689655 | I39: =1/H39 -> 0.1533580116 | J39: =I39/0.0763 -> 2.009934622 | K39: =G39/H39 -> 
B41: Sulfur Dioxide | C41: =C38 -> 140 | D41: =460+C41 -> 600 | F41: 64 | G41: 0.273 | H41: =378.2/F41 -> 5.909375 | I41: =1/H41 -> 0.1692226335 | J41: =I41/0.0763 -> 2.217858893 | K41: =G41/H41 -> 0.04619777895 | L41: =(K41+K42)/2 -> 
B42: Sulfur Dioxide | C42: =C39 -> 0 | D42: =460+C42 -> 460 | F42: 64 | G42: =E42/F42 ->  | H42: =378.2/F42 -> 5.909375 | I42: =1/H42 -> 0.1692226335 | J42: =I42/0.0763 -> 2.217858893 | K42: =G42/H42 -> 
B44: Air | C44: =C2 -> 60 | G44: =J52*G8+(1-J52)*G11 -> 0.2354199131
C45: =C3 -> 0 | G45: =J52*G9+(1-J52)*G12 -> 0.24104787
B46: Comb air | C46: ='Calculations vol mod'!C53 -> 0 | G46: =G83 -> 0.2354813909
B48: Source - Gas Engineers Handbook
B50: For Air at 60 F., 80% Humidity | N50: Specific Heat (Btu/[F-#])for Comb. Air
B51: Composition of gas mixture | C51: % Vol | D51: % mass | E51: Mean CP Btu/scf | F51: Cp-60 F | G51: Cp 1000F | I51: mass | J51: % mass | L51: Ratio | M51: sp. Vol scf/# | N51: By mass | O51: Cp fraction | P51: Temp (R) | Q51: Cp Btu/(#F)
B52: Oxygen | C52: 20.7 | E52: =L8 -> 0.0181599079 | F52: =K8 -> 0.01828294216 | G52: =K9 -> 0.01803687363 | I52: =C52*I8 -> 1.751454257 | J52: =I52/I58 -> 0.2305764411 | L52: Ratio | M52: =J52*H8 -> 2.725125313 | N52: 0.231 | O52: =N52*(G8+G9)/2 -> 0.04957893204 | P52: ='Calculations vol mod'!C53 +460 -> 460 | Q52: =N52*(11.515-172/P52^0.5 +1530/P52)/32 -> 0.04924303234 | R52: O2 in air
B53: Carbon Dioxide | C53: 0 | E53: =L23 -> 0.02366631045 | F53: =K23 -> 0.02441389036 | G53: =K24 -> 0.02291873055
B54: Nitrogen & Other | C54: 78.3 | E54: =L11 -> 0.0181613646 | F54: =K11 -> 0.01785833863 | G54: =K12 -> 0.01846439057 | I54: =C54*I11 -> 5.79693284 | J54: =I54/I58 -> 0.7631578947 | L54: =(J54+J55)/J52 -> 3.336956522 | M54: =(1-J52)*H11 -> 10.39271393 | N54: =1-N52 -> 0.769 | O54: =N54*(G11+G12)/2 -> 0.1886419644 | P54: =P52 -> 460 | Q54: =N54*(9.47-3.47*10^3/P54 +1.07*10^6/P54^2)/28 -> 0.191789493 | R54: N2 in air
B55: Water vapor | C55: 1 | E55: =L20 -> 0.02157146531 | F55: =K20 -> 0.02111998165 | G55: =K21 -> 0.02202294897 | I55: =C55*I20 -> 0.04759386568 | J55: =I55/I58 -> 0.00626566416 | N55: Total | O55: =O52+O54 -> 0.2382208964 | Q55: =SUM(Q52:Q54) -> 0.2410325253
B57: Total | C57: =SUM(C52:C56) -> 100
B58: Mean value | E58: =($C$52*E52+$C$53*E53+$C$54*E54+$C$55*E55)/100 -> 0.01819516407 | F58: =($C$52*F52+$C$53*F53+$C$54*F54+$C$55*F55)/100 -> 0.01797884799 | G58: =($C$52*G52+$C$53*G53+$C$54*G54+$C$55*G55)/100 -> 0.01841148015 | I58: =SUM(I52:I55) -> 7.595980962 | M58: =M52+M54 -> 13.11783924
